{"text_format":"1","workbook":"xlsx","n_sheets":4,"sheets":["Tableau","Feuil2","Données","Feuil1"],"not_rendered":{"charts":0,"images":0,"macros":1,"external_links":0,"defined_names":4,"comments":0,"pivot_tables":0},"unopened":[],"bounds":{"document_bytes":16777216,"sheet_cells":100000,"rows_first":2000,"rows_last":500,"rows_between":2000,"halvings":0,"cell_chars":16384,"cell_head_chars":4096},"cells_cut":0,"cells_raw":0,"read":"whole","date_system":"1900"}

{"sheet":"Tableau","index":0,"n_rows":502,"n_cols":41,"rows_kept":502,"cut":false,"hidden":false,"merged":[[3,40,4,40],[0,3,0,4],[1,40,2,40],[0,6,0,10],[0,11,0,15]]}
["Aide","Aide 2","Aide 3","Aide 4",null,"Aide 5","Aide options",null,null,null,null,"Aide options 2",null,null,null,null,"Aide 6",null,0,"Aide tri",8]
["Commentaires","Zone","Repères","Hauteur","Largeur","Type","Allège vitrée","Vitrage","Sens Ouv","Petits bois","Allège maç","Mortaise","RAL","Dormant","GHI","Type de pose","OB","OB2",null,null,null,null,"Hauteur","Largeur","Type","Allège vitrée","Vitrage","Sens Ouv","Petits bois","Allège maç","Mortaise","RAL","Dormant","GHI","Type de pose","OB","OB2",null,"Quantités"]
[null,"BAT A apt01 RDC","A1",2150,1000,"PE",null,null,"Droite Tir",null,null,null,null,null,null,null,null,null,null,null,null,"→",2150,930,"PS",null,null,null,null,null,null,null,null,null,null,null,null,null,{"$f":"IF(COUNTIF(W3:AK3,\"<>\"),SUMPRODUCT((Tableau[Hauteur]&Tableau[Largeur]&Tableau[Type]&Tableau[Allège vitrée]&Tableau[Vitrage]&Tableau[Sens Ouv]&Tableau[Petits bois]&Tableau[Allège maç]&Tableau[Mortaise]&Tableau[RAL]&Tableau[Dormant]&Tableau[GHI]&Tableau[Type de pose]&Tableau[OB]&Tableau[OB2]=W3&X3&Y3&Z3&AA3&AB3&AC3&AD3&AE3&AF3&AG3&AH3&AI3&AJ3&AK3)*1),\"\")","v":1},"←"]
["INCOHERENCE Plan Niv=75x120?",null,"A2",1750,1200,"OF2",null,"44²RA-16-4",null,"1V 2H",400,"Oui",null,null,null,null,null,null,null,null,null,"→",2125,2500,"PG",null,null,null,null,null,null,null,null,null,null,null,null,null,{"$f":"IF(COUNTIF(W4:AK4,\"<>\"),SUMPRODUCT((Tableau[Hauteur]&Tableau[Largeur]&Tableau[Type]&Tableau[Allège vitrée]&Tableau[Vitrage]&Tableau[Sens Ouv]&Tableau[Petits bois]&Tableau[Allège maç]&Tableau[Mortaise]&Tableau[RAL]&Tableau[Dormant]&Tableau[GHI]&Tableau[Type de pose]&Tableau[OB]&Tableau[OB2]=W4&X4&Y4&Z4&AA4&AB4&AC4&AD4&AE4&AF4&AG4&AH4&AI4&AJ4&AK4)*1),\"\")","v":1},"←","Total menuiseries"]
["INCOHERENCE IDEM rep A2","Apt A02","A3",1750,1200,"OF2",null,"44²RA-16-4",null,"1V 2H",400,"Oui",null,null,null,null,null,null,null,null,null,"→",2120,2400,"PG",null,null,null,null,null,null,null,null,null,null,null,null,null,{"$f":"IF(COUNTIF(W5:AK5,\"<>\"),SUMPRODUCT((Tableau[Hauteur]&Tableau[Largeur]&Tableau[Type]&Tableau[Allège vitrée]&Tableau[Vitrage]&Tableau[Sens Ouv]&Tableau[Petits bois]&Tableau[Allège maç]&Tableau[Mortaise]&Tableau[RAL]&Tableau[Dormant]&Tableau[GHI]&Tableau[Type de pose]&Tableau[OB]&Tableau[OB2]=W5&X5&Y5&Z5&AA5&AB5&AC5&AD5&AE5&AF5&AG5&AH5&AI5&AJ5&AK5)*1),\"\")","v":1},"←"]
[null,null,"A4",2150,1000,"PE",null,null,"Gauche Tir",null,null,null,null,null,null,null,null,null,null,null,null,"→",2150,1600,"PF2",null,"44²RA-16-4",null,"1V 2H",null,"Oui",null,null,null,null,null,null,null,{"$f":"IF(COUNTIF(W6:AK6,\"<>\"),SUMPRODUCT((Tableau[Hauteur]&Tableau[Largeur]&Tableau[Type]&Tableau[Allège vitrée]&Tableau[Vitrage]&Tableau[Sens Ouv]&Tableau[Petits bois]&Tableau[Allège maç]&Tableau[Mortaise]&Tableau[RAL]&Tableau[Dormant]&Tableau[GHI]&Tableau[Type de pose]&Tableau[OB]&Tableau[OB2]=W6&X6&Y6&Z6&AA6&AB6&AC6&AD6&AE6&AF6&AG6&AH6&AI6&AJ6&AK6)*1),\"\")","v":3},"←",{"$f":"SUM(AM:AM)","v":27}]
[null,null,"A5",2120,2400,"PG",null,null,null,null,null,null,null,null,null,null,null,null,null,null,null,"→",2150,1000,"PF1",null,"44²RA-16-4","Droite Tir","1V 2H",null,null,null,null,null,null,null,null,null,{"$f":"IF(COUNTIF(W7:AK7,\"<>\"),SUMPRODUCT((Tableau[Hauteur]&Tableau[Largeur]&Tableau[Type]&Tableau[Allège vitrée]&Tableau[Vitrage]&Tableau[Sens Ouv]&Tableau[Petits bois]&Tableau[Allège maç]&Tableau[Mortaise]&Tableau[RAL]&Tableau[Dormant]&Tableau[GHI]&Tableau[Type de pose]&Tableau[OB]&Tableau[OB2]=W7&X7&Y7&Z7&AA7&AB7&AC7&AD7&AE7&AF7&AG7&AH7&AI7&AJ7&AK7)*1),\"\")","v":2},"←"]
["Apt.A03 - Incohérence IDEM rep A2","Apt.A03","A6",1750,1200,"OF2",null,"44²RA-16-4",null,"1V 2H",400,"Oui",null,null,null,null,null,null,null,null,null,"→",2150,1000,"PF1",null,"44²RA-16-4","Gauche Tir","1V 2H",null,null,null,null,null,null,null,null,null,{"$f":"IF(COUNTIF(W8:AK8,\"<>\"),SUMPRODUCT((Tableau[Hauteur]&Tableau[Largeur]&Tableau[Type]&Tableau[Allège vitrée]&Tableau[Vitrage]&Tableau[Sens Ouv]&Tableau[Petits bois]&Tableau[Allège maç]&Tableau[Mortaise]&Tableau[RAL]&Tableau[Dormant]&Tableau[GHI]&Tableau[Type de pose]&Tableau[OB]&Tableau[OB2]=W8&X8&Y8&Z8&AA8&AB8&AC8&AD8&AE8&AF8&AG8&AH8&AI8&AJ8&AK8)*1),\"\")","v":1},"←"]
[null,null,"A7",2150,1000,"PE",null,null,"Gauche Tir",null,null,null,null,null,null,null,null,null,null,null,null,"→",2150,950,"PF1",null,"10/14/4","Droite Tir","1V 2H",null,null,null,null,null,null,null,null,null,{"$f":"IF(COUNTIF(W9:AK9,\"<>\"),SUMPRODUCT((Tableau[Hauteur]&Tableau[Largeur]&Tableau[Type]&Tableau[Allège vitrée]&Tableau[Vitrage]&Tableau[Sens Ouv]&Tableau[Petits bois]&Tableau[Allège maç]&Tableau[Mortaise]&Tableau[RAL]&Tableau[Dormant]&Tableau[GHI]&Tableau[Type de pose]&Tableau[OB]&Tableau[OB2]=W9&X9&Y9&Z9&AA9&AB9&AC9&AD9&AE9&AF9&AG9&AH9&AI9&AJ9&AK9)*1),\"\")","v":5},"←"]
[null,null,"A8",2125,2500,"PG",null,null,null,null,null,null,null,null,null,null,null,null,null,null,null,"→",2150,950,"PF1",null,"10/14/4","Gauche Tir","1V 2H",null,null,null,null,null,null,null,null,null,{"$f":"IF(COUNTIF(W10:AK10,\"<>\"),SUMPRODUCT((Tableau[Hauteur]&Tableau[Largeur]&Tableau[Type]&Tableau[Allège vitrée]&Tableau[Vitrage]&Tableau[Sens Ouv]&Tableau[Petits bois]&Tableau[Allège maç]&Tableau[Mortaise]&Tableau[RAL]&Tableau[Dormant]&Tableau[GHI]&Tableau[Type de pose]&Tableau[OB]&Tableau[OB2]=W10&X10&Y10&Z10&AA10&AB10&AC10&AD10&AE10&AF10&AG10&AH10&AI10&AJ10&AK10)*1),\"\")","v":3},"←"]
["INCOHERENCE SENS D'OUVERTURE",null,"A9",2150,1000,"PF1",null,"44²RA-16-4","Droite Tir","1V 2H",null,null,null,null,null,null,null,null,null,null,null,"→",2150,1000,"PE",null,null,"Droite Tir",null,null,null,null,null,null,null,null,null,null,{"$f":"IF(COUNTIF(W11:AK11,\"<>\"),SUMPRODUCT((Tableau[Hauteur]&Tableau[Largeur]&Tableau[Type]&Tableau[Allège vitrée]&Tableau[Vitrage]&Tableau[Sens Ouv]&Tableau[Petits bois]&Tableau[Allège maç]&Tableau[Mortaise]&Tableau[RAL]&Tableau[Dormant]&Tableau[GHI]&Tableau[Type de pose]&Tableau[OB]&Tableau[OB2]=W11&X11&Y11&Z11&AA11&AB11&AC11&AD11&AE11&AF11&AG11&AH11&AI11&AJ11&AK11)*1),\"\")","v":1},"←"]
[null,null,"A10",2150,1600,"PF2",null,"44²RA-16-4",null,"1V 2H",null,"Oui",null,null,null,null,null,null,null,null,null,"→",2150,1000,"PE",null,null,"Gauche Tir",null,null,null,null,null,null,null,null,null,null,{"$f":"IF(COUNTIF(W12:AK12,\"<>\"),SUMPRODUCT((Tableau[Hauteur]&Tableau[Largeur]&Tableau[Type]&Tableau[Allège vitrée]&Tableau[Vitrage]&Tableau[Sens Ouv]&Tableau[Petits bois]&Tableau[Allège maç]&Tableau[Mortaise]&Tableau[RAL]&Tableau[Dormant]&Tableau[GHI]&Tableau[Type de pose]&Tableau[OB]&Tableau[OB2]=W12&X12&Y12&Z12&AA12&AB12&AC12&AD12&AE12&AF12&AG12&AH12&AI12&AJ12&AK12)*1),\"\")","v":2},"←"]
["LARG. A VALIDER (930 = cote passage?)","Apt A02 ","A11",2150,930,"PS",null,null,null,null,null,null,null,null,null,null,null,null,null,null,null,"→",2150,1200,"OF2",1000,"6-18-4",null,"1V(AL) 1H(OF)",null,null,null,null,null,null,null,null,null,{"$f":"IF(COUNTIF(W13:AK13,\"<>\"),SUMPRODUCT((Tableau[Hauteur]&Tableau[Largeur]&Tableau[Type]&Tableau[Allège vitrée]&Tableau[Vitrage]&Tableau[Sens Ouv]&Tableau[Petits bois]&Tableau[Allège maç]&Tableau[Mortaise]&Tableau[RAL]&Tableau[Dormant]&Tableau[GHI]&Tableau[Type de pose]&Tableau[OB]&Tableau[OB2]=W13&X13&Y13&Z13&AA13&AB13&AC13&AD13&AE13&AF13&AG13&AH13&AI13&AJ13&AK13)*1),\"\")","v":4},"←"]
[null,null,"A12",2150,1000,"PF1",null,"44²RA-16-4","Droite tir","1V 2H",null,null,null,null,null,null,null,null,null,null,null,"→",1750,1200,"OF2",null,"44²RA-16-4",null,"1V 2H",400,"Oui",null,null,null,null,null,null,null,{"$f":"IF(COUNTIF(W14:AK14,\"<>\"),SUMPRODUCT((Tableau[Hauteur]&Tableau[Largeur]&Tableau[Type]&Tableau[Allège vitrée]&Tableau[Vitrage]&Tableau[Sens Ouv]&Tableau[Petits bois]&Tableau[Allège maç]&Tableau[Mortaise]&Tableau[RAL]&Tableau[Dormant]&Tableau[GHI]&Tableau[Type de pose]&Tableau[OB]&Tableau[OB2]=W14&X14&Y14&Z14&AA14&AB14&AC14&AD14&AE14&AF14&AG14&AH14&AI14&AJ14&AK14)*1),\"\")","v":3},"←"]
[null,null,"A13",2150,1600,"PF2",null,"44²RA-16-4",null,"1V 2H",null,"Oui",null,null,null,null,null,null,null,null,null,"→",null,null,null,null,null,null,null,null,null,null,null,null,null,null,null,null,{"$f":"IF(COUNTIF(W15:AK15,\"<>\"),SUMPRODUCT((Tableau[Hauteur]&Tableau[Largeur]&Tableau[Type]&Tableau[Allège vitrée]&Tableau[Vitrage]&Tableau[Sens Ouv]&Tableau[Petits bois]&Tableau[Allège maç]&Tableau[Mortaise]&Tableau[RAL]&Tableau[Dormant]&Tableau[GHI]&Tableau[Type de pose]&Tableau[OB]&Tableau[OB2]=W15&X15&Y15&Z15&AA15&AB15&AC15&AD15&AE15&AF15&AG15&AH15&AI15&AJ15&AK15)*1),\"\")","v":""},"←"]
[null,null,"A14",2150,1600,"PF2",null,"44²RA-16-4",null,"1V 2H",null,"Oui",null,null,null,null,null,null,null,null,null,"→",null,null,null,null,null,null,null,null,null,null,null,null,null,null,null,null,{"$f":"IF(COUNTIF(W16:AK16,\"<>\"),SUMPRODUCT((Tableau[Hauteur]&Tableau[Largeur]&Tableau[Type]&Tableau[Allège vitrée]&Tableau[Vitrage]&Tableau[Sens Ouv]&Tableau[Petits bois]&Tableau[Allège maç]&Tableau[Mortaise]&Tableau[RAL]&Tableau[Dormant]&Tableau[GHI]&Tableau[Type de pose]&Tableau[OB]&Tableau[OB2]=W16&X16&Y16&Z16&AA16&AB16&AC16&AD16&AE16&AF16&AG16&AH16&AI16&AJ16&AK16)*1),\"\")","v":""},"←"]
[null,null,"A15",2150,1000,"PF1",null,"44²RA-16-4","Gauche Tir","1V 2H",null,null,null,null,null,null,null,null,null,null,null,"→",null,null,null,null,null,null,null,null,null,null,null,null,null,null,null,null,{"$f":"IF(COUNTIF(W17:AK17,\"<>\"),SUMPRODUCT((Tableau[Hauteur]&Tableau[Largeur]&Tableau[Type]&Tableau[Allège vitrée]&Tableau[Vitrage]&Tableau[Sens Ouv]&Tableau[Petits bois]&Tableau[Allège maç]&Tableau[Mortaise]&Tableau[RAL]&Tableau[Dormant]&Tableau[GHI]&Tableau[Type de pose]&Tableau[OB]&Tableau[OB2]=W17&X17&Y17&Z17&AA17&AB17&AC17&AD17&AE17&AF17&AG17&AH17&AI17&AJ17&AK17)*1),\"\")","v":""},"←"]
[null,"Apt A01 R+1","A16",2150,950,"PF1",null,"10/14/4","Droite Tir","1V 2H",null,null,null,null,null,null,null,null,null,null,null,"→",null,null,null,null,null,null,null,null,null,null,null,null,null,null,null,null,{"$f":"IF(COUNTIF(W18:AK18,\"<>\"),SUMPRODUCT((Tableau[Hauteur]&Tableau[Largeur]&Tableau[Type]&Tableau[Allège vitrée]&Tableau[Vitrage]&Tableau[Sens Ouv]&Tableau[Petits bois]&Tableau[Allège maç]&Tableau[Mortaise]&Tableau[RAL]&Tableau[Dormant]&Tableau[GHI]&Tableau[Type de pose]&Tableau[OB]&Tableau[OB2]=W18&X18&Y18&Z18&AA18&AB18&AC18&AD18&AE18&AF18&AG18&AH18&AI18&AJ18&AK18)*1),\"\")","v":""},"←"]
[null,null,"A17",2150,950,"PF1",null,"10/14/4","Gauche Tir","1V 2H",null,null,null,null,null,null,null,null,null,null,null,"→",null,null,null,null,null,null,null,null,null,null,null,null,null,null,null,null,{"$f":"IF(COUNTIF(W19:AK19,\"<>\"),SUMPRODUCT((Tableau[Hauteur]&Tableau[Largeur]&Tableau[Type]&Tableau[Allège vitrée]&Tableau[Vitrage]&Tableau[Sens Ouv]&Tableau[Petits bois]&Tableau[Allège maç]&Tableau[Mortaise]&Tableau[RAL]&Tableau[Dormant]&Tableau[GHI]&Tableau[Type de pose]&Tableau[OB]&Tableau[OB2]=W19&X19&Y19&Z19&AA19&AB19&AC19&AD19&AE19&AF19&AG19&AH19&AI19&AJ19&AK19)*1),\"\")","v":""},"←"]
[null,"Apt A02 R+1","A18",2150,950,"PF1",null,"10/14/4","Droite Tir","1V 2H",null,null,null,null,null,null,null,null,null,"Aide",null,"→",null,null,null,null,null,null,null,null,null,null,null,null,null,null,null,null,{"$f":"IF(COUNTIF(W20:AK20,\"<>\"),SUMPRODUCT((Tableau[Hauteur]&Tableau[Largeur]&Tableau[Type]&Tableau[Allège vitrée]&Tableau[Vitrage]&Tableau[Sens Ouv]&Tableau[Petits bois]&Tableau[Allège maç]&Tableau[Mortaise]&Tableau[RAL]&Tableau[Dormant]&Tableau[GHI]&Tableau[Type de pose]&Tableau[OB]&Tableau[OB2]=W20&X20&Y20&Z20&AA20&AB20&AC20&AD20&AE20&AF20&AG20&AH20&AI20&AJ20&AK20)*1),\"\")","v":""},"←"]
[null,null,"A19",2150,950,"PF1",null,"10/14/4","Gauche Tir","1V 2H",null,null,null,null,null,null,null,null,null,null,null,"→",null,null,null,null,null,null,null,null,null,null,null,null,null,null,null,null,{"$f":"IF(COUNTIF(W21:AK21,\"<>\"),SUMPRODUCT((Tableau[Hauteur]&Tableau[Largeur]&Tableau[Type]&Tableau[Allège vitrée]&Tableau[Vitrage]&Tableau[Sens Ouv]&Tableau[Petits bois]&Tableau[Allège maç]&Tableau[Mortaise]&Tableau[RAL]&Tableau[Dormant]&Tableau[GHI]&Tableau[Type de pose]&Tableau[OB]&Tableau[OB2]=W21&X21&Y21&Z21&AA21&AB21&AC21&AD21&AE21&AF21&AG21&AH21&AI21&AJ21&AK21)*1),\"\")","v":""},"←"]
[null,"Apt A03 R+1","A20",2150,1200,"OF2",1000,"6-18-4",null,"1V(AL) 1H(OF)",null,null,null,null,null,null,null,null,null,null,null,"→",null,null,null,null,null,null,null,null,null,null,null,null,null,null,null,null,{"$f":"IF(COUNTIF(W22:AK22,\"<>\"),SUMPRODUCT((Tableau[Hauteur]&Tableau[Largeur]&Tableau[Type]&Tableau[Allège vitrée]&Tableau[Vitrage]&Tableau[Sens Ouv]&Tableau[Petits bois]&Tableau[Allège maç]&Tableau[Mortaise]&Tableau[RAL]&Tableau[Dormant]&Tableau[GHI]&Tableau[Type de pose]&Tableau[OB]&Tableau[OB2]=W22&X22&Y22&Z22&AA22&AB22&AC22&AD22&AE22&AF22&AG22&AH22&AI22&AJ22&AK22)*1),\"\")","v":""},"←"]
[null,null,"A21",2150,950,"PF1",null,"10/14/4","Gauche Tir","1V 2H",null,null,null,null,null,null,null,null,null,null,null,"→",null,null,null,null,null,null,null,null,null,null,null,null,null,null,null,null,{"$f":"IF(COUNTIF(W23:AK23,\"<>\"),SUMPRODUCT((Tableau[Hauteur]&Tableau[Largeur]&Tableau[Type]&Tableau[Allège vitrée]&Tableau[Vitrage]&Tableau[Sens Ouv]&Tableau[Petits bois]&Tableau[Allège maç]&Tableau[Mortaise]&Tableau[RAL]&Tableau[Dormant]&Tableau[GHI]&Tableau[Type de pose]&Tableau[OB]&Tableau[OB2]=W23&X23&Y23&Z23&AA23&AB23&AC23&AD23&AE23&AF23&AG23&AH23&AI23&AJ23&AK23)*1),\"\")","v":""},"←"]
[null,null,"A22",2150,950,"PF1",null,"10/14/4","Droite Tir","1V 2H",null,null,null,null,null,null,null,null,null,null,null,"→",null,null,null,null,null,null,null,null,null,null,null,null,null,null,null,null,{"$f":"IF(COUNTIF(W24:AK24,\"<>\"),SUMPRODUCT((Tableau[Hauteur]&Tableau[Largeur]&Tableau[Type]&Tableau[Allège vitrée]&Tableau[Vitrage]&Tableau[Sens Ouv]&Tableau[Petits bois]&Tableau[Allège maç]&Tableau[Mortaise]&Tableau[RAL]&Tableau[Dormant]&Tableau[GHI]&Tableau[Type de pose]&Tableau[OB]&Tableau[OB2]=W24&X24&Y24&Z24&AA24&AB24&AC24&AD24&AE24&AF24&AG24&AH24&AI24&AJ24&AK24)*1),\"\")","v":""},"←"]
["!!! Allège vitrée ET garde corps???",null,"A23",2150,1200,"OF2",1000,"6-18-4",null,"1V(AL) 1H(OF)",null,null,null,null,null,null,null,null,null,null,null,"→",null,null,null,null,null,null,null,null,null,null,null,null,null,null,null,null,{"$f":"IF(COUNTIF(W25:AK25,\"<>\"),SUMPRODUCT((Tableau[Hauteur]&Tableau[Largeur]&Tableau[Type]&Tableau[Allège vitrée]&Tableau[Vitrage]&Tableau[Sens Ouv]&Tableau[Petits bois]&Tableau[Allège maç]&Tableau[Mortaise]&Tableau[RAL]&Tableau[Dormant]&Tableau[GHI]&Tableau[Type de pose]&Tableau[OB]&Tableau[OB2]=W25&X25&Y25&Z25&AA25&AB25&AC25&AD25&AE25&AF25&AG25&AH25&AI25&AJ25&AK25)*1),\"\")","v":""},"←"]
["IDEM A23, ALLEGE VITREE ET GARDE CORPS?",null,"A24",2150,1200,"OF2",1000,"6-18-4",null,"1V(AL) 1H(OF)",null,null,null,null,null,null,null,null,null,null,null,"→",null,null,null,null,null,null,null,null,null,null,null,null,null,null,null,null,{"$f":"IF(COUNTIF(W26:AK26,\"<>\"),SUMPRODUCT((Tableau[Hauteur]&Tableau[Largeur]&Tableau[Type]&Tableau[Allège vitrée]&Tableau[Vitrage]&Tableau[Sens Ouv]&Tableau[Petits bois]&Tableau[Allège maç]&Tableau[Mortaise]&Tableau[RAL]&Tableau[Dormant]&Tableau[GHI]&Tableau[Type de pose]&Tableau[OB]&Tableau[OB2]=W26&X26&Y26&Z26&AA26&AB26&AC26&AD26&AE26&AF26&AG26&AH26&AI26&AJ26&AK26)*1),\"\")","v":""},"←"]
[null,null,"A25",2150,950,"PF1",null,"10/14/4","Droite Tir","1V 2H",null,null,null,null,null,null,null,null,null,null,null,"→",null,null,null,null,null,null,null,null,null,null,null,null,null,null,null,null,{"$f":"IF(COUNTIF(W27:AK27,\"<>\"),SUMPRODUCT((Tableau[Hauteur]&Tableau[Largeur]&Tableau[Type]&Tableau[Allège vitrée]&Tableau[Vitrage]&Tableau[Sens Ouv]&Tableau[Petits bois]&Tableau[Allège maç]&Tableau[Mortaise]&Tableau[RAL]&Tableau[Dormant]&Tableau[GHI]&Tableau[Type de pose]&Tableau[OB]&Tableau[OB2]=W27&X27&Y27&Z27&AA27&AB27&AC27&AD27&AE27&AF27&AG27&AH27&AI27&AJ27&AK27)*1),\"\")","v":""},"←"]
[null,null,"A26",2150,1200,"OF2",1000,"6-18-4",null,"1V(AL) 1H(OF)",null,null,null,null,null,null,null,null,null,null,null,"→",null,null,null,null,null,null,null,null,null,null,null,null,null,null,null,null,{"$f":"IF(COUNTIF(W28:AK28,\"<>\"),SUMPRODUCT((Tableau[Hauteur]&Tableau[Largeur]&Tableau[Type]&Tableau[Allège vitrée]&Tableau[Vitrage]&Tableau[Sens Ouv]&Tableau[Petits bois]&Tableau[Allège maç]&Tableau[Mortaise]&Tableau[RAL]&Tableau[Dormant]&Tableau[GHI]&Tableau[Type de pose]&Tableau[OB]&Tableau[OB2]=W28&X28&Y28&Z28&AA28&AB28&AC28&AD28&AE28&AF28&AG28&AH28&AI28&AJ28&AK28)*1),\"\")","v":""},"←"]
[null,null,"A27",2150,950,"PF1",null,"10/14/4","Droite Tir","1V 2H",null,null,null,null,null,null,null,null,null,null,null,"→",null,null,null,null,null,null,null,null,null,null,null,null,null,null,null,null,{"$f":"IF(COUNTIF(W29:AK29,\"<>\"),SUMPRODUCT((Tableau[Hauteur]&Tableau[Largeur]&Tableau[Type]&Tableau[Allège vitrée]&Tableau[Vitrage]&Tableau[Sens Ouv]&Tableau[Petits bois]&Tableau[Allège maç]&Tableau[Mortaise]&Tableau[RAL]&Tableau[Dormant]&Tableau[GHI]&Tableau[Type de pose]&Tableau[OB]&Tableau[OB2]=W29&X29&Y29&Z29&AA29&AB29&AC29&AD29&AE29&AF29&AG29&AH29&AI29&AJ29&AK29)*1),\"\")","v":""},"←"]
[null,null,null,null,null,null,null,null,null,null,null,null,null,null,null,null,null,null,null,null,null,"→",null,null,null,null,null,null,null,null,null,null,null,null,null,null,null,null,{"$f":"IF(COUNTIF(W30:AK30,\"<>\"),SUMPRODUCT((Tableau[Hauteur]&Tableau[Largeur]&Tableau[Type]&Tableau[Allège vitrée]&Tableau[Vitrage]&Tableau[Sens Ouv]&Tableau[Petits bois]&Tableau[Allège maç]&Tableau[Mortaise]&Tableau[RAL]&Tableau[Dormant]&Tableau[GHI]&Tableau[Type de pose]&Tableau[OB]&Tableau[OB2]=W30&X30&Y30&Z30&AA30&AB30&AC30&AD30&AE30&AF30&AG30&AH30&AI30&AJ30&AK30)*1),\"\")","v":""},"←"]
[null,null,null,null,null,null,null,null,null,null,null,null,null,null,null,null,null,null,null,null,null,"→",null,null,null,null,null,null,null,null,null,null,null,null,null,null,null,null,{"$f":"IF(COUNTIF(W31:AK31,\"<>\"),SUMPRODUCT((Tableau[Hauteur]&Tableau[Largeur]&Tableau[Type]&Tableau[Allège vitrée]&Tableau[Vitrage]&Tableau[Sens Ouv]&Tableau[Petits bois]&Tableau[Allège maç]&Tableau[Mortaise]&Tableau[RAL]&Tableau[Dormant]&Tableau[GHI]&Tableau[Type de pose]&Tableau[OB]&Tableau[OB2]=W31&X31&Y31&Z31&AA31&AB31&AC31&AD31&AE31&AF31&AG31&AH31&AI31&AJ31&AK31)*1),\"\")","v":""},"←"]
[null,null,null,null,null,null,null,null,null,null,null,null,null,null,null,null,null,null,null,null,null,"→",null,null,null,null,null,null,null,null,null,null,null,null,null,null,null,null,{"$f":"IF(COUNTIF(W32:AK32,\"<>\"),SUMPRODUCT((Tableau[Hauteur]&Tableau[Largeur]&Tableau[Type]&Tableau[Allège vitrée]&Tableau[Vitrage]&Tableau[Sens Ouv]&Tableau[Petits bois]&Tableau[Allège maç]&Tableau[Mortaise]&Tableau[RAL]&Tableau[Dormant]&Tableau[GHI]&Tableau[Type de pose]&Tableau[OB]&Tableau[OB2]=W32&X32&Y32&Z32&AA32&AB32&AC32&AD32&AE32&AF32&AG32&AH32&AI32&AJ32&AK32)*1),\"\")","v":""},"←"]
[null,null,null,null,null,null,null,null,null,null,null,null,null,null,null,null,null,null,null,null,null,"→",null,null,null,null,null,null,null,null,null,null,null,null,null,null,null,null,{"$f":"IF(COUNTIF(W33:AK33,\"<>\"),SUMPRODUCT((Tableau[Hauteur]&Tableau[Largeur]&Tableau[Type]&Tableau[Allège vitrée]&Tableau[Vitrage]&Tableau[Sens Ouv]&Tableau[Petits bois]&Tableau[Allège maç]&Tableau[Mortaise]&Tableau[RAL]&Tableau[Dormant]&Tableau[GHI]&Tableau[Type de pose]&Tableau[OB]&Tableau[OB2]=W33&X33&Y33&Z33&AA33&AB33&AC33&AD33&AE33&AF33&AG33&AH33&AI33&AJ33&AK33)*1),\"\")","v":""},"←"]
[null,null,null,null,null,null,null,null,null,null,null,null,null,null,null,null,null,null,null,null,null,"→",null,null,null,null,null,null,null,null,null,null,null,null,null,null,null,null,{"$f":"IF(COUNTIF(W34:AK34,\"<>\"),SUMPRODUCT((Tableau[Hauteur]&Tableau[Largeur]&Tableau[Type]&Tableau[Allège vitrée]&Tableau[Vitrage]&Tableau[Sens Ouv]&Tableau[Petits bois]&Tableau[Allège maç]&Tableau[Mortaise]&Tableau[RAL]&Tableau[Dormant]&Tableau[GHI]&Tableau[Type de pose]&Tableau[OB]&Tableau[OB2]=W34&X34&Y34&Z34&AA34&AB34&AC34&AD34&AE34&AF34&AG34&AH34&AI34&AJ34&AK34)*1),\"\")","v":""},"←"]
[null,null,null,null,null,null,null,null,null,null,null,null,null,null,null,null,null,null,null,null,null,"→",null,null,null,null,null,null,null,null,null,null,null,null,null,null,null,null,{"$f":"IF(COUNTIF(W35:AK35,\"<>\"),SUMPRODUCT((Tableau[Hauteur]&Tableau[Largeur]&Tableau[Type]&Tableau[Allège vitrée]&Tableau[Vitrage]&Tableau[Sens Ouv]&Tableau[Petits bois]&Tableau[Allège maç]&Tableau[Mortaise]&Tableau[RAL]&Tableau[Dormant]&Tableau[GHI]&Tableau[Type de pose]&Tableau[OB]&Tableau[OB2]=W35&X35&Y35&Z35&AA35&AB35&AC35&AD35&AE35&AF35&AG35&AH35&AI35&AJ35&AK35)*1),\"\")","v":""},"←"]
[null,null,null,null,null,null,null,null,null,null,null,null,null,null,null,null,null,null,null,null,null,"→",null,null,null,null,null,null,null,null,null,null,null,null,null,null,null,null,{"$f":"IF(COUNTIF(W36:AK36,\"<>\"),SUMPRODUCT((Tableau[Hauteur]&Tableau[Largeur]&Tableau[Type]&Tableau[Allège vitrée]&Tableau[Vitrage]&Tableau[Sens Ouv]&Tableau[Petits bois]&Tableau[Allège maç]&Tableau[Mortaise]&Tableau[RAL]&Tableau[Dormant]&Tableau[GHI]&Tableau[Type de pose]&Tableau[OB]&Tableau[OB2]=W36&X36&Y36&Z36&AA36&AB36&AC36&AD36&AE36&AF36&AG36&AH36&AI36&AJ36&AK36)*1),\"\")","v":""},"←"]
[null,null,null,null,null,null,null,null,null,null,null,null,null,null,null,null,null,null,null,null,null,"→",null,null,null,null,null,null,null,null,null,null,null,null,null,null,null,null,{"$f":"IF(COUNTIF(W37:AK37,\"<>\"),SUMPRODUCT((Tableau[Hauteur]&Tableau[Largeur]&Tableau[Type]&Tableau[Allège vitrée]&Tableau[Vitrage]&Tableau[Sens Ouv]&Tableau[Petits bois]&Tableau[Allège maç]&Tableau[Mortaise]&Tableau[RAL]&Tableau[Dormant]&Tableau[GHI]&Tableau[Type de pose]&Tableau[OB]&Tableau[OB2]=W37&X37&Y37&Z37&AA37&AB37&AC37&AD37&AE37&AF37&AG37&AH37&AI37&AJ37&AK37)*1),\"\")","v":""},"←"]
[null,null,null,null,null,null,null,null,null,null,null,null,null,null,null,null,null,null,null,null,null,"→",null,null,null,null,null,null,null,null,null,null,null,null,null,null,null,null,{"$f":"IF(COUNTIF(W38:AK38,\"<>\"),SUMPRODUCT((Tableau[Hauteur]&Tableau[Largeur]&Tableau[Type]&Tableau[Allège vitrée]&Tableau[Vitrage]&Tableau[Sens Ouv]&Tableau[Petits bois]&Tableau[Allège maç]&Tableau[Mortaise]&Tableau[RAL]&Tableau[Dormant]&Tableau[GHI]&Tableau[Type de pose]&Tableau[OB]&Tableau[OB2]=W38&X38&Y38&Z38&AA38&AB38&AC38&AD38&AE38&AF38&AG38&AH38&AI38&AJ38&AK38)*1),\"\")","v":""},"←"]
[null,null,null,null,null,null,null,null,null,null,null,null,null,null,null,null,null,null,null,null,null,"→",null,null,null,null,null,null,null,null,null,null,null,null,null,null,null,null,{"$f":"IF(COUNTIF(W39:AK39,\"<>\"),SUMPRODUCT((Tableau[Hauteur]&Tableau[Largeur]&Tableau[Type]&Tableau[Allège vitrée]&Tableau[Vitrage]&Tableau[Sens Ouv]&Tableau[Petits bois]&Tableau[Allège maç]&Tableau[Mortaise]&Tableau[RAL]&Tableau[Dormant]&Tableau[GHI]&Tableau[Type de pose]&Tableau[OB]&Tableau[OB2]=W39&X39&Y39&Z39&AA39&AB39&AC39&AD39&AE39&AF39&AG39&AH39&AI39&AJ39&AK39)*1),\"\")","v":""},"←"]
[null,null,null,null,null,null,null,null,null,null,null,null,null,null,null,null,null,null,null,null,null,"→",null,null,null,null,null,null,null,null,null,null,null,null,null,null,null,null,{"$f":"IF(COUNTIF(W40:AK40,\"<>\"),SUMPRODUCT((Tableau[Hauteur]&Tableau[Largeur]&Tableau[Type]&Tableau[Allège vitrée]&Tableau[Vitrage]&Tableau[Sens Ouv]&Tableau[Petits bois]&Tableau[Allège maç]&Tableau[Mortaise]&Tableau[RAL]&Tableau[Dormant]&Tableau[GHI]&Tableau[Type de pose]&Tableau[OB]&Tableau[OB2]=W40&X40&Y40&Z40&AA40&AB40&AC40&AD40&AE40&AF40&AG40&AH40&AI40&AJ40&AK40)*1),\"\")","v":""},"←"]
[null,null,null,null,null,null,null,null,null,null,null,null,null,null,null,null,null,null,null,null,null,"→",null,null,null,null,null,null,null,null,null,null,null,null,null,null,null,null,{"$f":"IF(COUNTIF(W41:AK41,\"<>\"),SUMPRODUCT((Tableau[Hauteur]&Tableau[Largeur]&Tableau[Type]&Tableau[Allège vitrée]&Tableau[Vitrage]&Tableau[Sens Ouv]&Tableau[Petits bois]&Tableau[Allège maç]&Tableau[Mortaise]&Tableau[RAL]&Tableau[Dormant]&Tableau[GHI]&Tableau[Type de pose]&Tableau[OB]&Tableau[OB2]=W41&X41&Y41&Z41&AA41&AB41&AC41&AD41&AE41&AF41&AG41&AH41&AI41&AJ41&AK41)*1),\"\")","v":""},"←"]
[null,null,null,null,null,null,null,null,null,null,null,null,null,null,null,null,null,null,null,null,null,"→",null,null,null,null,null,null,null,null,null,null,null,null,null,null,null,null,{"$f":"IF(COUNTIF(W42:AK42,\"<>\"),SUMPRODUCT((Tableau[Hauteur]&Tableau[Largeur]&Tableau[Type]&Tableau[Allège vitrée]&Tableau[Vitrage]&Tableau[Sens Ouv]&Tableau[Petits bois]&Tableau[Allège maç]&Tableau[Mortaise]&Tableau[RAL]&Tableau[Dormant]&Tableau[GHI]&Tableau[Type de pose]&Tableau[OB]&Tableau[OB2]=W42&X42&Y42&Z42&AA42&AB42&AC42&AD42&AE42&AF42&AG42&AH42&AI42&AJ42&AK42)*1),\"\")","v":""},"←"]
[null,null,null,null,null,null,null,null,null,null,null,null,null,null,null,null,null,null,null,null,null,"→",null,null,null,null,null,null,null,null,null,null,null,null,null,null,null,null,{"$f":"IF(COUNTIF(W43:AK43,\"<>\"),SUMPRODUCT((Tableau[Hauteur]&Tableau[Largeur]&Tableau[Type]&Tableau[Allège vitrée]&Tableau[Vitrage]&Tableau[Sens Ouv]&Tableau[Petits bois]&Tableau[Allège maç]&Tableau[Mortaise]&Tableau[RAL]&Tableau[Dormant]&Tableau[GHI]&Tableau[Type de pose]&Tableau[OB]&Tableau[OB2]=W43&X43&Y43&Z43&AA43&AB43&AC43&AD43&AE43&AF43&AG43&AH43&AI43&AJ43&AK43)*1),\"\")","v":""},"←"]
[null,null,null,null,null,null,null,null,null,null,null,null,null,null,null,null,null,null,null,null,null,"→",null,null,null,null,null,null,null,null,null,null,null,null,null,null,null,null,{"$f":"IF(COUNTIF(W44:AK44,\"<>\"),SUMPRODUCT((Tableau[Hauteur]&Tableau[Largeur]&Tableau[Type]&Tableau[Allège vitrée]&Tableau[Vitrage]&Tableau[Sens Ouv]&Tableau[Petits bois]&Tableau[Allège maç]&Tableau[Mortaise]&Tableau[RAL]&Tableau[Dormant]&Tableau[GHI]&Tableau[Type de pose]&Tableau[OB]&Tableau[OB2]=W44&X44&Y44&Z44&AA44&AB44&AC44&AD44&AE44&AF44&AG44&AH44&AI44&AJ44&AK44)*1),\"\")","v":""},"←"]
[null,null,null,null,null,null,null,null,null,null,null,null,null,null,null,null,null,null,null,null,null,"→",null,null,null,null,null,null,null,null,null,null,null,null,null,null,null,null,{"$f":"IF(COUNTIF(W45:AK45,\"<>\"),SUMPRODUCT((Tableau[Hauteur]&Tableau[Largeur]&Tableau[Type]&Tableau[Allège vitrée]&Tableau[Vitrage]&Tableau[Sens Ouv]&Tableau[Petits bois]&Tableau[Allège maç]&Tableau[Mortaise]&Tableau[RAL]&Tableau[Dormant]&Tableau[GHI]&Tableau[Type de pose]&Tableau[OB]&Tableau[OB2]=W45&X45&Y45&Z45&AA45&AB45&AC45&AD45&AE45&AF45&AG45&AH45&AI45&AJ45&AK45)*1),\"\")","v":""},"←"]
[null,null,null,null,null,null,null,null,null,null,null,null,null,null,null,null,null,null,null,null,null,"→",null,null,null,null,null,null,null,null,null,null,null,null,null,null,null,null,{"$f":"IF(COUNTIF(W46:AK46,\"<>\"),SUMPRODUCT((Tableau[Hauteur]&Tableau[Largeur]&Tableau[Type]&Tableau[Allège vitrée]&Tableau[Vitrage]&Tableau[Sens Ouv]&Tableau[Petits bois]&Tableau[Allège maç]&Tableau[Mortaise]&Tableau[RAL]&Tableau[Dormant]&Tableau[GHI]&Tableau[Type de pose]&Tableau[OB]&Tableau[OB2]=W46&X46&Y46&Z46&AA46&AB46&AC46&AD46&AE46&AF46&AG46&AH46&AI46&AJ46&AK46)*1),\"\")","v":""},"←"]
[null,null,null,null,null,null,null,null,null,null,null,null,null,null,null,null,null,null,null,null,null,"→",null,null,null,null,null,null,null,null,null,null,null,null,null,null,null,null,{"$f":"IF(COUNTIF(W47:AK47,\"<>\"),SUMPRODUCT((Tableau[Hauteur]&Tableau[Largeur]&Tableau[Type]&Tableau[Allège vitrée]&Tableau[Vitrage]&Tableau[Sens Ouv]&Tableau[Petits bois]&Tableau[Allège maç]&Tableau[Mortaise]&Tableau[RAL]&Tableau[Dormant]&Tableau[GHI]&Tableau[Type de pose]&Tableau[OB]&Tableau[OB2]=W47&X47&Y47&Z47&AA47&AB47&AC47&AD47&AE47&AF47&AG47&AH47&AI47&AJ47&AK47)*1),\"\")","v":""},"←"]
[null,null,null,null,null,null,null,null,null,null,null,null,null,null,null,null,null,null,null,null,null,"→",null,null,null,null,null,null,null,null,null,null,null,null,null,null,null,null,{"$f":"IF(COUNTIF(W48:AK48,\"<>\"),SUMPRODUCT((Tableau[Hauteur]&Tableau[Largeur]&Tableau[Type]&Tableau[Allège vitrée]&Tableau[Vitrage]&Tableau[Sens Ouv]&Tableau[Petits bois]&Tableau[Allège maç]&Tableau[Mortaise]&Tableau[RAL]&Tableau[Dormant]&Tableau[GHI]&Tableau[Type de pose]&Tableau[OB]&Tableau[OB2]=W48&X48&Y48&Z48&AA48&AB48&AC48&AD48&AE48&AF48&AG48&AH48&AI48&AJ48&AK48)*1),\"\")","v":""},"←"]
[null,null,null,null,null,null,null,null,null,null,null,null,null,null,null,null,null,null,null,null,null,"→",null,null,null,null,null,null,null,null,null,null,null,null,null,null,null,null,{"$f":"IF(COUNTIF(W49:AK49,\"<>\"),SUMPRODUCT((Tableau[Hauteur]&Tableau[Largeur]&Tableau[Type]&Tableau[Allège vitrée]&Tableau[Vitrage]&Tableau[Sens Ouv]&Tableau[Petits bois]&Tableau[Allège maç]&Tableau[Mortaise]&Tableau[RAL]&Tableau[Dormant]&Tableau[GHI]&Tableau[Type de pose]&Tableau[OB]&Tableau[OB2]=W49&X49&Y49&Z49&AA49&AB49&AC49&AD49&AE49&AF49&AG49&AH49&AI49&AJ49&AK49)*1),\"\")","v":""},"←"]
[null,null,null,null,null,null,null,null,null,null,null,null,null,null,null,null,null,null,null,null,null,"→",null,null,null,null,null,null,null,null,null,null,null,null,null,null,null,null,{"$f":"IF(COUNTIF(W50:AK50,\"<>\"),SUMPRODUCT((Tableau[Hauteur]&Tableau[Largeur]&Tableau[Type]&Tableau[Allège vitrée]&Tableau[Vitrage]&Tableau[Sens Ouv]&Tableau[Petits bois]&Tableau[Allège maç]&Tableau[Mortaise]&Tableau[RAL]&Tableau[Dormant]&Tableau[GHI]&Tableau[Type de pose]&Tableau[OB]&Tableau[OB2]=W50&X50&Y50&Z50&AA50&AB50&AC50&AD50&AE50&AF50&AG50&AH50&AI50&AJ50&AK50)*1),\"\")","v":""},"←"]
[null,null,null,null,null,null,null,null,null,null,null,null,null,null,null,null,null,null,null,null,null,"→",null,null,null,null,null,null,null,null,null,null,null,null,null,null,null,null,{"$f":"IF(COUNTIF(W51:AK51,\"<>\"),SUMPRODUCT((Tableau[Hauteur]&Tableau[Largeur]&Tableau[Type]&Tableau[Allège vitrée]&Tableau[Vitrage]&Tableau[Sens Ouv]&Tableau[Petits bois]&Tableau[Allège maç]&Tableau[Mortaise]&Tableau[RAL]&Tableau[Dormant]&Tableau[GHI]&Tableau[Type de pose]&Tableau[OB]&Tableau[OB2]=W51&X51&Y51&Z51&AA51&AB51&AC51&AD51&AE51&AF51&AG51&AH51&AI51&AJ51&AK51)*1),\"\")","v":""},"←"]
[null,null,null,null,null,null,null,null,null,null,null,null,null,null,null,null,null,null,null,null,null,"→",null,null,null,null,null,null,null,null,null,null,null,null,null,null,null,null,{"$f":"IF(COUNTIF(W52:AK52,\"<>\"),SUMPRODUCT((Tableau[Hauteur]&Tableau[Largeur]&Tableau[Type]&Tableau[Allège vitrée]&Tableau[Vitrage]&Tableau[Sens Ouv]&Tableau[Petits bois]&Tableau[Allège maç]&Tableau[Mortaise]&Tableau[RAL]&Tableau[Dormant]&Tableau[GHI]&Tableau[Type de pose]&Tableau[OB]&Tableau[OB2]=W52&X52&Y52&Z52&AA52&AB52&AC52&AD52&AE52&AF52&AG52&AH52&AI52&AJ52&AK52)*1),\"\")","v":""},"←"]
[null,null,null,null,null,null,null,null,null,null,null,null,null,null,null,null,null,null,null,null,null,"→",null,null,null,null,null,null,null,null,null,null,null,null,null,null,null,null,{"$f":"IF(COUNTIF(W53:AK53,\"<>\"),SUMPRODUCT((Tableau[Hauteur]&Tableau[Largeur]&Tableau[Type]&Tableau[Allège vitrée]&Tableau[Vitrage]&Tableau[Sens Ouv]&Tableau[Petits bois]&Tableau[Allège maç]&Tableau[Mortaise]&Tableau[RAL]&Tableau[Dormant]&Tableau[GHI]&Tableau[Type de pose]&Tableau[OB]&Tableau[OB2]=W53&X53&Y53&Z53&AA53&AB53&AC53&AD53&AE53&AF53&AG53&AH53&AI53&AJ53&AK53)*1),\"\")","v":""},"←"]
[null,null,null,null,null,null,null,null,null,null,null,null,null,null,null,null,null,null,null,null,null,"→",null,null,null,null,null,null,null,null,null,null,null,null,null,null,null,null,{"$f":"IF(COUNTIF(W54:AK54,\"<>\"),SUMPRODUCT((Tableau[Hauteur]&Tableau[Largeur]&Tableau[Type]&Tableau[Allège vitrée]&Tableau[Vitrage]&Tableau[Sens Ouv]&Tableau[Petits bois]&Tableau[Allège maç]&Tableau[Mortaise]&Tableau[RAL]&Tableau[Dormant]&Tableau[GHI]&Tableau[Type de pose]&Tableau[OB]&Tableau[OB2]=W54&X54&Y54&Z54&AA54&AB54&AC54&AD54&AE54&AF54&AG54&AH54&AI54&AJ54&AK54)*1),\"\")","v":""},"←"]
[null,null,null,null,null,null,null,null,null,null,null,null,null,null,null,null,null,null,null,null,null,"→",null,null,null,null,null,null,null,null,null,null,null,null,null,null,null,null,{"$f":"IF(COUNTIF(W55:AK55,\"<>\"),SUMPRODUCT((Tableau[Hauteur]&Tableau[Largeur]&Tableau[Type]&Tableau[Allège vitrée]&Tableau[Vitrage]&Tableau[Sens Ouv]&Tableau[Petits bois]&Tableau[Allège maç]&Tableau[Mortaise]&Tableau[RAL]&Tableau[Dormant]&Tableau[GHI]&Tableau[Type de pose]&Tableau[OB]&Tableau[OB2]=W55&X55&Y55&Z55&AA55&AB55&AC55&AD55&AE55&AF55&AG55&AH55&AI55&AJ55&AK55)*1),\"\")","v":""},"←"]
[null,null,null,null,null,null,null,null,null,null,null,null,null,null,null,null,null,null,null,null,null,"→",null,null,null,null,null,null,null,null,null,null,null,null,null,null,null,null,{"$f":"IF(COUNTIF(W56:AK56,\"<>\"),SUMPRODUCT((Tableau[Hauteur]&Tableau[Largeur]&Tableau[Type]&Tableau[Allège vitrée]&Tableau[Vitrage]&Tableau[Sens Ouv]&Tableau[Petits bois]&Tableau[Allège maç]&Tableau[Mortaise]&Tableau[RAL]&Tableau[Dormant]&Tableau[GHI]&Tableau[Type de pose]&Tableau[OB]&Tableau[OB2]=W56&X56&Y56&Z56&AA56&AB56&AC56&AD56&AE56&AF56&AG56&AH56&AI56&AJ56&AK56)*1),\"\")","v":""},"←"]
[null,null,null,null,null,null,null,null,null,null,null,null,null,null,null,null,null,null,null,null,null,"→",null,null,null,null,null,null,null,null,null,null,null,null,null,null,null,null,{"$f":"IF(COUNTIF(W57:AK57,\"<>\"),SUMPRODUCT((Tableau[Hauteur]&Tableau[Largeur]&Tableau[Type]&Tableau[Allège vitrée]&Tableau[Vitrage]&Tableau[Sens Ouv]&Tableau[Petits bois]&Tableau[Allège maç]&Tableau[Mortaise]&Tableau[RAL]&Tableau[Dormant]&Tableau[GHI]&Tableau[Type de pose]&Tableau[OB]&Tableau[OB2]=W57&X57&Y57&Z57&AA57&AB57&AC57&AD57&AE57&AF57&AG57&AH57&AI57&AJ57&AK57)*1),\"\")","v":""},"←"]
[null,null,null,null,null,null,null,null,null,null,null,null,null,null,null,null,null,null,null,null,null,"→",null,null,null,null,null,null,null,null,null,null,null,null,null,null,null,null,{"$f":"IF(COUNTIF(W58:AK58,\"<>\"),SUMPRODUCT((Tableau[Hauteur]&Tableau[Largeur]&Tableau[Type]&Tableau[Allège vitrée]&Tableau[Vitrage]&Tableau[Sens Ouv]&Tableau[Petits bois]&Tableau[Allège maç]&Tableau[Mortaise]&Tableau[RAL]&Tableau[Dormant]&Tableau[GHI]&Tableau[Type de pose]&Tableau[OB]&Tableau[OB2]=W58&X58&Y58&Z58&AA58&AB58&AC58&AD58&AE58&AF58&AG58&AH58&AI58&AJ58&AK58)*1),\"\")","v":""},"←"]
[null,null,null,null,null,null,null,null,null,null,null,null,null,null,null,null,null,null,null,null,null,"→",null,null,null,null,null,null,null,null,null,null,null,null,null,null,null,null,{"$f":"IF(COUNTIF(W59:AK59,\"<>\"),SUMPRODUCT((Tableau[Hauteur]&Tableau[Largeur]&Tableau[Type]&Tableau[Allège vitrée]&Tableau[Vitrage]&Tableau[Sens Ouv]&Tableau[Petits bois]&Tableau[Allège maç]&Tableau[Mortaise]&Tableau[RAL]&Tableau[Dormant]&Tableau[GHI]&Tableau[Type de pose]&Tableau[OB]&Tableau[OB2]=W59&X59&Y59&Z59&AA59&AB59&AC59&AD59&AE59&AF59&AG59&AH59&AI59&AJ59&AK59)*1),\"\")","v":""},"←"]
[null,null,null,null,null,null,null,null,null,null,null,null,null,null,null,null,null,null,null,null,null,"→",null,null,null,null,null,null,null,null,null,null,null,null,null,null,null,null,{"$f":"IF(COUNTIF(W60:AK60,\"<>\"),SUMPRODUCT((Tableau[Hauteur]&Tableau[Largeur]&Tableau[Type]&Tableau[Allège vitrée]&Tableau[Vitrage]&Tableau[Sens Ouv]&Tableau[Petits bois]&Tableau[Allège maç]&Tableau[Mortaise]&Tableau[RAL]&Tableau[Dormant]&Tableau[GHI]&Tableau[Type de pose]&Tableau[OB]&Tableau[OB2]=W60&X60&Y60&Z60&AA60&AB60&AC60&AD60&AE60&AF60&AG60&AH60&AI60&AJ60&AK60)*1),\"\")","v":""},"←"]
[null,null,null,null,null,null,null,null,null,null,null,null,null,null,null,null,null,null,null,null,null,"→",null,null,null,null,null,null,null,null,null,null,null,null,null,null,null,null,{"$f":"IF(COUNTIF(W61:AK61,\"<>\"),SUMPRODUCT((Tableau[Hauteur]&Tableau[Largeur]&Tableau[Type]&Tableau[Allège vitrée]&Tableau[Vitrage]&Tableau[Sens Ouv]&Tableau[Petits bois]&Tableau[Allège maç]&Tableau[Mortaise]&Tableau[RAL]&Tableau[Dormant]&Tableau[GHI]&Tableau[Type de pose]&Tableau[OB]&Tableau[OB2]=W61&X61&Y61&Z61&AA61&AB61&AC61&AD61&AE61&AF61&AG61&AH61&AI61&AJ61&AK61)*1),\"\")","v":""},"←"]
[null,null,null,null,null,null,null,null,null,null,null,null,null,null,null,null,null,null,null,null,null,"→",null,null,null,null,null,null,null,null,null,null,null,null,null,null,null,null,{"$f":"IF(COUNTIF(W62:AK62,\"<>\"),SUMPRODUCT((Tableau[Hauteur]&Tableau[Largeur]&Tableau[Type]&Tableau[Allège vitrée]&Tableau[Vitrage]&Tableau[Sens Ouv]&Tableau[Petits bois]&Tableau[Allège maç]&Tableau[Mortaise]&Tableau[RAL]&Tableau[Dormant]&Tableau[GHI]&Tableau[Type de pose]&Tableau[OB]&Tableau[OB2]=W62&X62&Y62&Z62&AA62&AB62&AC62&AD62&AE62&AF62&AG62&AH62&AI62&AJ62&AK62)*1),\"\")","v":""},"←"]
[null,null,null,null,null,null,null,null,null,null,null,null,null,null,null,null,null,null,null,null,null,"→",null,null,null,null,null,null,null,null,null,null,null,null,null,null,null,null,{"$f":"IF(COUNTIF(W63:AK63,\"<>\"),SUMPRODUCT((Tableau[Hauteur]&Tableau[Largeur]&Tableau[Type]&Tableau[Allège vitrée]&Tableau[Vitrage]&Tableau[Sens Ouv]&Tableau[Petits bois]&Tableau[Allège maç]&Tableau[Mortaise]&Tableau[RAL]&Tableau[Dormant]&Tableau[GHI]&Tableau[Type de pose]&Tableau[OB]&Tableau[OB2]=W63&X63&Y63&Z63&AA63&AB63&AC63&AD63&AE63&AF63&AG63&AH63&AI63&AJ63&AK63)*1),\"\")","v":""},"←"]
[null,null,null,null,null,null,null,null,null,null,null,null,null,null,null,null,null,null,null,null,null,"→",null,null,null,null,null,null,null,null,null,null,null,null,null,null,null,null,{"$f":"IF(COUNTIF(W64:AK64,\"<>\"),SUMPRODUCT((Tableau[Hauteur]&Tableau[Largeur]&Tableau[Type]&Tableau[Allège vitrée]&Tableau[Vitrage]&Tableau[Sens Ouv]&Tableau[Petits bois]&Tableau[Allège maç]&Tableau[Mortaise]&Tableau[RAL]&Tableau[Dormant]&Tableau[GHI]&Tableau[Type de pose]&Tableau[OB]&Tableau[OB2]=W64&X64&Y64&Z64&AA64&AB64&AC64&AD64&AE64&AF64&AG64&AH64&AI64&AJ64&AK64)*1),\"\")","v":""},"←"]
[null,null,null,null,null,null,null,null,null,null,null,null,null,null,null,null,null,null,null,null,null,"→",null,null,null,null,null,null,null,null,null,null,null,null,null,null,null,null,{"$f":"IF(COUNTIF(W65:AK65,\"<>\"),SUMPRODUCT((Tableau[Hauteur]&Tableau[Largeur]&Tableau[Type]&Tableau[Allège vitrée]&Tableau[Vitrage]&Tableau[Sens Ouv]&Tableau[Petits bois]&Tableau[Allège maç]&Tableau[Mortaise]&Tableau[RAL]&Tableau[Dormant]&Tableau[GHI]&Tableau[Type de pose]&Tableau[OB]&Tableau[OB2]=W65&X65&Y65&Z65&AA65&AB65&AC65&AD65&AE65&AF65&AG65&AH65&AI65&AJ65&AK65)*1),\"\")","v":""},"←"]
[null,null,null,null,null,null,null,null,null,null,null,null,null,null,null,null,null,null,null,null,null,"→",null,null,null,null,null,null,null,null,null,null,null,null,null,null,null,null,{"$f":"IF(COUNTIF(W66:AK66,\"<>\"),SUMPRODUCT((Tableau[Hauteur]&Tableau[Largeur]&Tableau[Type]&Tableau[Allège vitrée]&Tableau[Vitrage]&Tableau[Sens Ouv]&Tableau[Petits bois]&Tableau[Allège maç]&Tableau[Mortaise]&Tableau[RAL]&Tableau[Dormant]&Tableau[GHI]&Tableau[Type de pose]&Tableau[OB]&Tableau[OB2]=W66&X66&Y66&Z66&AA66&AB66&AC66&AD66&AE66&AF66&AG66&AH66&AI66&AJ66&AK66)*1),\"\")","v":""},"←"]
[null,null,null,null,null,null,null,null,null,null,null,null,null,null,null,null,null,null,null,null,null,"→",null,null,null,null,null,null,null,null,null,null,null,null,null,null,null,null,{"$f":"IF(COUNTIF(W67:AK67,\"<>\"),SUMPRODUCT((Tableau[Hauteur]&Tableau[Largeur]&Tableau[Type]&Tableau[Allège vitrée]&Tableau[Vitrage]&Tableau[Sens Ouv]&Tableau[Petits bois]&Tableau[Allège maç]&Tableau[Mortaise]&Tableau[RAL]&Tableau[Dormant]&Tableau[GHI]&Tableau[Type de pose]&Tableau[OB]&Tableau[OB2]=W67&X67&Y67&Z67&AA67&AB67&AC67&AD67&AE67&AF67&AG67&AH67&AI67&AJ67&AK67)*1),\"\")","v":""},"←"]
[null,null,null,null,null,null,null,null,null,null,null,null,null,null,null,null,null,null,null,null,null,"→",null,null,null,null,null,null,null,null,null,null,null,null,null,null,null,null,{"$f":"IF(COUNTIF(W68:AK68,\"<>\"),SUMPRODUCT((Tableau[Hauteur]&Tableau[Largeur]&Tableau[Type]&Tableau[Allège vitrée]&Tableau[Vitrage]&Tableau[Sens Ouv]&Tableau[Petits bois]&Tableau[Allège maç]&Tableau[Mortaise]&Tableau[RAL]&Tableau[Dormant]&Tableau[GHI]&Tableau[Type de pose]&Tableau[OB]&Tableau[OB2]=W68&X68&Y68&Z68&AA68&AB68&AC68&AD68&AE68&AF68&AG68&AH68&AI68&AJ68&AK68)*1),\"\")","v":""},"←"]
[null,null,null,null,null,null,null,null,null,null,null,null,null,null,null,null,null,null,null,null,null,"→",null,null,null,null,null,null,null,null,null,null,null,null,null,null,null,null,{"$f":"IF(COUNTIF(W69:AK69,\"<>\"),SUMPRODUCT((Tableau[Hauteur]&Tableau[Largeur]&Tableau[Type]&Tableau[Allège vitrée]&Tableau[Vitrage]&Tableau[Sens Ouv]&Tableau[Petits bois]&Tableau[Allège maç]&Tableau[Mortaise]&Tableau[RAL]&Tableau[Dormant]&Tableau[GHI]&Tableau[Type de pose]&Tableau[OB]&Tableau[OB2]=W69&X69&Y69&Z69&AA69&AB69&AC69&AD69&AE69&AF69&AG69&AH69&AI69&AJ69&AK69)*1),\"\")","v":""},"←"]
[null,null,null,null,null,null,null,null,null,null,null,null,null,null,null,null,null,null,null,null,null,"→",null,null,null,null,null,null,null,null,null,null,null,null,null,null,null,null,{"$f":"IF(COUNTIF(W70:AK70,\"<>\"),SUMPRODUCT((Tableau[Hauteur]&Tableau[Largeur]&Tableau[Type]&Tableau[Allège vitrée]&Tableau[Vitrage]&Tableau[Sens Ouv]&Tableau[Petits bois]&Tableau[Allège maç]&Tableau[Mortaise]&Tableau[RAL]&Tableau[Dormant]&Tableau[GHI]&Tableau[Type de pose]&Tableau[OB]&Tableau[OB2]=W70&X70&Y70&Z70&AA70&AB70&AC70&AD70&AE70&AF70&AG70&AH70&AI70&AJ70&AK70)*1),\"\")","v":""},"←"]
[null,null,null,null,null,null,null,null,null,null,null,null,null,null,null,null,null,null,null,null,null,"→",null,null,null,null,null,null,null,null,null,null,null,null,null,null,null,null,{"$f":"IF(COUNTIF(W71:AK71,\"<>\"),SUMPRODUCT((Tableau[Hauteur]&Tableau[Largeur]&Tableau[Type]&Tableau[Allège vitrée]&Tableau[Vitrage]&Tableau[Sens Ouv]&Tableau[Petits bois]&Tableau[Allège maç]&Tableau[Mortaise]&Tableau[RAL]&Tableau[Dormant]&Tableau[GHI]&Tableau[Type de pose]&Tableau[OB]&Tableau[OB2]=W71&X71&Y71&Z71&AA71&AB71&AC71&AD71&AE71&AF71&AG71&AH71&AI71&AJ71&AK71)*1),\"\")","v":""},"←"]
[null,null,null,null,null,null,null,null,null,null,null,null,null,null,null,null,null,null,null,null,null,"→",null,null,null,null,null,null,null,null,null,null,null,null,null,null,null,null,{"$f":"IF(COUNTIF(W72:AK72,\"<>\"),SUMPRODUCT((Tableau[Hauteur]&Tableau[Largeur]&Tableau[Type]&Tableau[Allège vitrée]&Tableau[Vitrage]&Tableau[Sens Ouv]&Tableau[Petits bois]&Tableau[Allège maç]&Tableau[Mortaise]&Tableau[RAL]&Tableau[Dormant]&Tableau[GHI]&Tableau[Type de pose]&Tableau[OB]&Tableau[OB2]=W72&X72&Y72&Z72&AA72&AB72&AC72&AD72&AE72&AF72&AG72&AH72&AI72&AJ72&AK72)*1),\"\")","v":""},"←"]
[null,null,null,null,null,null,null,null,null,null,null,null,null,null,null,null,null,null,null,null,null,"→",null,null,null,null,null,null,null,null,null,null,null,null,null,null,null,null,{"$f":"IF(COUNTIF(W73:AK73,\"<>\"),SUMPRODUCT((Tableau[Hauteur]&Tableau[Largeur]&Tableau[Type]&Tableau[Allège vitrée]&Tableau[Vitrage]&Tableau[Sens Ouv]&Tableau[Petits bois]&Tableau[Allège maç]&Tableau[Mortaise]&Tableau[RAL]&Tableau[Dormant]&Tableau[GHI]&Tableau[Type de pose]&Tableau[OB]&Tableau[OB2]=W73&X73&Y73&Z73&AA73&AB73&AC73&AD73&AE73&AF73&AG73&AH73&AI73&AJ73&AK73)*1),\"\")","v":""},"←"]
[null,null,null,null,null,null,null,null,null,null,null,null,null,null,null,null,null,null,null,null,null,"→",null,null,null,null,null,null,null,null,null,null,null,null,null,null,null,null,{"$f":"IF(COUNTIF(W74:AK74,\"<>\"),SUMPRODUCT((Tableau[Hauteur]&Tableau[Largeur]&Tableau[Type]&Tableau[Allège vitrée]&Tableau[Vitrage]&Tableau[Sens Ouv]&Tableau[Petits bois]&Tableau[Allège maç]&Tableau[Mortaise]&Tableau[RAL]&Tableau[Dormant]&Tableau[GHI]&Tableau[Type de pose]&Tableau[OB]&Tableau[OB2]=W74&X74&Y74&Z74&AA74&AB74&AC74&AD74&AE74&AF74&AG74&AH74&AI74&AJ74&AK74)*1),\"\")","v":""},"←"]
[null,null,null,null,null,null,null,null,null,null,null,null,null,null,null,null,null,null,null,null,null,"→",null,null,null,null,null,null,null,null,null,null,null,null,null,null,null,null,{"$f":"IF(COUNTIF(W75:AK75,\"<>\"),SUMPRODUCT((Tableau[Hauteur]&Tableau[Largeur]&Tableau[Type]&Tableau[Allège vitrée]&Tableau[Vitrage]&Tableau[Sens Ouv]&Tableau[Petits bois]&Tableau[Allège maç]&Tableau[Mortaise]&Tableau[RAL]&Tableau[Dormant]&Tableau[GHI]&Tableau[Type de pose]&Tableau[OB]&Tableau[OB2]=W75&X75&Y75&Z75&AA75&AB75&AC75&AD75&AE75&AF75&AG75&AH75&AI75&AJ75&AK75)*1),\"\")","v":""},"←"]
[null,null,null,null,null,null,null,null,null,null,null,null,null,null,null,null,null,null,null,null,null,"→",null,null,null,null,null,null,null,null,null,null,null,null,null,null,null,null,{"$f":"IF(COUNTIF(W76:AK76,\"<>\"),SUMPRODUCT((Tableau[Hauteur]&Tableau[Largeur]&Tableau[Type]&Tableau[Allège vitrée]&Tableau[Vitrage]&Tableau[Sens Ouv]&Tableau[Petits bois]&Tableau[Allège maç]&Tableau[Mortaise]&Tableau[RAL]&Tableau[Dormant]&Tableau[GHI]&Tableau[Type de pose]&Tableau[OB]&Tableau[OB2]=W76&X76&Y76&Z76&AA76&AB76&AC76&AD76&AE76&AF76&AG76&AH76&AI76&AJ76&AK76)*1),\"\")","v":""},"←"]
[null,null,null,null,null,null,null,null,null,null,null,null,null,null,null,null,null,null,null,null,null,"→",null,null,null,null,null,null,null,null,null,null,null,null,null,null,null,null,{"$f":"IF(COUNTIF(W77:AK77,\"<>\"),SUMPRODUCT((Tableau[Hauteur]&Tableau[Largeur]&Tableau[Type]&Tableau[Allège vitrée]&Tableau[Vitrage]&Tableau[Sens Ouv]&Tableau[Petits bois]&Tableau[Allège maç]&Tableau[Mortaise]&Tableau[RAL]&Tableau[Dormant]&Tableau[GHI]&Tableau[Type de pose]&Tableau[OB]&Tableau[OB2]=W77&X77&Y77&Z77&AA77&AB77&AC77&AD77&AE77&AF77&AG77&AH77&AI77&AJ77&AK77)*1),\"\")","v":""},"←"]
[null,null,null,null,null,null,null,null,null,null,null,null,null,null,null,null,null,null,null,null,null,"→",null,null,null,null,null,null,null,null,null,null,null,null,null,null,null,null,{"$f":"IF(COUNTIF(W78:AK78,\"<>\"),SUMPRODUCT((Tableau[Hauteur]&Tableau[Largeur]&Tableau[Type]&Tableau[Allège vitrée]&Tableau[Vitrage]&Tableau[Sens Ouv]&Tableau[Petits bois]&Tableau[Allège maç]&Tableau[Mortaise]&Tableau[RAL]&Tableau[Dormant]&Tableau[GHI]&Tableau[Type de pose]&Tableau[OB]&Tableau[OB2]=W78&X78&Y78&Z78&AA78&AB78&AC78&AD78&AE78&AF78&AG78&AH78&AI78&AJ78&AK78)*1),\"\")","v":""},"←"]
[null,null,null,null,null,null,null,null,null,null,null,null,null,null,null,null,null,null,null,null,null,"→",null,null,null,null,null,null,null,null,null,null,null,null,null,null,null,null,{"$f":"IF(COUNTIF(W79:AK79,\"<>\"),SUMPRODUCT((Tableau[Hauteur]&Tableau[Largeur]&Tableau[Type]&Tableau[Allège vitrée]&Tableau[Vitrage]&Tableau[Sens Ouv]&Tableau[Petits bois]&Tableau[Allège maç]&Tableau[Mortaise]&Tableau[RAL]&Tableau[Dormant]&Tableau[GHI]&Tableau[Type de pose]&Tableau[OB]&Tableau[OB2]=W79&X79&Y79&Z79&AA79&AB79&AC79&AD79&AE79&AF79&AG79&AH79&AI79&AJ79&AK79)*1),\"\")","v":""},"←"]
[null,null,null,null,null,null,null,null,null,null,null,null,null,null,null,null,null,null,null,null,null,"→",null,null,null,null,null,null,null,null,null,null,null,null,null,null,null,null,{"$f":"IF(COUNTIF(W80:AK80,\"<>\"),SUMPRODUCT((Tableau[Hauteur]&Tableau[Largeur]&Tableau[Type]&Tableau[Allège vitrée]&Tableau[Vitrage]&Tableau[Sens Ouv]&Tableau[Petits bois]&Tableau[Allège maç]&Tableau[Mortaise]&Tableau[RAL]&Tableau[Dormant]&Tableau[GHI]&Tableau[Type de pose]&Tableau[OB]&Tableau[OB2]=W80&X80&Y80&Z80&AA80&AB80&AC80&AD80&AE80&AF80&AG80&AH80&AI80&AJ80&AK80)*1),\"\")","v":""},"←"]
[null,null,null,null,null,null,null,null,null,null,null,null,null,null,null,null,null,null,null,null,null,"→",null,null,null,null,null,null,null,null,null,null,null,null,null,null,null,null,{"$f":"IF(COUNTIF(W81:AK81,\"<>\"),SUMPRODUCT((Tableau[Hauteur]&Tableau[Largeur]&Tableau[Type]&Tableau[Allège vitrée]&Tableau[Vitrage]&Tableau[Sens Ouv]&Tableau[Petits bois]&Tableau[Allège maç]&Tableau[Mortaise]&Tableau[RAL]&Tableau[Dormant]&Tableau[GHI]&Tableau[Type de pose]&Tableau[OB]&Tableau[OB2]=W81&X81&Y81&Z81&AA81&AB81&AC81&AD81&AE81&AF81&AG81&AH81&AI81&AJ81&AK81)*1),\"\")","v":""},"←"]
[null,null,null,null,null,null,null,null,null,null,null,null,null,null,null,null,null,null,null,null,null,"→",null,null,null,null,null,null,null,null,null,null,null,null,null,null,null,null,{"$f":"IF(COUNTIF(W82:AK82,\"<>\"),SUMPRODUCT((Tableau[Hauteur]&Tableau[Largeur]&Tableau[Type]&Tableau[Allège vitrée]&Tableau[Vitrage]&Tableau[Sens Ouv]&Tableau[Petits bois]&Tableau[Allège maç]&Tableau[Mortaise]&Tableau[RAL]&Tableau[Dormant]&Tableau[GHI]&Tableau[Type de pose]&Tableau[OB]&Tableau[OB2]=W82&X82&Y82&Z82&AA82&AB82&AC82&AD82&AE82&AF82&AG82&AH82&AI82&AJ82&AK82)*1),\"\")","v":""},"←"]
[null,null,null,null,null,null,null,null,null,null,null,null,null,null,null,null,null,null,null,null,null,"→",null,null,null,null,null,null,null,null,null,null,null,null,null,null,null,null,{"$f":"IF(COUNTIF(W83:AK83,\"<>\"),SUMPRODUCT((Tableau[Hauteur]&Tableau[Largeur]&Tableau[Type]&Tableau[Allège vitrée]&Tableau[Vitrage]&Tableau[Sens Ouv]&Tableau[Petits bois]&Tableau[Allège maç]&Tableau[Mortaise]&Tableau[RAL]&Tableau[Dormant]&Tableau[GHI]&Tableau[Type de pose]&Tableau[OB]&Tableau[OB2]=W83&X83&Y83&Z83&AA83&AB83&AC83&AD83&AE83&AF83&AG83&AH83&AI83&AJ83&AK83)*1),\"\")","v":""},"←"]
[null,null,null,null,null,null,null,null,null,null,null,null,null,null,null,null,null,null,null,null,null,"→",null,null,null,null,null,null,null,null,null,null,null,null,null,null,null,null,{"$f":"IF(COUNTIF(W84:AK84,\"<>\"),SUMPRODUCT((Tableau[Hauteur]&Tableau[Largeur]&Tableau[Type]&Tableau[Allège vitrée]&Tableau[Vitrage]&Tableau[Sens Ouv]&Tableau[Petits bois]&Tableau[Allège maç]&Tableau[Mortaise]&Tableau[RAL]&Tableau[Dormant]&Tableau[GHI]&Tableau[Type de pose]&Tableau[OB]&Tableau[OB2]=W84&X84&Y84&Z84&AA84&AB84&AC84&AD84&AE84&AF84&AG84&AH84&AI84&AJ84&AK84)*1),\"\")","v":""},"←"]
[null,null,null,null,null,null,null,null,null,null,null,null,null,null,null,null,null,null,null,null,null,"→",null,null,null,null,null,null,null,null,null,null,null,null,null,null,null,null,{"$f":"IF(COUNTIF(W85:AK85,\"<>\"),SUMPRODUCT((Tableau[Hauteur]&Tableau[Largeur]&Tableau[Type]&Tableau[Allège vitrée]&Tableau[Vitrage]&Tableau[Sens Ouv]&Tableau[Petits bois]&Tableau[Allège maç]&Tableau[Mortaise]&Tableau[RAL]&Tableau[Dormant]&Tableau[GHI]&Tableau[Type de pose]&Tableau[OB]&Tableau[OB2]=W85&X85&Y85&Z85&AA85&AB85&AC85&AD85&AE85&AF85&AG85&AH85&AI85&AJ85&AK85)*1),\"\")","v":""},"←"]
[null,null,null,null,null,null,null,null,null,null,null,null,null,null,null,null,null,null,null,null,null,"→",null,null,null,null,null,null,null,null,null,null,null,null,null,null,null,null,{"$f":"IF(COUNTIF(W86:AK86,\"<>\"),SUMPRODUCT((Tableau[Hauteur]&Tableau[Largeur]&Tableau[Type]&Tableau[Allège vitrée]&Tableau[Vitrage]&Tableau[Sens Ouv]&Tableau[Petits bois]&Tableau[Allège maç]&Tableau[Mortaise]&Tableau[RAL]&Tableau[Dormant]&Tableau[GHI]&Tableau[Type de pose]&Tableau[OB]&Tableau[OB2]=W86&X86&Y86&Z86&AA86&AB86&AC86&AD86&AE86&AF86&AG86&AH86&AI86&AJ86&AK86)*1),\"\")","v":""},"←"]
[null,null,null,null,null,null,null,null,null,null,null,null,null,null,null,null,null,null,null,null,null,"→",null,null,null,null,null,null,null,null,null,null,null,null,null,null,null,null,{"$f":"IF(COUNTIF(W87:AK87,\"<>\"),SUMPRODUCT((Tableau[Hauteur]&Tableau[Largeur]&Tableau[Type]&Tableau[Allège vitrée]&Tableau[Vitrage]&Tableau[Sens Ouv]&Tableau[Petits bois]&Tableau[Allège maç]&Tableau[Mortaise]&Tableau[RAL]&Tableau[Dormant]&Tableau[GHI]&Tableau[Type de pose]&Tableau[OB]&Tableau[OB2]=W87&X87&Y87&Z87&AA87&AB87&AC87&AD87&AE87&AF87&AG87&AH87&AI87&AJ87&AK87)*1),\"\")","v":""},"←"]
[null,null,null,null,null,null,null,null,null,null,null,null,null,null,null,null,null,null,null,null,null,"→",null,null,null,null,null,null,null,null,null,null,null,null,null,null,null,null,{"$f":"IF(COUNTIF(W88:AK88,\"<>\"),SUMPRODUCT((Tableau[Hauteur]&Tableau[Largeur]&Tableau[Type]&Tableau[Allège vitrée]&Tableau[Vitrage]&Tableau[Sens Ouv]&Tableau[Petits bois]&Tableau[Allège maç]&Tableau[Mortaise]&Tableau[RAL]&Tableau[Dormant]&Tableau[GHI]&Tableau[Type de pose]&Tableau[OB]&Tableau[OB2]=W88&X88&Y88&Z88&AA88&AB88&AC88&AD88&AE88&AF88&AG88&AH88&AI88&AJ88&AK88)*1),\"\")","v":""},"←"]
[null,null,null,null,null,null,null,null,null,null,null,null,null,null,null,null,null,null,null,null,null,"→",null,null,null,null,null,null,null,null,null,null,null,null,null,null,null,null,{"$f":"IF(COUNTIF(W89:AK89,\"<>\"),SUMPRODUCT((Tableau[Hauteur]&Tableau[Largeur]&Tableau[Type]&Tableau[Allège vitrée]&Tableau[Vitrage]&Tableau[Sens Ouv]&Tableau[Petits bois]&Tableau[Allège maç]&Tableau[Mortaise]&Tableau[RAL]&Tableau[Dormant]&Tableau[GHI]&Tableau[Type de pose]&Tableau[OB]&Tableau[OB2]=W89&X89&Y89&Z89&AA89&AB89&AC89&AD89&AE89&AF89&AG89&AH89&AI89&AJ89&AK89)*1),\"\")","v":""},"←"]
[null,null,null,null,null,null,null,null,null,null,null,null,null,null,null,null,null,null,null,null,null,"→",null,null,null,null,null,null,null,null,null,null,null,null,null,null,null,null,{"$f":"IF(COUNTIF(W90:AK90,\"<>\"),SUMPRODUCT((Tableau[Hauteur]&Tableau[Largeur]&Tableau[Type]&Tableau[Allège vitrée]&Tableau[Vitrage]&Tableau[Sens Ouv]&Tableau[Petits bois]&Tableau[Allège maç]&Tableau[Mortaise]&Tableau[RAL]&Tableau[Dormant]&Tableau[GHI]&Tableau[Type de pose]&Tableau[OB]&Tableau[OB2]=W90&X90&Y90&Z90&AA90&AB90&AC90&AD90&AE90&AF90&AG90&AH90&AI90&AJ90&AK90)*1),\"\")","v":""},"←"]
[null,null,null,null,null,null,null,null,null,null,null,null,null,null,null,null,null,null,null,null,null,"→",null,null,null,null,null,null,null,null,null,null,null,null,null,null,null,null,{"$f":"IF(COUNTIF(W91:AK91,\"<>\"),SUMPRODUCT((Tableau[Hauteur]&Tableau[Largeur]&Tableau[Type]&Tableau[Allège vitrée]&Tableau[Vitrage]&Tableau[Sens Ouv]&Tableau[Petits bois]&Tableau[Allège maç]&Tableau[Mortaise]&Tableau[RAL]&Tableau[Dormant]&Tableau[GHI]&Tableau[Type de pose]&Tableau[OB]&Tableau[OB2]=W91&X91&Y91&Z91&AA91&AB91&AC91&AD91&AE91&AF91&AG91&AH91&AI91&AJ91&AK91)*1),\"\")","v":""},"←"]
[null,null,null,null,null,null,null,null,null,null,null,null,null,null,null,null,null,null,null,null,null,"→",null,null,null,null,null,null,null,null,null,null,null,null,null,null,null,null,{"$f":"IF(COUNTIF(W92:AK92,\"<>\"),SUMPRODUCT((Tableau[Hauteur]&Tableau[Largeur]&Tableau[Type]&Tableau[Allège vitrée]&Tableau[Vitrage]&Tableau[Sens Ouv]&Tableau[Petits bois]&Tableau[Allège maç]&Tableau[Mortaise]&Tableau[RAL]&Tableau[Dormant]&Tableau[GHI]&Tableau[Type de pose]&Tableau[OB]&Tableau[OB2]=W92&X92&Y92&Z92&AA92&AB92&AC92&AD92&AE92&AF92&AG92&AH92&AI92&AJ92&AK92)*1),\"\")","v":""},"←"]
[null,null,null,null,null,null,null,null,null,null,null,null,null,null,null,null,null,null,null,null,null,"→",null,null,null,null,null,null,null,null,null,null,null,null,null,null,null,null,{"$f":"IF(COUNTIF(W93:AK93,\"<>\"),SUMPRODUCT((Tableau[Hauteur]&Tableau[Largeur]&Tableau[Type]&Tableau[Allège vitrée]&Tableau[Vitrage]&Tableau[Sens Ouv]&Tableau[Petits bois]&Tableau[Allège maç]&Tableau[Mortaise]&Tableau[RAL]&Tableau[Dormant]&Tableau[GHI]&Tableau[Type de pose]&Tableau[OB]&Tableau[OB2]=W93&X93&Y93&Z93&AA93&AB93&AC93&AD93&AE93&AF93&AG93&AH93&AI93&AJ93&AK93)*1),\"\")","v":""},"←"]
[null,null,null,null,null,null,null,null,null,null,null,null,null,null,null,null,null,null,null,null,null,"→",null,null,null,null,null,null,null,null,null,null,null,null,null,null,null,null,{"$f":"IF(COUNTIF(W94:AK94,\"<>\"),SUMPRODUCT((Tableau[Hauteur]&Tableau[Largeur]&Tableau[Type]&Tableau[Allège vitrée]&Tableau[Vitrage]&Tableau[Sens Ouv]&Tableau[Petits bois]&Tableau[Allège maç]&Tableau[Mortaise]&Tableau[RAL]&Tableau[Dormant]&Tableau[GHI]&Tableau[Type de pose]&Tableau[OB]&Tableau[OB2]=W94&X94&Y94&Z94&AA94&AB94&AC94&AD94&AE94&AF94&AG94&AH94&AI94&AJ94&AK94)*1),\"\")","v":""},"←"]
[null,null,null,null,null,null,null,null,null,null,null,null,null,null,null,null,null,null,null,null,null,"→",null,null,null,null,null,null,null,null,null,null,null,null,null,null,null,null,{"$f":"IF(COUNTIF(W95:AK95,\"<>\"),SUMPRODUCT((Tableau[Hauteur]&Tableau[Largeur]&Tableau[Type]&Tableau[Allège vitrée]&Tableau[Vitrage]&Tableau[Sens Ouv]&Tableau[Petits bois]&Tableau[Allège maç]&Tableau[Mortaise]&Tableau[RAL]&Tableau[Dormant]&Tableau[GHI]&Tableau[Type de pose]&Tableau[OB]&Tableau[OB2]=W95&X95&Y95&Z95&AA95&AB95&AC95&AD95&AE95&AF95&AG95&AH95&AI95&AJ95&AK95)*1),\"\")","v":""},"←"]
[null,null,null,null,null,null,null,null,null,null,null,null,null,null,null,null,null,null,null,null,null,"→",null,null,null,null,null,null,null,null,null,null,null,null,null,null,null,null,{"$f":"IF(COUNTIF(W96:AK96,\"<>\"),SUMPRODUCT((Tableau[Hauteur]&Tableau[Largeur]&Tableau[Type]&Tableau[Allège vitrée]&Tableau[Vitrage]&Tableau[Sens Ouv]&Tableau[Petits bois]&Tableau[Allège maç]&Tableau[Mortaise]&Tableau[RAL]&Tableau[Dormant]&Tableau[GHI]&Tableau[Type de pose]&Tableau[OB]&Tableau[OB2]=W96&X96&Y96&Z96&AA96&AB96&AC96&AD96&AE96&AF96&AG96&AH96&AI96&AJ96&AK96)*1),\"\")","v":""},"←"]
[null,null,null,null,null,null,null,null,null,null,null,null,null,null,null,null,null,null,null,null,null,"→",null,null,null,null,null,null,null,null,null,null,null,null,null,null,null,null,{"$f":"IF(COUNTIF(W97:AK97,\"<>\"),SUMPRODUCT((Tableau[Hauteur]&Tableau[Largeur]&Tableau[Type]&Tableau[Allège vitrée]&Tableau[Vitrage]&Tableau[Sens Ouv]&Tableau[Petits bois]&Tableau[Allège maç]&Tableau[Mortaise]&Tableau[RAL]&Tableau[Dormant]&Tableau[GHI]&Tableau[Type de pose]&Tableau[OB]&Tableau[OB2]=W97&X97&Y97&Z97&AA97&AB97&AC97&AD97&AE97&AF97&AG97&AH97&AI97&AJ97&AK97)*1),\"\")","v":""},"←"]
[null,null,null,null,null,null,null,null,null,null,null,null,null,null,null,null,null,null,null,null,null,"→",null,null,null,null,null,null,null,null,null,null,null,null,null,null,null,null,{"$f":"IF(COUNTIF(W98:AK98,\"<>\"),SUMPRODUCT((Tableau[Hauteur]&Tableau[Largeur]&Tableau[Type]&Tableau[Allège vitrée]&Tableau[Vitrage]&Tableau[Sens Ouv]&Tableau[Petits bois]&Tableau[Allège maç]&Tableau[Mortaise]&Tableau[RAL]&Tableau[Dormant]&Tableau[GHI]&Tableau[Type de pose]&Tableau[OB]&Tableau[OB2]=W98&X98&Y98&Z98&AA98&AB98&AC98&AD98&AE98&AF98&AG98&AH98&AI98&AJ98&AK98)*1),\"\")","v":""},"←"]
[null,null,null,null,null,null,null,null,null,null,null,null,null,null,null,null,null,null,null,null,null,"→",null,null,null,null,null,null,null,null,null,null,null,null,null,null,null,null,{"$f":"IF(COUNTIF(W99:AK99,\"<>\"),SUMPRODUCT((Tableau[Hauteur]&Tableau[Largeur]&Tableau[Type]&Tableau[Allège vitrée]&Tableau[Vitrage]&Tableau[Sens Ouv]&Tableau[Petits bois]&Tableau[Allège maç]&Tableau[Mortaise]&Tableau[RAL]&Tableau[Dormant]&Tableau[GHI]&Tableau[Type de pose]&Tableau[OB]&Tableau[OB2]=W99&X99&Y99&Z99&AA99&AB99&AC99&AD99&AE99&AF99&AG99&AH99&AI99&AJ99&AK99)*1),\"\")","v":""},"←"]
[null,null,null,null,null,null,null,null,null,null,null,null,null,null,null,null,null,null,null,null,null,"→",null,null,null,null,null,null,null,null,null,null,null,null,null,null,null,null,{"$f":"IF(COUNTIF(W100:AK100,\"<>\"),SUMPRODUCT((Tableau[Hauteur]&Tableau[Largeur]&Tableau[Type]&Tableau[Allège vitrée]&Tableau[Vitrage]&Tableau[Sens Ouv]&Tableau[Petits bois]&Tableau[Allège maç]&Tableau[Mortaise]&Tableau[RAL]&Tableau[Dormant]&Tableau[GHI]&Tableau[Type de pose]&Tableau[OB]&Tableau[OB2]=W100&X100&Y100&Z100&AA100&AB100&AC100&AD100&AE100&AF100&AG100&AH100&AI100&AJ100&AK100)*1),\"\")","v":""},"←"]
[null,null,null,null,null,null,null,null,null,null,null,null,null,null,null,null,null,null,null,null,null,"→",null,null,null,null,null,null,null,null,null,null,null,null,null,null,null,null,{"$f":"IF(COUNTIF(W101:AK101,\"<>\"),SUMPRODUCT((Tableau[Hauteur]&Tableau[Largeur]&Tableau[Type]&Tableau[Allège vitrée]&Tableau[Vitrage]&Tableau[Sens Ouv]&Tableau[Petits bois]&Tableau[Allège maç]&Tableau[Mortaise]&Tableau[RAL]&Tableau[Dormant]&Tableau[GHI]&Tableau[Type de pose]&Tableau[OB]&Tableau[OB2]=W101&X101&Y101&Z101&AA101&AB101&AC101&AD101&AE101&AF101&AG101&AH101&AI101&AJ101&AK101)*1),\"\")","v":""},"←"]
[null,null,null,null,null,null,null,null,null,null,null,null,null,null,null,null,null,null,null,null,null,"→",null,null,null,null,null,null,null,null,null,null,null,null,null,null,null,null,{"$f":"IF(COUNTIF(W102:AK102,\"<>\"),SUMPRODUCT((Tableau[Hauteur]&Tableau[Largeur]&Tableau[Type]&Tableau[Allège vitrée]&Tableau[Vitrage]&Tableau[Sens Ouv]&Tableau[Petits bois]&Tableau[Allège maç]&Tableau[Mortaise]&Tableau[RAL]&Tableau[Dormant]&Tableau[GHI]&Tableau[Type de pose]&Tableau[OB]&Tableau[OB2]=W102&X102&Y102&Z102&AA102&AB102&AC102&AD102&AE102&AF102&AG102&AH102&AI102&AJ102&AK102)*1),\"\")","v":""},"←"]
[null,null,null,null,null,null,null,null,null,null,null,null,null,null,null,null,null,null,null,null,null,"→",null,null,null,null,null,null,null,null,null,null,null,null,null,null,null,null,{"$f":"IF(COUNTIF(W103:AK103,\"<>\"),SUMPRODUCT((Tableau[Hauteur]&Tableau[Largeur]&Tableau[Type]&Tableau[Allège vitrée]&Tableau[Vitrage]&Tableau[Sens Ouv]&Tableau[Petits bois]&Tableau[Allège maç]&Tableau[Mortaise]&Tableau[RAL]&Tableau[Dormant]&Tableau[GHI]&Tableau[Type de pose]&Tableau[OB]&Tableau[OB2]=W103&X103&Y103&Z103&AA103&AB103&AC103&AD103&AE103&AF103&AG103&AH103&AI103&AJ103&AK103)*1),\"\")","v":""},"←"]
[null,null,null,null,null,null,null,null,null,null,null,null,null,null,null,null,null,null,null,null,null,"→",null,null,null,null,null,null,null,null,null,null,null,null,null,null,null,null,{"$f":"IF(COUNTIF(W104:AK104,\"<>\"),SUMPRODUCT((Tableau[Hauteur]&Tableau[Largeur]&Tableau[Type]&Tableau[Allège vitrée]&Tableau[Vitrage]&Tableau[Sens Ouv]&Tableau[Petits bois]&Tableau[Allège maç]&Tableau[Mortaise]&Tableau[RAL]&Tableau[Dormant]&Tableau[GHI]&Tableau[Type de pose]&Tableau[OB]&Tableau[OB2]=W104&X104&Y104&Z104&AA104&AB104&AC104&AD104&AE104&AF104&AG104&AH104&AI104&AJ104&AK104)*1),\"\")","v":""},"←"]
[null,null,null,null,null,null,null,null,null,null,null,null,null,null,null,null,null,null,null,null,null,"→",null,null,null,null,null,null,null,null,null,null,null,null,null,null,null,null,{"$f":"IF(COUNTIF(W105:AK105,\"<>\"),SUMPRODUCT((Tableau[Hauteur]&Tableau[Largeur]&Tableau[Type]&Tableau[Allège vitrée]&Tableau[Vitrage]&Tableau[Sens Ouv]&Tableau[Petits bois]&Tableau[Allège maç]&Tableau[Mortaise]&Tableau[RAL]&Tableau[Dormant]&Tableau[GHI]&Tableau[Type de pose]&Tableau[OB]&Tableau[OB2]=W105&X105&Y105&Z105&AA105&AB105&AC105&AD105&AE105&AF105&AG105&AH105&AI105&AJ105&AK105)*1),\"\")","v":""},"←"]
[null,null,null,null,null,null,null,null,null,null,null,null,null,null,null,null,null,null,null,null,null,"→",null,null,null,null,null,null,null,null,null,null,null,null,null,null,null,null,{"$f":"IF(COUNTIF(W106:AK106,\"<>\"),SUMPRODUCT((Tableau[Hauteur]&Tableau[Largeur]&Tableau[Type]&Tableau[Allège vitrée]&Tableau[Vitrage]&Tableau[Sens Ouv]&Tableau[Petits bois]&Tableau[Allège maç]&Tableau[Mortaise]&Tableau[RAL]&Tableau[Dormant]&Tableau[GHI]&Tableau[Type de pose]&Tableau[OB]&Tableau[OB2]=W106&X106&Y106&Z106&AA106&AB106&AC106&AD106&AE106&AF106&AG106&AH106&AI106&AJ106&AK106)*1),\"\")","v":""},"←"]
[null,null,null,null,null,null,null,null,null,null,null,null,null,null,null,null,null,null,null,null,null,"→",null,null,null,null,null,null,null,null,null,null,null,null,null,null,null,null,{"$f":"IF(COUNTIF(W107:AK107,\"<>\"),SUMPRODUCT((Tableau[Hauteur]&Tableau[Largeur]&Tableau[Type]&Tableau[Allège vitrée]&Tableau[Vitrage]&Tableau[Sens Ouv]&Tableau[Petits bois]&Tableau[Allège maç]&Tableau[Mortaise]&Tableau[RAL]&Tableau[Dormant]&Tableau[GHI]&Tableau[Type de pose]&Tableau[OB]&Tableau[OB2]=W107&X107&Y107&Z107&AA107&AB107&AC107&AD107&AE107&AF107&AG107&AH107&AI107&AJ107&AK107)*1),\"\")","v":""},"←"]
[null,null,null,null,null,null,null,null,null,null,null,null,null,null,null,null,null,null,null,null,null,"→",null,null,null,null,null,null,null,null,null,null,null,null,null,null,null,null,{"$f":"IF(COUNTIF(W108:AK108,\"<>\"),SUMPRODUCT((Tableau[Hauteur]&Tableau[Largeur]&Tableau[Type]&Tableau[Allège vitrée]&Tableau[Vitrage]&Tableau[Sens Ouv]&Tableau[Petits bois]&Tableau[Allège maç]&Tableau[Mortaise]&Tableau[RAL]&Tableau[Dormant]&Tableau[GHI]&Tableau[Type de pose]&Tableau[OB]&Tableau[OB2]=W108&X108&Y108&Z108&AA108&AB108&AC108&AD108&AE108&AF108&AG108&AH108&AI108&AJ108&AK108)*1),\"\")","v":""},"←"]
[null,null,null,null,null,null,null,null,null,null,null,null,null,null,null,null,null,null,null,null,null,"→",null,null,null,null,null,null,null,null,null,null,null,null,null,null,null,null,{"$f":"IF(COUNTIF(W109:AK109,\"<>\"),SUMPRODUCT((Tableau[Hauteur]&Tableau[Largeur]&Tableau[Type]&Tableau[Allège vitrée]&Tableau[Vitrage]&Tableau[Sens Ouv]&Tableau[Petits bois]&Tableau[Allège maç]&Tableau[Mortaise]&Tableau[RAL]&Tableau[Dormant]&Tableau[GHI]&Tableau[Type de pose]&Tableau[OB]&Tableau[OB2]=W109&X109&Y109&Z109&AA109&AB109&AC109&AD109&AE109&AF109&AG109&AH109&AI109&AJ109&AK109)*1),\"\")","v":""},"←"]
[null,null,null,null,null,null,null,null,null,null,null,null,null,null,null,null,null,null,null,null,null,"→",null,null,null,null,null,null,null,null,null,null,null,null,null,null,null,null,{"$f":"IF(COUNTIF(W110:AK110,\"<>\"),SUMPRODUCT((Tableau[Hauteur]&Tableau[Largeur]&Tableau[Type]&Tableau[Allège vitrée]&Tableau[Vitrage]&Tableau[Sens Ouv]&Tableau[Petits bois]&Tableau[Allège maç]&Tableau[Mortaise]&Tableau[RAL]&Tableau[Dormant]&Tableau[GHI]&Tableau[Type de pose]&Tableau[OB]&Tableau[OB2]=W110&X110&Y110&Z110&AA110&AB110&AC110&AD110&AE110&AF110&AG110&AH110&AI110&AJ110&AK110)*1),\"\")","v":""},"←"]
[null,null,null,null,null,null,null,null,null,null,null,null,null,null,null,null,null,null,null,null,null,"→",null,null,null,null,null,null,null,null,null,null,null,null,null,null,null,null,{"$f":"IF(COUNTIF(W111:AK111,\"<>\"),SUMPRODUCT((Tableau[Hauteur]&Tableau[Largeur]&Tableau[Type]&Tableau[Allège vitrée]&Tableau[Vitrage]&Tableau[Sens Ouv]&Tableau[Petits bois]&Tableau[Allège maç]&Tableau[Mortaise]&Tableau[RAL]&Tableau[Dormant]&Tableau[GHI]&Tableau[Type de pose]&Tableau[OB]&Tableau[OB2]=W111&X111&Y111&Z111&AA111&AB111&AC111&AD111&AE111&AF111&AG111&AH111&AI111&AJ111&AK111)*1),\"\")","v":""},"←"]
[null,null,null,null,null,null,null,null,null,null,null,null,null,null,null,null,null,null,null,null,null,"→",null,null,null,null,null,null,null,null,null,null,null,null,null,null,null,null,{"$f":"IF(COUNTIF(W112:AK112,\"<>\"),SUMPRODUCT((Tableau[Hauteur]&Tableau[Largeur]&Tableau[Type]&Tableau[Allège vitrée]&Tableau[Vitrage]&Tableau[Sens Ouv]&Tableau[Petits bois]&Tableau[Allège maç]&Tableau[Mortaise]&Tableau[RAL]&Tableau[Dormant]&Tableau[GHI]&Tableau[Type de pose]&Tableau[OB]&Tableau[OB2]=W112&X112&Y112&Z112&AA112&AB112&AC112&AD112&AE112&AF112&AG112&AH112&AI112&AJ112&AK112)*1),\"\")","v":""},"←"]
[null,null,null,null,null,null,null,null,null,null,null,null,null,null,null,null,null,null,null,null,null,"→",null,null,null,null,null,null,null,null,null,null,null,null,null,null,null,null,{"$f":"IF(COUNTIF(W113:AK113,\"<>\"),SUMPRODUCT((Tableau[Hauteur]&Tableau[Largeur]&Tableau[Type]&Tableau[Allège vitrée]&Tableau[Vitrage]&Tableau[Sens Ouv]&Tableau[Petits bois]&Tableau[Allège maç]&Tableau[Mortaise]&Tableau[RAL]&Tableau[Dormant]&Tableau[GHI]&Tableau[Type de pose]&Tableau[OB]&Tableau[OB2]=W113&X113&Y113&Z113&AA113&AB113&AC113&AD113&AE113&AF113&AG113&AH113&AI113&AJ113&AK113)*1),\"\")","v":""},"←"]
[null,null,null,null,null,null,null,null,null,null,null,null,null,null,null,null,null,null,null,null,null,"→",null,null,null,null,null,null,null,null,null,null,null,null,null,null,null,null,{"$f":"IF(COUNTIF(W114:AK114,\"<>\"),SUMPRODUCT((Tableau[Hauteur]&Tableau[Largeur]&Tableau[Type]&Tableau[Allège vitrée]&Tableau[Vitrage]&Tableau[Sens Ouv]&Tableau[Petits bois]&Tableau[Allège maç]&Tableau[Mortaise]&Tableau[RAL]&Tableau[Dormant]&Tableau[GHI]&Tableau[Type de pose]&Tableau[OB]&Tableau[OB2]=W114&X114&Y114&Z114&AA114&AB114&AC114&AD114&AE114&AF114&AG114&AH114&AI114&AJ114&AK114)*1),\"\")","v":""},"←"]
[null,null,null,null,null,null,null,null,null,null,null,null,null,null,null,null,null,null,null,null,null,"→",null,null,null,null,null,null,null,null,null,null,null,null,null,null,null,null,{"$f":"IF(COUNTIF(W115:AK115,\"<>\"),SUMPRODUCT((Tableau[Hauteur]&Tableau[Largeur]&Tableau[Type]&Tableau[Allège vitrée]&Tableau[Vitrage]&Tableau[Sens Ouv]&Tableau[Petits bois]&Tableau[Allège maç]&Tableau[Mortaise]&Tableau[RAL]&Tableau[Dormant]&Tableau[GHI]&Tableau[Type de pose]&Tableau[OB]&Tableau[OB2]=W115&X115&Y115&Z115&AA115&AB115&AC115&AD115&AE115&AF115&AG115&AH115&AI115&AJ115&AK115)*1),\"\")","v":""},"←"]
[null,null,null,null,null,null,null,null,null,null,null,null,null,null,null,null,null,null,null,null,null,"→",null,null,null,null,null,null,null,null,null,null,null,null,null,null,null,null,{"$f":"IF(COUNTIF(W116:AK116,\"<>\"),SUMPRODUCT((Tableau[Hauteur]&Tableau[Largeur]&Tableau[Type]&Tableau[Allège vitrée]&Tableau[Vitrage]&Tableau[Sens Ouv]&Tableau[Petits bois]&Tableau[Allège maç]&Tableau[Mortaise]&Tableau[RAL]&Tableau[Dormant]&Tableau[GHI]&Tableau[Type de pose]&Tableau[OB]&Tableau[OB2]=W116&X116&Y116&Z116&AA116&AB116&AC116&AD116&AE116&AF116&AG116&AH116&AI116&AJ116&AK116)*1),\"\")","v":""},"←"]
[null,null,null,null,null,null,null,null,null,null,null,null,null,null,null,null,null,null,null,null,null,"→",null,null,null,null,null,null,null,null,null,null,null,null,null,null,null,null,{"$f":"IF(COUNTIF(W117:AK117,\"<>\"),SUMPRODUCT((Tableau[Hauteur]&Tableau[Largeur]&Tableau[Type]&Tableau[Allège vitrée]&Tableau[Vitrage]&Tableau[Sens Ouv]&Tableau[Petits bois]&Tableau[Allège maç]&Tableau[Mortaise]&Tableau[RAL]&Tableau[Dormant]&Tableau[GHI]&Tableau[Type de pose]&Tableau[OB]&Tableau[OB2]=W117&X117&Y117&Z117&AA117&AB117&AC117&AD117&AE117&AF117&AG117&AH117&AI117&AJ117&AK117)*1),\"\")","v":""},"←"]
[null,null,null,null,null,null,null,null,null,null,null,null,null,null,null,null,null,null,null,null,null,"→",null,null,null,null,null,null,null,null,null,null,null,null,null,null,null,null,{"$f":"IF(COUNTIF(W118:AK118,\"<>\"),SUMPRODUCT((Tableau[Hauteur]&Tableau[Largeur]&Tableau[Type]&Tableau[Allège vitrée]&Tableau[Vitrage]&Tableau[Sens Ouv]&Tableau[Petits bois]&Tableau[Allège maç]&Tableau[Mortaise]&Tableau[RAL]&Tableau[Dormant]&Tableau[GHI]&Tableau[Type de pose]&Tableau[OB]&Tableau[OB2]=W118&X118&Y118&Z118&AA118&AB118&AC118&AD118&AE118&AF118&AG118&AH118&AI118&AJ118&AK118)*1),\"\")","v":""},"←"]
[null,null,null,null,null,null,null,null,null,null,null,null,null,null,null,null,null,null,null,null,null,"→",null,null,null,null,null,null,null,null,null,null,null,null,null,null,null,null,{"$f":"IF(COUNTIF(W119:AK119,\"<>\"),SUMPRODUCT((Tableau[Hauteur]&Tableau[Largeur]&Tableau[Type]&Tableau[Allège vitrée]&Tableau[Vitrage]&Tableau[Sens Ouv]&Tableau[Petits bois]&Tableau[Allège maç]&Tableau[Mortaise]&Tableau[RAL]&Tableau[Dormant]&Tableau[GHI]&Tableau[Type de pose]&Tableau[OB]&Tableau[OB2]=W119&X119&Y119&Z119&AA119&AB119&AC119&AD119&AE119&AF119&AG119&AH119&AI119&AJ119&AK119)*1),\"\")","v":""},"←"]
[null,null,null,null,null,null,null,null,null,null,null,null,null,null,null,null,null,null,null,null,null,"→",null,null,null,null,null,null,null,null,null,null,null,null,null,null,null,null,{"$f":"IF(COUNTIF(W120:AK120,\"<>\"),SUMPRODUCT((Tableau[Hauteur]&Tableau[Largeur]&Tableau[Type]&Tableau[Allège vitrée]&Tableau[Vitrage]&Tableau[Sens Ouv]&Tableau[Petits bois]&Tableau[Allège maç]&Tableau[Mortaise]&Tableau[RAL]&Tableau[Dormant]&Tableau[GHI]&Tableau[Type de pose]&Tableau[OB]&Tableau[OB2]=W120&X120&Y120&Z120&AA120&AB120&AC120&AD120&AE120&AF120&AG120&AH120&AI120&AJ120&AK120)*1),\"\")","v":""},"←"]
[null,null,null,null,null,null,null,null,null,null,null,null,null,null,null,null,null,null,null,null,null,"→",null,null,null,null,null,null,null,null,null,null,null,null,null,null,null,null,{"$f":"IF(COUNTIF(W121:AK121,\"<>\"),SUMPRODUCT((Tableau[Hauteur]&Tableau[Largeur]&Tableau[Type]&Tableau[Allège vitrée]&Tableau[Vitrage]&Tableau[Sens Ouv]&Tableau[Petits bois]&Tableau[Allège maç]&Tableau[Mortaise]&Tableau[RAL]&Tableau[Dormant]&Tableau[GHI]&Tableau[Type de pose]&Tableau[OB]&Tableau[OB2]=W121&X121&Y121&Z121&AA121&AB121&AC121&AD121&AE121&AF121&AG121&AH121&AI121&AJ121&AK121)*1),\"\")","v":""},"←"]
[null,null,null,null,null,null,null,null,null,null,null,null,null,null,null,null,null,null,null,null,null,"→",null,null,null,null,null,null,null,null,null,null,null,null,null,null,null,null,{"$f":"IF(COUNTIF(W122:AK122,\"<>\"),SUMPRODUCT((Tableau[Hauteur]&Tableau[Largeur]&Tableau[Type]&Tableau[Allège vitrée]&Tableau[Vitrage]&Tableau[Sens Ouv]&Tableau[Petits bois]&Tableau[Allège maç]&Tableau[Mortaise]&Tableau[RAL]&Tableau[Dormant]&Tableau[GHI]&Tableau[Type de pose]&Tableau[OB]&Tableau[OB2]=W122&X122&Y122&Z122&AA122&AB122&AC122&AD122&AE122&AF122&AG122&AH122&AI122&AJ122&AK122)*1),\"\")","v":""},"←"]
[null,null,null,null,null,null,null,null,null,null,null,null,null,null,null,null,null,null,null,null,null,"→",null,null,null,null,null,null,null,null,null,null,null,null,null,null,null,null,{"$f":"IF(COUNTIF(W123:AK123,\"<>\"),SUMPRODUCT((Tableau[Hauteur]&Tableau[Largeur]&Tableau[Type]&Tableau[Allège vitrée]&Tableau[Vitrage]&Tableau[Sens Ouv]&Tableau[Petits bois]&Tableau[Allège maç]&Tableau[Mortaise]&Tableau[RAL]&Tableau[Dormant]&Tableau[GHI]&Tableau[Type de pose]&Tableau[OB]&Tableau[OB2]=W123&X123&Y123&Z123&AA123&AB123&AC123&AD123&AE123&AF123&AG123&AH123&AI123&AJ123&AK123)*1),\"\")","v":""},"←"]
[null,null,null,null,null,null,null,null,null,null,null,null,null,null,null,null,null,null,null,null,null,"→",null,null,null,null,null,null,null,null,null,null,null,null,null,null,null,null,{"$f":"IF(COUNTIF(W124:AK124,\"<>\"),SUMPRODUCT((Tableau[Hauteur]&Tableau[Largeur]&Tableau[Type]&Tableau[Allège vitrée]&Tableau[Vitrage]&Tableau[Sens Ouv]&Tableau[Petits bois]&Tableau[Allège maç]&Tableau[Mortaise]&Tableau[RAL]&Tableau[Dormant]&Tableau[GHI]&Tableau[Type de pose]&Tableau[OB]&Tableau[OB2]=W124&X124&Y124&Z124&AA124&AB124&AC124&AD124&AE124&AF124&AG124&AH124&AI124&AJ124&AK124)*1),\"\")","v":""},"←"]
[null,null,null,null,null,null,null,null,null,null,null,null,null,null,null,null,null,null,null,null,null,"→",null,null,null,null,null,null,null,null,null,null,null,null,null,null,null,null,{"$f":"IF(COUNTIF(W125:AK125,\"<>\"),SUMPRODUCT((Tableau[Hauteur]&Tableau[Largeur]&Tableau[Type]&Tableau[Allège vitrée]&Tableau[Vitrage]&Tableau[Sens Ouv]&Tableau[Petits bois]&Tableau[Allège maç]&Tableau[Mortaise]&Tableau[RAL]&Tableau[Dormant]&Tableau[GHI]&Tableau[Type de pose]&Tableau[OB]&Tableau[OB2]=W125&X125&Y125&Z125&AA125&AB125&AC125&AD125&AE125&AF125&AG125&AH125&AI125&AJ125&AK125)*1),\"\")","v":""},"←"]
[null,null,null,null,null,null,null,null,null,null,null,null,null,null,null,null,null,null,null,null,null,"→",null,null,null,null,null,null,null,null,null,null,null,null,null,null,null,null,{"$f":"IF(COUNTIF(W126:AK126,\"<>\"),SUMPRODUCT((Tableau[Hauteur]&Tableau[Largeur]&Tableau[Type]&Tableau[Allège vitrée]&Tableau[Vitrage]&Tableau[Sens Ouv]&Tableau[Petits bois]&Tableau[Allège maç]&Tableau[Mortaise]&Tableau[RAL]&Tableau[Dormant]&Tableau[GHI]&Tableau[Type de pose]&Tableau[OB]&Tableau[OB2]=W126&X126&Y126&Z126&AA126&AB126&AC126&AD126&AE126&AF126&AG126&AH126&AI126&AJ126&AK126)*1),\"\")","v":""},"←"]
[null,null,null,null,null,null,null,null,null,null,null,null,null,null,null,null,null,null,null,null,null,"→",null,null,null,null,null,null,null,null,null,null,null,null,null,null,null,null,{"$f":"IF(COUNTIF(W127:AK127,\"<>\"),SUMPRODUCT((Tableau[Hauteur]&Tableau[Largeur]&Tableau[Type]&Tableau[Allège vitrée]&Tableau[Vitrage]&Tableau[Sens Ouv]&Tableau[Petits bois]&Tableau[Allège maç]&Tableau[Mortaise]&Tableau[RAL]&Tableau[Dormant]&Tableau[GHI]&Tableau[Type de pose]&Tableau[OB]&Tableau[OB2]=W127&X127&Y127&Z127&AA127&AB127&AC127&AD127&AE127&AF127&AG127&AH127&AI127&AJ127&AK127)*1),\"\")","v":""},"←"]
[null,null,null,null,null,null,null,null,null,null,null,null,null,null,null,null,null,null,null,null,null,"→",null,null,null,null,null,null,null,null,null,null,null,null,null,null,null,null,{"$f":"IF(COUNTIF(W128:AK128,\"<>\"),SUMPRODUCT((Tableau[Hauteur]&Tableau[Largeur]&Tableau[Type]&Tableau[Allège vitrée]&Tableau[Vitrage]&Tableau[Sens Ouv]&Tableau[Petits bois]&Tableau[Allège maç]&Tableau[Mortaise]&Tableau[RAL]&Tableau[Dormant]&Tableau[GHI]&Tableau[Type de pose]&Tableau[OB]&Tableau[OB2]=W128&X128&Y128&Z128&AA128&AB128&AC128&AD128&AE128&AF128&AG128&AH128&AI128&AJ128&AK128)*1),\"\")","v":""},"←"]
[null,null,null,null,null,null,null,null,null,null,null,null,null,null,null,null,null,null,null,null,null,"→",null,null,null,null,null,null,null,null,null,null,null,null,null,null,null,null,{"$f":"IF(COUNTIF(W129:AK129,\"<>\"),SUMPRODUCT((Tableau[Hauteur]&Tableau[Largeur]&Tableau[Type]&Tableau[Allège vitrée]&Tableau[Vitrage]&Tableau[Sens Ouv]&Tableau[Petits bois]&Tableau[Allège maç]&Tableau[Mortaise]&Tableau[RAL]&Tableau[Dormant]&Tableau[GHI]&Tableau[Type de pose]&Tableau[OB]&Tableau[OB2]=W129&X129&Y129&Z129&AA129&AB129&AC129&AD129&AE129&AF129&AG129&AH129&AI129&AJ129&AK129)*1),\"\")","v":""},"←"]
[null,null,null,null,null,null,null,null,null,null,null,null,null,null,null,null,null,null,null,null,null,"→",null,null,null,null,null,null,null,null,null,null,null,null,null,null,null,null,{"$f":"IF(COUNTIF(W130:AK130,\"<>\"),SUMPRODUCT((Tableau[Hauteur]&Tableau[Largeur]&Tableau[Type]&Tableau[Allège vitrée]&Tableau[Vitrage]&Tableau[Sens Ouv]&Tableau[Petits bois]&Tableau[Allège maç]&Tableau[Mortaise]&Tableau[RAL]&Tableau[Dormant]&Tableau[GHI]&Tableau[Type de pose]&Tableau[OB]&Tableau[OB2]=W130&X130&Y130&Z130&AA130&AB130&AC130&AD130&AE130&AF130&AG130&AH130&AI130&AJ130&AK130)*1),\"\")","v":""},"←"]
[null,null,null,null,null,null,null,null,null,null,null,null,null,null,null,null,null,null,null,null,null,"→",null,null,null,null,null,null,null,null,null,null,null,null,null,null,null,null,{"$f":"IF(COUNTIF(W131:AK131,\"<>\"),SUMPRODUCT((Tableau[Hauteur]&Tableau[Largeur]&Tableau[Type]&Tableau[Allège vitrée]&Tableau[Vitrage]&Tableau[Sens Ouv]&Tableau[Petits bois]&Tableau[Allège maç]&Tableau[Mortaise]&Tableau[RAL]&Tableau[Dormant]&Tableau[GHI]&Tableau[Type de pose]&Tableau[OB]&Tableau[OB2]=W131&X131&Y131&Z131&AA131&AB131&AC131&AD131&AE131&AF131&AG131&AH131&AI131&AJ131&AK131)*1),\"\")","v":""},"←"]
[null,null,null,null,null,null,null,null,null,null,null,null,null,null,null,null,null,null,null,null,null,"→",null,null,null,null,null,null,null,null,null,null,null,null,null,null,null,null,{"$f":"IF(COUNTIF(W132:AK132,\"<>\"),SUMPRODUCT((Tableau[Hauteur]&Tableau[Largeur]&Tableau[Type]&Tableau[Allège vitrée]&Tableau[Vitrage]&Tableau[Sens Ouv]&Tableau[Petits bois]&Tableau[Allège maç]&Tableau[Mortaise]&Tableau[RAL]&Tableau[Dormant]&Tableau[GHI]&Tableau[Type de pose]&Tableau[OB]&Tableau[OB2]=W132&X132&Y132&Z132&AA132&AB132&AC132&AD132&AE132&AF132&AG132&AH132&AI132&AJ132&AK132)*1),\"\")","v":""},"←"]
[null,null,null,null,null,null,null,null,null,null,null,null,null,null,null,null,null,null,null,null,null,"→",null,null,null,null,null,null,null,null,null,null,null,null,null,null,null,null,{"$f":"IF(COUNTIF(W133:AK133,\"<>\"),SUMPRODUCT((Tableau[Hauteur]&Tableau[Largeur]&Tableau[Type]&Tableau[Allège vitrée]&Tableau[Vitrage]&Tableau[Sens Ouv]&Tableau[Petits bois]&Tableau[Allège maç]&Tableau[Mortaise]&Tableau[RAL]&Tableau[Dormant]&Tableau[GHI]&Tableau[Type de pose]&Tableau[OB]&Tableau[OB2]=W133&X133&Y133&Z133&AA133&AB133&AC133&AD133&AE133&AF133&AG133&AH133&AI133&AJ133&AK133)*1),\"\")","v":""},"←"]
[null,null,null,null,null,null,null,null,null,null,null,null,null,null,null,null,null,null,null,null,null,"→",null,null,null,null,null,null,null,null,null,null,null,null,null,null,null,null,{"$f":"IF(COUNTIF(W134:AK134,\"<>\"),SUMPRODUCT((Tableau[Hauteur]&Tableau[Largeur]&Tableau[Type]&Tableau[Allège vitrée]&Tableau[Vitrage]&Tableau[Sens Ouv]&Tableau[Petits bois]&Tableau[Allège maç]&Tableau[Mortaise]&Tableau[RAL]&Tableau[Dormant]&Tableau[GHI]&Tableau[Type de pose]&Tableau[OB]&Tableau[OB2]=W134&X134&Y134&Z134&AA134&AB134&AC134&AD134&AE134&AF134&AG134&AH134&AI134&AJ134&AK134)*1),\"\")","v":""},"←"]
[null,null,null,null,null,null,null,null,null,null,null,null,null,null,null,null,null,null,null,null,null,"→",null,null,null,null,null,null,null,null,null,null,null,null,null,null,null,null,{"$f":"IF(COUNTIF(W135:AK135,\"<>\"),SUMPRODUCT((Tableau[Hauteur]&Tableau[Largeur]&Tableau[Type]&Tableau[Allège vitrée]&Tableau[Vitrage]&Tableau[Sens Ouv]&Tableau[Petits bois]&Tableau[Allège maç]&Tableau[Mortaise]&Tableau[RAL]&Tableau[Dormant]&Tableau[GHI]&Tableau[Type de pose]&Tableau[OB]&Tableau[OB2]=W135&X135&Y135&Z135&AA135&AB135&AC135&AD135&AE135&AF135&AG135&AH135&AI135&AJ135&AK135)*1),\"\")","v":""},"←"]
[null,null,null,null,null,null,null,null,null,null,null,null,null,null,null,null,null,null,null,null,null,"→",null,null,null,null,null,null,null,null,null,null,null,null,null,null,null,null,{"$f":"IF(COUNTIF(W136:AK136,\"<>\"),SUMPRODUCT((Tableau[Hauteur]&Tableau[Largeur]&Tableau[Type]&Tableau[Allège vitrée]&Tableau[Vitrage]&Tableau[Sens Ouv]&Tableau[Petits bois]&Tableau[Allège maç]&Tableau[Mortaise]&Tableau[RAL]&Tableau[Dormant]&Tableau[GHI]&Tableau[Type de pose]&Tableau[OB]&Tableau[OB2]=W136&X136&Y136&Z136&AA136&AB136&AC136&AD136&AE136&AF136&AG136&AH136&AI136&AJ136&AK136)*1),\"\")","v":""},"←"]
[null,null,null,null,null,null,null,null,null,null,null,null,null,null,null,null,null,null,null,null,null,"→",null,null,null,null,null,null,null,null,null,null,null,null,null,null,null,null,{"$f":"IF(COUNTIF(W137:AK137,\"<>\"),SUMPRODUCT((Tableau[Hauteur]&Tableau[Largeur]&Tableau[Type]&Tableau[Allège vitrée]&Tableau[Vitrage]&Tableau[Sens Ouv]&Tableau[Petits bois]&Tableau[Allège maç]&Tableau[Mortaise]&Tableau[RAL]&Tableau[Dormant]&Tableau[GHI]&Tableau[Type de pose]&Tableau[OB]&Tableau[OB2]=W137&X137&Y137&Z137&AA137&AB137&AC137&AD137&AE137&AF137&AG137&AH137&AI137&AJ137&AK137)*1),\"\")","v":""},"←"]
[null,null,null,null,null,null,null,null,null,null,null,null,null,null,null,null,null,null,null,null,null,"→",null,null,null,null,null,null,null,null,null,null,null,null,null,null,null,null,{"$f":"IF(COUNTIF(W138:AK138,\"<>\"),SUMPRODUCT((Tableau[Hauteur]&Tableau[Largeur]&Tableau[Type]&Tableau[Allège vitrée]&Tableau[Vitrage]&Tableau[Sens Ouv]&Tableau[Petits bois]&Tableau[Allège maç]&Tableau[Mortaise]&Tableau[RAL]&Tableau[Dormant]&Tableau[GHI]&Tableau[Type de pose]&Tableau[OB]&Tableau[OB2]=W138&X138&Y138&Z138&AA138&AB138&AC138&AD138&AE138&AF138&AG138&AH138&AI138&AJ138&AK138)*1),\"\")","v":""},"←"]
[null,null,null,null,null,null,null,null,null,null,null,null,null,null,null,null,null,null,null,null,null,"→",null,null,null,null,null,null,null,null,null,null,null,null,null,null,null,null,{"$f":"IF(COUNTIF(W139:AK139,\"<>\"),SUMPRODUCT((Tableau[Hauteur]&Tableau[Largeur]&Tableau[Type]&Tableau[Allège vitrée]&Tableau[Vitrage]&Tableau[Sens Ouv]&Tableau[Petits bois]&Tableau[Allège maç]&Tableau[Mortaise]&Tableau[RAL]&Tableau[Dormant]&Tableau[GHI]&Tableau[Type de pose]&Tableau[OB]&Tableau[OB2]=W139&X139&Y139&Z139&AA139&AB139&AC139&AD139&AE139&AF139&AG139&AH139&AI139&AJ139&AK139)*1),\"\")","v":""},"←"]
[null,null,null,null,null,null,null,null,null,null,null,null,null,null,null,null,null,null,null,null,null,"→",null,null,null,null,null,null,null,null,null,null,null,null,null,null,null,null,{"$f":"IF(COUNTIF(W140:AK140,\"<>\"),SUMPRODUCT((Tableau[Hauteur]&Tableau[Largeur]&Tableau[Type]&Tableau[Allège vitrée]&Tableau[Vitrage]&Tableau[Sens Ouv]&Tableau[Petits bois]&Tableau[Allège maç]&Tableau[Mortaise]&Tableau[RAL]&Tableau[Dormant]&Tableau[GHI]&Tableau[Type de pose]&Tableau[OB]&Tableau[OB2]=W140&X140&Y140&Z140&AA140&AB140&AC140&AD140&AE140&AF140&AG140&AH140&AI140&AJ140&AK140)*1),\"\")","v":""},"←"]
[null,null,null,null,null,null,null,null,null,null,null,null,null,null,null,null,null,null,null,null,null,"→",null,null,null,null,null,null,null,null,null,null,null,null,null,null,null,null,{"$f":"IF(COUNTIF(W141:AK141,\"<>\"),SUMPRODUCT((Tableau[Hauteur]&Tableau[Largeur]&Tableau[Type]&Tableau[Allège vitrée]&Tableau[Vitrage]&Tableau[Sens Ouv]&Tableau[Petits bois]&Tableau[Allège maç]&Tableau[Mortaise]&Tableau[RAL]&Tableau[Dormant]&Tableau[GHI]&Tableau[Type de pose]&Tableau[OB]&Tableau[OB2]=W141&X141&Y141&Z141&AA141&AB141&AC141&AD141&AE141&AF141&AG141&AH141&AI141&AJ141&AK141)*1),\"\")","v":""},"←"]
[null,null,null,null,null,null,null,null,null,null,null,null,null,null,null,null,null,null,null,null,null,"→",null,null,null,null,null,null,null,null,null,null,null,null,null,null,null,null,{"$f":"IF(COUNTIF(W142:AK142,\"<>\"),SUMPRODUCT((Tableau[Hauteur]&Tableau[Largeur]&Tableau[Type]&Tableau[Allège vitrée]&Tableau[Vitrage]&Tableau[Sens Ouv]&Tableau[Petits bois]&Tableau[Allège maç]&Tableau[Mortaise]&Tableau[RAL]&Tableau[Dormant]&Tableau[GHI]&Tableau[Type de pose]&Tableau[OB]&Tableau[OB2]=W142&X142&Y142&Z142&AA142&AB142&AC142&AD142&AE142&AF142&AG142&AH142&AI142&AJ142&AK142)*1),\"\")","v":""},"←"]
[null,null,null,null,null,null,null,null,null,null,null,null,null,null,null,null,null,null,null,null,null,"→",null,null,null,null,null,null,null,null,null,null,null,null,null,null,null,null,{"$f":"IF(COUNTIF(W143:AK143,\"<>\"),SUMPRODUCT((Tableau[Hauteur]&Tableau[Largeur]&Tableau[Type]&Tableau[Allège vitrée]&Tableau[Vitrage]&Tableau[Sens Ouv]&Tableau[Petits bois]&Tableau[Allège maç]&Tableau[Mortaise]&Tableau[RAL]&Tableau[Dormant]&Tableau[GHI]&Tableau[Type de pose]&Tableau[OB]&Tableau[OB2]=W143&X143&Y143&Z143&AA143&AB143&AC143&AD143&AE143&AF143&AG143&AH143&AI143&AJ143&AK143)*1),\"\")","v":""},"←"]
[null,null,null,null,null,null,null,null,null,null,null,null,null,null,null,null,null,null,null,null,null,"→",null,null,null,null,null,null,null,null,null,null,null,null,null,null,null,null,{"$f":"IF(COUNTIF(W144:AK144,\"<>\"),SUMPRODUCT((Tableau[Hauteur]&Tableau[Largeur]&Tableau[Type]&Tableau[Allège vitrée]&Tableau[Vitrage]&Tableau[Sens Ouv]&Tableau[Petits bois]&Tableau[Allège maç]&Tableau[Mortaise]&Tableau[RAL]&Tableau[Dormant]&Tableau[GHI]&Tableau[Type de pose]&Tableau[OB]&Tableau[OB2]=W144&X144&Y144&Z144&AA144&AB144&AC144&AD144&AE144&AF144&AG144&AH144&AI144&AJ144&AK144)*1),\"\")","v":""},"←"]
[null,null,null,null,null,null,null,null,null,null,null,null,null,null,null,null,null,null,null,null,null,"→",null,null,null,null,null,null,null,null,null,null,null,null,null,null,null,null,{"$f":"IF(COUNTIF(W145:AK145,\"<>\"),SUMPRODUCT((Tableau[Hauteur]&Tableau[Largeur]&Tableau[Type]&Tableau[Allège vitrée]&Tableau[Vitrage]&Tableau[Sens Ouv]&Tableau[Petits bois]&Tableau[Allège maç]&Tableau[Mortaise]&Tableau[RAL]&Tableau[Dormant]&Tableau[GHI]&Tableau[Type de pose]&Tableau[OB]&Tableau[OB2]=W145&X145&Y145&Z145&AA145&AB145&AC145&AD145&AE145&AF145&AG145&AH145&AI145&AJ145&AK145)*1),\"\")","v":""},"←"]
[null,null,null,null,null,null,null,null,null,null,null,null,null,null,null,null,null,null,null,null,null,"→",null,null,null,null,null,null,null,null,null,null,null,null,null,null,null,null,{"$f":"IF(COUNTIF(W146:AK146,\"<>\"),SUMPRODUCT((Tableau[Hauteur]&Tableau[Largeur]&Tableau[Type]&Tableau[Allège vitrée]&Tableau[Vitrage]&Tableau[Sens Ouv]&Tableau[Petits bois]&Tableau[Allège maç]&Tableau[Mortaise]&Tableau[RAL]&Tableau[Dormant]&Tableau[GHI]&Tableau[Type de pose]&Tableau[OB]&Tableau[OB2]=W146&X146&Y146&Z146&AA146&AB146&AC146&AD146&AE146&AF146&AG146&AH146&AI146&AJ146&AK146)*1),\"\")","v":""},"←"]
[null,null,null,null,null,null,null,null,null,null,null,null,null,null,null,null,null,null,null,null,null,"→",null,null,null,null,null,null,null,null,null,null,null,null,null,null,null,null,{"$f":"IF(COUNTIF(W147:AK147,\"<>\"),SUMPRODUCT((Tableau[Hauteur]&Tableau[Largeur]&Tableau[Type]&Tableau[Allège vitrée]&Tableau[Vitrage]&Tableau[Sens Ouv]&Tableau[Petits bois]&Tableau[Allège maç]&Tableau[Mortaise]&Tableau[RAL]&Tableau[Dormant]&Tableau[GHI]&Tableau[Type de pose]&Tableau[OB]&Tableau[OB2]=W147&X147&Y147&Z147&AA147&AB147&AC147&AD147&AE147&AF147&AG147&AH147&AI147&AJ147&AK147)*1),\"\")","v":""},"←"]
[null,null,null,null,null,null,null,null,null,null,null,null,null,null,null,null,null,null,null,null,null,"→",null,null,null,null,null,null,null,null,null,null,null,null,null,null,null,null,{"$f":"IF(COUNTIF(W148:AK148,\"<>\"),SUMPRODUCT((Tableau[Hauteur]&Tableau[Largeur]&Tableau[Type]&Tableau[Allège vitrée]&Tableau[Vitrage]&Tableau[Sens Ouv]&Tableau[Petits bois]&Tableau[Allège maç]&Tableau[Mortaise]&Tableau[RAL]&Tableau[Dormant]&Tableau[GHI]&Tableau[Type de pose]&Tableau[OB]&Tableau[OB2]=W148&X148&Y148&Z148&AA148&AB148&AC148&AD148&AE148&AF148&AG148&AH148&AI148&AJ148&AK148)*1),\"\")","v":""},"←"]
[null,null,null,null,null,null,null,null,null,null,null,null,null,null,null,null,null,null,null,null,null,"→",null,null,null,null,null,null,null,null,null,null,null,null,null,null,null,null,{"$f":"IF(COUNTIF(W149:AK149,\"<>\"),SUMPRODUCT((Tableau[Hauteur]&Tableau[Largeur]&Tableau[Type]&Tableau[Allège vitrée]&Tableau[Vitrage]&Tableau[Sens Ouv]&Tableau[Petits bois]&Tableau[Allège maç]&Tableau[Mortaise]&Tableau[RAL]&Tableau[Dormant]&Tableau[GHI]&Tableau[Type de pose]&Tableau[OB]&Tableau[OB2]=W149&X149&Y149&Z149&AA149&AB149&AC149&AD149&AE149&AF149&AG149&AH149&AI149&AJ149&AK149)*1),\"\")","v":""},"←"]
[null,null,null,null,null,null,null,null,null,null,null,null,null,null,null,null,null,null,null,null,null,"→",null,null,null,null,null,null,null,null,null,null,null,null,null,null,null,null,{"$f":"IF(COUNTIF(W150:AK150,\"<>\"),SUMPRODUCT((Tableau[Hauteur]&Tableau[Largeur]&Tableau[Type]&Tableau[Allège vitrée]&Tableau[Vitrage]&Tableau[Sens Ouv]&Tableau[Petits bois]&Tableau[Allège maç]&Tableau[Mortaise]&Tableau[RAL]&Tableau[Dormant]&Tableau[GHI]&Tableau[Type de pose]&Tableau[OB]&Tableau[OB2]=W150&X150&Y150&Z150&AA150&AB150&AC150&AD150&AE150&AF150&AG150&AH150&AI150&AJ150&AK150)*1),\"\")","v":""},"←"]
[null,null,null,null,null,null,null,null,null,null,null,null,null,null,null,null,null,null,null,null,null,"→",null,null,null,null,null,null,null,null,null,null,null,null,null,null,null,null,{"$f":"IF(COUNTIF(W151:AK151,\"<>\"),SUMPRODUCT((Tableau[Hauteur]&Tableau[Largeur]&Tableau[Type]&Tableau[Allège vitrée]&Tableau[Vitrage]&Tableau[Sens Ouv]&Tableau[Petits bois]&Tableau[Allège maç]&Tableau[Mortaise]&Tableau[RAL]&Tableau[Dormant]&Tableau[GHI]&Tableau[Type de pose]&Tableau[OB]&Tableau[OB2]=W151&X151&Y151&Z151&AA151&AB151&AC151&AD151&AE151&AF151&AG151&AH151&AI151&AJ151&AK151)*1),\"\")","v":""},"←"]
[null,null,null,null,null,null,null,null,null,null,null,null,null,null,null,null,null,null,null,null,null,"→",null,null,null,null,null,null,null,null,null,null,null,null,null,null,null,null,{"$f":"IF(COUNTIF(W152:AK152,\"<>\"),SUMPRODUCT((Tableau[Hauteur]&Tableau[Largeur]&Tableau[Type]&Tableau[Allège vitrée]&Tableau[Vitrage]&Tableau[Sens Ouv]&Tableau[Petits bois]&Tableau[Allège maç]&Tableau[Mortaise]&Tableau[RAL]&Tableau[Dormant]&Tableau[GHI]&Tableau[Type de pose]&Tableau[OB]&Tableau[OB2]=W152&X152&Y152&Z152&AA152&AB152&AC152&AD152&AE152&AF152&AG152&AH152&AI152&AJ152&AK152)*1),\"\")","v":""},"←"]
[null,null,null,null,null,null,null,null,null,null,null,null,null,null,null,null,null,null,null,null,null,"→",null,null,null,null,null,null,null,null,null,null,null,null,null,null,null,null,{"$f":"IF(COUNTIF(W153:AK153,\"<>\"),SUMPRODUCT((Tableau[Hauteur]&Tableau[Largeur]&Tableau[Type]&Tableau[Allège vitrée]&Tableau[Vitrage]&Tableau[Sens Ouv]&Tableau[Petits bois]&Tableau[Allège maç]&Tableau[Mortaise]&Tableau[RAL]&Tableau[Dormant]&Tableau[GHI]&Tableau[Type de pose]&Tableau[OB]&Tableau[OB2]=W153&X153&Y153&Z153&AA153&AB153&AC153&AD153&AE153&AF153&AG153&AH153&AI153&AJ153&AK153)*1),\"\")","v":""},"←"]
[null,null,null,null,null,null,null,null,null,null,null,null,null,null,null,null,null,null,null,null,null,"→",null,null,null,null,null,null,null,null,null,null,null,null,null,null,null,null,{"$f":"IF(COUNTIF(W154:AK154,\"<>\"),SUMPRODUCT((Tableau[Hauteur]&Tableau[Largeur]&Tableau[Type]&Tableau[Allège vitrée]&Tableau[Vitrage]&Tableau[Sens Ouv]&Tableau[Petits bois]&Tableau[Allège maç]&Tableau[Mortaise]&Tableau[RAL]&Tableau[Dormant]&Tableau[GHI]&Tableau[Type de pose]&Tableau[OB]&Tableau[OB2]=W154&X154&Y154&Z154&AA154&AB154&AC154&AD154&AE154&AF154&AG154&AH154&AI154&AJ154&AK154)*1),\"\")","v":""},"←"]
[null,null,null,null,null,null,null,null,null,null,null,null,null,null,null,null,null,null,null,null,null,"→",null,null,null,null,null,null,null,null,null,null,null,null,null,null,null,null,{"$f":"IF(COUNTIF(W155:AK155,\"<>\"),SUMPRODUCT((Tableau[Hauteur]&Tableau[Largeur]&Tableau[Type]&Tableau[Allège vitrée]&Tableau[Vitrage]&Tableau[Sens Ouv]&Tableau[Petits bois]&Tableau[Allège maç]&Tableau[Mortaise]&Tableau[RAL]&Tableau[Dormant]&Tableau[GHI]&Tableau[Type de pose]&Tableau[OB]&Tableau[OB2]=W155&X155&Y155&Z155&AA155&AB155&AC155&AD155&AE155&AF155&AG155&AH155&AI155&AJ155&AK155)*1),\"\")","v":""},"←"]
[null,null,null,null,null,null,null,null,null,null,null,null,null,null,null,null,null,null,null,null,null,"→",null,null,null,null,null,null,null,null,null,null,null,null,null,null,null,null,{"$f":"IF(COUNTIF(W156:AK156,\"<>\"),SUMPRODUCT((Tableau[Hauteur]&Tableau[Largeur]&Tableau[Type]&Tableau[Allège vitrée]&Tableau[Vitrage]&Tableau[Sens Ouv]&Tableau[Petits bois]&Tableau[Allège maç]&Tableau[Mortaise]&Tableau[RAL]&Tableau[Dormant]&Tableau[GHI]&Tableau[Type de pose]&Tableau[OB]&Tableau[OB2]=W156&X156&Y156&Z156&AA156&AB156&AC156&AD156&AE156&AF156&AG156&AH156&AI156&AJ156&AK156)*1),\"\")","v":""},"←"]
[null,null,null,null,null,null,null,null,null,null,null,null,null,null,null,null,null,null,null,null,null,"→",null,null,null,null,null,null,null,null,null,null,null,null,null,null,null,null,{"$f":"IF(COUNTIF(W157:AK157,\"<>\"),SUMPRODUCT((Tableau[Hauteur]&Tableau[Largeur]&Tableau[Type]&Tableau[Allège vitrée]&Tableau[Vitrage]&Tableau[Sens Ouv]&Tableau[Petits bois]&Tableau[Allège maç]&Tableau[Mortaise]&Tableau[RAL]&Tableau[Dormant]&Tableau[GHI]&Tableau[Type de pose]&Tableau[OB]&Tableau[OB2]=W157&X157&Y157&Z157&AA157&AB157&AC157&AD157&AE157&AF157&AG157&AH157&AI157&AJ157&AK157)*1),\"\")","v":""},"←"]
[null,null,null,null,null,null,null,null,null,null,null,null,null,null,null,null,null,null,null,null,null,"→",null,null,null,null,null,null,null,null,null,null,null,null,null,null,null,null,{"$f":"IF(COUNTIF(W158:AK158,\"<>\"),SUMPRODUCT((Tableau[Hauteur]&Tableau[Largeur]&Tableau[Type]&Tableau[Allège vitrée]&Tableau[Vitrage]&Tableau[Sens Ouv]&Tableau[Petits bois]&Tableau[Allège maç]&Tableau[Mortaise]&Tableau[RAL]&Tableau[Dormant]&Tableau[GHI]&Tableau[Type de pose]&Tableau[OB]&Tableau[OB2]=W158&X158&Y158&Z158&AA158&AB158&AC158&AD158&AE158&AF158&AG158&AH158&AI158&AJ158&AK158)*1),\"\")","v":""},"←"]
[null,null,null,null,null,null,null,null,null,null,null,null,null,null,null,null,null,null,null,null,null,"→",null,null,null,null,null,null,null,null,null,null,null,null,null,null,null,null,{"$f":"IF(COUNTIF(W159:AK159,\"<>\"),SUMPRODUCT((Tableau[Hauteur]&Tableau[Largeur]&Tableau[Type]&Tableau[Allège vitrée]&Tableau[Vitrage]&Tableau[Sens Ouv]&Tableau[Petits bois]&Tableau[Allège maç]&Tableau[Mortaise]&Tableau[RAL]&Tableau[Dormant]&Tableau[GHI]&Tableau[Type de pose]&Tableau[OB]&Tableau[OB2]=W159&X159&Y159&Z159&AA159&AB159&AC159&AD159&AE159&AF159&AG159&AH159&AI159&AJ159&AK159)*1),\"\")","v":""},"←"]
[null,null,null,null,null,null,null,null,null,null,null,null,null,null,null,null,null,null,null,null,null,"→",null,null,null,null,null,null,null,null,null,null,null,null,null,null,null,null,{"$f":"IF(COUNTIF(W160:AK160,\"<>\"),SUMPRODUCT((Tableau[Hauteur]&Tableau[Largeur]&Tableau[Type]&Tableau[Allège vitrée]&Tableau[Vitrage]&Tableau[Sens Ouv]&Tableau[Petits bois]&Tableau[Allège maç]&Tableau[Mortaise]&Tableau[RAL]&Tableau[Dormant]&Tableau[GHI]&Tableau[Type de pose]&Tableau[OB]&Tableau[OB2]=W160&X160&Y160&Z160&AA160&AB160&AC160&AD160&AE160&AF160&AG160&AH160&AI160&AJ160&AK160)*1),\"\")","v":""},"←"]
[null,null,null,null,null,null,null,null,null,null,null,null,null,null,null,null,null,null,null,null,null,"→",null,null,null,null,null,null,null,null,null,null,null,null,null,null,null,null,{"$f":"IF(COUNTIF(W161:AK161,\"<>\"),SUMPRODUCT((Tableau[Hauteur]&Tableau[Largeur]&Tableau[Type]&Tableau[Allège vitrée]&Tableau[Vitrage]&Tableau[Sens Ouv]&Tableau[Petits bois]&Tableau[Allège maç]&Tableau[Mortaise]&Tableau[RAL]&Tableau[Dormant]&Tableau[GHI]&Tableau[Type de pose]&Tableau[OB]&Tableau[OB2]=W161&X161&Y161&Z161&AA161&AB161&AC161&AD161&AE161&AF161&AG161&AH161&AI161&AJ161&AK161)*1),\"\")","v":""},"←"]
[null,null,null,null,null,null,null,null,null,null,null,null,null,null,null,null,null,null,null,null,null,"→",null,null,null,null,null,null,null,null,null,null,null,null,null,null,null,null,{"$f":"IF(COUNTIF(W162:AK162,\"<>\"),SUMPRODUCT((Tableau[Hauteur]&Tableau[Largeur]&Tableau[Type]&Tableau[Allège vitrée]&Tableau[Vitrage]&Tableau[Sens Ouv]&Tableau[Petits bois]&Tableau[Allège maç]&Tableau[Mortaise]&Tableau[RAL]&Tableau[Dormant]&Tableau[GHI]&Tableau[Type de pose]&Tableau[OB]&Tableau[OB2]=W162&X162&Y162&Z162&AA162&AB162&AC162&AD162&AE162&AF162&AG162&AH162&AI162&AJ162&AK162)*1),\"\")","v":""},"←"]
[null,null,null,null,null,null,null,null,null,null,null,null,null,null,null,null,null,null,null,null,null,"→",null,null,null,null,null,null,null,null,null,null,null,null,null,null,null,null,{"$f":"IF(COUNTIF(W163:AK163,\"<>\"),SUMPRODUCT((Tableau[Hauteur]&Tableau[Largeur]&Tableau[Type]&Tableau[Allège vitrée]&Tableau[Vitrage]&Tableau[Sens Ouv]&Tableau[Petits bois]&Tableau[Allège maç]&Tableau[Mortaise]&Tableau[RAL]&Tableau[Dormant]&Tableau[GHI]&Tableau[Type de pose]&Tableau[OB]&Tableau[OB2]=W163&X163&Y163&Z163&AA163&AB163&AC163&AD163&AE163&AF163&AG163&AH163&AI163&AJ163&AK163)*1),\"\")","v":""},"←"]
[null,null,null,null,null,null,null,null,null,null,null,null,null,null,null,null,null,null,null,null,null,"→",null,null,null,null,null,null,null,null,null,null,null,null,null,null,null,null,{"$f":"IF(COUNTIF(W164:AK164,\"<>\"),SUMPRODUCT((Tableau[Hauteur]&Tableau[Largeur]&Tableau[Type]&Tableau[Allège vitrée]&Tableau[Vitrage]&Tableau[Sens Ouv]&Tableau[Petits bois]&Tableau[Allège maç]&Tableau[Mortaise]&Tableau[RAL]&Tableau[Dormant]&Tableau[GHI]&Tableau[Type de pose]&Tableau[OB]&Tableau[OB2]=W164&X164&Y164&Z164&AA164&AB164&AC164&AD164&AE164&AF164&AG164&AH164&AI164&AJ164&AK164)*1),\"\")","v":""},"←"]
[null,null,null,null,null,null,null,null,null,null,null,null,null,null,null,null,null,null,null,null,null,"→",null,null,null,null,null,null,null,null,null,null,null,null,null,null,null,null,{"$f":"IF(COUNTIF(W165:AK165,\"<>\"),SUMPRODUCT((Tableau[Hauteur]&Tableau[Largeur]&Tableau[Type]&Tableau[Allège vitrée]&Tableau[Vitrage]&Tableau[Sens Ouv]&Tableau[Petits bois]&Tableau[Allège maç]&Tableau[Mortaise]&Tableau[RAL]&Tableau[Dormant]&Tableau[GHI]&Tableau[Type de pose]&Tableau[OB]&Tableau[OB2]=W165&X165&Y165&Z165&AA165&AB165&AC165&AD165&AE165&AF165&AG165&AH165&AI165&AJ165&AK165)*1),\"\")","v":""},"←"]
[null,null,null,null,null,null,null,null,null,null,null,null,null,null,null,null,null,null,null,null,null,"→",null,null,null,null,null,null,null,null,null,null,null,null,null,null,null,null,{"$f":"IF(COUNTIF(W166:AK166,\"<>\"),SUMPRODUCT((Tableau[Hauteur]&Tableau[Largeur]&Tableau[Type]&Tableau[Allège vitrée]&Tableau[Vitrage]&Tableau[Sens Ouv]&Tableau[Petits bois]&Tableau[Allège maç]&Tableau[Mortaise]&Tableau[RAL]&Tableau[Dormant]&Tableau[GHI]&Tableau[Type de pose]&Tableau[OB]&Tableau[OB2]=W166&X166&Y166&Z166&AA166&AB166&AC166&AD166&AE166&AF166&AG166&AH166&AI166&AJ166&AK166)*1),\"\")","v":""},"←"]
[null,null,null,null,null,null,null,null,null,null,null,null,null,null,null,null,null,null,null,null,null,"→",null,null,null,null,null,null,null,null,null,null,null,null,null,null,null,null,{"$f":"IF(COUNTIF(W167:AK167,\"<>\"),SUMPRODUCT((Tableau[Hauteur]&Tableau[Largeur]&Tableau[Type]&Tableau[Allège vitrée]&Tableau[Vitrage]&Tableau[Sens Ouv]&Tableau[Petits bois]&Tableau[Allège maç]&Tableau[Mortaise]&Tableau[RAL]&Tableau[Dormant]&Tableau[GHI]&Tableau[Type de pose]&Tableau[OB]&Tableau[OB2]=W167&X167&Y167&Z167&AA167&AB167&AC167&AD167&AE167&AF167&AG167&AH167&AI167&AJ167&AK167)*1),\"\")","v":""},"←"]
[null,null,null,null,null,null,null,null,null,null,null,null,null,null,null,null,null,null,null,null,null,"→",null,null,null,null,null,null,null,null,null,null,null,null,null,null,null,null,{"$f":"IF(COUNTIF(W168:AK168,\"<>\"),SUMPRODUCT((Tableau[Hauteur]&Tableau[Largeur]&Tableau[Type]&Tableau[Allège vitrée]&Tableau[Vitrage]&Tableau[Sens Ouv]&Tableau[Petits bois]&Tableau[Allège maç]&Tableau[Mortaise]&Tableau[RAL]&Tableau[Dormant]&Tableau[GHI]&Tableau[Type de pose]&Tableau[OB]&Tableau[OB2]=W168&X168&Y168&Z168&AA168&AB168&AC168&AD168&AE168&AF168&AG168&AH168&AI168&AJ168&AK168)*1),\"\")","v":""},"←"]
[null,null,null,null,null,null,null,null,null,null,null,null,null,null,null,null,null,null,null,null,null,"→",null,null,null,null,null,null,null,null,null,null,null,null,null,null,null,null,{"$f":"IF(COUNTIF(W169:AK169,\"<>\"),SUMPRODUCT((Tableau[Hauteur]&Tableau[Largeur]&Tableau[Type]&Tableau[Allège vitrée]&Tableau[Vitrage]&Tableau[Sens Ouv]&Tableau[Petits bois]&Tableau[Allège maç]&Tableau[Mortaise]&Tableau[RAL]&Tableau[Dormant]&Tableau[GHI]&Tableau[Type de pose]&Tableau[OB]&Tableau[OB2]=W169&X169&Y169&Z169&AA169&AB169&AC169&AD169&AE169&AF169&AG169&AH169&AI169&AJ169&AK169)*1),\"\")","v":""},"←"]
[null,null,null,null,null,null,null,null,null,null,null,null,null,null,null,null,null,null,null,null,null,"→",null,null,null,null,null,null,null,null,null,null,null,null,null,null,null,null,{"$f":"IF(COUNTIF(W170:AK170,\"<>\"),SUMPRODUCT((Tableau[Hauteur]&Tableau[Largeur]&Tableau[Type]&Tableau[Allège vitrée]&Tableau[Vitrage]&Tableau[Sens Ouv]&Tableau[Petits bois]&Tableau[Allège maç]&Tableau[Mortaise]&Tableau[RAL]&Tableau[Dormant]&Tableau[GHI]&Tableau[Type de pose]&Tableau[OB]&Tableau[OB2]=W170&X170&Y170&Z170&AA170&AB170&AC170&AD170&AE170&AF170&AG170&AH170&AI170&AJ170&AK170)*1),\"\")","v":""},"←"]
[null,null,null,null,null,null,null,null,null,null,null,null,null,null,null,null,null,null,null,null,null,"→",null,null,null,null,null,null,null,null,null,null,null,null,null,null,null,null,{"$f":"IF(COUNTIF(W171:AK171,\"<>\"),SUMPRODUCT((Tableau[Hauteur]&Tableau[Largeur]&Tableau[Type]&Tableau[Allège vitrée]&Tableau[Vitrage]&Tableau[Sens Ouv]&Tableau[Petits bois]&Tableau[Allège maç]&Tableau[Mortaise]&Tableau[RAL]&Tableau[Dormant]&Tableau[GHI]&Tableau[Type de pose]&Tableau[OB]&Tableau[OB2]=W171&X171&Y171&Z171&AA171&AB171&AC171&AD171&AE171&AF171&AG171&AH171&AI171&AJ171&AK171)*1),\"\")","v":""},"←"]
[null,null,null,null,null,null,null,null,null,null,null,null,null,null,null,null,null,null,null,null,null,"→",null,null,null,null,null,null,null,null,null,null,null,null,null,null,null,null,{"$f":"IF(COUNTIF(W172:AK172,\"<>\"),SUMPRODUCT((Tableau[Hauteur]&Tableau[Largeur]&Tableau[Type]&Tableau[Allège vitrée]&Tableau[Vitrage]&Tableau[Sens Ouv]&Tableau[Petits bois]&Tableau[Allège maç]&Tableau[Mortaise]&Tableau[RAL]&Tableau[Dormant]&Tableau[GHI]&Tableau[Type de pose]&Tableau[OB]&Tableau[OB2]=W172&X172&Y172&Z172&AA172&AB172&AC172&AD172&AE172&AF172&AG172&AH172&AI172&AJ172&AK172)*1),\"\")","v":""},"←"]
[null,null,null,null,null,null,null,null,null,null,null,null,null,null,null,null,null,null,null,null,null,"→",null,null,null,null,null,null,null,null,null,null,null,null,null,null,null,null,{"$f":"IF(COUNTIF(W173:AK173,\"<>\"),SUMPRODUCT((Tableau[Hauteur]&Tableau[Largeur]&Tableau[Type]&Tableau[Allège vitrée]&Tableau[Vitrage]&Tableau[Sens Ouv]&Tableau[Petits bois]&Tableau[Allège maç]&Tableau[Mortaise]&Tableau[RAL]&Tableau[Dormant]&Tableau[GHI]&Tableau[Type de pose]&Tableau[OB]&Tableau[OB2]=W173&X173&Y173&Z173&AA173&AB173&AC173&AD173&AE173&AF173&AG173&AH173&AI173&AJ173&AK173)*1),\"\")","v":""},"←"]
[null,null,null,null,null,null,null,null,null,null,null,null,null,null,null,null,null,null,null,null,null,"→",null,null,null,null,null,null,null,null,null,null,null,null,null,null,null,null,{"$f":"IF(COUNTIF(W174:AK174,\"<>\"),SUMPRODUCT((Tableau[Hauteur]&Tableau[Largeur]&Tableau[Type]&Tableau[Allège vitrée]&Tableau[Vitrage]&Tableau[Sens Ouv]&Tableau[Petits bois]&Tableau[Allège maç]&Tableau[Mortaise]&Tableau[RAL]&Tableau[Dormant]&Tableau[GHI]&Tableau[Type de pose]&Tableau[OB]&Tableau[OB2]=W174&X174&Y174&Z174&AA174&AB174&AC174&AD174&AE174&AF174&AG174&AH174&AI174&AJ174&AK174)*1),\"\")","v":""},"←"]
[null,null,null,null,null,null,null,null,null,null,null,null,null,null,null,null,null,null,null,null,null,"→",null,null,null,null,null,null,null,null,null,null,null,null,null,null,null,null,{"$f":"IF(COUNTIF(W175:AK175,\"<>\"),SUMPRODUCT((Tableau[Hauteur]&Tableau[Largeur]&Tableau[Type]&Tableau[Allège vitrée]&Tableau[Vitrage]&Tableau[Sens Ouv]&Tableau[Petits bois]&Tableau[Allège maç]&Tableau[Mortaise]&Tableau[RAL]&Tableau[Dormant]&Tableau[GHI]&Tableau[Type de pose]&Tableau[OB]&Tableau[OB2]=W175&X175&Y175&Z175&AA175&AB175&AC175&AD175&AE175&AF175&AG175&AH175&AI175&AJ175&AK175)*1),\"\")","v":""},"←"]
[null,null,null,null,null,null,null,null,null,null,null,null,null,null,null,null,null,null,null,null,null,"→",null,null,null,null,null,null,null,null,null,null,null,null,null,null,null,null,{"$f":"IF(COUNTIF(W176:AK176,\"<>\"),SUMPRODUCT((Tableau[Hauteur]&Tableau[Largeur]&Tableau[Type]&Tableau[Allège vitrée]&Tableau[Vitrage]&Tableau[Sens Ouv]&Tableau[Petits bois]&Tableau[Allège maç]&Tableau[Mortaise]&Tableau[RAL]&Tableau[Dormant]&Tableau[GHI]&Tableau[Type de pose]&Tableau[OB]&Tableau[OB2]=W176&X176&Y176&Z176&AA176&AB176&AC176&AD176&AE176&AF176&AG176&AH176&AI176&AJ176&AK176)*1),\"\")","v":""},"←"]
[null,null,null,null,null,null,null,null,null,null,null,null,null,null,null,null,null,null,null,null,null,"→",null,null,null,null,null,null,null,null,null,null,null,null,null,null,null,null,{"$f":"IF(COUNTIF(W177:AK177,\"<>\"),SUMPRODUCT((Tableau[Hauteur]&Tableau[Largeur]&Tableau[Type]&Tableau[Allège vitrée]&Tableau[Vitrage]&Tableau[Sens Ouv]&Tableau[Petits bois]&Tableau[Allège maç]&Tableau[Mortaise]&Tableau[RAL]&Tableau[Dormant]&Tableau[GHI]&Tableau[Type de pose]&Tableau[OB]&Tableau[OB2]=W177&X177&Y177&Z177&AA177&AB177&AC177&AD177&AE177&AF177&AG177&AH177&AI177&AJ177&AK177)*1),\"\")","v":""},"←"]
[null,null,null,null,null,null,null,null,null,null,null,null,null,null,null,null,null,null,null,null,null,"→",null,null,null,null,null,null,null,null,null,null,null,null,null,null,null,null,{"$f":"IF(COUNTIF(W178:AK178,\"<>\"),SUMPRODUCT((Tableau[Hauteur]&Tableau[Largeur]&Tableau[Type]&Tableau[Allège vitrée]&Tableau[Vitrage]&Tableau[Sens Ouv]&Tableau[Petits bois]&Tableau[Allège maç]&Tableau[Mortaise]&Tableau[RAL]&Tableau[Dormant]&Tableau[GHI]&Tableau[Type de pose]&Tableau[OB]&Tableau[OB2]=W178&X178&Y178&Z178&AA178&AB178&AC178&AD178&AE178&AF178&AG178&AH178&AI178&AJ178&AK178)*1),\"\")","v":""},"←"]
[null,null,null,null,null,null,null,null,null,null,null,null,null,null,null,null,null,null,null,null,null,"→",null,null,null,null,null,null,null,null,null,null,null,null,null,null,null,null,{"$f":"IF(COUNTIF(W179:AK179,\"<>\"),SUMPRODUCT((Tableau[Hauteur]&Tableau[Largeur]&Tableau[Type]&Tableau[Allège vitrée]&Tableau[Vitrage]&Tableau[Sens Ouv]&Tableau[Petits bois]&Tableau[Allège maç]&Tableau[Mortaise]&Tableau[RAL]&Tableau[Dormant]&Tableau[GHI]&Tableau[Type de pose]&Tableau[OB]&Tableau[OB2]=W179&X179&Y179&Z179&AA179&AB179&AC179&AD179&AE179&AF179&AG179&AH179&AI179&AJ179&AK179)*1),\"\")","v":""},"←"]
[null,null,null,null,null,null,null,null,null,null,null,null,null,null,null,null,null,null,null,null,null,"→",null,null,null,null,null,null,null,null,null,null,null,null,null,null,null,null,{"$f":"IF(COUNTIF(W180:AK180,\"<>\"),SUMPRODUCT((Tableau[Hauteur]&Tableau[Largeur]&Tableau[Type]&Tableau[Allège vitrée]&Tableau[Vitrage]&Tableau[Sens Ouv]&Tableau[Petits bois]&Tableau[Allège maç]&Tableau[Mortaise]&Tableau[RAL]&Tableau[Dormant]&Tableau[GHI]&Tableau[Type de pose]&Tableau[OB]&Tableau[OB2]=W180&X180&Y180&Z180&AA180&AB180&AC180&AD180&AE180&AF180&AG180&AH180&AI180&AJ180&AK180)*1),\"\")","v":""},"←"]
[null,null,null,null,null,null,null,null,null,null,null,null,null,null,null,null,null,null,null,null,null,"→",null,null,null,null,null,null,null,null,null,null,null,null,null,null,null,null,{"$f":"IF(COUNTIF(W181:AK181,\"<>\"),SUMPRODUCT((Tableau[Hauteur]&Tableau[Largeur]&Tableau[Type]&Tableau[Allège vitrée]&Tableau[Vitrage]&Tableau[Sens Ouv]&Tableau[Petits bois]&Tableau[Allège maç]&Tableau[Mortaise]&Tableau[RAL]&Tableau[Dormant]&Tableau[GHI]&Tableau[Type de pose]&Tableau[OB]&Tableau[OB2]=W181&X181&Y181&Z181&AA181&AB181&AC181&AD181&AE181&AF181&AG181&AH181&AI181&AJ181&AK181)*1),\"\")","v":""},"←"]
[null,null,null,null,null,null,null,null,null,null,null,null,null,null,null,null,null,null,null,null,null,"→",null,null,null,null,null,null,null,null,null,null,null,null,null,null,null,null,{"$f":"IF(COUNTIF(W182:AK182,\"<>\"),SUMPRODUCT((Tableau[Hauteur]&Tableau[Largeur]&Tableau[Type]&Tableau[Allège vitrée]&Tableau[Vitrage]&Tableau[Sens Ouv]&Tableau[Petits bois]&Tableau[Allège maç]&Tableau[Mortaise]&Tableau[RAL]&Tableau[Dormant]&Tableau[GHI]&Tableau[Type de pose]&Tableau[OB]&Tableau[OB2]=W182&X182&Y182&Z182&AA182&AB182&AC182&AD182&AE182&AF182&AG182&AH182&AI182&AJ182&AK182)*1),\"\")","v":""},"←"]
[null,null,null,null,null,null,null,null,null,null,null,null,null,null,null,null,null,null,null,null,null,"→",null,null,null,null,null,null,null,null,null,null,null,null,null,null,null,null,{"$f":"IF(COUNTIF(W183:AK183,\"<>\"),SUMPRODUCT((Tableau[Hauteur]&Tableau[Largeur]&Tableau[Type]&Tableau[Allège vitrée]&Tableau[Vitrage]&Tableau[Sens Ouv]&Tableau[Petits bois]&Tableau[Allège maç]&Tableau[Mortaise]&Tableau[RAL]&Tableau[Dormant]&Tableau[GHI]&Tableau[Type de pose]&Tableau[OB]&Tableau[OB2]=W183&X183&Y183&Z183&AA183&AB183&AC183&AD183&AE183&AF183&AG183&AH183&AI183&AJ183&AK183)*1),\"\")","v":""},"←"]
[null,null,null,null,null,null,null,null,null,null,null,null,null,null,null,null,null,null,null,null,null,"→",null,null,null,null,null,null,null,null,null,null,null,null,null,null,null,null,{"$f":"IF(COUNTIF(W184:AK184,\"<>\"),SUMPRODUCT((Tableau[Hauteur]&Tableau[Largeur]&Tableau[Type]&Tableau[Allège vitrée]&Tableau[Vitrage]&Tableau[Sens Ouv]&Tableau[Petits bois]&Tableau[Allège maç]&Tableau[Mortaise]&Tableau[RAL]&Tableau[Dormant]&Tableau[GHI]&Tableau[Type de pose]&Tableau[OB]&Tableau[OB2]=W184&X184&Y184&Z184&AA184&AB184&AC184&AD184&AE184&AF184&AG184&AH184&AI184&AJ184&AK184)*1),\"\")","v":""},"←"]
[null,null,null,null,null,null,null,null,null,null,null,null,null,null,null,null,null,null,null,null,null,"→",null,null,null,null,null,null,null,null,null,null,null,null,null,null,null,null,{"$f":"IF(COUNTIF(W185:AK185,\"<>\"),SUMPRODUCT((Tableau[Hauteur]&Tableau[Largeur]&Tableau[Type]&Tableau[Allège vitrée]&Tableau[Vitrage]&Tableau[Sens Ouv]&Tableau[Petits bois]&Tableau[Allège maç]&Tableau[Mortaise]&Tableau[RAL]&Tableau[Dormant]&Tableau[GHI]&Tableau[Type de pose]&Tableau[OB]&Tableau[OB2]=W185&X185&Y185&Z185&AA185&AB185&AC185&AD185&AE185&AF185&AG185&AH185&AI185&AJ185&AK185)*1),\"\")","v":""},"←"]
[null,null,null,null,null,null,null,null,null,null,null,null,null,null,null,null,null,null,null,null,null,"→",null,null,null,null,null,null,null,null,null,null,null,null,null,null,null,null,{"$f":"IF(COUNTIF(W186:AK186,\"<>\"),SUMPRODUCT((Tableau[Hauteur]&Tableau[Largeur]&Tableau[Type]&Tableau[Allège vitrée]&Tableau[Vitrage]&Tableau[Sens Ouv]&Tableau[Petits bois]&Tableau[Allège maç]&Tableau[Mortaise]&Tableau[RAL]&Tableau[Dormant]&Tableau[GHI]&Tableau[Type de pose]&Tableau[OB]&Tableau[OB2]=W186&X186&Y186&Z186&AA186&AB186&AC186&AD186&AE186&AF186&AG186&AH186&AI186&AJ186&AK186)*1),\"\")","v":""},"←"]
[null,null,null,null,null,null,null,null,null,null,null,null,null,null,null,null,null,null,null,null,null,"→",null,null,null,null,null,null,null,null,null,null,null,null,null,null,null,null,{"$f":"IF(COUNTIF(W187:AK187,\"<>\"),SUMPRODUCT((Tableau[Hauteur]&Tableau[Largeur]&Tableau[Type]&Tableau[Allège vitrée]&Tableau[Vitrage]&Tableau[Sens Ouv]&Tableau[Petits bois]&Tableau[Allège maç]&Tableau[Mortaise]&Tableau[RAL]&Tableau[Dormant]&Tableau[GHI]&Tableau[Type de pose]&Tableau[OB]&Tableau[OB2]=W187&X187&Y187&Z187&AA187&AB187&AC187&AD187&AE187&AF187&AG187&AH187&AI187&AJ187&AK187)*1),\"\")","v":""},"←"]
[null,null,null,null,null,null,null,null,null,null,null,null,null,null,null,null,null,null,null,null,null,"→",null,null,null,null,null,null,null,null,null,null,null,null,null,null,null,null,{"$f":"IF(COUNTIF(W188:AK188,\"<>\"),SUMPRODUCT((Tableau[Hauteur]&Tableau[Largeur]&Tableau[Type]&Tableau[Allège vitrée]&Tableau[Vitrage]&Tableau[Sens Ouv]&Tableau[Petits bois]&Tableau[Allège maç]&Tableau[Mortaise]&Tableau[RAL]&Tableau[Dormant]&Tableau[GHI]&Tableau[Type de pose]&Tableau[OB]&Tableau[OB2]=W188&X188&Y188&Z188&AA188&AB188&AC188&AD188&AE188&AF188&AG188&AH188&AI188&AJ188&AK188)*1),\"\")","v":""},"←"]
[null,null,null,null,null,null,null,null,null,null,null,null,null,null,null,null,null,null,null,null,null,"→",null,null,null,null,null,null,null,null,null,null,null,null,null,null,null,null,{"$f":"IF(COUNTIF(W189:AK189,\"<>\"),SUMPRODUCT((Tableau[Hauteur]&Tableau[Largeur]&Tableau[Type]&Tableau[Allège vitrée]&Tableau[Vitrage]&Tableau[Sens Ouv]&Tableau[Petits bois]&Tableau[Allège maç]&Tableau[Mortaise]&Tableau[RAL]&Tableau[Dormant]&Tableau[GHI]&Tableau[Type de pose]&Tableau[OB]&Tableau[OB2]=W189&X189&Y189&Z189&AA189&AB189&AC189&AD189&AE189&AF189&AG189&AH189&AI189&AJ189&AK189)*1),\"\")","v":""},"←"]
[null,null,null,null,null,null,null,null,null,null,null,null,null,null,null,null,null,null,null,null,null,"→",null,null,null,null,null,null,null,null,null,null,null,null,null,null,null,null,{"$f":"IF(COUNTIF(W190:AK190,\"<>\"),SUMPRODUCT((Tableau[Hauteur]&Tableau[Largeur]&Tableau[Type]&Tableau[Allège vitrée]&Tableau[Vitrage]&Tableau[Sens Ouv]&Tableau[Petits bois]&Tableau[Allège maç]&Tableau[Mortaise]&Tableau[RAL]&Tableau[Dormant]&Tableau[GHI]&Tableau[Type de pose]&Tableau[OB]&Tableau[OB2]=W190&X190&Y190&Z190&AA190&AB190&AC190&AD190&AE190&AF190&AG190&AH190&AI190&AJ190&AK190)*1),\"\")","v":""},"←"]
[null,null,null,null,null,null,null,null,null,null,null,null,null,null,null,null,null,null,null,null,null,"→",null,null,null,null,null,null,null,null,null,null,null,null,null,null,null,null,{"$f":"IF(COUNTIF(W191:AK191,\"<>\"),SUMPRODUCT((Tableau[Hauteur]&Tableau[Largeur]&Tableau[Type]&Tableau[Allège vitrée]&Tableau[Vitrage]&Tableau[Sens Ouv]&Tableau[Petits bois]&Tableau[Allège maç]&Tableau[Mortaise]&Tableau[RAL]&Tableau[Dormant]&Tableau[GHI]&Tableau[Type de pose]&Tableau[OB]&Tableau[OB2]=W191&X191&Y191&Z191&AA191&AB191&AC191&AD191&AE191&AF191&AG191&AH191&AI191&AJ191&AK191)*1),\"\")","v":""},"←"]
[null,null,null,null,null,null,null,null,null,null,null,null,null,null,null,null,null,null,null,null,null,"→",null,null,null,null,null,null,null,null,null,null,null,null,null,null,null,null,{"$f":"IF(COUNTIF(W192:AK192,\"<>\"),SUMPRODUCT((Tableau[Hauteur]&Tableau[Largeur]&Tableau[Type]&Tableau[Allège vitrée]&Tableau[Vitrage]&Tableau[Sens Ouv]&Tableau[Petits bois]&Tableau[Allège maç]&Tableau[Mortaise]&Tableau[RAL]&Tableau[Dormant]&Tableau[GHI]&Tableau[Type de pose]&Tableau[OB]&Tableau[OB2]=W192&X192&Y192&Z192&AA192&AB192&AC192&AD192&AE192&AF192&AG192&AH192&AI192&AJ192&AK192)*1),\"\")","v":""},"←"]
[null,null,null,null,null,null,null,null,null,null,null,null,null,null,null,null,null,null,null,null,null,"→",null,null,null,null,null,null,null,null,null,null,null,null,null,null,null,null,{"$f":"IF(COUNTIF(W193:AK193,\"<>\"),SUMPRODUCT((Tableau[Hauteur]&Tableau[Largeur]&Tableau[Type]&Tableau[Allège vitrée]&Tableau[Vitrage]&Tableau[Sens Ouv]&Tableau[Petits bois]&Tableau[Allège maç]&Tableau[Mortaise]&Tableau[RAL]&Tableau[Dormant]&Tableau[GHI]&Tableau[Type de pose]&Tableau[OB]&Tableau[OB2]=W193&X193&Y193&Z193&AA193&AB193&AC193&AD193&AE193&AF193&AG193&AH193&AI193&AJ193&AK193)*1),\"\")","v":""},"←"]
[null,null,null,null,null,null,null,null,null,null,null,null,null,null,null,null,null,null,null,null,null,"→",null,null,null,null,null,null,null,null,null,null,null,null,null,null,null,null,{"$f":"IF(COUNTIF(W194:AK194,\"<>\"),SUMPRODUCT((Tableau[Hauteur]&Tableau[Largeur]&Tableau[Type]&Tableau[Allège vitrée]&Tableau[Vitrage]&Tableau[Sens Ouv]&Tableau[Petits bois]&Tableau[Allège maç]&Tableau[Mortaise]&Tableau[RAL]&Tableau[Dormant]&Tableau[GHI]&Tableau[Type de pose]&Tableau[OB]&Tableau[OB2]=W194&X194&Y194&Z194&AA194&AB194&AC194&AD194&AE194&AF194&AG194&AH194&AI194&AJ194&AK194)*1),\"\")","v":""},"←"]
[null,null,null,null,null,null,null,null,null,null,null,null,null,null,null,null,null,null,null,null,null,"→",null,null,null,null,null,null,null,null,null,null,null,null,null,null,null,null,{"$f":"IF(COUNTIF(W195:AK195,\"<>\"),SUMPRODUCT((Tableau[Hauteur]&Tableau[Largeur]&Tableau[Type]&Tableau[Allège vitrée]&Tableau[Vitrage]&Tableau[Sens Ouv]&Tableau[Petits bois]&Tableau[Allège maç]&Tableau[Mortaise]&Tableau[RAL]&Tableau[Dormant]&Tableau[GHI]&Tableau[Type de pose]&Tableau[OB]&Tableau[OB2]=W195&X195&Y195&Z195&AA195&AB195&AC195&AD195&AE195&AF195&AG195&AH195&AI195&AJ195&AK195)*1),\"\")","v":""},"←"]
[null,null,null,null,null,null,null,null,null,null,null,null,null,null,null,null,null,null,null,null,null,"→",null,null,null,null,null,null,null,null,null,null,null,null,null,null,null,null,{"$f":"IF(COUNTIF(W196:AK196,\"<>\"),SUMPRODUCT((Tableau[Hauteur]&Tableau[Largeur]&Tableau[Type]&Tableau[Allège vitrée]&Tableau[Vitrage]&Tableau[Sens Ouv]&Tableau[Petits bois]&Tableau[Allège maç]&Tableau[Mortaise]&Tableau[RAL]&Tableau[Dormant]&Tableau[GHI]&Tableau[Type de pose]&Tableau[OB]&Tableau[OB2]=W196&X196&Y196&Z196&AA196&AB196&AC196&AD196&AE196&AF196&AG196&AH196&AI196&AJ196&AK196)*1),\"\")","v":""},"←"]
[null,null,null,null,null,null,null,null,null,null,null,null,null,null,null,null,null,null,null,null,null,"→",null,null,null,null,null,null,null,null,null,null,null,null,null,null,null,null,{"$f":"IF(COUNTIF(W197:AK197,\"<>\"),SUMPRODUCT((Tableau[Hauteur]&Tableau[Largeur]&Tableau[Type]&Tableau[Allège vitrée]&Tableau[Vitrage]&Tableau[Sens Ouv]&Tableau[Petits bois]&Tableau[Allège maç]&Tableau[Mortaise]&Tableau[RAL]&Tableau[Dormant]&Tableau[GHI]&Tableau[Type de pose]&Tableau[OB]&Tableau[OB2]=W197&X197&Y197&Z197&AA197&AB197&AC197&AD197&AE197&AF197&AG197&AH197&AI197&AJ197&AK197)*1),\"\")","v":""},"←"]
[null,null,null,null,null,null,null,null,null,null,null,null,null,null,null,null,null,null,null,null,null,"→",null,null,null,null,null,null,null,null,null,null,null,null,null,null,null,null,{"$f":"IF(COUNTIF(W198:AK198,\"<>\"),SUMPRODUCT((Tableau[Hauteur]&Tableau[Largeur]&Tableau[Type]&Tableau[Allège vitrée]&Tableau[Vitrage]&Tableau[Sens Ouv]&Tableau[Petits bois]&Tableau[Allège maç]&Tableau[Mortaise]&Tableau[RAL]&Tableau[Dormant]&Tableau[GHI]&Tableau[Type de pose]&Tableau[OB]&Tableau[OB2]=W198&X198&Y198&Z198&AA198&AB198&AC198&AD198&AE198&AF198&AG198&AH198&AI198&AJ198&AK198)*1),\"\")","v":""},"←"]
[null,null,null,null,null,null,null,null,null,null,null,null,null,null,null,null,null,null,null,null,null,"→",null,null,null,null,null,null,null,null,null,null,null,null,null,null,null,null,{"$f":"IF(COUNTIF(W199:AK199,\"<>\"),SUMPRODUCT((Tableau[Hauteur]&Tableau[Largeur]&Tableau[Type]&Tableau[Allège vitrée]&Tableau[Vitrage]&Tableau[Sens Ouv]&Tableau[Petits bois]&Tableau[Allège maç]&Tableau[Mortaise]&Tableau[RAL]&Tableau[Dormant]&Tableau[GHI]&Tableau[Type de pose]&Tableau[OB]&Tableau[OB2]=W199&X199&Y199&Z199&AA199&AB199&AC199&AD199&AE199&AF199&AG199&AH199&AI199&AJ199&AK199)*1),\"\")","v":""},"←"]
[null,null,null,null,null,null,null,null,null,null,null,null,null,null,null,null,null,null,null,null,null,"→",null,null,null,null,null,null,null,null,null,null,null,null,null,null,null,null,{"$f":"IF(COUNTIF(W200:AK200,\"<>\"),SUMPRODUCT((Tableau[Hauteur]&Tableau[Largeur]&Tableau[Type]&Tableau[Allège vitrée]&Tableau[Vitrage]&Tableau[Sens Ouv]&Tableau[Petits bois]&Tableau[Allège maç]&Tableau[Mortaise]&Tableau[RAL]&Tableau[Dormant]&Tableau[GHI]&Tableau[Type de pose]&Tableau[OB]&Tableau[OB2]=W200&X200&Y200&Z200&AA200&AB200&AC200&AD200&AE200&AF200&AG200&AH200&AI200&AJ200&AK200)*1),\"\")","v":""},"←"]
[null,null,null,null,null,null,null,null,null,null,null,null,null,null,null,null,null,null,null,null,null,"→",null,null,null,null,null,null,null,null,null,null,null,null,null,null,null,null,{"$f":"IF(COUNTIF(W201:AK201,\"<>\"),SUMPRODUCT((Tableau[Hauteur]&Tableau[Largeur]&Tableau[Type]&Tableau[Allège vitrée]&Tableau[Vitrage]&Tableau[Sens Ouv]&Tableau[Petits bois]&Tableau[Allège maç]&Tableau[Mortaise]&Tableau[RAL]&Tableau[Dormant]&Tableau[GHI]&Tableau[Type de pose]&Tableau[OB]&Tableau[OB2]=W201&X201&Y201&Z201&AA201&AB201&AC201&AD201&AE201&AF201&AG201&AH201&AI201&AJ201&AK201)*1),\"\")","v":""},"←"]
[null,null,null,null,null,null,null,null,null,null,null,null,null,null,null,null,null,null,null,null,null,"→",null,null,null,null,null,null,null,null,null,null,null,null,null,null,null,null,{"$f":"IF(COUNTIF(W202:AK202,\"<>\"),SUMPRODUCT((Tableau[Hauteur]&Tableau[Largeur]&Tableau[Type]&Tableau[Allège vitrée]&Tableau[Vitrage]&Tableau[Sens Ouv]&Tableau[Petits bois]&Tableau[Allège maç]&Tableau[Mortaise]&Tableau[RAL]&Tableau[Dormant]&Tableau[GHI]&Tableau[Type de pose]&Tableau[OB]&Tableau[OB2]=W202&X202&Y202&Z202&AA202&AB202&AC202&AD202&AE202&AF202&AG202&AH202&AI202&AJ202&AK202)*1),\"\")","v":""},"←"]
[null,null,null,null,null,null,null,null,null,null,null,null,null,null,null,null,null,null,null,null,null,"→",null,null,null,null,null,null,null,null,null,null,null,null,null,null,null,null,{"$f":"IF(COUNTIF(W203:AK203,\"<>\"),SUMPRODUCT((Tableau[Hauteur]&Tableau[Largeur]&Tableau[Type]&Tableau[Allège vitrée]&Tableau[Vitrage]&Tableau[Sens Ouv]&Tableau[Petits bois]&Tableau[Allège maç]&Tableau[Mortaise]&Tableau[RAL]&Tableau[Dormant]&Tableau[GHI]&Tableau[Type de pose]&Tableau[OB]&Tableau[OB2]=W203&X203&Y203&Z203&AA203&AB203&AC203&AD203&AE203&AF203&AG203&AH203&AI203&AJ203&AK203)*1),\"\")","v":""},"←"]
[null,null,null,null,null,null,null,null,null,null,null,null,null,null,null,null,null,null,null,null,null,"→",null,null,null,null,null,null,null,null,null,null,null,null,null,null,null,null,{"$f":"IF(COUNTIF(W204:AK204,\"<>\"),SUMPRODUCT((Tableau[Hauteur]&Tableau[Largeur]&Tableau[Type]&Tableau[Allège vitrée]&Tableau[Vitrage]&Tableau[Sens Ouv]&Tableau[Petits bois]&Tableau[Allège maç]&Tableau[Mortaise]&Tableau[RAL]&Tableau[Dormant]&Tableau[GHI]&Tableau[Type de pose]&Tableau[OB]&Tableau[OB2]=W204&X204&Y204&Z204&AA204&AB204&AC204&AD204&AE204&AF204&AG204&AH204&AI204&AJ204&AK204)*1),\"\")","v":""},"←"]
[null,null,null,null,null,null,null,null,null,null,null,null,null,null,null,null,null,null,null,null,null,"→",null,null,null,null,null,null,null,null,null,null,null,null,null,null,null,null,{"$f":"IF(COUNTIF(W205:AK205,\"<>\"),SUMPRODUCT((Tableau[Hauteur]&Tableau[Largeur]&Tableau[Type]&Tableau[Allège vitrée]&Tableau[Vitrage]&Tableau[Sens Ouv]&Tableau[Petits bois]&Tableau[Allège maç]&Tableau[Mortaise]&Tableau[RAL]&Tableau[Dormant]&Tableau[GHI]&Tableau[Type de pose]&Tableau[OB]&Tableau[OB2]=W205&X205&Y205&Z205&AA205&AB205&AC205&AD205&AE205&AF205&AG205&AH205&AI205&AJ205&AK205)*1),\"\")","v":""},"←"]
[null,null,null,null,null,null,null,null,null,null,null,null,null,null,null,null,null,null,null,null,null,"→",null,null,null,null,null,null,null,null,null,null,null,null,null,null,null,null,{"$f":"IF(COUNTIF(W206:AK206,\"<>\"),SUMPRODUCT((Tableau[Hauteur]&Tableau[Largeur]&Tableau[Type]&Tableau[Allège vitrée]&Tableau[Vitrage]&Tableau[Sens Ouv]&Tableau[Petits bois]&Tableau[Allège maç]&Tableau[Mortaise]&Tableau[RAL]&Tableau[Dormant]&Tableau[GHI]&Tableau[Type de pose]&Tableau[OB]&Tableau[OB2]=W206&X206&Y206&Z206&AA206&AB206&AC206&AD206&AE206&AF206&AG206&AH206&AI206&AJ206&AK206)*1),\"\")","v":""},"←"]
[null,null,null,null,null,null,null,null,null,null,null,null,null,null,null,null,null,null,null,null,null,"→",null,null,null,null,null,null,null,null,null,null,null,null,null,null,null,null,{"$f":"IF(COUNTIF(W207:AK207,\"<>\"),SUMPRODUCT((Tableau[Hauteur]&Tableau[Largeur]&Tableau[Type]&Tableau[Allège vitrée]&Tableau[Vitrage]&Tableau[Sens Ouv]&Tableau[Petits bois]&Tableau[Allège maç]&Tableau[Mortaise]&Tableau[RAL]&Tableau[Dormant]&Tableau[GHI]&Tableau[Type de pose]&Tableau[OB]&Tableau[OB2]=W207&X207&Y207&Z207&AA207&AB207&AC207&AD207&AE207&AF207&AG207&AH207&AI207&AJ207&AK207)*1),\"\")","v":""},"←"]
[null,null,null,null,null,null,null,null,null,null,null,null,null,null,null,null,null,null,null,null,null,"→",null,null,null,null,null,null,null,null,null,null,null,null,null,null,null,null,{"$f":"IF(COUNTIF(W208:AK208,\"<>\"),SUMPRODUCT((Tableau[Hauteur]&Tableau[Largeur]&Tableau[Type]&Tableau[Allège vitrée]&Tableau[Vitrage]&Tableau[Sens Ouv]&Tableau[Petits bois]&Tableau[Allège maç]&Tableau[Mortaise]&Tableau[RAL]&Tableau[Dormant]&Tableau[GHI]&Tableau[Type de pose]&Tableau[OB]&Tableau[OB2]=W208&X208&Y208&Z208&AA208&AB208&AC208&AD208&AE208&AF208&AG208&AH208&AI208&AJ208&AK208)*1),\"\")","v":""},"←"]
[null,null,null,null,null,null,null,null,null,null,null,null,null,null,null,null,null,null,null,null,null,"→",null,null,null,null,null,null,null,null,null,null,null,null,null,null,null,null,{"$f":"IF(COUNTIF(W209:AK209,\"<>\"),SUMPRODUCT((Tableau[Hauteur]&Tableau[Largeur]&Tableau[Type]&Tableau[Allège vitrée]&Tableau[Vitrage]&Tableau[Sens Ouv]&Tableau[Petits bois]&Tableau[Allège maç]&Tableau[Mortaise]&Tableau[RAL]&Tableau[Dormant]&Tableau[GHI]&Tableau[Type de pose]&Tableau[OB]&Tableau[OB2]=W209&X209&Y209&Z209&AA209&AB209&AC209&AD209&AE209&AF209&AG209&AH209&AI209&AJ209&AK209)*1),\"\")","v":""},"←"]
[null,null,null,null,null,null,null,null,null,null,null,null,null,null,null,null,null,null,null,null,null,"→",null,null,null,null,null,null,null,null,null,null,null,null,null,null,null,null,{"$f":"IF(COUNTIF(W210:AK210,\"<>\"),SUMPRODUCT((Tableau[Hauteur]&Tableau[Largeur]&Tableau[Type]&Tableau[Allège vitrée]&Tableau[Vitrage]&Tableau[Sens Ouv]&Tableau[Petits bois]&Tableau[Allège maç]&Tableau[Mortaise]&Tableau[RAL]&Tableau[Dormant]&Tableau[GHI]&Tableau[Type de pose]&Tableau[OB]&Tableau[OB2]=W210&X210&Y210&Z210&AA210&AB210&AC210&AD210&AE210&AF210&AG210&AH210&AI210&AJ210&AK210)*1),\"\")","v":""},"←"]
[null,null,null,null,null,null,null,null,null,null,null,null,null,null,null,null,null,null,null,null,null,"→",null,null,null,null,null,null,null,null,null,null,null,null,null,null,null,null,{"$f":"IF(COUNTIF(W211:AK211,\"<>\"),SUMPRODUCT((Tableau[Hauteur]&Tableau[Largeur]&Tableau[Type]&Tableau[Allège vitrée]&Tableau[Vitrage]&Tableau[Sens Ouv]&Tableau[Petits bois]&Tableau[Allège maç]&Tableau[Mortaise]&Tableau[RAL]&Tableau[Dormant]&Tableau[GHI]&Tableau[Type de pose]&Tableau[OB]&Tableau[OB2]=W211&X211&Y211&Z211&AA211&AB211&AC211&AD211&AE211&AF211&AG211&AH211&AI211&AJ211&AK211)*1),\"\")","v":""},"←"]
[null,null,null,null,null,null,null,null,null,null,null,null,null,null,null,null,null,null,null,null,null,"→",null,null,null,null,null,null,null,null,null,null,null,null,null,null,null,null,{"$f":"IF(COUNTIF(W212:AK212,\"<>\"),SUMPRODUCT((Tableau[Hauteur]&Tableau[Largeur]&Tableau[Type]&Tableau[Allège vitrée]&Tableau[Vitrage]&Tableau[Sens Ouv]&Tableau[Petits bois]&Tableau[Allège maç]&Tableau[Mortaise]&Tableau[RAL]&Tableau[Dormant]&Tableau[GHI]&Tableau[Type de pose]&Tableau[OB]&Tableau[OB2]=W212&X212&Y212&Z212&AA212&AB212&AC212&AD212&AE212&AF212&AG212&AH212&AI212&AJ212&AK212)*1),\"\")","v":""},"←"]
[null,null,null,null,null,null,null,null,null,null,null,null,null,null,null,null,null,null,null,null,null,"→",null,null,null,null,null,null,null,null,null,null,null,null,null,null,null,null,{"$f":"IF(COUNTIF(W213:AK213,\"<>\"),SUMPRODUCT((Tableau[Hauteur]&Tableau[Largeur]&Tableau[Type]&Tableau[Allège vitrée]&Tableau[Vitrage]&Tableau[Sens Ouv]&Tableau[Petits bois]&Tableau[Allège maç]&Tableau[Mortaise]&Tableau[RAL]&Tableau[Dormant]&Tableau[GHI]&Tableau[Type de pose]&Tableau[OB]&Tableau[OB2]=W213&X213&Y213&Z213&AA213&AB213&AC213&AD213&AE213&AF213&AG213&AH213&AI213&AJ213&AK213)*1),\"\")","v":""},"←"]
[null,null,null,null,null,null,null,null,null,null,null,null,null,null,null,null,null,null,null,null,null,"→",null,null,null,null,null,null,null,null,null,null,null,null,null,null,null,null,{"$f":"IF(COUNTIF(W214:AK214,\"<>\"),SUMPRODUCT((Tableau[Hauteur]&Tableau[Largeur]&Tableau[Type]&Tableau[Allège vitrée]&Tableau[Vitrage]&Tableau[Sens Ouv]&Tableau[Petits bois]&Tableau[Allège maç]&Tableau[Mortaise]&Tableau[RAL]&Tableau[Dormant]&Tableau[GHI]&Tableau[Type de pose]&Tableau[OB]&Tableau[OB2]=W214&X214&Y214&Z214&AA214&AB214&AC214&AD214&AE214&AF214&AG214&AH214&AI214&AJ214&AK214)*1),\"\")","v":""},"←"]
[null,null,null,null,null,null,null,null,null,null,null,null,null,null,null,null,null,null,null,null,null,"→",null,null,null,null,null,null,null,null,null,null,null,null,null,null,null,null,{"$f":"IF(COUNTIF(W215:AK215,\"<>\"),SUMPRODUCT((Tableau[Hauteur]&Tableau[Largeur]&Tableau[Type]&Tableau[Allège vitrée]&Tableau[Vitrage]&Tableau[Sens Ouv]&Tableau[Petits bois]&Tableau[Allège maç]&Tableau[Mortaise]&Tableau[RAL]&Tableau[Dormant]&Tableau[GHI]&Tableau[Type de pose]&Tableau[OB]&Tableau[OB2]=W215&X215&Y215&Z215&AA215&AB215&AC215&AD215&AE215&AF215&AG215&AH215&AI215&AJ215&AK215)*1),\"\")","v":""},"←"]
[null,null,null,null,null,null,null,null,null,null,null,null,null,null,null,null,null,null,null,null,null,"→",null,null,null,null,null,null,null,null,null,null,null,null,null,null,null,null,{"$f":"IF(COUNTIF(W216:AK216,\"<>\"),SUMPRODUCT((Tableau[Hauteur]&Tableau[Largeur]&Tableau[Type]&Tableau[Allège vitrée]&Tableau[Vitrage]&Tableau[Sens Ouv]&Tableau[Petits bois]&Tableau[Allège maç]&Tableau[Mortaise]&Tableau[RAL]&Tableau[Dormant]&Tableau[GHI]&Tableau[Type de pose]&Tableau[OB]&Tableau[OB2]=W216&X216&Y216&Z216&AA216&AB216&AC216&AD216&AE216&AF216&AG216&AH216&AI216&AJ216&AK216)*1),\"\")","v":""},"←"]
[null,null,null,null,null,null,null,null,null,null,null,null,null,null,null,null,null,null,null,null,null,"→",null,null,null,null,null,null,null,null,null,null,null,null,null,null,null,null,{"$f":"IF(COUNTIF(W217:AK217,\"<>\"),SUMPRODUCT((Tableau[Hauteur]&Tableau[Largeur]&Tableau[Type]&Tableau[Allège vitrée]&Tableau[Vitrage]&Tableau[Sens Ouv]&Tableau[Petits bois]&Tableau[Allège maç]&Tableau[Mortaise]&Tableau[RAL]&Tableau[Dormant]&Tableau[GHI]&Tableau[Type de pose]&Tableau[OB]&Tableau[OB2]=W217&X217&Y217&Z217&AA217&AB217&AC217&AD217&AE217&AF217&AG217&AH217&AI217&AJ217&AK217)*1),\"\")","v":""},"←"]
[null,null,null,null,null,null,null,null,null,null,null,null,null,null,null,null,null,null,null,null,null,"→",null,null,null,null,null,null,null,null,null,null,null,null,null,null,null,null,{"$f":"IF(COUNTIF(W218:AK218,\"<>\"),SUMPRODUCT((Tableau[Hauteur]&Tableau[Largeur]&Tableau[Type]&Tableau[Allège vitrée]&Tableau[Vitrage]&Tableau[Sens Ouv]&Tableau[Petits bois]&Tableau[Allège maç]&Tableau[Mortaise]&Tableau[RAL]&Tableau[Dormant]&Tableau[GHI]&Tableau[Type de pose]&Tableau[OB]&Tableau[OB2]=W218&X218&Y218&Z218&AA218&AB218&AC218&AD218&AE218&AF218&AG218&AH218&AI218&AJ218&AK218)*1),\"\")","v":""},"←"]
[null,null,null,null,null,null,null,null,null,null,null,null,null,null,null,null,null,null,null,null,null,"→",null,null,null,null,null,null,null,null,null,null,null,null,null,null,null,null,{"$f":"IF(COUNTIF(W219:AK219,\"<>\"),SUMPRODUCT((Tableau[Hauteur]&Tableau[Largeur]&Tableau[Type]&Tableau[Allège vitrée]&Tableau[Vitrage]&Tableau[Sens Ouv]&Tableau[Petits bois]&Tableau[Allège maç]&Tableau[Mortaise]&Tableau[RAL]&Tableau[Dormant]&Tableau[GHI]&Tableau[Type de pose]&Tableau[OB]&Tableau[OB2]=W219&X219&Y219&Z219&AA219&AB219&AC219&AD219&AE219&AF219&AG219&AH219&AI219&AJ219&AK219)*1),\"\")","v":""},"←"]
[null,null,null,null,null,null,null,null,null,null,null,null,null,null,null,null,null,null,null,null,null,"→",null,null,null,null,null,null,null,null,null,null,null,null,null,null,null,null,{"$f":"IF(COUNTIF(W220:AK220,\"<>\"),SUMPRODUCT((Tableau[Hauteur]&Tableau[Largeur]&Tableau[Type]&Tableau[Allège vitrée]&Tableau[Vitrage]&Tableau[Sens Ouv]&Tableau[Petits bois]&Tableau[Allège maç]&Tableau[Mortaise]&Tableau[RAL]&Tableau[Dormant]&Tableau[GHI]&Tableau[Type de pose]&Tableau[OB]&Tableau[OB2]=W220&X220&Y220&Z220&AA220&AB220&AC220&AD220&AE220&AF220&AG220&AH220&AI220&AJ220&AK220)*1),\"\")","v":""},"←"]
[null,null,null,null,null,null,null,null,null,null,null,null,null,null,null,null,null,null,null,null,null,"→",null,null,null,null,null,null,null,null,null,null,null,null,null,null,null,null,{"$f":"IF(COUNTIF(W221:AK221,\"<>\"),SUMPRODUCT((Tableau[Hauteur]&Tableau[Largeur]&Tableau[Type]&Tableau[Allège vitrée]&Tableau[Vitrage]&Tableau[Sens Ouv]&Tableau[Petits bois]&Tableau[Allège maç]&Tableau[Mortaise]&Tableau[RAL]&Tableau[Dormant]&Tableau[GHI]&Tableau[Type de pose]&Tableau[OB]&Tableau[OB2]=W221&X221&Y221&Z221&AA221&AB221&AC221&AD221&AE221&AF221&AG221&AH221&AI221&AJ221&AK221)*1),\"\")","v":""},"←"]
[null,null,null,null,null,null,null,null,null,null,null,null,null,null,null,null,null,null,null,null,null,"→",null,null,null,null,null,null,null,null,null,null,null,null,null,null,null,null,{"$f":"IF(COUNTIF(W222:AK222,\"<>\"),SUMPRODUCT((Tableau[Hauteur]&Tableau[Largeur]&Tableau[Type]&Tableau[Allège vitrée]&Tableau[Vitrage]&Tableau[Sens Ouv]&Tableau[Petits bois]&Tableau[Allège maç]&Tableau[Mortaise]&Tableau[RAL]&Tableau[Dormant]&Tableau[GHI]&Tableau[Type de pose]&Tableau[OB]&Tableau[OB2]=W222&X222&Y222&Z222&AA222&AB222&AC222&AD222&AE222&AF222&AG222&AH222&AI222&AJ222&AK222)*1),\"\")","v":""},"←"]
[null,null,null,null,null,null,null,null,null,null,null,null,null,null,null,null,null,null,null,null,null,"→",null,null,null,null,null,null,null,null,null,null,null,null,null,null,null,null,{"$f":"IF(COUNTIF(W223:AK223,\"<>\"),SUMPRODUCT((Tableau[Hauteur]&Tableau[Largeur]&Tableau[Type]&Tableau[Allège vitrée]&Tableau[Vitrage]&Tableau[Sens Ouv]&Tableau[Petits bois]&Tableau[Allège maç]&Tableau[Mortaise]&Tableau[RAL]&Tableau[Dormant]&Tableau[GHI]&Tableau[Type de pose]&Tableau[OB]&Tableau[OB2]=W223&X223&Y223&Z223&AA223&AB223&AC223&AD223&AE223&AF223&AG223&AH223&AI223&AJ223&AK223)*1),\"\")","v":""},"←"]
[null,null,null,null,null,null,null,null,null,null,null,null,null,null,null,null,null,null,null,null,null,"→",null,null,null,null,null,null,null,null,null,null,null,null,null,null,null,null,{"$f":"IF(COUNTIF(W224:AK224,\"<>\"),SUMPRODUCT((Tableau[Hauteur]&Tableau[Largeur]&Tableau[Type]&Tableau[Allège vitrée]&Tableau[Vitrage]&Tableau[Sens Ouv]&Tableau[Petits bois]&Tableau[Allège maç]&Tableau[Mortaise]&Tableau[RAL]&Tableau[Dormant]&Tableau[GHI]&Tableau[Type de pose]&Tableau[OB]&Tableau[OB2]=W224&X224&Y224&Z224&AA224&AB224&AC224&AD224&AE224&AF224&AG224&AH224&AI224&AJ224&AK224)*1),\"\")","v":""},"←"]
[null,null,null,null,null,null,null,null,null,null,null,null,null,null,null,null,null,null,null,null,null,"→",null,null,null,null,null,null,null,null,null,null,null,null,null,null,null,null,{"$f":"IF(COUNTIF(W225:AK225,\"<>\"),SUMPRODUCT((Tableau[Hauteur]&Tableau[Largeur]&Tableau[Type]&Tableau[Allège vitrée]&Tableau[Vitrage]&Tableau[Sens Ouv]&Tableau[Petits bois]&Tableau[Allège maç]&Tableau[Mortaise]&Tableau[RAL]&Tableau[Dormant]&Tableau[GHI]&Tableau[Type de pose]&Tableau[OB]&Tableau[OB2]=W225&X225&Y225&Z225&AA225&AB225&AC225&AD225&AE225&AF225&AG225&AH225&AI225&AJ225&AK225)*1),\"\")","v":""},"←"]
[null,null,null,null,null,null,null,null,null,null,null,null,null,null,null,null,null,null,null,null,null,"→",null,null,null,null,null,null,null,null,null,null,null,null,null,null,null,null,{"$f":"IF(COUNTIF(W226:AK226,\"<>\"),SUMPRODUCT((Tableau[Hauteur]&Tableau[Largeur]&Tableau[Type]&Tableau[Allège vitrée]&Tableau[Vitrage]&Tableau[Sens Ouv]&Tableau[Petits bois]&Tableau[Allège maç]&Tableau[Mortaise]&Tableau[RAL]&Tableau[Dormant]&Tableau[GHI]&Tableau[Type de pose]&Tableau[OB]&Tableau[OB2]=W226&X226&Y226&Z226&AA226&AB226&AC226&AD226&AE226&AF226&AG226&AH226&AI226&AJ226&AK226)*1),\"\")","v":""},"←"]
[null,null,null,null,null,null,null,null,null,null,null,null,null,null,null,null,null,null,null,null,null,"→",null,null,null,null,null,null,null,null,null,null,null,null,null,null,null,null,{"$f":"IF(COUNTIF(W227:AK227,\"<>\"),SUMPRODUCT((Tableau[Hauteur]&Tableau[Largeur]&Tableau[Type]&Tableau[Allège vitrée]&Tableau[Vitrage]&Tableau[Sens Ouv]&Tableau[Petits bois]&Tableau[Allège maç]&Tableau[Mortaise]&Tableau[RAL]&Tableau[Dormant]&Tableau[GHI]&Tableau[Type de pose]&Tableau[OB]&Tableau[OB2]=W227&X227&Y227&Z227&AA227&AB227&AC227&AD227&AE227&AF227&AG227&AH227&AI227&AJ227&AK227)*1),\"\")","v":""},"←"]
[null,null,null,null,null,null,null,null,null,null,null,null,null,null,null,null,null,null,null,null,null,"→",null,null,null,null,null,null,null,null,null,null,null,null,null,null,null,null,{"$f":"IF(COUNTIF(W228:AK228,\"<>\"),SUMPRODUCT((Tableau[Hauteur]&Tableau[Largeur]&Tableau[Type]&Tableau[Allège vitrée]&Tableau[Vitrage]&Tableau[Sens Ouv]&Tableau[Petits bois]&Tableau[Allège maç]&Tableau[Mortaise]&Tableau[RAL]&Tableau[Dormant]&Tableau[GHI]&Tableau[Type de pose]&Tableau[OB]&Tableau[OB2]=W228&X228&Y228&Z228&AA228&AB228&AC228&AD228&AE228&AF228&AG228&AH228&AI228&AJ228&AK228)*1),\"\")","v":""},"←"]
[null,null,null,null,null,null,null,null,null,null,null,null,null,null,null,null,null,null,null,null,null,"→",null,null,null,null,null,null,null,null,null,null,null,null,null,null,null,null,{"$f":"IF(COUNTIF(W229:AK229,\"<>\"),SUMPRODUCT((Tableau[Hauteur]&Tableau[Largeur]&Tableau[Type]&Tableau[Allège vitrée]&Tableau[Vitrage]&Tableau[Sens Ouv]&Tableau[Petits bois]&Tableau[Allège maç]&Tableau[Mortaise]&Tableau[RAL]&Tableau[Dormant]&Tableau[GHI]&Tableau[Type de pose]&Tableau[OB]&Tableau[OB2]=W229&X229&Y229&Z229&AA229&AB229&AC229&AD229&AE229&AF229&AG229&AH229&AI229&AJ229&AK229)*1),\"\")","v":""},"←"]
[null,null,null,null,null,null,null,null,null,null,null,null,null,null,null,null,null,null,null,null,null,"→",null,null,null,null,null,null,null,null,null,null,null,null,null,null,null,null,{"$f":"IF(COUNTIF(W230:AK230,\"<>\"),SUMPRODUCT((Tableau[Hauteur]&Tableau[Largeur]&Tableau[Type]&Tableau[Allège vitrée]&Tableau[Vitrage]&Tableau[Sens Ouv]&Tableau[Petits bois]&Tableau[Allège maç]&Tableau[Mortaise]&Tableau[RAL]&Tableau[Dormant]&Tableau[GHI]&Tableau[Type de pose]&Tableau[OB]&Tableau[OB2]=W230&X230&Y230&Z230&AA230&AB230&AC230&AD230&AE230&AF230&AG230&AH230&AI230&AJ230&AK230)*1),\"\")","v":""},"←"]
[null,null,null,null,null,null,null,null,null,null,null,null,null,null,null,null,null,null,null,null,null,"→",null,null,null,null,null,null,null,null,null,null,null,null,null,null,null,null,{"$f":"IF(COUNTIF(W231:AK231,\"<>\"),SUMPRODUCT((Tableau[Hauteur]&Tableau[Largeur]&Tableau[Type]&Tableau[Allège vitrée]&Tableau[Vitrage]&Tableau[Sens Ouv]&Tableau[Petits bois]&Tableau[Allège maç]&Tableau[Mortaise]&Tableau[RAL]&Tableau[Dormant]&Tableau[GHI]&Tableau[Type de pose]&Tableau[OB]&Tableau[OB2]=W231&X231&Y231&Z231&AA231&AB231&AC231&AD231&AE231&AF231&AG231&AH231&AI231&AJ231&AK231)*1),\"\")","v":""},"←"]
[null,null,null,null,null,null,null,null,null,null,null,null,null,null,null,null,null,null,null,null,null,"→",null,null,null,null,null,null,null,null,null,null,null,null,null,null,null,null,{"$f":"IF(COUNTIF(W232:AK232,\"<>\"),SUMPRODUCT((Tableau[Hauteur]&Tableau[Largeur]&Tableau[Type]&Tableau[Allège vitrée]&Tableau[Vitrage]&Tableau[Sens Ouv]&Tableau[Petits bois]&Tableau[Allège maç]&Tableau[Mortaise]&Tableau[RAL]&Tableau[Dormant]&Tableau[GHI]&Tableau[Type de pose]&Tableau[OB]&Tableau[OB2]=W232&X232&Y232&Z232&AA232&AB232&AC232&AD232&AE232&AF232&AG232&AH232&AI232&AJ232&AK232)*1),\"\")","v":""},"←"]
[null,null,null,null,null,null,null,null,null,null,null,null,null,null,null,null,null,null,null,null,null,"→",null,null,null,null,null,null,null,null,null,null,null,null,null,null,null,null,{"$f":"IF(COUNTIF(W233:AK233,\"<>\"),SUMPRODUCT((Tableau[Hauteur]&Tableau[Largeur]&Tableau[Type]&Tableau[Allège vitrée]&Tableau[Vitrage]&Tableau[Sens Ouv]&Tableau[Petits bois]&Tableau[Allège maç]&Tableau[Mortaise]&Tableau[RAL]&Tableau[Dormant]&Tableau[GHI]&Tableau[Type de pose]&Tableau[OB]&Tableau[OB2]=W233&X233&Y233&Z233&AA233&AB233&AC233&AD233&AE233&AF233&AG233&AH233&AI233&AJ233&AK233)*1),\"\")","v":""},"←"]
[null,null,null,null,null,null,null,null,null,null,null,null,null,null,null,null,null,null,null,null,null,"→",null,null,null,null,null,null,null,null,null,null,null,null,null,null,null,null,{"$f":"IF(COUNTIF(W234:AK234,\"<>\"),SUMPRODUCT((Tableau[Hauteur]&Tableau[Largeur]&Tableau[Type]&Tableau[Allège vitrée]&Tableau[Vitrage]&Tableau[Sens Ouv]&Tableau[Petits bois]&Tableau[Allège maç]&Tableau[Mortaise]&Tableau[RAL]&Tableau[Dormant]&Tableau[GHI]&Tableau[Type de pose]&Tableau[OB]&Tableau[OB2]=W234&X234&Y234&Z234&AA234&AB234&AC234&AD234&AE234&AF234&AG234&AH234&AI234&AJ234&AK234)*1),\"\")","v":""},"←"]
[null,null,null,null,null,null,null,null,null,null,null,null,null,null,null,null,null,null,null,null,null,"→",null,null,null,null,null,null,null,null,null,null,null,null,null,null,null,null,{"$f":"IF(COUNTIF(W235:AK235,\"<>\"),SUMPRODUCT((Tableau[Hauteur]&Tableau[Largeur]&Tableau[Type]&Tableau[Allège vitrée]&Tableau[Vitrage]&Tableau[Sens Ouv]&Tableau[Petits bois]&Tableau[Allège maç]&Tableau[Mortaise]&Tableau[RAL]&Tableau[Dormant]&Tableau[GHI]&Tableau[Type de pose]&Tableau[OB]&Tableau[OB2]=W235&X235&Y235&Z235&AA235&AB235&AC235&AD235&AE235&AF235&AG235&AH235&AI235&AJ235&AK235)*1),\"\")","v":""},"←"]
[null,null,null,null,null,null,null,null,null,null,null,null,null,null,null,null,null,null,null,null,null,"→",null,null,null,null,null,null,null,null,null,null,null,null,null,null,null,null,{"$f":"IF(COUNTIF(W236:AK236,\"<>\"),SUMPRODUCT((Tableau[Hauteur]&Tableau[Largeur]&Tableau[Type]&Tableau[Allège vitrée]&Tableau[Vitrage]&Tableau[Sens Ouv]&Tableau[Petits bois]&Tableau[Allège maç]&Tableau[Mortaise]&Tableau[RAL]&Tableau[Dormant]&Tableau[GHI]&Tableau[Type de pose]&Tableau[OB]&Tableau[OB2]=W236&X236&Y236&Z236&AA236&AB236&AC236&AD236&AE236&AF236&AG236&AH236&AI236&AJ236&AK236)*1),\"\")","v":""},"←"]
[null,null,null,null,null,null,null,null,null,null,null,null,null,null,null,null,null,null,null,null,null,"→",null,null,null,null,null,null,null,null,null,null,null,null,null,null,null,null,{"$f":"IF(COUNTIF(W237:AK237,\"<>\"),SUMPRODUCT((Tableau[Hauteur]&Tableau[Largeur]&Tableau[Type]&Tableau[Allège vitrée]&Tableau[Vitrage]&Tableau[Sens Ouv]&Tableau[Petits bois]&Tableau[Allège maç]&Tableau[Mortaise]&Tableau[RAL]&Tableau[Dormant]&Tableau[GHI]&Tableau[Type de pose]&Tableau[OB]&Tableau[OB2]=W237&X237&Y237&Z237&AA237&AB237&AC237&AD237&AE237&AF237&AG237&AH237&AI237&AJ237&AK237)*1),\"\")","v":""},"←"]
[null,null,null,null,null,null,null,null,null,null,null,null,null,null,null,null,null,null,null,null,null,"→",null,null,null,null,null,null,null,null,null,null,null,null,null,null,null,null,{"$f":"IF(COUNTIF(W238:AK238,\"<>\"),SUMPRODUCT((Tableau[Hauteur]&Tableau[Largeur]&Tableau[Type]&Tableau[Allège vitrée]&Tableau[Vitrage]&Tableau[Sens Ouv]&Tableau[Petits bois]&Tableau[Allège maç]&Tableau[Mortaise]&Tableau[RAL]&Tableau[Dormant]&Tableau[GHI]&Tableau[Type de pose]&Tableau[OB]&Tableau[OB2]=W238&X238&Y238&Z238&AA238&AB238&AC238&AD238&AE238&AF238&AG238&AH238&AI238&AJ238&AK238)*1),\"\")","v":""},"←"]
[null,null,null,null,null,null,null,null,null,null,null,null,null,null,null,null,null,null,null,null,null,"→",null,null,null,null,null,null,null,null,null,null,null,null,null,null,null,null,{"$f":"IF(COUNTIF(W239:AK239,\"<>\"),SUMPRODUCT((Tableau[Hauteur]&Tableau[Largeur]&Tableau[Type]&Tableau[Allège vitrée]&Tableau[Vitrage]&Tableau[Sens Ouv]&Tableau[Petits bois]&Tableau[Allège maç]&Tableau[Mortaise]&Tableau[RAL]&Tableau[Dormant]&Tableau[GHI]&Tableau[Type de pose]&Tableau[OB]&Tableau[OB2]=W239&X239&Y239&Z239&AA239&AB239&AC239&AD239&AE239&AF239&AG239&AH239&AI239&AJ239&AK239)*1),\"\")","v":""},"←"]
[null,null,null,null,null,null,null,null,null,null,null,null,null,null,null,null,null,null,null,null,null,"→",null,null,null,null,null,null,null,null,null,null,null,null,null,null,null,null,{"$f":"IF(COUNTIF(W240:AK240,\"<>\"),SUMPRODUCT((Tableau[Hauteur]&Tableau[Largeur]&Tableau[Type]&Tableau[Allège vitrée]&Tableau[Vitrage]&Tableau[Sens Ouv]&Tableau[Petits bois]&Tableau[Allège maç]&Tableau[Mortaise]&Tableau[RAL]&Tableau[Dormant]&Tableau[GHI]&Tableau[Type de pose]&Tableau[OB]&Tableau[OB2]=W240&X240&Y240&Z240&AA240&AB240&AC240&AD240&AE240&AF240&AG240&AH240&AI240&AJ240&AK240)*1),\"\")","v":""},"←"]
[null,null,null,null,null,null,null,null,null,null,null,null,null,null,null,null,null,null,null,null,null,"→",null,null,null,null,null,null,null,null,null,null,null,null,null,null,null,null,{"$f":"IF(COUNTIF(W241:AK241,\"<>\"),SUMPRODUCT((Tableau[Hauteur]&Tableau[Largeur]&Tableau[Type]&Tableau[Allège vitrée]&Tableau[Vitrage]&Tableau[Sens Ouv]&Tableau[Petits bois]&Tableau[Allège maç]&Tableau[Mortaise]&Tableau[RAL]&Tableau[Dormant]&Tableau[GHI]&Tableau[Type de pose]&Tableau[OB]&Tableau[OB2]=W241&X241&Y241&Z241&AA241&AB241&AC241&AD241&AE241&AF241&AG241&AH241&AI241&AJ241&AK241)*1),\"\")","v":""},"←"]
[null,null,null,null,null,null,null,null,null,null,null,null,null,null,null,null,null,null,null,null,null,"→",null,null,null,null,null,null,null,null,null,null,null,null,null,null,null,null,{"$f":"IF(COUNTIF(W242:AK242,\"<>\"),SUMPRODUCT((Tableau[Hauteur]&Tableau[Largeur]&Tableau[Type]&Tableau[Allège vitrée]&Tableau[Vitrage]&Tableau[Sens Ouv]&Tableau[Petits bois]&Tableau[Allège maç]&Tableau[Mortaise]&Tableau[RAL]&Tableau[Dormant]&Tableau[GHI]&Tableau[Type de pose]&Tableau[OB]&Tableau[OB2]=W242&X242&Y242&Z242&AA242&AB242&AC242&AD242&AE242&AF242&AG242&AH242&AI242&AJ242&AK242)*1),\"\")","v":""},"←"]
[null,null,null,null,null,null,null,null,null,null,null,null,null,null,null,null,null,null,null,null,null,"→",null,null,null,null,null,null,null,null,null,null,null,null,null,null,null,null,{"$f":"IF(COUNTIF(W243:AK243,\"<>\"),SUMPRODUCT((Tableau[Hauteur]&Tableau[Largeur]&Tableau[Type]&Tableau[Allège vitrée]&Tableau[Vitrage]&Tableau[Sens Ouv]&Tableau[Petits bois]&Tableau[Allège maç]&Tableau[Mortaise]&Tableau[RAL]&Tableau[Dormant]&Tableau[GHI]&Tableau[Type de pose]&Tableau[OB]&Tableau[OB2]=W243&X243&Y243&Z243&AA243&AB243&AC243&AD243&AE243&AF243&AG243&AH243&AI243&AJ243&AK243)*1),\"\")","v":""},"←"]
[null,null,null,null,null,null,null,null,null,null,null,null,null,null,null,null,null,null,null,null,null,"→",null,null,null,null,null,null,null,null,null,null,null,null,null,null,null,null,{"$f":"IF(COUNTIF(W244:AK244,\"<>\"),SUMPRODUCT((Tableau[Hauteur]&Tableau[Largeur]&Tableau[Type]&Tableau[Allège vitrée]&Tableau[Vitrage]&Tableau[Sens Ouv]&Tableau[Petits bois]&Tableau[Allège maç]&Tableau[Mortaise]&Tableau[RAL]&Tableau[Dormant]&Tableau[GHI]&Tableau[Type de pose]&Tableau[OB]&Tableau[OB2]=W244&X244&Y244&Z244&AA244&AB244&AC244&AD244&AE244&AF244&AG244&AH244&AI244&AJ244&AK244)*1),\"\")","v":""},"←"]
[null,null,null,null,null,null,null,null,null,null,null,null,null,null,null,null,null,null,null,null,null,"→",null,null,null,null,null,null,null,null,null,null,null,null,null,null,null,null,{"$f":"IF(COUNTIF(W245:AK245,\"<>\"),SUMPRODUCT((Tableau[Hauteur]&Tableau[Largeur]&Tableau[Type]&Tableau[Allège vitrée]&Tableau[Vitrage]&Tableau[Sens Ouv]&Tableau[Petits bois]&Tableau[Allège maç]&Tableau[Mortaise]&Tableau[RAL]&Tableau[Dormant]&Tableau[GHI]&Tableau[Type de pose]&Tableau[OB]&Tableau[OB2]=W245&X245&Y245&Z245&AA245&AB245&AC245&AD245&AE245&AF245&AG245&AH245&AI245&AJ245&AK245)*1),\"\")","v":""},"←"]
[null,null,null,null,null,null,null,null,null,null,null,null,null,null,null,null,null,null,null,null,null,"→",null,null,null,null,null,null,null,null,null,null,null,null,null,null,null,null,{"$f":"IF(COUNTIF(W246:AK246,\"<>\"),SUMPRODUCT((Tableau[Hauteur]&Tableau[Largeur]&Tableau[Type]&Tableau[Allège vitrée]&Tableau[Vitrage]&Tableau[Sens Ouv]&Tableau[Petits bois]&Tableau[Allège maç]&Tableau[Mortaise]&Tableau[RAL]&Tableau[Dormant]&Tableau[GHI]&Tableau[Type de pose]&Tableau[OB]&Tableau[OB2]=W246&X246&Y246&Z246&AA246&AB246&AC246&AD246&AE246&AF246&AG246&AH246&AI246&AJ246&AK246)*1),\"\")","v":""},"←"]
[null,null,null,null,null,null,null,null,null,null,null,null,null,null,null,null,null,null,null,null,null,"→",null,null,null,null,null,null,null,null,null,null,null,null,null,null,null,null,{"$f":"IF(COUNTIF(W247:AK247,\"<>\"),SUMPRODUCT((Tableau[Hauteur]&Tableau[Largeur]&Tableau[Type]&Tableau[Allège vitrée]&Tableau[Vitrage]&Tableau[Sens Ouv]&Tableau[Petits bois]&Tableau[Allège maç]&Tableau[Mortaise]&Tableau[RAL]&Tableau[Dormant]&Tableau[GHI]&Tableau[Type de pose]&Tableau[OB]&Tableau[OB2]=W247&X247&Y247&Z247&AA247&AB247&AC247&AD247&AE247&AF247&AG247&AH247&AI247&AJ247&AK247)*1),\"\")","v":""},"←"]
[null,null,null,null,null,null,null,null,null,null,null,null,null,null,null,null,null,null,null,null,null,"→",null,null,null,null,null,null,null,null,null,null,null,null,null,null,null,null,{"$f":"IF(COUNTIF(W248:AK248,\"<>\"),SUMPRODUCT((Tableau[Hauteur]&Tableau[Largeur]&Tableau[Type]&Tableau[Allège vitrée]&Tableau[Vitrage]&Tableau[Sens Ouv]&Tableau[Petits bois]&Tableau[Allège maç]&Tableau[Mortaise]&Tableau[RAL]&Tableau[Dormant]&Tableau[GHI]&Tableau[Type de pose]&Tableau[OB]&Tableau[OB2]=W248&X248&Y248&Z248&AA248&AB248&AC248&AD248&AE248&AF248&AG248&AH248&AI248&AJ248&AK248)*1),\"\")","v":""},"←"]
[null,null,null,null,null,null,null,null,null,null,null,null,null,null,null,null,null,null,null,null,null,"→",null,null,null,null,null,null,null,null,null,null,null,null,null,null,null,null,{"$f":"IF(COUNTIF(W249:AK249,\"<>\"),SUMPRODUCT((Tableau[Hauteur]&Tableau[Largeur]&Tableau[Type]&Tableau[Allège vitrée]&Tableau[Vitrage]&Tableau[Sens Ouv]&Tableau[Petits bois]&Tableau[Allège maç]&Tableau[Mortaise]&Tableau[RAL]&Tableau[Dormant]&Tableau[GHI]&Tableau[Type de pose]&Tableau[OB]&Tableau[OB2]=W249&X249&Y249&Z249&AA249&AB249&AC249&AD249&AE249&AF249&AG249&AH249&AI249&AJ249&AK249)*1),\"\")","v":""},"←"]
[null,null,null,null,null,null,null,null,null,null,null,null,null,null,null,null,null,null,null,null,null,"→",null,null,null,null,null,null,null,null,null,null,null,null,null,null,null,null,{"$f":"IF(COUNTIF(W250:AK250,\"<>\"),SUMPRODUCT((Tableau[Hauteur]&Tableau[Largeur]&Tableau[Type]&Tableau[Allège vitrée]&Tableau[Vitrage]&Tableau[Sens Ouv]&Tableau[Petits bois]&Tableau[Allège maç]&Tableau[Mortaise]&Tableau[RAL]&Tableau[Dormant]&Tableau[GHI]&Tableau[Type de pose]&Tableau[OB]&Tableau[OB2]=W250&X250&Y250&Z250&AA250&AB250&AC250&AD250&AE250&AF250&AG250&AH250&AI250&AJ250&AK250)*1),\"\")","v":""},"←"]
[null,null,null,null,null,null,null,null,null,null,null,null,null,null,null,null,null,null,null,null,null,"→",null,null,null,null,null,null,null,null,null,null,null,null,null,null,null,null,{"$f":"IF(COUNTIF(W251:AK251,\"<>\"),SUMPRODUCT((Tableau[Hauteur]&Tableau[Largeur]&Tableau[Type]&Tableau[Allège vitrée]&Tableau[Vitrage]&Tableau[Sens Ouv]&Tableau[Petits bois]&Tableau[Allège maç]&Tableau[Mortaise]&Tableau[RAL]&Tableau[Dormant]&Tableau[GHI]&Tableau[Type de pose]&Tableau[OB]&Tableau[OB2]=W251&X251&Y251&Z251&AA251&AB251&AC251&AD251&AE251&AF251&AG251&AH251&AI251&AJ251&AK251)*1),\"\")","v":""},"←"]
[null,null,null,null,null,null,null,null,null,null,null,null,null,null,null,null,null,null,null,null,null,"→",null,null,null,null,null,null,null,null,null,null,null,null,null,null,null,null,{"$f":"IF(COUNTIF(W252:AK252,\"<>\"),SUMPRODUCT((Tableau[Hauteur]&Tableau[Largeur]&Tableau[Type]&Tableau[Allège vitrée]&Tableau[Vitrage]&Tableau[Sens Ouv]&Tableau[Petits bois]&Tableau[Allège maç]&Tableau[Mortaise]&Tableau[RAL]&Tableau[Dormant]&Tableau[GHI]&Tableau[Type de pose]&Tableau[OB]&Tableau[OB2]=W252&X252&Y252&Z252&AA252&AB252&AC252&AD252&AE252&AF252&AG252&AH252&AI252&AJ252&AK252)*1),\"\")","v":""},"←"]
[null,null,null,null,null,null,null,null,null,null,null,null,null,null,null,null,null,null,null,null,null,"→",null,null,null,null,null,null,null,null,null,null,null,null,null,null,null,null,{"$f":"IF(COUNTIF(W253:AK253,\"<>\"),SUMPRODUCT((Tableau[Hauteur]&Tableau[Largeur]&Tableau[Type]&Tableau[Allège vitrée]&Tableau[Vitrage]&Tableau[Sens Ouv]&Tableau[Petits bois]&Tableau[Allège maç]&Tableau[Mortaise]&Tableau[RAL]&Tableau[Dormant]&Tableau[GHI]&Tableau[Type de pose]&Tableau[OB]&Tableau[OB2]=W253&X253&Y253&Z253&AA253&AB253&AC253&AD253&AE253&AF253&AG253&AH253&AI253&AJ253&AK253)*1),\"\")","v":""},"←"]
[null,null,null,null,null,null,null,null,null,null,null,null,null,null,null,null,null,null,null,null,null,"→",null,null,null,null,null,null,null,null,null,null,null,null,null,null,null,null,{"$f":"IF(COUNTIF(W254:AK254,\"<>\"),SUMPRODUCT((Tableau[Hauteur]&Tableau[Largeur]&Tableau[Type]&Tableau[Allège vitrée]&Tableau[Vitrage]&Tableau[Sens Ouv]&Tableau[Petits bois]&Tableau[Allège maç]&Tableau[Mortaise]&Tableau[RAL]&Tableau[Dormant]&Tableau[GHI]&Tableau[Type de pose]&Tableau[OB]&Tableau[OB2]=W254&X254&Y254&Z254&AA254&AB254&AC254&AD254&AE254&AF254&AG254&AH254&AI254&AJ254&AK254)*1),\"\")","v":""},"←"]
[null,null,null,null,null,null,null,null,null,null,null,null,null,null,null,null,null,null,null,null,null,"→",null,null,null,null,null,null,null,null,null,null,null,null,null,null,null,null,{"$f":"IF(COUNTIF(W255:AK255,\"<>\"),SUMPRODUCT((Tableau[Hauteur]&Tableau[Largeur]&Tableau[Type]&Tableau[Allège vitrée]&Tableau[Vitrage]&Tableau[Sens Ouv]&Tableau[Petits bois]&Tableau[Allège maç]&Tableau[Mortaise]&Tableau[RAL]&Tableau[Dormant]&Tableau[GHI]&Tableau[Type de pose]&Tableau[OB]&Tableau[OB2]=W255&X255&Y255&Z255&AA255&AB255&AC255&AD255&AE255&AF255&AG255&AH255&AI255&AJ255&AK255)*1),\"\")","v":""},"←"]
[null,null,null,null,null,null,null,null,null,null,null,null,null,null,null,null,null,null,null,null,null,"→",null,null,null,null,null,null,null,null,null,null,null,null,null,null,null,null,{"$f":"IF(COUNTIF(W256:AK256,\"<>\"),SUMPRODUCT((Tableau[Hauteur]&Tableau[Largeur]&Tableau[Type]&Tableau[Allège vitrée]&Tableau[Vitrage]&Tableau[Sens Ouv]&Tableau[Petits bois]&Tableau[Allège maç]&Tableau[Mortaise]&Tableau[RAL]&Tableau[Dormant]&Tableau[GHI]&Tableau[Type de pose]&Tableau[OB]&Tableau[OB2]=W256&X256&Y256&Z256&AA256&AB256&AC256&AD256&AE256&AF256&AG256&AH256&AI256&AJ256&AK256)*1),\"\")","v":""},"←"]
[null,null,null,null,null,null,null,null,null,null,null,null,null,null,null,null,null,null,null,null,null,"→",null,null,null,null,null,null,null,null,null,null,null,null,null,null,null,null,{"$f":"IF(COUNTIF(W257:AK257,\"<>\"),SUMPRODUCT((Tableau[Hauteur]&Tableau[Largeur]&Tableau[Type]&Tableau[Allège vitrée]&Tableau[Vitrage]&Tableau[Sens Ouv]&Tableau[Petits bois]&Tableau[Allège maç]&Tableau[Mortaise]&Tableau[RAL]&Tableau[Dormant]&Tableau[GHI]&Tableau[Type de pose]&Tableau[OB]&Tableau[OB2]=W257&X257&Y257&Z257&AA257&AB257&AC257&AD257&AE257&AF257&AG257&AH257&AI257&AJ257&AK257)*1),\"\")","v":""},"←"]
[null,null,null,null,null,null,null,null,null,null,null,null,null,null,null,null,null,null,null,null,null,"→",null,null,null,null,null,null,null,null,null,null,null,null,null,null,null,null,{"$f":"IF(COUNTIF(W258:AK258,\"<>\"),SUMPRODUCT((Tableau[Hauteur]&Tableau[Largeur]&Tableau[Type]&Tableau[Allège vitrée]&Tableau[Vitrage]&Tableau[Sens Ouv]&Tableau[Petits bois]&Tableau[Allège maç]&Tableau[Mortaise]&Tableau[RAL]&Tableau[Dormant]&Tableau[GHI]&Tableau[Type de pose]&Tableau[OB]&Tableau[OB2]=W258&X258&Y258&Z258&AA258&AB258&AC258&AD258&AE258&AF258&AG258&AH258&AI258&AJ258&AK258)*1),\"\")","v":""},"←"]
[null,null,null,null,null,null,null,null,null,null,null,null,null,null,null,null,null,null,null,null,null,"→",null,null,null,null,null,null,null,null,null,null,null,null,null,null,null,null,{"$f":"IF(COUNTIF(W259:AK259,\"<>\"),SUMPRODUCT((Tableau[Hauteur]&Tableau[Largeur]&Tableau[Type]&Tableau[Allège vitrée]&Tableau[Vitrage]&Tableau[Sens Ouv]&Tableau[Petits bois]&Tableau[Allège maç]&Tableau[Mortaise]&Tableau[RAL]&Tableau[Dormant]&Tableau[GHI]&Tableau[Type de pose]&Tableau[OB]&Tableau[OB2]=W259&X259&Y259&Z259&AA259&AB259&AC259&AD259&AE259&AF259&AG259&AH259&AI259&AJ259&AK259)*1),\"\")","v":""},"←"]
[null,null,null,null,null,null,null,null,null,null,null,null,null,null,null,null,null,null,null,null,null,"→",null,null,null,null,null,null,null,null,null,null,null,null,null,null,null,null,{"$f":"IF(COUNTIF(W260:AK260,\"<>\"),SUMPRODUCT((Tableau[Hauteur]&Tableau[Largeur]&Tableau[Type]&Tableau[Allège vitrée]&Tableau[Vitrage]&Tableau[Sens Ouv]&Tableau[Petits bois]&Tableau[Allège maç]&Tableau[Mortaise]&Tableau[RAL]&Tableau[Dormant]&Tableau[GHI]&Tableau[Type de pose]&Tableau[OB]&Tableau[OB2]=W260&X260&Y260&Z260&AA260&AB260&AC260&AD260&AE260&AF260&AG260&AH260&AI260&AJ260&AK260)*1),\"\")","v":""},"←"]
[null,null,null,null,null,null,null,null,null,null,null,null,null,null,null,null,null,null,null,null,null,"→",null,null,null,null,null,null,null,null,null,null,null,null,null,null,null,null,{"$f":"IF(COUNTIF(W261:AK261,\"<>\"),SUMPRODUCT((Tableau[Hauteur]&Tableau[Largeur]&Tableau[Type]&Tableau[Allège vitrée]&Tableau[Vitrage]&Tableau[Sens Ouv]&Tableau[Petits bois]&Tableau[Allège maç]&Tableau[Mortaise]&Tableau[RAL]&Tableau[Dormant]&Tableau[GHI]&Tableau[Type de pose]&Tableau[OB]&Tableau[OB2]=W261&X261&Y261&Z261&AA261&AB261&AC261&AD261&AE261&AF261&AG261&AH261&AI261&AJ261&AK261)*1),\"\")","v":""},"←"]
[null,null,null,null,null,null,null,null,null,null,null,null,null,null,null,null,null,null,null,null,null,"→",null,null,null,null,null,null,null,null,null,null,null,null,null,null,null,null,{"$f":"IF(COUNTIF(W262:AK262,\"<>\"),SUMPRODUCT((Tableau[Hauteur]&Tableau[Largeur]&Tableau[Type]&Tableau[Allège vitrée]&Tableau[Vitrage]&Tableau[Sens Ouv]&Tableau[Petits bois]&Tableau[Allège maç]&Tableau[Mortaise]&Tableau[RAL]&Tableau[Dormant]&Tableau[GHI]&Tableau[Type de pose]&Tableau[OB]&Tableau[OB2]=W262&X262&Y262&Z262&AA262&AB262&AC262&AD262&AE262&AF262&AG262&AH262&AI262&AJ262&AK262)*1),\"\")","v":""},"←"]
[null,null,null,null,null,null,null,null,null,null,null,null,null,null,null,null,null,null,null,null,null,"→",null,null,null,null,null,null,null,null,null,null,null,null,null,null,null,null,{"$f":"IF(COUNTIF(W263:AK263,\"<>\"),SUMPRODUCT((Tableau[Hauteur]&Tableau[Largeur]&Tableau[Type]&Tableau[Allège vitrée]&Tableau[Vitrage]&Tableau[Sens Ouv]&Tableau[Petits bois]&Tableau[Allège maç]&Tableau[Mortaise]&Tableau[RAL]&Tableau[Dormant]&Tableau[GHI]&Tableau[Type de pose]&Tableau[OB]&Tableau[OB2]=W263&X263&Y263&Z263&AA263&AB263&AC263&AD263&AE263&AF263&AG263&AH263&AI263&AJ263&AK263)*1),\"\")","v":""},"←"]
[null,null,null,null,null,null,null,null,null,null,null,null,null,null,null,null,null,null,null,null,null,"→",null,null,null,null,null,null,null,null,null,null,null,null,null,null,null,null,{"$f":"IF(COUNTIF(W264:AK264,\"<>\"),SUMPRODUCT((Tableau[Hauteur]&Tableau[Largeur]&Tableau[Type]&Tableau[Allège vitrée]&Tableau[Vitrage]&Tableau[Sens Ouv]&Tableau[Petits bois]&Tableau[Allège maç]&Tableau[Mortaise]&Tableau[RAL]&Tableau[Dormant]&Tableau[GHI]&Tableau[Type de pose]&Tableau[OB]&Tableau[OB2]=W264&X264&Y264&Z264&AA264&AB264&AC264&AD264&AE264&AF264&AG264&AH264&AI264&AJ264&AK264)*1),\"\")","v":""},"←"]
[null,null,null,null,null,null,null,null,null,null,null,null,null,null,null,null,null,null,null,null,null,"→",null,null,null,null,null,null,null,null,null,null,null,null,null,null,null,null,{"$f":"IF(COUNTIF(W265:AK265,\"<>\"),SUMPRODUCT((Tableau[Hauteur]&Tableau[Largeur]&Tableau[Type]&Tableau[Allège vitrée]&Tableau[Vitrage]&Tableau[Sens Ouv]&Tableau[Petits bois]&Tableau[Allège maç]&Tableau[Mortaise]&Tableau[RAL]&Tableau[Dormant]&Tableau[GHI]&Tableau[Type de pose]&Tableau[OB]&Tableau[OB2]=W265&X265&Y265&Z265&AA265&AB265&AC265&AD265&AE265&AF265&AG265&AH265&AI265&AJ265&AK265)*1),\"\")","v":""},"←"]
[null,null,null,null,null,null,null,null,null,null,null,null,null,null,null,null,null,null,null,null,null,"→",null,null,null,null,null,null,null,null,null,null,null,null,null,null,null,null,{"$f":"IF(COUNTIF(W266:AK266,\"<>\"),SUMPRODUCT((Tableau[Hauteur]&Tableau[Largeur]&Tableau[Type]&Tableau[Allège vitrée]&Tableau[Vitrage]&Tableau[Sens Ouv]&Tableau[Petits bois]&Tableau[Allège maç]&Tableau[Mortaise]&Tableau[RAL]&Tableau[Dormant]&Tableau[GHI]&Tableau[Type de pose]&Tableau[OB]&Tableau[OB2]=W266&X266&Y266&Z266&AA266&AB266&AC266&AD266&AE266&AF266&AG266&AH266&AI266&AJ266&AK266)*1),\"\")","v":""},"←"]
[null,null,null,null,null,null,null,null,null,null,null,null,null,null,null,null,null,null,null,null,null,"→",null,null,null,null,null,null,null,null,null,null,null,null,null,null,null,null,{"$f":"IF(COUNTIF(W267:AK267,\"<>\"),SUMPRODUCT((Tableau[Hauteur]&Tableau[Largeur]&Tableau[Type]&Tableau[Allège vitrée]&Tableau[Vitrage]&Tableau[Sens Ouv]&Tableau[Petits bois]&Tableau[Allège maç]&Tableau[Mortaise]&Tableau[RAL]&Tableau[Dormant]&Tableau[GHI]&Tableau[Type de pose]&Tableau[OB]&Tableau[OB2]=W267&X267&Y267&Z267&AA267&AB267&AC267&AD267&AE267&AF267&AG267&AH267&AI267&AJ267&AK267)*1),\"\")","v":""},"←"]
[null,null,null,null,null,null,null,null,null,null,null,null,null,null,null,null,null,null,null,null,null,"→",null,null,null,null,null,null,null,null,null,null,null,null,null,null,null,null,{"$f":"IF(COUNTIF(W268:AK268,\"<>\"),SUMPRODUCT((Tableau[Hauteur]&Tableau[Largeur]&Tableau[Type]&Tableau[Allège vitrée]&Tableau[Vitrage]&Tableau[Sens Ouv]&Tableau[Petits bois]&Tableau[Allège maç]&Tableau[Mortaise]&Tableau[RAL]&Tableau[Dormant]&Tableau[GHI]&Tableau[Type de pose]&Tableau[OB]&Tableau[OB2]=W268&X268&Y268&Z268&AA268&AB268&AC268&AD268&AE268&AF268&AG268&AH268&AI268&AJ268&AK268)*1),\"\")","v":""},"←"]
[null,null,null,null,null,null,null,null,null,null,null,null,null,null,null,null,null,null,null,null,null,"→",null,null,null,null,null,null,null,null,null,null,null,null,null,null,null,null,{"$f":"IF(COUNTIF(W269:AK269,\"<>\"),SUMPRODUCT((Tableau[Hauteur]&Tableau[Largeur]&Tableau[Type]&Tableau[Allège vitrée]&Tableau[Vitrage]&Tableau[Sens Ouv]&Tableau[Petits bois]&Tableau[Allège maç]&Tableau[Mortaise]&Tableau[RAL]&Tableau[Dormant]&Tableau[GHI]&Tableau[Type de pose]&Tableau[OB]&Tableau[OB2]=W269&X269&Y269&Z269&AA269&AB269&AC269&AD269&AE269&AF269&AG269&AH269&AI269&AJ269&AK269)*1),\"\")","v":""},"←"]
[null,null,null,null,null,null,null,null,null,null,null,null,null,null,null,null,null,null,null,null,null,"→",null,null,null,null,null,null,null,null,null,null,null,null,null,null,null,null,{"$f":"IF(COUNTIF(W270:AK270,\"<>\"),SUMPRODUCT((Tableau[Hauteur]&Tableau[Largeur]&Tableau[Type]&Tableau[Allège vitrée]&Tableau[Vitrage]&Tableau[Sens Ouv]&Tableau[Petits bois]&Tableau[Allège maç]&Tableau[Mortaise]&Tableau[RAL]&Tableau[Dormant]&Tableau[GHI]&Tableau[Type de pose]&Tableau[OB]&Tableau[OB2]=W270&X270&Y270&Z270&AA270&AB270&AC270&AD270&AE270&AF270&AG270&AH270&AI270&AJ270&AK270)*1),\"\")","v":""},"←"]
[null,null,null,null,null,null,null,null,null,null,null,null,null,null,null,null,null,null,null,null,null,"→",null,null,null,null,null,null,null,null,null,null,null,null,null,null,null,null,{"$f":"IF(COUNTIF(W271:AK271,\"<>\"),SUMPRODUCT((Tableau[Hauteur]&Tableau[Largeur]&Tableau[Type]&Tableau[Allège vitrée]&Tableau[Vitrage]&Tableau[Sens Ouv]&Tableau[Petits bois]&Tableau[Allège maç]&Tableau[Mortaise]&Tableau[RAL]&Tableau[Dormant]&Tableau[GHI]&Tableau[Type de pose]&Tableau[OB]&Tableau[OB2]=W271&X271&Y271&Z271&AA271&AB271&AC271&AD271&AE271&AF271&AG271&AH271&AI271&AJ271&AK271)*1),\"\")","v":""},"←"]
[null,null,null,null,null,null,null,null,null,null,null,null,null,null,null,null,null,null,null,null,null,"→",null,null,null,null,null,null,null,null,null,null,null,null,null,null,null,null,{"$f":"IF(COUNTIF(W272:AK272,\"<>\"),SUMPRODUCT((Tableau[Hauteur]&Tableau[Largeur]&Tableau[Type]&Tableau[Allège vitrée]&Tableau[Vitrage]&Tableau[Sens Ouv]&Tableau[Petits bois]&Tableau[Allège maç]&Tableau[Mortaise]&Tableau[RAL]&Tableau[Dormant]&Tableau[GHI]&Tableau[Type de pose]&Tableau[OB]&Tableau[OB2]=W272&X272&Y272&Z272&AA272&AB272&AC272&AD272&AE272&AF272&AG272&AH272&AI272&AJ272&AK272)*1),\"\")","v":""},"←"]
[null,null,null,null,null,null,null,null,null,null,null,null,null,null,null,null,null,null,null,null,null,"→",null,null,null,null,null,null,null,null,null,null,null,null,null,null,null,null,{"$f":"IF(COUNTIF(W273:AK273,\"<>\"),SUMPRODUCT((Tableau[Hauteur]&Tableau[Largeur]&Tableau[Type]&Tableau[Allège vitrée]&Tableau[Vitrage]&Tableau[Sens Ouv]&Tableau[Petits bois]&Tableau[Allège maç]&Tableau[Mortaise]&Tableau[RAL]&Tableau[Dormant]&Tableau[GHI]&Tableau[Type de pose]&Tableau[OB]&Tableau[OB2]=W273&X273&Y273&Z273&AA273&AB273&AC273&AD273&AE273&AF273&AG273&AH273&AI273&AJ273&AK273)*1),\"\")","v":""},"←"]
[null,null,null,null,null,null,null,null,null,null,null,null,null,null,null,null,null,null,null,null,null,"→",null,null,null,null,null,null,null,null,null,null,null,null,null,null,null,null,{"$f":"IF(COUNTIF(W274:AK274,\"<>\"),SUMPRODUCT((Tableau[Hauteur]&Tableau[Largeur]&Tableau[Type]&Tableau[Allège vitrée]&Tableau[Vitrage]&Tableau[Sens Ouv]&Tableau[Petits bois]&Tableau[Allège maç]&Tableau[Mortaise]&Tableau[RAL]&Tableau[Dormant]&Tableau[GHI]&Tableau[Type de pose]&Tableau[OB]&Tableau[OB2]=W274&X274&Y274&Z274&AA274&AB274&AC274&AD274&AE274&AF274&AG274&AH274&AI274&AJ274&AK274)*1),\"\")","v":""},"←"]
[null,null,null,null,null,null,null,null,null,null,null,null,null,null,null,null,null,null,null,null,null,"→",null,null,null,null,null,null,null,null,null,null,null,null,null,null,null,null,{"$f":"IF(COUNTIF(W275:AK275,\"<>\"),SUMPRODUCT((Tableau[Hauteur]&Tableau[Largeur]&Tableau[Type]&Tableau[Allège vitrée]&Tableau[Vitrage]&Tableau[Sens Ouv]&Tableau[Petits bois]&Tableau[Allège maç]&Tableau[Mortaise]&Tableau[RAL]&Tableau[Dormant]&Tableau[GHI]&Tableau[Type de pose]&Tableau[OB]&Tableau[OB2]=W275&X275&Y275&Z275&AA275&AB275&AC275&AD275&AE275&AF275&AG275&AH275&AI275&AJ275&AK275)*1),\"\")","v":""},"←"]
[null,null,null,null,null,null,null,null,null,null,null,null,null,null,null,null,null,null,null,null,null,"→",null,null,null,null,null,null,null,null,null,null,null,null,null,null,null,null,{"$f":"IF(COUNTIF(W276:AK276,\"<>\"),SUMPRODUCT((Tableau[Hauteur]&Tableau[Largeur]&Tableau[Type]&Tableau[Allège vitrée]&Tableau[Vitrage]&Tableau[Sens Ouv]&Tableau[Petits bois]&Tableau[Allège maç]&Tableau[Mortaise]&Tableau[RAL]&Tableau[Dormant]&Tableau[GHI]&Tableau[Type de pose]&Tableau[OB]&Tableau[OB2]=W276&X276&Y276&Z276&AA276&AB276&AC276&AD276&AE276&AF276&AG276&AH276&AI276&AJ276&AK276)*1),\"\")","v":""},"←"]
[null,null,null,null,null,null,null,null,null,null,null,null,null,null,null,null,null,null,null,null,null,"→",null,null,null,null,null,null,null,null,null,null,null,null,null,null,null,null,{"$f":"IF(COUNTIF(W277:AK277,\"<>\"),SUMPRODUCT((Tableau[Hauteur]&Tableau[Largeur]&Tableau[Type]&Tableau[Allège vitrée]&Tableau[Vitrage]&Tableau[Sens Ouv]&Tableau[Petits bois]&Tableau[Allège maç]&Tableau[Mortaise]&Tableau[RAL]&Tableau[Dormant]&Tableau[GHI]&Tableau[Type de pose]&Tableau[OB]&Tableau[OB2]=W277&X277&Y277&Z277&AA277&AB277&AC277&AD277&AE277&AF277&AG277&AH277&AI277&AJ277&AK277)*1),\"\")","v":""},"←"]
[null,null,null,null,null,null,null,null,null,null,null,null,null,null,null,null,null,null,null,null,null,"→",null,null,null,null,null,null,null,null,null,null,null,null,null,null,null,null,{"$f":"IF(COUNTIF(W278:AK278,\"<>\"),SUMPRODUCT((Tableau[Hauteur]&Tableau[Largeur]&Tableau[Type]&Tableau[Allège vitrée]&Tableau[Vitrage]&Tableau[Sens Ouv]&Tableau[Petits bois]&Tableau[Allège maç]&Tableau[Mortaise]&Tableau[RAL]&Tableau[Dormant]&Tableau[GHI]&Tableau[Type de pose]&Tableau[OB]&Tableau[OB2]=W278&X278&Y278&Z278&AA278&AB278&AC278&AD278&AE278&AF278&AG278&AH278&AI278&AJ278&AK278)*1),\"\")","v":""},"←"]
[null,null,null,null,null,null,null,null,null,null,null,null,null,null,null,null,null,null,null,null,null,"→",null,null,null,null,null,null,null,null,null,null,null,null,null,null,null,null,{"$f":"IF(COUNTIF(W279:AK279,\"<>\"),SUMPRODUCT((Tableau[Hauteur]&Tableau[Largeur]&Tableau[Type]&Tableau[Allège vitrée]&Tableau[Vitrage]&Tableau[Sens Ouv]&Tableau[Petits bois]&Tableau[Allège maç]&Tableau[Mortaise]&Tableau[RAL]&Tableau[Dormant]&Tableau[GHI]&Tableau[Type de pose]&Tableau[OB]&Tableau[OB2]=W279&X279&Y279&Z279&AA279&AB279&AC279&AD279&AE279&AF279&AG279&AH279&AI279&AJ279&AK279)*1),\"\")","v":""},"←"]
[null,null,null,null,null,null,null,null,null,null,null,null,null,null,null,null,null,null,null,null,null,"→",null,null,null,null,null,null,null,null,null,null,null,null,null,null,null,null,{"$f":"IF(COUNTIF(W280:AK280,\"<>\"),SUMPRODUCT((Tableau[Hauteur]&Tableau[Largeur]&Tableau[Type]&Tableau[Allège vitrée]&Tableau[Vitrage]&Tableau[Sens Ouv]&Tableau[Petits bois]&Tableau[Allège maç]&Tableau[Mortaise]&Tableau[RAL]&Tableau[Dormant]&Tableau[GHI]&Tableau[Type de pose]&Tableau[OB]&Tableau[OB2]=W280&X280&Y280&Z280&AA280&AB280&AC280&AD280&AE280&AF280&AG280&AH280&AI280&AJ280&AK280)*1),\"\")","v":""},"←"]
[null,null,null,null,null,null,null,null,null,null,null,null,null,null,null,null,null,null,null,null,null,"→",null,null,null,null,null,null,null,null,null,null,null,null,null,null,null,null,{"$f":"IF(COUNTIF(W281:AK281,\"<>\"),SUMPRODUCT((Tableau[Hauteur]&Tableau[Largeur]&Tableau[Type]&Tableau[Allège vitrée]&Tableau[Vitrage]&Tableau[Sens Ouv]&Tableau[Petits bois]&Tableau[Allège maç]&Tableau[Mortaise]&Tableau[RAL]&Tableau[Dormant]&Tableau[GHI]&Tableau[Type de pose]&Tableau[OB]&Tableau[OB2]=W281&X281&Y281&Z281&AA281&AB281&AC281&AD281&AE281&AF281&AG281&AH281&AI281&AJ281&AK281)*1),\"\")","v":""},"←"]
[null,null,null,null,null,null,null,null,null,null,null,null,null,null,null,null,null,null,null,null,null,"→",null,null,null,null,null,null,null,null,null,null,null,null,null,null,null,null,{"$f":"IF(COUNTIF(W282:AK282,\"<>\"),SUMPRODUCT((Tableau[Hauteur]&Tableau[Largeur]&Tableau[Type]&Tableau[Allège vitrée]&Tableau[Vitrage]&Tableau[Sens Ouv]&Tableau[Petits bois]&Tableau[Allège maç]&Tableau[Mortaise]&Tableau[RAL]&Tableau[Dormant]&Tableau[GHI]&Tableau[Type de pose]&Tableau[OB]&Tableau[OB2]=W282&X282&Y282&Z282&AA282&AB282&AC282&AD282&AE282&AF282&AG282&AH282&AI282&AJ282&AK282)*1),\"\")","v":""},"←"]
[null,null,null,null,null,null,null,null,null,null,null,null,null,null,null,null,null,null,null,null,null,"→",null,null,null,null,null,null,null,null,null,null,null,null,null,null,null,null,{"$f":"IF(COUNTIF(W283:AK283,\"<>\"),SUMPRODUCT((Tableau[Hauteur]&Tableau[Largeur]&Tableau[Type]&Tableau[Allège vitrée]&Tableau[Vitrage]&Tableau[Sens Ouv]&Tableau[Petits bois]&Tableau[Allège maç]&Tableau[Mortaise]&Tableau[RAL]&Tableau[Dormant]&Tableau[GHI]&Tableau[Type de pose]&Tableau[OB]&Tableau[OB2]=W283&X283&Y283&Z283&AA283&AB283&AC283&AD283&AE283&AF283&AG283&AH283&AI283&AJ283&AK283)*1),\"\")","v":""},"←"]
[null,null,null,null,null,null,null,null,null,null,null,null,null,null,null,null,null,null,null,null,null,"→",null,null,null,null,null,null,null,null,null,null,null,null,null,null,null,null,{"$f":"IF(COUNTIF(W284:AK284,\"<>\"),SUMPRODUCT((Tableau[Hauteur]&Tableau[Largeur]&Tableau[Type]&Tableau[Allège vitrée]&Tableau[Vitrage]&Tableau[Sens Ouv]&Tableau[Petits bois]&Tableau[Allège maç]&Tableau[Mortaise]&Tableau[RAL]&Tableau[Dormant]&Tableau[GHI]&Tableau[Type de pose]&Tableau[OB]&Tableau[OB2]=W284&X284&Y284&Z284&AA284&AB284&AC284&AD284&AE284&AF284&AG284&AH284&AI284&AJ284&AK284)*1),\"\")","v":""},"←"]
[null,null,null,null,null,null,null,null,null,null,null,null,null,null,null,null,null,null,null,null,null,"→",null,null,null,null,null,null,null,null,null,null,null,null,null,null,null,null,{"$f":"IF(COUNTIF(W285:AK285,\"<>\"),SUMPRODUCT((Tableau[Hauteur]&Tableau[Largeur]&Tableau[Type]&Tableau[Allège vitrée]&Tableau[Vitrage]&Tableau[Sens Ouv]&Tableau[Petits bois]&Tableau[Allège maç]&Tableau[Mortaise]&Tableau[RAL]&Tableau[Dormant]&Tableau[GHI]&Tableau[Type de pose]&Tableau[OB]&Tableau[OB2]=W285&X285&Y285&Z285&AA285&AB285&AC285&AD285&AE285&AF285&AG285&AH285&AI285&AJ285&AK285)*1),\"\")","v":""},"←"]
[null,null,null,null,null,null,null,null,null,null,null,null,null,null,null,null,null,null,null,null,null,"→",null,null,null,null,null,null,null,null,null,null,null,null,null,null,null,null,{"$f":"IF(COUNTIF(W286:AK286,\"<>\"),SUMPRODUCT((Tableau[Hauteur]&Tableau[Largeur]&Tableau[Type]&Tableau[Allège vitrée]&Tableau[Vitrage]&Tableau[Sens Ouv]&Tableau[Petits bois]&Tableau[Allège maç]&Tableau[Mortaise]&Tableau[RAL]&Tableau[Dormant]&Tableau[GHI]&Tableau[Type de pose]&Tableau[OB]&Tableau[OB2]=W286&X286&Y286&Z286&AA286&AB286&AC286&AD286&AE286&AF286&AG286&AH286&AI286&AJ286&AK286)*1),\"\")","v":""},"←"]
[null,null,null,null,null,null,null,null,null,null,null,null,null,null,null,null,null,null,null,null,null,"→",null,null,null,null,null,null,null,null,null,null,null,null,null,null,null,null,{"$f":"IF(COUNTIF(W287:AK287,\"<>\"),SUMPRODUCT((Tableau[Hauteur]&Tableau[Largeur]&Tableau[Type]&Tableau[Allège vitrée]&Tableau[Vitrage]&Tableau[Sens Ouv]&Tableau[Petits bois]&Tableau[Allège maç]&Tableau[Mortaise]&Tableau[RAL]&Tableau[Dormant]&Tableau[GHI]&Tableau[Type de pose]&Tableau[OB]&Tableau[OB2]=W287&X287&Y287&Z287&AA287&AB287&AC287&AD287&AE287&AF287&AG287&AH287&AI287&AJ287&AK287)*1),\"\")","v":""},"←"]
[null,null,null,null,null,null,null,null,null,null,null,null,null,null,null,null,null,null,null,null,null,"→",null,null,null,null,null,null,null,null,null,null,null,null,null,null,null,null,{"$f":"IF(COUNTIF(W288:AK288,\"<>\"),SUMPRODUCT((Tableau[Hauteur]&Tableau[Largeur]&Tableau[Type]&Tableau[Allège vitrée]&Tableau[Vitrage]&Tableau[Sens Ouv]&Tableau[Petits bois]&Tableau[Allège maç]&Tableau[Mortaise]&Tableau[RAL]&Tableau[Dormant]&Tableau[GHI]&Tableau[Type de pose]&Tableau[OB]&Tableau[OB2]=W288&X288&Y288&Z288&AA288&AB288&AC288&AD288&AE288&AF288&AG288&AH288&AI288&AJ288&AK288)*1),\"\")","v":""},"←"]
[null,null,null,null,null,null,null,null,null,null,null,null,null,null,null,null,null,null,null,null,null,"→",null,null,null,null,null,null,null,null,null,null,null,null,null,null,null,null,{"$f":"IF(COUNTIF(W289:AK289,\"<>\"),SUMPRODUCT((Tableau[Hauteur]&Tableau[Largeur]&Tableau[Type]&Tableau[Allège vitrée]&Tableau[Vitrage]&Tableau[Sens Ouv]&Tableau[Petits bois]&Tableau[Allège maç]&Tableau[Mortaise]&Tableau[RAL]&Tableau[Dormant]&Tableau[GHI]&Tableau[Type de pose]&Tableau[OB]&Tableau[OB2]=W289&X289&Y289&Z289&AA289&AB289&AC289&AD289&AE289&AF289&AG289&AH289&AI289&AJ289&AK289)*1),\"\")","v":""},"←"]
[null,null,null,null,null,null,null,null,null,null,null,null,null,null,null,null,null,null,null,null,null,"→",null,null,null,null,null,null,null,null,null,null,null,null,null,null,null,null,{"$f":"IF(COUNTIF(W290:AK290,\"<>\"),SUMPRODUCT((Tableau[Hauteur]&Tableau[Largeur]&Tableau[Type]&Tableau[Allège vitrée]&Tableau[Vitrage]&Tableau[Sens Ouv]&Tableau[Petits bois]&Tableau[Allège maç]&Tableau[Mortaise]&Tableau[RAL]&Tableau[Dormant]&Tableau[GHI]&Tableau[Type de pose]&Tableau[OB]&Tableau[OB2]=W290&X290&Y290&Z290&AA290&AB290&AC290&AD290&AE290&AF290&AG290&AH290&AI290&AJ290&AK290)*1),\"\")","v":""},"←"]
[null,null,null,null,null,null,null,null,null,null,null,null,null,null,null,null,null,null,null,null,null,"→",null,null,null,null,null,null,null,null,null,null,null,null,null,null,null,null,{"$f":"IF(COUNTIF(W291:AK291,\"<>\"),SUMPRODUCT((Tableau[Hauteur]&Tableau[Largeur]&Tableau[Type]&Tableau[Allège vitrée]&Tableau[Vitrage]&Tableau[Sens Ouv]&Tableau[Petits bois]&Tableau[Allège maç]&Tableau[Mortaise]&Tableau[RAL]&Tableau[Dormant]&Tableau[GHI]&Tableau[Type de pose]&Tableau[OB]&Tableau[OB2]=W291&X291&Y291&Z291&AA291&AB291&AC291&AD291&AE291&AF291&AG291&AH291&AI291&AJ291&AK291)*1),\"\")","v":""},"←"]
[null,null,null,null,null,null,null,null,null,null,null,null,null,null,null,null,null,null,null,null,null,"→",null,null,null,null,null,null,null,null,null,null,null,null,null,null,null,null,{"$f":"IF(COUNTIF(W292:AK292,\"<>\"),SUMPRODUCT((Tableau[Hauteur]&Tableau[Largeur]&Tableau[Type]&Tableau[Allège vitrée]&Tableau[Vitrage]&Tableau[Sens Ouv]&Tableau[Petits bois]&Tableau[Allège maç]&Tableau[Mortaise]&Tableau[RAL]&Tableau[Dormant]&Tableau[GHI]&Tableau[Type de pose]&Tableau[OB]&Tableau[OB2]=W292&X292&Y292&Z292&AA292&AB292&AC292&AD292&AE292&AF292&AG292&AH292&AI292&AJ292&AK292)*1),\"\")","v":""},"←"]
[null,null,null,null,null,null,null,null,null,null,null,null,null,null,null,null,null,null,null,null,null,"→",null,null,null,null,null,null,null,null,null,null,null,null,null,null,null,null,{"$f":"IF(COUNTIF(W293:AK293,\"<>\"),SUMPRODUCT((Tableau[Hauteur]&Tableau[Largeur]&Tableau[Type]&Tableau[Allège vitrée]&Tableau[Vitrage]&Tableau[Sens Ouv]&Tableau[Petits bois]&Tableau[Allège maç]&Tableau[Mortaise]&Tableau[RAL]&Tableau[Dormant]&Tableau[GHI]&Tableau[Type de pose]&Tableau[OB]&Tableau[OB2]=W293&X293&Y293&Z293&AA293&AB293&AC293&AD293&AE293&AF293&AG293&AH293&AI293&AJ293&AK293)*1),\"\")","v":""},"←"]
[null,null,null,null,null,null,null,null,null,null,null,null,null,null,null,null,null,null,null,null,null,"→",null,null,null,null,null,null,null,null,null,null,null,null,null,null,null,null,{"$f":"IF(COUNTIF(W294:AK294,\"<>\"),SUMPRODUCT((Tableau[Hauteur]&Tableau[Largeur]&Tableau[Type]&Tableau[Allège vitrée]&Tableau[Vitrage]&Tableau[Sens Ouv]&Tableau[Petits bois]&Tableau[Allège maç]&Tableau[Mortaise]&Tableau[RAL]&Tableau[Dormant]&Tableau[GHI]&Tableau[Type de pose]&Tableau[OB]&Tableau[OB2]=W294&X294&Y294&Z294&AA294&AB294&AC294&AD294&AE294&AF294&AG294&AH294&AI294&AJ294&AK294)*1),\"\")","v":""},"←"]
[null,null,null,null,null,null,null,null,null,null,null,null,null,null,null,null,null,null,null,null,null,"→",null,null,null,null,null,null,null,null,null,null,null,null,null,null,null,null,{"$f":"IF(COUNTIF(W295:AK295,\"<>\"),SUMPRODUCT((Tableau[Hauteur]&Tableau[Largeur]&Tableau[Type]&Tableau[Allège vitrée]&Tableau[Vitrage]&Tableau[Sens Ouv]&Tableau[Petits bois]&Tableau[Allège maç]&Tableau[Mortaise]&Tableau[RAL]&Tableau[Dormant]&Tableau[GHI]&Tableau[Type de pose]&Tableau[OB]&Tableau[OB2]=W295&X295&Y295&Z295&AA295&AB295&AC295&AD295&AE295&AF295&AG295&AH295&AI295&AJ295&AK295)*1),\"\")","v":""},"←"]
[null,null,null,null,null,null,null,null,null,null,null,null,null,null,null,null,null,null,null,null,null,"→",null,null,null,null,null,null,null,null,null,null,null,null,null,null,null,null,{"$f":"IF(COUNTIF(W296:AK296,\"<>\"),SUMPRODUCT((Tableau[Hauteur]&Tableau[Largeur]&Tableau[Type]&Tableau[Allège vitrée]&Tableau[Vitrage]&Tableau[Sens Ouv]&Tableau[Petits bois]&Tableau[Allège maç]&Tableau[Mortaise]&Tableau[RAL]&Tableau[Dormant]&Tableau[GHI]&Tableau[Type de pose]&Tableau[OB]&Tableau[OB2]=W296&X296&Y296&Z296&AA296&AB296&AC296&AD296&AE296&AF296&AG296&AH296&AI296&AJ296&AK296)*1),\"\")","v":""},"←"]
[null,null,null,null,null,null,null,null,null,null,null,null,null,null,null,null,null,null,null,null,null,"→",null,null,null,null,null,null,null,null,null,null,null,null,null,null,null,null,{"$f":"IF(COUNTIF(W297:AK297,\"<>\"),SUMPRODUCT((Tableau[Hauteur]&Tableau[Largeur]&Tableau[Type]&Tableau[Allège vitrée]&Tableau[Vitrage]&Tableau[Sens Ouv]&Tableau[Petits bois]&Tableau[Allège maç]&Tableau[Mortaise]&Tableau[RAL]&Tableau[Dormant]&Tableau[GHI]&Tableau[Type de pose]&Tableau[OB]&Tableau[OB2]=W297&X297&Y297&Z297&AA297&AB297&AC297&AD297&AE297&AF297&AG297&AH297&AI297&AJ297&AK297)*1),\"\")","v":""},"←"]
[null,null,null,null,null,null,null,null,null,null,null,null,null,null,null,null,null,null,null,null,null,"→",null,null,null,null,null,null,null,null,null,null,null,null,null,null,null,null,{"$f":"IF(COUNTIF(W298:AK298,\"<>\"),SUMPRODUCT((Tableau[Hauteur]&Tableau[Largeur]&Tableau[Type]&Tableau[Allège vitrée]&Tableau[Vitrage]&Tableau[Sens Ouv]&Tableau[Petits bois]&Tableau[Allège maç]&Tableau[Mortaise]&Tableau[RAL]&Tableau[Dormant]&Tableau[GHI]&Tableau[Type de pose]&Tableau[OB]&Tableau[OB2]=W298&X298&Y298&Z298&AA298&AB298&AC298&AD298&AE298&AF298&AG298&AH298&AI298&AJ298&AK298)*1),\"\")","v":""},"←"]
[null,null,null,null,null,null,null,null,null,null,null,null,null,null,null,null,null,null,null,null,null,"→",null,null,null,null,null,null,null,null,null,null,null,null,null,null,null,null,{"$f":"IF(COUNTIF(W299:AK299,\"<>\"),SUMPRODUCT((Tableau[Hauteur]&Tableau[Largeur]&Tableau[Type]&Tableau[Allège vitrée]&Tableau[Vitrage]&Tableau[Sens Ouv]&Tableau[Petits bois]&Tableau[Allège maç]&Tableau[Mortaise]&Tableau[RAL]&Tableau[Dormant]&Tableau[GHI]&Tableau[Type de pose]&Tableau[OB]&Tableau[OB2]=W299&X299&Y299&Z299&AA299&AB299&AC299&AD299&AE299&AF299&AG299&AH299&AI299&AJ299&AK299)*1),\"\")","v":""},"←"]
[null,null,null,null,null,null,null,null,null,null,null,null,null,null,null,null,null,null,null,null,null,"→",null,null,null,null,null,null,null,null,null,null,null,null,null,null,null,null,{"$f":"IF(COUNTIF(W300:AK300,\"<>\"),SUMPRODUCT((Tableau[Hauteur]&Tableau[Largeur]&Tableau[Type]&Tableau[Allège vitrée]&Tableau[Vitrage]&Tableau[Sens Ouv]&Tableau[Petits bois]&Tableau[Allège maç]&Tableau[Mortaise]&Tableau[RAL]&Tableau[Dormant]&Tableau[GHI]&Tableau[Type de pose]&Tableau[OB]&Tableau[OB2]=W300&X300&Y300&Z300&AA300&AB300&AC300&AD300&AE300&AF300&AG300&AH300&AI300&AJ300&AK300)*1),\"\")","v":""},"←"]
[null,null,null,null,null,null,null,null,null,null,null,null,null,null,null,null,null,null,null,null,null,"→",null,null,null,null,null,null,null,null,null,null,null,null,null,null,null,null,{"$f":"IF(COUNTIF(W301:AK301,\"<>\"),SUMPRODUCT((Tableau[Hauteur]&Tableau[Largeur]&Tableau[Type]&Tableau[Allège vitrée]&Tableau[Vitrage]&Tableau[Sens Ouv]&Tableau[Petits bois]&Tableau[Allège maç]&Tableau[Mortaise]&Tableau[RAL]&Tableau[Dormant]&Tableau[GHI]&Tableau[Type de pose]&Tableau[OB]&Tableau[OB2]=W301&X301&Y301&Z301&AA301&AB301&AC301&AD301&AE301&AF301&AG301&AH301&AI301&AJ301&AK301)*1),\"\")","v":""},"←"]
[null,null,null,null,null,null,null,null,null,null,null,null,null,null,null,null,null,null,null,null,null,"→",null,null,null,null,null,null,null,null,null,null,null,null,null,null,null,null,{"$f":"IF(COUNTIF(W302:AK302,\"<>\"),SUMPRODUCT((Tableau[Hauteur]&Tableau[Largeur]&Tableau[Type]&Tableau[Allège vitrée]&Tableau[Vitrage]&Tableau[Sens Ouv]&Tableau[Petits bois]&Tableau[Allège maç]&Tableau[Mortaise]&Tableau[RAL]&Tableau[Dormant]&Tableau[GHI]&Tableau[Type de pose]&Tableau[OB]&Tableau[OB2]=W302&X302&Y302&Z302&AA302&AB302&AC302&AD302&AE302&AF302&AG302&AH302&AI302&AJ302&AK302)*1),\"\")","v":""},"←"]
[null,null,null,null,null,null,null,null,null,null,null,null,null,null,null,null,null,null,null,null,null,"→",null,null,null,null,null,null,null,null,null,null,null,null,null,null,null,null,{"$f":"IF(COUNTIF(W303:AK303,\"<>\"),SUMPRODUCT((Tableau[Hauteur]&Tableau[Largeur]&Tableau[Type]&Tableau[Allège vitrée]&Tableau[Vitrage]&Tableau[Sens Ouv]&Tableau[Petits bois]&Tableau[Allège maç]&Tableau[Mortaise]&Tableau[RAL]&Tableau[Dormant]&Tableau[GHI]&Tableau[Type de pose]&Tableau[OB]&Tableau[OB2]=W303&X303&Y303&Z303&AA303&AB303&AC303&AD303&AE303&AF303&AG303&AH303&AI303&AJ303&AK303)*1),\"\")","v":""},"←"]
[null,null,null,null,null,null,null,null,null,null,null,null,null,null,null,null,null,null,null,null,null,"→",null,null,null,null,null,null,null,null,null,null,null,null,null,null,null,null,{"$f":"IF(COUNTIF(W304:AK304,\"<>\"),SUMPRODUCT((Tableau[Hauteur]&Tableau[Largeur]&Tableau[Type]&Tableau[Allège vitrée]&Tableau[Vitrage]&Tableau[Sens Ouv]&Tableau[Petits bois]&Tableau[Allège maç]&Tableau[Mortaise]&Tableau[RAL]&Tableau[Dormant]&Tableau[GHI]&Tableau[Type de pose]&Tableau[OB]&Tableau[OB2]=W304&X304&Y304&Z304&AA304&AB304&AC304&AD304&AE304&AF304&AG304&AH304&AI304&AJ304&AK304)*1),\"\")","v":""},"←"]
[null,null,null,null,null,null,null,null,null,null,null,null,null,null,null,null,null,null,null,null,null,"→",null,null,null,null,null,null,null,null,null,null,null,null,null,null,null,null,{"$f":"IF(COUNTIF(W305:AK305,\"<>\"),SUMPRODUCT((Tableau[Hauteur]&Tableau[Largeur]&Tableau[Type]&Tableau[Allège vitrée]&Tableau[Vitrage]&Tableau[Sens Ouv]&Tableau[Petits bois]&Tableau[Allège maç]&Tableau[Mortaise]&Tableau[RAL]&Tableau[Dormant]&Tableau[GHI]&Tableau[Type de pose]&Tableau[OB]&Tableau[OB2]=W305&X305&Y305&Z305&AA305&AB305&AC305&AD305&AE305&AF305&AG305&AH305&AI305&AJ305&AK305)*1),\"\")","v":""},"←"]
[null,null,null,null,null,null,null,null,null,null,null,null,null,null,null,null,null,null,null,null,null,"→",null,null,null,null,null,null,null,null,null,null,null,null,null,null,null,null,{"$f":"IF(COUNTIF(W306:AK306,\"<>\"),SUMPRODUCT((Tableau[Hauteur]&Tableau[Largeur]&Tableau[Type]&Tableau[Allège vitrée]&Tableau[Vitrage]&Tableau[Sens Ouv]&Tableau[Petits bois]&Tableau[Allège maç]&Tableau[Mortaise]&Tableau[RAL]&Tableau[Dormant]&Tableau[GHI]&Tableau[Type de pose]&Tableau[OB]&Tableau[OB2]=W306&X306&Y306&Z306&AA306&AB306&AC306&AD306&AE306&AF306&AG306&AH306&AI306&AJ306&AK306)*1),\"\")","v":""},"←"]
[null,null,null,null,null,null,null,null,null,null,null,null,null,null,null,null,null,null,null,null,null,"→",null,null,null,null,null,null,null,null,null,null,null,null,null,null,null,null,{"$f":"IF(COUNTIF(W307:AK307,\"<>\"),SUMPRODUCT((Tableau[Hauteur]&Tableau[Largeur]&Tableau[Type]&Tableau[Allège vitrée]&Tableau[Vitrage]&Tableau[Sens Ouv]&Tableau[Petits bois]&Tableau[Allège maç]&Tableau[Mortaise]&Tableau[RAL]&Tableau[Dormant]&Tableau[GHI]&Tableau[Type de pose]&Tableau[OB]&Tableau[OB2]=W307&X307&Y307&Z307&AA307&AB307&AC307&AD307&AE307&AF307&AG307&AH307&AI307&AJ307&AK307)*1),\"\")","v":""},"←"]
[null,null,null,null,null,null,null,null,null,null,null,null,null,null,null,null,null,null,null,null,null,"→",null,null,null,null,null,null,null,null,null,null,null,null,null,null,null,null,{"$f":"IF(COUNTIF(W308:AK308,\"<>\"),SUMPRODUCT((Tableau[Hauteur]&Tableau[Largeur]&Tableau[Type]&Tableau[Allège vitrée]&Tableau[Vitrage]&Tableau[Sens Ouv]&Tableau[Petits bois]&Tableau[Allège maç]&Tableau[Mortaise]&Tableau[RAL]&Tableau[Dormant]&Tableau[GHI]&Tableau[Type de pose]&Tableau[OB]&Tableau[OB2]=W308&X308&Y308&Z308&AA308&AB308&AC308&AD308&AE308&AF308&AG308&AH308&AI308&AJ308&AK308)*1),\"\")","v":""},"←"]
[null,null,null,null,null,null,null,null,null,null,null,null,null,null,null,null,null,null,null,null,null,"→",null,null,null,null,null,null,null,null,null,null,null,null,null,null,null,null,{"$f":"IF(COUNTIF(W309:AK309,\"<>\"),SUMPRODUCT((Tableau[Hauteur]&Tableau[Largeur]&Tableau[Type]&Tableau[Allège vitrée]&Tableau[Vitrage]&Tableau[Sens Ouv]&Tableau[Petits bois]&Tableau[Allège maç]&Tableau[Mortaise]&Tableau[RAL]&Tableau[Dormant]&Tableau[GHI]&Tableau[Type de pose]&Tableau[OB]&Tableau[OB2]=W309&X309&Y309&Z309&AA309&AB309&AC309&AD309&AE309&AF309&AG309&AH309&AI309&AJ309&AK309)*1),\"\")","v":""},"←"]
[null,null,null,null,null,null,null,null,null,null,null,null,null,null,null,null,null,null,null,null,null,"→",null,null,null,null,null,null,null,null,null,null,null,null,null,null,null,null,{"$f":"IF(COUNTIF(W310:AK310,\"<>\"),SUMPRODUCT((Tableau[Hauteur]&Tableau[Largeur]&Tableau[Type]&Tableau[Allège vitrée]&Tableau[Vitrage]&Tableau[Sens Ouv]&Tableau[Petits bois]&Tableau[Allège maç]&Tableau[Mortaise]&Tableau[RAL]&Tableau[Dormant]&Tableau[GHI]&Tableau[Type de pose]&Tableau[OB]&Tableau[OB2]=W310&X310&Y310&Z310&AA310&AB310&AC310&AD310&AE310&AF310&AG310&AH310&AI310&AJ310&AK310)*1),\"\")","v":""},"←"]
[null,null,null,null,null,null,null,null,null,null,null,null,null,null,null,null,null,null,null,null,null,"→",null,null,null,null,null,null,null,null,null,null,null,null,null,null,null,null,{"$f":"IF(COUNTIF(W311:AK311,\"<>\"),SUMPRODUCT((Tableau[Hauteur]&Tableau[Largeur]&Tableau[Type]&Tableau[Allège vitrée]&Tableau[Vitrage]&Tableau[Sens Ouv]&Tableau[Petits bois]&Tableau[Allège maç]&Tableau[Mortaise]&Tableau[RAL]&Tableau[Dormant]&Tableau[GHI]&Tableau[Type de pose]&Tableau[OB]&Tableau[OB2]=W311&X311&Y311&Z311&AA311&AB311&AC311&AD311&AE311&AF311&AG311&AH311&AI311&AJ311&AK311)*1),\"\")","v":""},"←"]
[null,null,null,null,null,null,null,null,null,null,null,null,null,null,null,null,null,null,null,null,null,"→",null,null,null,null,null,null,null,null,null,null,null,null,null,null,null,null,{"$f":"IF(COUNTIF(W312:AK312,\"<>\"),SUMPRODUCT((Tableau[Hauteur]&Tableau[Largeur]&Tableau[Type]&Tableau[Allège vitrée]&Tableau[Vitrage]&Tableau[Sens Ouv]&Tableau[Petits bois]&Tableau[Allège maç]&Tableau[Mortaise]&Tableau[RAL]&Tableau[Dormant]&Tableau[GHI]&Tableau[Type de pose]&Tableau[OB]&Tableau[OB2]=W312&X312&Y312&Z312&AA312&AB312&AC312&AD312&AE312&AF312&AG312&AH312&AI312&AJ312&AK312)*1),\"\")","v":""},"←"]
[null,null,null,null,null,null,null,null,null,null,null,null,null,null,null,null,null,null,null,null,null,"→",null,null,null,null,null,null,null,null,null,null,null,null,null,null,null,null,{"$f":"IF(COUNTIF(W313:AK313,\"<>\"),SUMPRODUCT((Tableau[Hauteur]&Tableau[Largeur]&Tableau[Type]&Tableau[Allège vitrée]&Tableau[Vitrage]&Tableau[Sens Ouv]&Tableau[Petits bois]&Tableau[Allège maç]&Tableau[Mortaise]&Tableau[RAL]&Tableau[Dormant]&Tableau[GHI]&Tableau[Type de pose]&Tableau[OB]&Tableau[OB2]=W313&X313&Y313&Z313&AA313&AB313&AC313&AD313&AE313&AF313&AG313&AH313&AI313&AJ313&AK313)*1),\"\")","v":""},"←"]
[null,null,null,null,null,null,null,null,null,null,null,null,null,null,null,null,null,null,null,null,null,"→",null,null,null,null,null,null,null,null,null,null,null,null,null,null,null,null,{"$f":"IF(COUNTIF(W314:AK314,\"<>\"),SUMPRODUCT((Tableau[Hauteur]&Tableau[Largeur]&Tableau[Type]&Tableau[Allège vitrée]&Tableau[Vitrage]&Tableau[Sens Ouv]&Tableau[Petits bois]&Tableau[Allège maç]&Tableau[Mortaise]&Tableau[RAL]&Tableau[Dormant]&Tableau[GHI]&Tableau[Type de pose]&Tableau[OB]&Tableau[OB2]=W314&X314&Y314&Z314&AA314&AB314&AC314&AD314&AE314&AF314&AG314&AH314&AI314&AJ314&AK314)*1),\"\")","v":""},"←"]
[null,null,null,null,null,null,null,null,null,null,null,null,null,null,null,null,null,null,null,null,null,"→",null,null,null,null,null,null,null,null,null,null,null,null,null,null,null,null,{"$f":"IF(COUNTIF(W315:AK315,\"<>\"),SUMPRODUCT((Tableau[Hauteur]&Tableau[Largeur]&Tableau[Type]&Tableau[Allège vitrée]&Tableau[Vitrage]&Tableau[Sens Ouv]&Tableau[Petits bois]&Tableau[Allège maç]&Tableau[Mortaise]&Tableau[RAL]&Tableau[Dormant]&Tableau[GHI]&Tableau[Type de pose]&Tableau[OB]&Tableau[OB2]=W315&X315&Y315&Z315&AA315&AB315&AC315&AD315&AE315&AF315&AG315&AH315&AI315&AJ315&AK315)*1),\"\")","v":""},"←"]
[null,null,null,null,null,null,null,null,null,null,null,null,null,null,null,null,null,null,null,null,null,"→",null,null,null,null,null,null,null,null,null,null,null,null,null,null,null,null,{"$f":"IF(COUNTIF(W316:AK316,\"<>\"),SUMPRODUCT((Tableau[Hauteur]&Tableau[Largeur]&Tableau[Type]&Tableau[Allège vitrée]&Tableau[Vitrage]&Tableau[Sens Ouv]&Tableau[Petits bois]&Tableau[Allège maç]&Tableau[Mortaise]&Tableau[RAL]&Tableau[Dormant]&Tableau[GHI]&Tableau[Type de pose]&Tableau[OB]&Tableau[OB2]=W316&X316&Y316&Z316&AA316&AB316&AC316&AD316&AE316&AF316&AG316&AH316&AI316&AJ316&AK316)*1),\"\")","v":""},"←"]
[null,null,null,null,null,null,null,null,null,null,null,null,null,null,null,null,null,null,null,null,null,"→",null,null,null,null,null,null,null,null,null,null,null,null,null,null,null,null,{"$f":"IF(COUNTIF(W317:AK317,\"<>\"),SUMPRODUCT((Tableau[Hauteur]&Tableau[Largeur]&Tableau[Type]&Tableau[Allège vitrée]&Tableau[Vitrage]&Tableau[Sens Ouv]&Tableau[Petits bois]&Tableau[Allège maç]&Tableau[Mortaise]&Tableau[RAL]&Tableau[Dormant]&Tableau[GHI]&Tableau[Type de pose]&Tableau[OB]&Tableau[OB2]=W317&X317&Y317&Z317&AA317&AB317&AC317&AD317&AE317&AF317&AG317&AH317&AI317&AJ317&AK317)*1),\"\")","v":""},"←"]
[null,null,null,null,null,null,null,null,null,null,null,null,null,null,null,null,null,null,null,null,null,"→",null,null,null,null,null,null,null,null,null,null,null,null,null,null,null,null,{"$f":"IF(COUNTIF(W318:AK318,\"<>\"),SUMPRODUCT((Tableau[Hauteur]&Tableau[Largeur]&Tableau[Type]&Tableau[Allège vitrée]&Tableau[Vitrage]&Tableau[Sens Ouv]&Tableau[Petits bois]&Tableau[Allège maç]&Tableau[Mortaise]&Tableau[RAL]&Tableau[Dormant]&Tableau[GHI]&Tableau[Type de pose]&Tableau[OB]&Tableau[OB2]=W318&X318&Y318&Z318&AA318&AB318&AC318&AD318&AE318&AF318&AG318&AH318&AI318&AJ318&AK318)*1),\"\")","v":""},"←"]
[null,null,null,null,null,null,null,null,null,null,null,null,null,null,null,null,null,null,null,null,null,"→",null,null,null,null,null,null,null,null,null,null,null,null,null,null,null,null,{"$f":"IF(COUNTIF(W319:AK319,\"<>\"),SUMPRODUCT((Tableau[Hauteur]&Tableau[Largeur]&Tableau[Type]&Tableau[Allège vitrée]&Tableau[Vitrage]&Tableau[Sens Ouv]&Tableau[Petits bois]&Tableau[Allège maç]&Tableau[Mortaise]&Tableau[RAL]&Tableau[Dormant]&Tableau[GHI]&Tableau[Type de pose]&Tableau[OB]&Tableau[OB2]=W319&X319&Y319&Z319&AA319&AB319&AC319&AD319&AE319&AF319&AG319&AH319&AI319&AJ319&AK319)*1),\"\")","v":""},"←"]
[null,null,null,null,null,null,null,null,null,null,null,null,null,null,null,null,null,null,null,null,null,"→",null,null,null,null,null,null,null,null,null,null,null,null,null,null,null,null,{"$f":"IF(COUNTIF(W320:AK320,\"<>\"),SUMPRODUCT((Tableau[Hauteur]&Tableau[Largeur]&Tableau[Type]&Tableau[Allège vitrée]&Tableau[Vitrage]&Tableau[Sens Ouv]&Tableau[Petits bois]&Tableau[Allège maç]&Tableau[Mortaise]&Tableau[RAL]&Tableau[Dormant]&Tableau[GHI]&Tableau[Type de pose]&Tableau[OB]&Tableau[OB2]=W320&X320&Y320&Z320&AA320&AB320&AC320&AD320&AE320&AF320&AG320&AH320&AI320&AJ320&AK320)*1),\"\")","v":""},"←"]
[null,null,null,null,null,null,null,null,null,null,null,null,null,null,null,null,null,null,null,null,null,"→",null,null,null,null,null,null,null,null,null,null,null,null,null,null,null,null,{"$f":"IF(COUNTIF(W321:AK321,\"<>\"),SUMPRODUCT((Tableau[Hauteur]&Tableau[Largeur]&Tableau[Type]&Tableau[Allège vitrée]&Tableau[Vitrage]&Tableau[Sens Ouv]&Tableau[Petits bois]&Tableau[Allège maç]&Tableau[Mortaise]&Tableau[RAL]&Tableau[Dormant]&Tableau[GHI]&Tableau[Type de pose]&Tableau[OB]&Tableau[OB2]=W321&X321&Y321&Z321&AA321&AB321&AC321&AD321&AE321&AF321&AG321&AH321&AI321&AJ321&AK321)*1),\"\")","v":""},"←"]
[null,null,null,null,null,null,null,null,null,null,null,null,null,null,null,null,null,null,null,null,null,"→",null,null,null,null,null,null,null,null,null,null,null,null,null,null,null,null,{"$f":"IF(COUNTIF(W322:AK322,\"<>\"),SUMPRODUCT((Tableau[Hauteur]&Tableau[Largeur]&Tableau[Type]&Tableau[Allège vitrée]&Tableau[Vitrage]&Tableau[Sens Ouv]&Tableau[Petits bois]&Tableau[Allège maç]&Tableau[Mortaise]&Tableau[RAL]&Tableau[Dormant]&Tableau[GHI]&Tableau[Type de pose]&Tableau[OB]&Tableau[OB2]=W322&X322&Y322&Z322&AA322&AB322&AC322&AD322&AE322&AF322&AG322&AH322&AI322&AJ322&AK322)*1),\"\")","v":""},"←"]
[null,null,null,null,null,null,null,null,null,null,null,null,null,null,null,null,null,null,null,null,null,"→",null,null,null,null,null,null,null,null,null,null,null,null,null,null,null,null,{"$f":"IF(COUNTIF(W323:AK323,\"<>\"),SUMPRODUCT((Tableau[Hauteur]&Tableau[Largeur]&Tableau[Type]&Tableau[Allège vitrée]&Tableau[Vitrage]&Tableau[Sens Ouv]&Tableau[Petits bois]&Tableau[Allège maç]&Tableau[Mortaise]&Tableau[RAL]&Tableau[Dormant]&Tableau[GHI]&Tableau[Type de pose]&Tableau[OB]&Tableau[OB2]=W323&X323&Y323&Z323&AA323&AB323&AC323&AD323&AE323&AF323&AG323&AH323&AI323&AJ323&AK323)*1),\"\")","v":""},"←"]
[null,null,null,null,null,null,null,null,null,null,null,null,null,null,null,null,null,null,null,null,null,"→",null,null,null,null,null,null,null,null,null,null,null,null,null,null,null,null,{"$f":"IF(COUNTIF(W324:AK324,\"<>\"),SUMPRODUCT((Tableau[Hauteur]&Tableau[Largeur]&Tableau[Type]&Tableau[Allège vitrée]&Tableau[Vitrage]&Tableau[Sens Ouv]&Tableau[Petits bois]&Tableau[Allège maç]&Tableau[Mortaise]&Tableau[RAL]&Tableau[Dormant]&Tableau[GHI]&Tableau[Type de pose]&Tableau[OB]&Tableau[OB2]=W324&X324&Y324&Z324&AA324&AB324&AC324&AD324&AE324&AF324&AG324&AH324&AI324&AJ324&AK324)*1),\"\")","v":""},"←"]
[null,null,null,null,null,null,null,null,null,null,null,null,null,null,null,null,null,null,null,null,null,"→",null,null,null,null,null,null,null,null,null,null,null,null,null,null,null,null,{"$f":"IF(COUNTIF(W325:AK325,\"<>\"),SUMPRODUCT((Tableau[Hauteur]&Tableau[Largeur]&Tableau[Type]&Tableau[Allège vitrée]&Tableau[Vitrage]&Tableau[Sens Ouv]&Tableau[Petits bois]&Tableau[Allège maç]&Tableau[Mortaise]&Tableau[RAL]&Tableau[Dormant]&Tableau[GHI]&Tableau[Type de pose]&Tableau[OB]&Tableau[OB2]=W325&X325&Y325&Z325&AA325&AB325&AC325&AD325&AE325&AF325&AG325&AH325&AI325&AJ325&AK325)*1),\"\")","v":""},"←"]
[null,null,null,null,null,null,null,null,null,null,null,null,null,null,null,null,null,null,null,null,null,"→",null,null,null,null,null,null,null,null,null,null,null,null,null,null,null,null,{"$f":"IF(COUNTIF(W326:AK326,\"<>\"),SUMPRODUCT((Tableau[Hauteur]&Tableau[Largeur]&Tableau[Type]&Tableau[Allège vitrée]&Tableau[Vitrage]&Tableau[Sens Ouv]&Tableau[Petits bois]&Tableau[Allège maç]&Tableau[Mortaise]&Tableau[RAL]&Tableau[Dormant]&Tableau[GHI]&Tableau[Type de pose]&Tableau[OB]&Tableau[OB2]=W326&X326&Y326&Z326&AA326&AB326&AC326&AD326&AE326&AF326&AG326&AH326&AI326&AJ326&AK326)*1),\"\")","v":""},"←"]
[null,null,null,null,null,null,null,null,null,null,null,null,null,null,null,null,null,null,null,null,null,"→",null,null,null,null,null,null,null,null,null,null,null,null,null,null,null,null,{"$f":"IF(COUNTIF(W327:AK327,\"<>\"),SUMPRODUCT((Tableau[Hauteur]&Tableau[Largeur]&Tableau[Type]&Tableau[Allège vitrée]&Tableau[Vitrage]&Tableau[Sens Ouv]&Tableau[Petits bois]&Tableau[Allège maç]&Tableau[Mortaise]&Tableau[RAL]&Tableau[Dormant]&Tableau[GHI]&Tableau[Type de pose]&Tableau[OB]&Tableau[OB2]=W327&X327&Y327&Z327&AA327&AB327&AC327&AD327&AE327&AF327&AG327&AH327&AI327&AJ327&AK327)*1),\"\")","v":""},"←"]
[null,null,null,null,null,null,null,null,null,null,null,null,null,null,null,null,null,null,null,null,null,"→",null,null,null,null,null,null,null,null,null,null,null,null,null,null,null,null,{"$f":"IF(COUNTIF(W328:AK328,\"<>\"),SUMPRODUCT((Tableau[Hauteur]&Tableau[Largeur]&Tableau[Type]&Tableau[Allège vitrée]&Tableau[Vitrage]&Tableau[Sens Ouv]&Tableau[Petits bois]&Tableau[Allège maç]&Tableau[Mortaise]&Tableau[RAL]&Tableau[Dormant]&Tableau[GHI]&Tableau[Type de pose]&Tableau[OB]&Tableau[OB2]=W328&X328&Y328&Z328&AA328&AB328&AC328&AD328&AE328&AF328&AG328&AH328&AI328&AJ328&AK328)*1),\"\")","v":""},"←"]
[null,null,null,null,null,null,null,null,null,null,null,null,null,null,null,null,null,null,null,null,null,"→",null,null,null,null,null,null,null,null,null,null,null,null,null,null,null,null,{"$f":"IF(COUNTIF(W329:AK329,\"<>\"),SUMPRODUCT((Tableau[Hauteur]&Tableau[Largeur]&Tableau[Type]&Tableau[Allège vitrée]&Tableau[Vitrage]&Tableau[Sens Ouv]&Tableau[Petits bois]&Tableau[Allège maç]&Tableau[Mortaise]&Tableau[RAL]&Tableau[Dormant]&Tableau[GHI]&Tableau[Type de pose]&Tableau[OB]&Tableau[OB2]=W329&X329&Y329&Z329&AA329&AB329&AC329&AD329&AE329&AF329&AG329&AH329&AI329&AJ329&AK329)*1),\"\")","v":""},"←"]
[null,null,null,null,null,null,null,null,null,null,null,null,null,null,null,null,null,null,null,null,null,"→",null,null,null,null,null,null,null,null,null,null,null,null,null,null,null,null,{"$f":"IF(COUNTIF(W330:AK330,\"<>\"),SUMPRODUCT((Tableau[Hauteur]&Tableau[Largeur]&Tableau[Type]&Tableau[Allège vitrée]&Tableau[Vitrage]&Tableau[Sens Ouv]&Tableau[Petits bois]&Tableau[Allège maç]&Tableau[Mortaise]&Tableau[RAL]&Tableau[Dormant]&Tableau[GHI]&Tableau[Type de pose]&Tableau[OB]&Tableau[OB2]=W330&X330&Y330&Z330&AA330&AB330&AC330&AD330&AE330&AF330&AG330&AH330&AI330&AJ330&AK330)*1),\"\")","v":""},"←"]
[null,null,null,null,null,null,null,null,null,null,null,null,null,null,null,null,null,null,null,null,null,"→",null,null,null,null,null,null,null,null,null,null,null,null,null,null,null,null,{"$f":"IF(COUNTIF(W331:AK331,\"<>\"),SUMPRODUCT((Tableau[Hauteur]&Tableau[Largeur]&Tableau[Type]&Tableau[Allège vitrée]&Tableau[Vitrage]&Tableau[Sens Ouv]&Tableau[Petits bois]&Tableau[Allège maç]&Tableau[Mortaise]&Tableau[RAL]&Tableau[Dormant]&Tableau[GHI]&Tableau[Type de pose]&Tableau[OB]&Tableau[OB2]=W331&X331&Y331&Z331&AA331&AB331&AC331&AD331&AE331&AF331&AG331&AH331&AI331&AJ331&AK331)*1),\"\")","v":""},"←"]
[null,null,null,null,null,null,null,null,null,null,null,null,null,null,null,null,null,null,null,null,null,"→",null,null,null,null,null,null,null,null,null,null,null,null,null,null,null,null,{"$f":"IF(COUNTIF(W332:AK332,\"<>\"),SUMPRODUCT((Tableau[Hauteur]&Tableau[Largeur]&Tableau[Type]&Tableau[Allège vitrée]&Tableau[Vitrage]&Tableau[Sens Ouv]&Tableau[Petits bois]&Tableau[Allège maç]&Tableau[Mortaise]&Tableau[RAL]&Tableau[Dormant]&Tableau[GHI]&Tableau[Type de pose]&Tableau[OB]&Tableau[OB2]=W332&X332&Y332&Z332&AA332&AB332&AC332&AD332&AE332&AF332&AG332&AH332&AI332&AJ332&AK332)*1),\"\")","v":""},"←"]
[null,null,null,null,null,null,null,null,null,null,null,null,null,null,null,null,null,null,null,null,null,"→",null,null,null,null,null,null,null,null,null,null,null,null,null,null,null,null,{"$f":"IF(COUNTIF(W333:AK333,\"<>\"),SUMPRODUCT((Tableau[Hauteur]&Tableau[Largeur]&Tableau[Type]&Tableau[Allège vitrée]&Tableau[Vitrage]&Tableau[Sens Ouv]&Tableau[Petits bois]&Tableau[Allège maç]&Tableau[Mortaise]&Tableau[RAL]&Tableau[Dormant]&Tableau[GHI]&Tableau[Type de pose]&Tableau[OB]&Tableau[OB2]=W333&X333&Y333&Z333&AA333&AB333&AC333&AD333&AE333&AF333&AG333&AH333&AI333&AJ333&AK333)*1),\"\")","v":""},"←"]
[null,null,null,null,null,null,null,null,null,null,null,null,null,null,null,null,null,null,null,null,null,"→",null,null,null,null,null,null,null,null,null,null,null,null,null,null,null,null,{"$f":"IF(COUNTIF(W334:AK334,\"<>\"),SUMPRODUCT((Tableau[Hauteur]&Tableau[Largeur]&Tableau[Type]&Tableau[Allège vitrée]&Tableau[Vitrage]&Tableau[Sens Ouv]&Tableau[Petits bois]&Tableau[Allège maç]&Tableau[Mortaise]&Tableau[RAL]&Tableau[Dormant]&Tableau[GHI]&Tableau[Type de pose]&Tableau[OB]&Tableau[OB2]=W334&X334&Y334&Z334&AA334&AB334&AC334&AD334&AE334&AF334&AG334&AH334&AI334&AJ334&AK334)*1),\"\")","v":""},"←"]
[null,null,null,null,null,null,null,null,null,null,null,null,null,null,null,null,null,null,null,null,null,"→",null,null,null,null,null,null,null,null,null,null,null,null,null,null,null,null,{"$f":"IF(COUNTIF(W335:AK335,\"<>\"),SUMPRODUCT((Tableau[Hauteur]&Tableau[Largeur]&Tableau[Type]&Tableau[Allège vitrée]&Tableau[Vitrage]&Tableau[Sens Ouv]&Tableau[Petits bois]&Tableau[Allège maç]&Tableau[Mortaise]&Tableau[RAL]&Tableau[Dormant]&Tableau[GHI]&Tableau[Type de pose]&Tableau[OB]&Tableau[OB2]=W335&X335&Y335&Z335&AA335&AB335&AC335&AD335&AE335&AF335&AG335&AH335&AI335&AJ335&AK335)*1),\"\")","v":""},"←"]
[null,null,null,null,null,null,null,null,null,null,null,null,null,null,null,null,null,null,null,null,null,"→",null,null,null,null,null,null,null,null,null,null,null,null,null,null,null,null,{"$f":"IF(COUNTIF(W336:AK336,\"<>\"),SUMPRODUCT((Tableau[Hauteur]&Tableau[Largeur]&Tableau[Type]&Tableau[Allège vitrée]&Tableau[Vitrage]&Tableau[Sens Ouv]&Tableau[Petits bois]&Tableau[Allège maç]&Tableau[Mortaise]&Tableau[RAL]&Tableau[Dormant]&Tableau[GHI]&Tableau[Type de pose]&Tableau[OB]&Tableau[OB2]=W336&X336&Y336&Z336&AA336&AB336&AC336&AD336&AE336&AF336&AG336&AH336&AI336&AJ336&AK336)*1),\"\")","v":""},"←"]
[null,null,null,null,null,null,null,null,null,null,null,null,null,null,null,null,null,null,null,null,null,"→",null,null,null,null,null,null,null,null,null,null,null,null,null,null,null,null,{"$f":"IF(COUNTIF(W337:AK337,\"<>\"),SUMPRODUCT((Tableau[Hauteur]&Tableau[Largeur]&Tableau[Type]&Tableau[Allège vitrée]&Tableau[Vitrage]&Tableau[Sens Ouv]&Tableau[Petits bois]&Tableau[Allège maç]&Tableau[Mortaise]&Tableau[RAL]&Tableau[Dormant]&Tableau[GHI]&Tableau[Type de pose]&Tableau[OB]&Tableau[OB2]=W337&X337&Y337&Z337&AA337&AB337&AC337&AD337&AE337&AF337&AG337&AH337&AI337&AJ337&AK337)*1),\"\")","v":""},"←"]
[null,null,null,null,null,null,null,null,null,null,null,null,null,null,null,null,null,null,null,null,null,"→",null,null,null,null,null,null,null,null,null,null,null,null,null,null,null,null,{"$f":"IF(COUNTIF(W338:AK338,\"<>\"),SUMPRODUCT((Tableau[Hauteur]&Tableau[Largeur]&Tableau[Type]&Tableau[Allège vitrée]&Tableau[Vitrage]&Tableau[Sens Ouv]&Tableau[Petits bois]&Tableau[Allège maç]&Tableau[Mortaise]&Tableau[RAL]&Tableau[Dormant]&Tableau[GHI]&Tableau[Type de pose]&Tableau[OB]&Tableau[OB2]=W338&X338&Y338&Z338&AA338&AB338&AC338&AD338&AE338&AF338&AG338&AH338&AI338&AJ338&AK338)*1),\"\")","v":""},"←"]
[null,null,null,null,null,null,null,null,null,null,null,null,null,null,null,null,null,null,null,null,null,"→",null,null,null,null,null,null,null,null,null,null,null,null,null,null,null,null,{"$f":"IF(COUNTIF(W339:AK339,\"<>\"),SUMPRODUCT((Tableau[Hauteur]&Tableau[Largeur]&Tableau[Type]&Tableau[Allège vitrée]&Tableau[Vitrage]&Tableau[Sens Ouv]&Tableau[Petits bois]&Tableau[Allège maç]&Tableau[Mortaise]&Tableau[RAL]&Tableau[Dormant]&Tableau[GHI]&Tableau[Type de pose]&Tableau[OB]&Tableau[OB2]=W339&X339&Y339&Z339&AA339&AB339&AC339&AD339&AE339&AF339&AG339&AH339&AI339&AJ339&AK339)*1),\"\")","v":""},"←"]
[null,null,null,null,null,null,null,null,null,null,null,null,null,null,null,null,null,null,null,null,null,"→",null,null,null,null,null,null,null,null,null,null,null,null,null,null,null,null,{"$f":"IF(COUNTIF(W340:AK340,\"<>\"),SUMPRODUCT((Tableau[Hauteur]&Tableau[Largeur]&Tableau[Type]&Tableau[Allège vitrée]&Tableau[Vitrage]&Tableau[Sens Ouv]&Tableau[Petits bois]&Tableau[Allège maç]&Tableau[Mortaise]&Tableau[RAL]&Tableau[Dormant]&Tableau[GHI]&Tableau[Type de pose]&Tableau[OB]&Tableau[OB2]=W340&X340&Y340&Z340&AA340&AB340&AC340&AD340&AE340&AF340&AG340&AH340&AI340&AJ340&AK340)*1),\"\")","v":""},"←"]
[null,null,null,null,null,null,null,null,null,null,null,null,null,null,null,null,null,null,null,null,null,"→",null,null,null,null,null,null,null,null,null,null,null,null,null,null,null,null,{"$f":"IF(COUNTIF(W341:AK341,\"<>\"),SUMPRODUCT((Tableau[Hauteur]&Tableau[Largeur]&Tableau[Type]&Tableau[Allège vitrée]&Tableau[Vitrage]&Tableau[Sens Ouv]&Tableau[Petits bois]&Tableau[Allège maç]&Tableau[Mortaise]&Tableau[RAL]&Tableau[Dormant]&Tableau[GHI]&Tableau[Type de pose]&Tableau[OB]&Tableau[OB2]=W341&X341&Y341&Z341&AA341&AB341&AC341&AD341&AE341&AF341&AG341&AH341&AI341&AJ341&AK341)*1),\"\")","v":""},"←"]
[null,null,null,null,null,null,null,null,null,null,null,null,null,null,null,null,null,null,null,null,null,"→",null,null,null,null,null,null,null,null,null,null,null,null,null,null,null,null,{"$f":"IF(COUNTIF(W342:AK342,\"<>\"),SUMPRODUCT((Tableau[Hauteur]&Tableau[Largeur]&Tableau[Type]&Tableau[Allège vitrée]&Tableau[Vitrage]&Tableau[Sens Ouv]&Tableau[Petits bois]&Tableau[Allège maç]&Tableau[Mortaise]&Tableau[RAL]&Tableau[Dormant]&Tableau[GHI]&Tableau[Type de pose]&Tableau[OB]&Tableau[OB2]=W342&X342&Y342&Z342&AA342&AB342&AC342&AD342&AE342&AF342&AG342&AH342&AI342&AJ342&AK342)*1),\"\")","v":""},"←"]
[null,null,null,null,null,null,null,null,null,null,null,null,null,null,null,null,null,null,null,null,null,"→",null,null,null,null,null,null,null,null,null,null,null,null,null,null,null,null,{"$f":"IF(COUNTIF(W343:AK343,\"<>\"),SUMPRODUCT((Tableau[Hauteur]&Tableau[Largeur]&Tableau[Type]&Tableau[Allège vitrée]&Tableau[Vitrage]&Tableau[Sens Ouv]&Tableau[Petits bois]&Tableau[Allège maç]&Tableau[Mortaise]&Tableau[RAL]&Tableau[Dormant]&Tableau[GHI]&Tableau[Type de pose]&Tableau[OB]&Tableau[OB2]=W343&X343&Y343&Z343&AA343&AB343&AC343&AD343&AE343&AF343&AG343&AH343&AI343&AJ343&AK343)*1),\"\")","v":""},"←"]
[null,null,null,null,null,null,null,null,null,null,null,null,null,null,null,null,null,null,null,null,null,"→",null,null,null,null,null,null,null,null,null,null,null,null,null,null,null,null,{"$f":"IF(COUNTIF(W344:AK344,\"<>\"),SUMPRODUCT((Tableau[Hauteur]&Tableau[Largeur]&Tableau[Type]&Tableau[Allège vitrée]&Tableau[Vitrage]&Tableau[Sens Ouv]&Tableau[Petits bois]&Tableau[Allège maç]&Tableau[Mortaise]&Tableau[RAL]&Tableau[Dormant]&Tableau[GHI]&Tableau[Type de pose]&Tableau[OB]&Tableau[OB2]=W344&X344&Y344&Z344&AA344&AB344&AC344&AD344&AE344&AF344&AG344&AH344&AI344&AJ344&AK344)*1),\"\")","v":""},"←"]
[null,null,null,null,null,null,null,null,null,null,null,null,null,null,null,null,null,null,null,null,null,"→",null,null,null,null,null,null,null,null,null,null,null,null,null,null,null,null,{"$f":"IF(COUNTIF(W345:AK345,\"<>\"),SUMPRODUCT((Tableau[Hauteur]&Tableau[Largeur]&Tableau[Type]&Tableau[Allège vitrée]&Tableau[Vitrage]&Tableau[Sens Ouv]&Tableau[Petits bois]&Tableau[Allège maç]&Tableau[Mortaise]&Tableau[RAL]&Tableau[Dormant]&Tableau[GHI]&Tableau[Type de pose]&Tableau[OB]&Tableau[OB2]=W345&X345&Y345&Z345&AA345&AB345&AC345&AD345&AE345&AF345&AG345&AH345&AI345&AJ345&AK345)*1),\"\")","v":""},"←"]
[null,null,null,null,null,null,null,null,null,null,null,null,null,null,null,null,null,null,null,null,null,"→",null,null,null,null,null,null,null,null,null,null,null,null,null,null,null,null,{"$f":"IF(COUNTIF(W346:AK346,\"<>\"),SUMPRODUCT((Tableau[Hauteur]&Tableau[Largeur]&Tableau[Type]&Tableau[Allège vitrée]&Tableau[Vitrage]&Tableau[Sens Ouv]&Tableau[Petits bois]&Tableau[Allège maç]&Tableau[Mortaise]&Tableau[RAL]&Tableau[Dormant]&Tableau[GHI]&Tableau[Type de pose]&Tableau[OB]&Tableau[OB2]=W346&X346&Y346&Z346&AA346&AB346&AC346&AD346&AE346&AF346&AG346&AH346&AI346&AJ346&AK346)*1),\"\")","v":""},"←"]
[null,null,null,null,null,null,null,null,null,null,null,null,null,null,null,null,null,null,null,null,null,"→",null,null,null,null,null,null,null,null,null,null,null,null,null,null,null,null,{"$f":"IF(COUNTIF(W347:AK347,\"<>\"),SUMPRODUCT((Tableau[Hauteur]&Tableau[Largeur]&Tableau[Type]&Tableau[Allège vitrée]&Tableau[Vitrage]&Tableau[Sens Ouv]&Tableau[Petits bois]&Tableau[Allège maç]&Tableau[Mortaise]&Tableau[RAL]&Tableau[Dormant]&Tableau[GHI]&Tableau[Type de pose]&Tableau[OB]&Tableau[OB2]=W347&X347&Y347&Z347&AA347&AB347&AC347&AD347&AE347&AF347&AG347&AH347&AI347&AJ347&AK347)*1),\"\")","v":""},"←"]
[null,null,null,null,null,null,null,null,null,null,null,null,null,null,null,null,null,null,null,null,null,"→",null,null,null,null,null,null,null,null,null,null,null,null,null,null,null,null,{"$f":"IF(COUNTIF(W348:AK348,\"<>\"),SUMPRODUCT((Tableau[Hauteur]&Tableau[Largeur]&Tableau[Type]&Tableau[Allège vitrée]&Tableau[Vitrage]&Tableau[Sens Ouv]&Tableau[Petits bois]&Tableau[Allège maç]&Tableau[Mortaise]&Tableau[RAL]&Tableau[Dormant]&Tableau[GHI]&Tableau[Type de pose]&Tableau[OB]&Tableau[OB2]=W348&X348&Y348&Z348&AA348&AB348&AC348&AD348&AE348&AF348&AG348&AH348&AI348&AJ348&AK348)*1),\"\")","v":""},"←"]
[null,null,null,null,null,null,null,null,null,null,null,null,null,null,null,null,null,null,null,null,null,"→",null,null,null,null,null,null,null,null,null,null,null,null,null,null,null,null,{"$f":"IF(COUNTIF(W349:AK349,\"<>\"),SUMPRODUCT((Tableau[Hauteur]&Tableau[Largeur]&Tableau[Type]&Tableau[Allège vitrée]&Tableau[Vitrage]&Tableau[Sens Ouv]&Tableau[Petits bois]&Tableau[Allège maç]&Tableau[Mortaise]&Tableau[RAL]&Tableau[Dormant]&Tableau[GHI]&Tableau[Type de pose]&Tableau[OB]&Tableau[OB2]=W349&X349&Y349&Z349&AA349&AB349&AC349&AD349&AE349&AF349&AG349&AH349&AI349&AJ349&AK349)*1),\"\")","v":""},"←"]
[null,null,null,null,null,null,null,null,null,null,null,null,null,null,null,null,null,null,null,null,null,"→",null,null,null,null,null,null,null,null,null,null,null,null,null,null,null,null,{"$f":"IF(COUNTIF(W350:AK350,\"<>\"),SUMPRODUCT((Tableau[Hauteur]&Tableau[Largeur]&Tableau[Type]&Tableau[Allège vitrée]&Tableau[Vitrage]&Tableau[Sens Ouv]&Tableau[Petits bois]&Tableau[Allège maç]&Tableau[Mortaise]&Tableau[RAL]&Tableau[Dormant]&Tableau[GHI]&Tableau[Type de pose]&Tableau[OB]&Tableau[OB2]=W350&X350&Y350&Z350&AA350&AB350&AC350&AD350&AE350&AF350&AG350&AH350&AI350&AJ350&AK350)*1),\"\")","v":""},"←"]
[null,null,null,null,null,null,null,null,null,null,null,null,null,null,null,null,null,null,null,null,null,"→",null,null,null,null,null,null,null,null,null,null,null,null,null,null,null,null,{"$f":"IF(COUNTIF(W351:AK351,\"<>\"),SUMPRODUCT((Tableau[Hauteur]&Tableau[Largeur]&Tableau[Type]&Tableau[Allège vitrée]&Tableau[Vitrage]&Tableau[Sens Ouv]&Tableau[Petits bois]&Tableau[Allège maç]&Tableau[Mortaise]&Tableau[RAL]&Tableau[Dormant]&Tableau[GHI]&Tableau[Type de pose]&Tableau[OB]&Tableau[OB2]=W351&X351&Y351&Z351&AA351&AB351&AC351&AD351&AE351&AF351&AG351&AH351&AI351&AJ351&AK351)*1),\"\")","v":""},"←"]
[null,null,null,null,null,null,null,null,null,null,null,null,null,null,null,null,null,null,null,null,null,"→",null,null,null,null,null,null,null,null,null,null,null,null,null,null,null,null,{"$f":"IF(COUNTIF(W352:AK352,\"<>\"),SUMPRODUCT((Tableau[Hauteur]&Tableau[Largeur]&Tableau[Type]&Tableau[Allège vitrée]&Tableau[Vitrage]&Tableau[Sens Ouv]&Tableau[Petits bois]&Tableau[Allège maç]&Tableau[Mortaise]&Tableau[RAL]&Tableau[Dormant]&Tableau[GHI]&Tableau[Type de pose]&Tableau[OB]&Tableau[OB2]=W352&X352&Y352&Z352&AA352&AB352&AC352&AD352&AE352&AF352&AG352&AH352&AI352&AJ352&AK352)*1),\"\")","v":""},"←"]
[null,null,null,null,null,null,null,null,null,null,null,null,null,null,null,null,null,null,null,null,null,"→",null,null,null,null,null,null,null,null,null,null,null,null,null,null,null,null,{"$f":"IF(COUNTIF(W353:AK353,\"<>\"),SUMPRODUCT((Tableau[Hauteur]&Tableau[Largeur]&Tableau[Type]&Tableau[Allège vitrée]&Tableau[Vitrage]&Tableau[Sens Ouv]&Tableau[Petits bois]&Tableau[Allège maç]&Tableau[Mortaise]&Tableau[RAL]&Tableau[Dormant]&Tableau[GHI]&Tableau[Type de pose]&Tableau[OB]&Tableau[OB2]=W353&X353&Y353&Z353&AA353&AB353&AC353&AD353&AE353&AF353&AG353&AH353&AI353&AJ353&AK353)*1),\"\")","v":""},"←"]
[null,null,null,null,null,null,null,null,null,null,null,null,null,null,null,null,null,null,null,null,null,"→",null,null,null,null,null,null,null,null,null,null,null,null,null,null,null,null,{"$f":"IF(COUNTIF(W354:AK354,\"<>\"),SUMPRODUCT((Tableau[Hauteur]&Tableau[Largeur]&Tableau[Type]&Tableau[Allège vitrée]&Tableau[Vitrage]&Tableau[Sens Ouv]&Tableau[Petits bois]&Tableau[Allège maç]&Tableau[Mortaise]&Tableau[RAL]&Tableau[Dormant]&Tableau[GHI]&Tableau[Type de pose]&Tableau[OB]&Tableau[OB2]=W354&X354&Y354&Z354&AA354&AB354&AC354&AD354&AE354&AF354&AG354&AH354&AI354&AJ354&AK354)*1),\"\")","v":""},"←"]
[null,null,null,null,null,null,null,null,null,null,null,null,null,null,null,null,null,null,null,null,null,"→",null,null,null,null,null,null,null,null,null,null,null,null,null,null,null,null,{"$f":"IF(COUNTIF(W355:AK355,\"<>\"),SUMPRODUCT((Tableau[Hauteur]&Tableau[Largeur]&Tableau[Type]&Tableau[Allège vitrée]&Tableau[Vitrage]&Tableau[Sens Ouv]&Tableau[Petits bois]&Tableau[Allège maç]&Tableau[Mortaise]&Tableau[RAL]&Tableau[Dormant]&Tableau[GHI]&Tableau[Type de pose]&Tableau[OB]&Tableau[OB2]=W355&X355&Y355&Z355&AA355&AB355&AC355&AD355&AE355&AF355&AG355&AH355&AI355&AJ355&AK355)*1),\"\")","v":""},"←"]
[null,null,null,null,null,null,null,null,null,null,null,null,null,null,null,null,null,null,null,null,null,"→",null,null,null,null,null,null,null,null,null,null,null,null,null,null,null,null,{"$f":"IF(COUNTIF(W356:AK356,\"<>\"),SUMPRODUCT((Tableau[Hauteur]&Tableau[Largeur]&Tableau[Type]&Tableau[Allège vitrée]&Tableau[Vitrage]&Tableau[Sens Ouv]&Tableau[Petits bois]&Tableau[Allège maç]&Tableau[Mortaise]&Tableau[RAL]&Tableau[Dormant]&Tableau[GHI]&Tableau[Type de pose]&Tableau[OB]&Tableau[OB2]=W356&X356&Y356&Z356&AA356&AB356&AC356&AD356&AE356&AF356&AG356&AH356&AI356&AJ356&AK356)*1),\"\")","v":""},"←"]
[null,null,null,null,null,null,null,null,null,null,null,null,null,null,null,null,null,null,null,null,null,"→",null,null,null,null,null,null,null,null,null,null,null,null,null,null,null,null,{"$f":"IF(COUNTIF(W357:AK357,\"<>\"),SUMPRODUCT((Tableau[Hauteur]&Tableau[Largeur]&Tableau[Type]&Tableau[Allège vitrée]&Tableau[Vitrage]&Tableau[Sens Ouv]&Tableau[Petits bois]&Tableau[Allège maç]&Tableau[Mortaise]&Tableau[RAL]&Tableau[Dormant]&Tableau[GHI]&Tableau[Type de pose]&Tableau[OB]&Tableau[OB2]=W357&X357&Y357&Z357&AA357&AB357&AC357&AD357&AE357&AF357&AG357&AH357&AI357&AJ357&AK357)*1),\"\")","v":""},"←"]
[null,null,null,null,null,null,null,null,null,null,null,null,null,null,null,null,null,null,null,null,null,"→",null,null,null,null,null,null,null,null,null,null,null,null,null,null,null,null,{"$f":"IF(COUNTIF(W358:AK358,\"<>\"),SUMPRODUCT((Tableau[Hauteur]&Tableau[Largeur]&Tableau[Type]&Tableau[Allège vitrée]&Tableau[Vitrage]&Tableau[Sens Ouv]&Tableau[Petits bois]&Tableau[Allège maç]&Tableau[Mortaise]&Tableau[RAL]&Tableau[Dormant]&Tableau[GHI]&Tableau[Type de pose]&Tableau[OB]&Tableau[OB2]=W358&X358&Y358&Z358&AA358&AB358&AC358&AD358&AE358&AF358&AG358&AH358&AI358&AJ358&AK358)*1),\"\")","v":""},"←"]
[null,null,null,null,null,null,null,null,null,null,null,null,null,null,null,null,null,null,null,null,null,"→",null,null,null,null,null,null,null,null,null,null,null,null,null,null,null,null,{"$f":"IF(COUNTIF(W359:AK359,\"<>\"),SUMPRODUCT((Tableau[Hauteur]&Tableau[Largeur]&Tableau[Type]&Tableau[Allège vitrée]&Tableau[Vitrage]&Tableau[Sens Ouv]&Tableau[Petits bois]&Tableau[Allège maç]&Tableau[Mortaise]&Tableau[RAL]&Tableau[Dormant]&Tableau[GHI]&Tableau[Type de pose]&Tableau[OB]&Tableau[OB2]=W359&X359&Y359&Z359&AA359&AB359&AC359&AD359&AE359&AF359&AG359&AH359&AI359&AJ359&AK359)*1),\"\")","v":""},"←"]
[null,null,null,null,null,null,null,null,null,null,null,null,null,null,null,null,null,null,null,null,null,"→",null,null,null,null,null,null,null,null,null,null,null,null,null,null,null,null,{"$f":"IF(COUNTIF(W360:AK360,\"<>\"),SUMPRODUCT((Tableau[Hauteur]&Tableau[Largeur]&Tableau[Type]&Tableau[Allège vitrée]&Tableau[Vitrage]&Tableau[Sens Ouv]&Tableau[Petits bois]&Tableau[Allège maç]&Tableau[Mortaise]&Tableau[RAL]&Tableau[Dormant]&Tableau[GHI]&Tableau[Type de pose]&Tableau[OB]&Tableau[OB2]=W360&X360&Y360&Z360&AA360&AB360&AC360&AD360&AE360&AF360&AG360&AH360&AI360&AJ360&AK360)*1),\"\")","v":""},"←"]
[null,null,null,null,null,null,null,null,null,null,null,null,null,null,null,null,null,null,null,null,null,"→",null,null,null,null,null,null,null,null,null,null,null,null,null,null,null,null,{"$f":"IF(COUNTIF(W361:AK361,\"<>\"),SUMPRODUCT((Tableau[Hauteur]&Tableau[Largeur]&Tableau[Type]&Tableau[Allège vitrée]&Tableau[Vitrage]&Tableau[Sens Ouv]&Tableau[Petits bois]&Tableau[Allège maç]&Tableau[Mortaise]&Tableau[RAL]&Tableau[Dormant]&Tableau[GHI]&Tableau[Type de pose]&Tableau[OB]&Tableau[OB2]=W361&X361&Y361&Z361&AA361&AB361&AC361&AD361&AE361&AF361&AG361&AH361&AI361&AJ361&AK361)*1),\"\")","v":""},"←"]
[null,null,null,null,null,null,null,null,null,null,null,null,null,null,null,null,null,null,null,null,null,"→",null,null,null,null,null,null,null,null,null,null,null,null,null,null,null,null,{"$f":"IF(COUNTIF(W362:AK362,\"<>\"),SUMPRODUCT((Tableau[Hauteur]&Tableau[Largeur]&Tableau[Type]&Tableau[Allège vitrée]&Tableau[Vitrage]&Tableau[Sens Ouv]&Tableau[Petits bois]&Tableau[Allège maç]&Tableau[Mortaise]&Tableau[RAL]&Tableau[Dormant]&Tableau[GHI]&Tableau[Type de pose]&Tableau[OB]&Tableau[OB2]=W362&X362&Y362&Z362&AA362&AB362&AC362&AD362&AE362&AF362&AG362&AH362&AI362&AJ362&AK362)*1),\"\")","v":""},"←"]
[null,null,null,null,null,null,null,null,null,null,null,null,null,null,null,null,null,null,null,null,null,"→",null,null,null,null,null,null,null,null,null,null,null,null,null,null,null,null,{"$f":"IF(COUNTIF(W363:AK363,\"<>\"),SUMPRODUCT((Tableau[Hauteur]&Tableau[Largeur]&Tableau[Type]&Tableau[Allège vitrée]&Tableau[Vitrage]&Tableau[Sens Ouv]&Tableau[Petits bois]&Tableau[Allège maç]&Tableau[Mortaise]&Tableau[RAL]&Tableau[Dormant]&Tableau[GHI]&Tableau[Type de pose]&Tableau[OB]&Tableau[OB2]=W363&X363&Y363&Z363&AA363&AB363&AC363&AD363&AE363&AF363&AG363&AH363&AI363&AJ363&AK363)*1),\"\")","v":""},"←"]
[null,null,null,null,null,null,null,null,null,null,null,null,null,null,null,null,null,null,null,null,null,"→",null,null,null,null,null,null,null,null,null,null,null,null,null,null,null,null,{"$f":"IF(COUNTIF(W364:AK364,\"<>\"),SUMPRODUCT((Tableau[Hauteur]&Tableau[Largeur]&Tableau[Type]&Tableau[Allège vitrée]&Tableau[Vitrage]&Tableau[Sens Ouv]&Tableau[Petits bois]&Tableau[Allège maç]&Tableau[Mortaise]&Tableau[RAL]&Tableau[Dormant]&Tableau[GHI]&Tableau[Type de pose]&Tableau[OB]&Tableau[OB2]=W364&X364&Y364&Z364&AA364&AB364&AC364&AD364&AE364&AF364&AG364&AH364&AI364&AJ364&AK364)*1),\"\")","v":""},"←"]
[null,null,null,null,null,null,null,null,null,null,null,null,null,null,null,null,null,null,null,null,null,"→",null,null,null,null,null,null,null,null,null,null,null,null,null,null,null,null,{"$f":"IF(COUNTIF(W365:AK365,\"<>\"),SUMPRODUCT((Tableau[Hauteur]&Tableau[Largeur]&Tableau[Type]&Tableau[Allège vitrée]&Tableau[Vitrage]&Tableau[Sens Ouv]&Tableau[Petits bois]&Tableau[Allège maç]&Tableau[Mortaise]&Tableau[RAL]&Tableau[Dormant]&Tableau[GHI]&Tableau[Type de pose]&Tableau[OB]&Tableau[OB2]=W365&X365&Y365&Z365&AA365&AB365&AC365&AD365&AE365&AF365&AG365&AH365&AI365&AJ365&AK365)*1),\"\")","v":""},"←"]
[null,null,null,null,null,null,null,null,null,null,null,null,null,null,null,null,null,null,null,null,null,"→",null,null,null,null,null,null,null,null,null,null,null,null,null,null,null,null,{"$f":"IF(COUNTIF(W366:AK366,\"<>\"),SUMPRODUCT((Tableau[Hauteur]&Tableau[Largeur]&Tableau[Type]&Tableau[Allège vitrée]&Tableau[Vitrage]&Tableau[Sens Ouv]&Tableau[Petits bois]&Tableau[Allège maç]&Tableau[Mortaise]&Tableau[RAL]&Tableau[Dormant]&Tableau[GHI]&Tableau[Type de pose]&Tableau[OB]&Tableau[OB2]=W366&X366&Y366&Z366&AA366&AB366&AC366&AD366&AE366&AF366&AG366&AH366&AI366&AJ366&AK366)*1),\"\")","v":""},"←"]
[null,null,null,null,null,null,null,null,null,null,null,null,null,null,null,null,null,null,null,null,null,"→",null,null,null,null,null,null,null,null,null,null,null,null,null,null,null,null,{"$f":"IF(COUNTIF(W367:AK367,\"<>\"),SUMPRODUCT((Tableau[Hauteur]&Tableau[Largeur]&Tableau[Type]&Tableau[Allège vitrée]&Tableau[Vitrage]&Tableau[Sens Ouv]&Tableau[Petits bois]&Tableau[Allège maç]&Tableau[Mortaise]&Tableau[RAL]&Tableau[Dormant]&Tableau[GHI]&Tableau[Type de pose]&Tableau[OB]&Tableau[OB2]=W367&X367&Y367&Z367&AA367&AB367&AC367&AD367&AE367&AF367&AG367&AH367&AI367&AJ367&AK367)*1),\"\")","v":""},"←"]
[null,null,null,null,null,null,null,null,null,null,null,null,null,null,null,null,null,null,null,null,null,"→",null,null,null,null,null,null,null,null,null,null,null,null,null,null,null,null,{"$f":"IF(COUNTIF(W368:AK368,\"<>\"),SUMPRODUCT((Tableau[Hauteur]&Tableau[Largeur]&Tableau[Type]&Tableau[Allège vitrée]&Tableau[Vitrage]&Tableau[Sens Ouv]&Tableau[Petits bois]&Tableau[Allège maç]&Tableau[Mortaise]&Tableau[RAL]&Tableau[Dormant]&Tableau[GHI]&Tableau[Type de pose]&Tableau[OB]&Tableau[OB2]=W368&X368&Y368&Z368&AA368&AB368&AC368&AD368&AE368&AF368&AG368&AH368&AI368&AJ368&AK368)*1),\"\")","v":""},"←"]
[null,null,null,null,null,null,null,null,null,null,null,null,null,null,null,null,null,null,null,null,null,"→",null,null,null,null,null,null,null,null,null,null,null,null,null,null,null,null,{"$f":"IF(COUNTIF(W369:AK369,\"<>\"),SUMPRODUCT((Tableau[Hauteur]&Tableau[Largeur]&Tableau[Type]&Tableau[Allège vitrée]&Tableau[Vitrage]&Tableau[Sens Ouv]&Tableau[Petits bois]&Tableau[Allège maç]&Tableau[Mortaise]&Tableau[RAL]&Tableau[Dormant]&Tableau[GHI]&Tableau[Type de pose]&Tableau[OB]&Tableau[OB2]=W369&X369&Y369&Z369&AA369&AB369&AC369&AD369&AE369&AF369&AG369&AH369&AI369&AJ369&AK369)*1),\"\")","v":""},"←"]
[null,null,null,null,null,null,null,null,null,null,null,null,null,null,null,null,null,null,null,null,null,"→",null,null,null,null,null,null,null,null,null,null,null,null,null,null,null,null,{"$f":"IF(COUNTIF(W370:AK370,\"<>\"),SUMPRODUCT((Tableau[Hauteur]&Tableau[Largeur]&Tableau[Type]&Tableau[Allège vitrée]&Tableau[Vitrage]&Tableau[Sens Ouv]&Tableau[Petits bois]&Tableau[Allège maç]&Tableau[Mortaise]&Tableau[RAL]&Tableau[Dormant]&Tableau[GHI]&Tableau[Type de pose]&Tableau[OB]&Tableau[OB2]=W370&X370&Y370&Z370&AA370&AB370&AC370&AD370&AE370&AF370&AG370&AH370&AI370&AJ370&AK370)*1),\"\")","v":""},"←"]
[null,null,null,null,null,null,null,null,null,null,null,null,null,null,null,null,null,null,null,null,null,"→",null,null,null,null,null,null,null,null,null,null,null,null,null,null,null,null,{"$f":"IF(COUNTIF(W371:AK371,\"<>\"),SUMPRODUCT((Tableau[Hauteur]&Tableau[Largeur]&Tableau[Type]&Tableau[Allège vitrée]&Tableau[Vitrage]&Tableau[Sens Ouv]&Tableau[Petits bois]&Tableau[Allège maç]&Tableau[Mortaise]&Tableau[RAL]&Tableau[Dormant]&Tableau[GHI]&Tableau[Type de pose]&Tableau[OB]&Tableau[OB2]=W371&X371&Y371&Z371&AA371&AB371&AC371&AD371&AE371&AF371&AG371&AH371&AI371&AJ371&AK371)*1),\"\")","v":""},"←"]
[null,null,null,null,null,null,null,null,null,null,null,null,null,null,null,null,null,null,null,null,null,"→",null,null,null,null,null,null,null,null,null,null,null,null,null,null,null,null,{"$f":"IF(COUNTIF(W372:AK372,\"<>\"),SUMPRODUCT((Tableau[Hauteur]&Tableau[Largeur]&Tableau[Type]&Tableau[Allège vitrée]&Tableau[Vitrage]&Tableau[Sens Ouv]&Tableau[Petits bois]&Tableau[Allège maç]&Tableau[Mortaise]&Tableau[RAL]&Tableau[Dormant]&Tableau[GHI]&Tableau[Type de pose]&Tableau[OB]&Tableau[OB2]=W372&X372&Y372&Z372&AA372&AB372&AC372&AD372&AE372&AF372&AG372&AH372&AI372&AJ372&AK372)*1),\"\")","v":""},"←"]
[null,null,null,null,null,null,null,null,null,null,null,null,null,null,null,null,null,null,null,null,null,"→",null,null,null,null,null,null,null,null,null,null,null,null,null,null,null,null,{"$f":"IF(COUNTIF(W373:AK373,\"<>\"),SUMPRODUCT((Tableau[Hauteur]&Tableau[Largeur]&Tableau[Type]&Tableau[Allège vitrée]&Tableau[Vitrage]&Tableau[Sens Ouv]&Tableau[Petits bois]&Tableau[Allège maç]&Tableau[Mortaise]&Tableau[RAL]&Tableau[Dormant]&Tableau[GHI]&Tableau[Type de pose]&Tableau[OB]&Tableau[OB2]=W373&X373&Y373&Z373&AA373&AB373&AC373&AD373&AE373&AF373&AG373&AH373&AI373&AJ373&AK373)*1),\"\")","v":""},"←"]
[null,null,null,null,null,null,null,null,null,null,null,null,null,null,null,null,null,null,null,null,null,"→",null,null,null,null,null,null,null,null,null,null,null,null,null,null,null,null,{"$f":"IF(COUNTIF(W374:AK374,\"<>\"),SUMPRODUCT((Tableau[Hauteur]&Tableau[Largeur]&Tableau[Type]&Tableau[Allège vitrée]&Tableau[Vitrage]&Tableau[Sens Ouv]&Tableau[Petits bois]&Tableau[Allège maç]&Tableau[Mortaise]&Tableau[RAL]&Tableau[Dormant]&Tableau[GHI]&Tableau[Type de pose]&Tableau[OB]&Tableau[OB2]=W374&X374&Y374&Z374&AA374&AB374&AC374&AD374&AE374&AF374&AG374&AH374&AI374&AJ374&AK374)*1),\"\")","v":""},"←"]
[null,null,null,null,null,null,null,null,null,null,null,null,null,null,null,null,null,null,null,null,null,"→",null,null,null,null,null,null,null,null,null,null,null,null,null,null,null,null,{"$f":"IF(COUNTIF(W375:AK375,\"<>\"),SUMPRODUCT((Tableau[Hauteur]&Tableau[Largeur]&Tableau[Type]&Tableau[Allège vitrée]&Tableau[Vitrage]&Tableau[Sens Ouv]&Tableau[Petits bois]&Tableau[Allège maç]&Tableau[Mortaise]&Tableau[RAL]&Tableau[Dormant]&Tableau[GHI]&Tableau[Type de pose]&Tableau[OB]&Tableau[OB2]=W375&X375&Y375&Z375&AA375&AB375&AC375&AD375&AE375&AF375&AG375&AH375&AI375&AJ375&AK375)*1),\"\")","v":""},"←"]
[null,null,null,null,null,null,null,null,null,null,null,null,null,null,null,null,null,null,null,null,null,"→",null,null,null,null,null,null,null,null,null,null,null,null,null,null,null,null,{"$f":"IF(COUNTIF(W376:AK376,\"<>\"),SUMPRODUCT((Tableau[Hauteur]&Tableau[Largeur]&Tableau[Type]&Tableau[Allège vitrée]&Tableau[Vitrage]&Tableau[Sens Ouv]&Tableau[Petits bois]&Tableau[Allège maç]&Tableau[Mortaise]&Tableau[RAL]&Tableau[Dormant]&Tableau[GHI]&Tableau[Type de pose]&Tableau[OB]&Tableau[OB2]=W376&X376&Y376&Z376&AA376&AB376&AC376&AD376&AE376&AF376&AG376&AH376&AI376&AJ376&AK376)*1),\"\")","v":""},"←"]
[null,null,null,null,null,null,null,null,null,null,null,null,null,null,null,null,null,null,null,null,null,"→",null,null,null,null,null,null,null,null,null,null,null,null,null,null,null,null,{"$f":"IF(COUNTIF(W377:AK377,\"<>\"),SUMPRODUCT((Tableau[Hauteur]&Tableau[Largeur]&Tableau[Type]&Tableau[Allège vitrée]&Tableau[Vitrage]&Tableau[Sens Ouv]&Tableau[Petits bois]&Tableau[Allège maç]&Tableau[Mortaise]&Tableau[RAL]&Tableau[Dormant]&Tableau[GHI]&Tableau[Type de pose]&Tableau[OB]&Tableau[OB2]=W377&X377&Y377&Z377&AA377&AB377&AC377&AD377&AE377&AF377&AG377&AH377&AI377&AJ377&AK377)*1),\"\")","v":""},"←"]
[null,null,null,null,null,null,null,null,null,null,null,null,null,null,null,null,null,null,null,null,null,"→",null,null,null,null,null,null,null,null,null,null,null,null,null,null,null,null,{"$f":"IF(COUNTIF(W378:AK378,\"<>\"),SUMPRODUCT((Tableau[Hauteur]&Tableau[Largeur]&Tableau[Type]&Tableau[Allège vitrée]&Tableau[Vitrage]&Tableau[Sens Ouv]&Tableau[Petits bois]&Tableau[Allège maç]&Tableau[Mortaise]&Tableau[RAL]&Tableau[Dormant]&Tableau[GHI]&Tableau[Type de pose]&Tableau[OB]&Tableau[OB2]=W378&X378&Y378&Z378&AA378&AB378&AC378&AD378&AE378&AF378&AG378&AH378&AI378&AJ378&AK378)*1),\"\")","v":""},"←"]
[null,null,null,null,null,null,null,null,null,null,null,null,null,null,null,null,null,null,null,null,null,"→",null,null,null,null,null,null,null,null,null,null,null,null,null,null,null,null,{"$f":"IF(COUNTIF(W379:AK379,\"<>\"),SUMPRODUCT((Tableau[Hauteur]&Tableau[Largeur]&Tableau[Type]&Tableau[Allège vitrée]&Tableau[Vitrage]&Tableau[Sens Ouv]&Tableau[Petits bois]&Tableau[Allège maç]&Tableau[Mortaise]&Tableau[RAL]&Tableau[Dormant]&Tableau[GHI]&Tableau[Type de pose]&Tableau[OB]&Tableau[OB2]=W379&X379&Y379&Z379&AA379&AB379&AC379&AD379&AE379&AF379&AG379&AH379&AI379&AJ379&AK379)*1),\"\")","v":""},"←"]
[null,null,null,null,null,null,null,null,null,null,null,null,null,null,null,null,null,null,null,null,null,"→",null,null,null,null,null,null,null,null,null,null,null,null,null,null,null,null,{"$f":"IF(COUNTIF(W380:AK380,\"<>\"),SUMPRODUCT((Tableau[Hauteur]&Tableau[Largeur]&Tableau[Type]&Tableau[Allège vitrée]&Tableau[Vitrage]&Tableau[Sens Ouv]&Tableau[Petits bois]&Tableau[Allège maç]&Tableau[Mortaise]&Tableau[RAL]&Tableau[Dormant]&Tableau[GHI]&Tableau[Type de pose]&Tableau[OB]&Tableau[OB2]=W380&X380&Y380&Z380&AA380&AB380&AC380&AD380&AE380&AF380&AG380&AH380&AI380&AJ380&AK380)*1),\"\")","v":""},"←"]
[null,null,null,null,null,null,null,null,null,null,null,null,null,null,null,null,null,null,null,null,null,"→",null,null,null,null,null,null,null,null,null,null,null,null,null,null,null,null,{"$f":"IF(COUNTIF(W381:AK381,\"<>\"),SUMPRODUCT((Tableau[Hauteur]&Tableau[Largeur]&Tableau[Type]&Tableau[Allège vitrée]&Tableau[Vitrage]&Tableau[Sens Ouv]&Tableau[Petits bois]&Tableau[Allège maç]&Tableau[Mortaise]&Tableau[RAL]&Tableau[Dormant]&Tableau[GHI]&Tableau[Type de pose]&Tableau[OB]&Tableau[OB2]=W381&X381&Y381&Z381&AA381&AB381&AC381&AD381&AE381&AF381&AG381&AH381&AI381&AJ381&AK381)*1),\"\")","v":""},"←"]
[null,null,null,null,null,null,null,null,null,null,null,null,null,null,null,null,null,null,null,null,null,"→",null,null,null,null,null,null,null,null,null,null,null,null,null,null,null,null,{"$f":"IF(COUNTIF(W382:AK382,\"<>\"),SUMPRODUCT((Tableau[Hauteur]&Tableau[Largeur]&Tableau[Type]&Tableau[Allège vitrée]&Tableau[Vitrage]&Tableau[Sens Ouv]&Tableau[Petits bois]&Tableau[Allège maç]&Tableau[Mortaise]&Tableau[RAL]&Tableau[Dormant]&Tableau[GHI]&Tableau[Type de pose]&Tableau[OB]&Tableau[OB2]=W382&X382&Y382&Z382&AA382&AB382&AC382&AD382&AE382&AF382&AG382&AH382&AI382&AJ382&AK382)*1),\"\")","v":""},"←"]
[null,null,null,null,null,null,null,null,null,null,null,null,null,null,null,null,null,null,null,null,null,"→",null,null,null,null,null,null,null,null,null,null,null,null,null,null,null,null,{"$f":"IF(COUNTIF(W383:AK383,\"<>\"),SUMPRODUCT((Tableau[Hauteur]&Tableau[Largeur]&Tableau[Type]&Tableau[Allège vitrée]&Tableau[Vitrage]&Tableau[Sens Ouv]&Tableau[Petits bois]&Tableau[Allège maç]&Tableau[Mortaise]&Tableau[RAL]&Tableau[Dormant]&Tableau[GHI]&Tableau[Type de pose]&Tableau[OB]&Tableau[OB2]=W383&X383&Y383&Z383&AA383&AB383&AC383&AD383&AE383&AF383&AG383&AH383&AI383&AJ383&AK383)*1),\"\")","v":""},"←"]
[null,null,null,null,null,null,null,null,null,null,null,null,null,null,null,null,null,null,null,null,null,"→",null,null,null,null,null,null,null,null,null,null,null,null,null,null,null,null,{"$f":"IF(COUNTIF(W384:AK384,\"<>\"),SUMPRODUCT((Tableau[Hauteur]&Tableau[Largeur]&Tableau[Type]&Tableau[Allège vitrée]&Tableau[Vitrage]&Tableau[Sens Ouv]&Tableau[Petits bois]&Tableau[Allège maç]&Tableau[Mortaise]&Tableau[RAL]&Tableau[Dormant]&Tableau[GHI]&Tableau[Type de pose]&Tableau[OB]&Tableau[OB2]=W384&X384&Y384&Z384&AA384&AB384&AC384&AD384&AE384&AF384&AG384&AH384&AI384&AJ384&AK384)*1),\"\")","v":""},"←"]
[null,null,null,null,null,null,null,null,null,null,null,null,null,null,null,null,null,null,null,null,null,"→",null,null,null,null,null,null,null,null,null,null,null,null,null,null,null,null,{"$f":"IF(COUNTIF(W385:AK385,\"<>\"),SUMPRODUCT((Tableau[Hauteur]&Tableau[Largeur]&Tableau[Type]&Tableau[Allège vitrée]&Tableau[Vitrage]&Tableau[Sens Ouv]&Tableau[Petits bois]&Tableau[Allège maç]&Tableau[Mortaise]&Tableau[RAL]&Tableau[Dormant]&Tableau[GHI]&Tableau[Type de pose]&Tableau[OB]&Tableau[OB2]=W385&X385&Y385&Z385&AA385&AB385&AC385&AD385&AE385&AF385&AG385&AH385&AI385&AJ385&AK385)*1),\"\")","v":""},"←"]
[null,null,null,null,null,null,null,null,null,null,null,null,null,null,null,null,null,null,null,null,null,"→",null,null,null,null,null,null,null,null,null,null,null,null,null,null,null,null,{"$f":"IF(COUNTIF(W386:AK386,\"<>\"),SUMPRODUCT((Tableau[Hauteur]&Tableau[Largeur]&Tableau[Type]&Tableau[Allège vitrée]&Tableau[Vitrage]&Tableau[Sens Ouv]&Tableau[Petits bois]&Tableau[Allège maç]&Tableau[Mortaise]&Tableau[RAL]&Tableau[Dormant]&Tableau[GHI]&Tableau[Type de pose]&Tableau[OB]&Tableau[OB2]=W386&X386&Y386&Z386&AA386&AB386&AC386&AD386&AE386&AF386&AG386&AH386&AI386&AJ386&AK386)*1),\"\")","v":""},"←"]
[null,null,null,null,null,null,null,null,null,null,null,null,null,null,null,null,null,null,null,null,null,"→",null,null,null,null,null,null,null,null,null,null,null,null,null,null,null,null,{"$f":"IF(COUNTIF(W387:AK387,\"<>\"),SUMPRODUCT((Tableau[Hauteur]&Tableau[Largeur]&Tableau[Type]&Tableau[Allège vitrée]&Tableau[Vitrage]&Tableau[Sens Ouv]&Tableau[Petits bois]&Tableau[Allège maç]&Tableau[Mortaise]&Tableau[RAL]&Tableau[Dormant]&Tableau[GHI]&Tableau[Type de pose]&Tableau[OB]&Tableau[OB2]=W387&X387&Y387&Z387&AA387&AB387&AC387&AD387&AE387&AF387&AG387&AH387&AI387&AJ387&AK387)*1),\"\")","v":""},"←"]
[null,null,null,null,null,null,null,null,null,null,null,null,null,null,null,null,null,null,null,null,null,"→",null,null,null,null,null,null,null,null,null,null,null,null,null,null,null,null,{"$f":"IF(COUNTIF(W388:AK388,\"<>\"),SUMPRODUCT((Tableau[Hauteur]&Tableau[Largeur]&Tableau[Type]&Tableau[Allège vitrée]&Tableau[Vitrage]&Tableau[Sens Ouv]&Tableau[Petits bois]&Tableau[Allège maç]&Tableau[Mortaise]&Tableau[RAL]&Tableau[Dormant]&Tableau[GHI]&Tableau[Type de pose]&Tableau[OB]&Tableau[OB2]=W388&X388&Y388&Z388&AA388&AB388&AC388&AD388&AE388&AF388&AG388&AH388&AI388&AJ388&AK388)*1),\"\")","v":""},"←"]
[null,null,null,null,null,null,null,null,null,null,null,null,null,null,null,null,null,null,null,null,null,"→",null,null,null,null,null,null,null,null,null,null,null,null,null,null,null,null,{"$f":"IF(COUNTIF(W389:AK389,\"<>\"),SUMPRODUCT((Tableau[Hauteur]&Tableau[Largeur]&Tableau[Type]&Tableau[Allège vitrée]&Tableau[Vitrage]&Tableau[Sens Ouv]&Tableau[Petits bois]&Tableau[Allège maç]&Tableau[Mortaise]&Tableau[RAL]&Tableau[Dormant]&Tableau[GHI]&Tableau[Type de pose]&Tableau[OB]&Tableau[OB2]=W389&X389&Y389&Z389&AA389&AB389&AC389&AD389&AE389&AF389&AG389&AH389&AI389&AJ389&AK389)*1),\"\")","v":""},"←"]
[null,null,null,null,null,null,null,null,null,null,null,null,null,null,null,null,null,null,null,null,null,"→",null,null,null,null,null,null,null,null,null,null,null,null,null,null,null,null,{"$f":"IF(COUNTIF(W390:AK390,\"<>\"),SUMPRODUCT((Tableau[Hauteur]&Tableau[Largeur]&Tableau[Type]&Tableau[Allège vitrée]&Tableau[Vitrage]&Tableau[Sens Ouv]&Tableau[Petits bois]&Tableau[Allège maç]&Tableau[Mortaise]&Tableau[RAL]&Tableau[Dormant]&Tableau[GHI]&Tableau[Type de pose]&Tableau[OB]&Tableau[OB2]=W390&X390&Y390&Z390&AA390&AB390&AC390&AD390&AE390&AF390&AG390&AH390&AI390&AJ390&AK390)*1),\"\")","v":""},"←"]
[null,null,null,null,null,null,null,null,null,null,null,null,null,null,null,null,null,null,null,null,null,"→",null,null,null,null,null,null,null,null,null,null,null,null,null,null,null,null,{"$f":"IF(COUNTIF(W391:AK391,\"<>\"),SUMPRODUCT((Tableau[Hauteur]&Tableau[Largeur]&Tableau[Type]&Tableau[Allège vitrée]&Tableau[Vitrage]&Tableau[Sens Ouv]&Tableau[Petits bois]&Tableau[Allège maç]&Tableau[Mortaise]&Tableau[RAL]&Tableau[Dormant]&Tableau[GHI]&Tableau[Type de pose]&Tableau[OB]&Tableau[OB2]=W391&X391&Y391&Z391&AA391&AB391&AC391&AD391&AE391&AF391&AG391&AH391&AI391&AJ391&AK391)*1),\"\")","v":""},"←"]
[null,null,null,null,null,null,null,null,null,null,null,null,null,null,null,null,null,null,null,null,null,"→",null,null,null,null,null,null,null,null,null,null,null,null,null,null,null,null,{"$f":"IF(COUNTIF(W392:AK392,\"<>\"),SUMPRODUCT((Tableau[Hauteur]&Tableau[Largeur]&Tableau[Type]&Tableau[Allège vitrée]&Tableau[Vitrage]&Tableau[Sens Ouv]&Tableau[Petits bois]&Tableau[Allège maç]&Tableau[Mortaise]&Tableau[RAL]&Tableau[Dormant]&Tableau[GHI]&Tableau[Type de pose]&Tableau[OB]&Tableau[OB2]=W392&X392&Y392&Z392&AA392&AB392&AC392&AD392&AE392&AF392&AG392&AH392&AI392&AJ392&AK392)*1),\"\")","v":""},"←"]
[null,null,null,null,null,null,null,null,null,null,null,null,null,null,null,null,null,null,null,null,null,"→",null,null,null,null,null,null,null,null,null,null,null,null,null,null,null,null,{"$f":"IF(COUNTIF(W393:AK393,\"<>\"),SUMPRODUCT((Tableau[Hauteur]&Tableau[Largeur]&Tableau[Type]&Tableau[Allège vitrée]&Tableau[Vitrage]&Tableau[Sens Ouv]&Tableau[Petits bois]&Tableau[Allège maç]&Tableau[Mortaise]&Tableau[RAL]&Tableau[Dormant]&Tableau[GHI]&Tableau[Type de pose]&Tableau[OB]&Tableau[OB2]=W393&X393&Y393&Z393&AA393&AB393&AC393&AD393&AE393&AF393&AG393&AH393&AI393&AJ393&AK393)*1),\"\")","v":""},"←"]
[null,null,null,null,null,null,null,null,null,null,null,null,null,null,null,null,null,null,null,null,null,"→",null,null,null,null,null,null,null,null,null,null,null,null,null,null,null,null,{"$f":"IF(COUNTIF(W394:AK394,\"<>\"),SUMPRODUCT((Tableau[Hauteur]&Tableau[Largeur]&Tableau[Type]&Tableau[Allège vitrée]&Tableau[Vitrage]&Tableau[Sens Ouv]&Tableau[Petits bois]&Tableau[Allège maç]&Tableau[Mortaise]&Tableau[RAL]&Tableau[Dormant]&Tableau[GHI]&Tableau[Type de pose]&Tableau[OB]&Tableau[OB2]=W394&X394&Y394&Z394&AA394&AB394&AC394&AD394&AE394&AF394&AG394&AH394&AI394&AJ394&AK394)*1),\"\")","v":""},"←"]
[null,null,null,null,null,null,null,null,null,null,null,null,null,null,null,null,null,null,null,null,null,"→",null,null,null,null,null,null,null,null,null,null,null,null,null,null,null,null,{"$f":"IF(COUNTIF(W395:AK395,\"<>\"),SUMPRODUCT((Tableau[Hauteur]&Tableau[Largeur]&Tableau[Type]&Tableau[Allège vitrée]&Tableau[Vitrage]&Tableau[Sens Ouv]&Tableau[Petits bois]&Tableau[Allège maç]&Tableau[Mortaise]&Tableau[RAL]&Tableau[Dormant]&Tableau[GHI]&Tableau[Type de pose]&Tableau[OB]&Tableau[OB2]=W395&X395&Y395&Z395&AA395&AB395&AC395&AD395&AE395&AF395&AG395&AH395&AI395&AJ395&AK395)*1),\"\")","v":""},"←"]
[null,null,null,null,null,null,null,null,null,null,null,null,null,null,null,null,null,null,null,null,null,"→",null,null,null,null,null,null,null,null,null,null,null,null,null,null,null,null,{"$f":"IF(COUNTIF(W396:AK396,\"<>\"),SUMPRODUCT((Tableau[Hauteur]&Tableau[Largeur]&Tableau[Type]&Tableau[Allège vitrée]&Tableau[Vitrage]&Tableau[Sens Ouv]&Tableau[Petits bois]&Tableau[Allège maç]&Tableau[Mortaise]&Tableau[RAL]&Tableau[Dormant]&Tableau[GHI]&Tableau[Type de pose]&Tableau[OB]&Tableau[OB2]=W396&X396&Y396&Z396&AA396&AB396&AC396&AD396&AE396&AF396&AG396&AH396&AI396&AJ396&AK396)*1),\"\")","v":""},"←"]
[null,null,null,null,null,null,null,null,null,null,null,null,null,null,null,null,null,null,null,null,null,"→",null,null,null,null,null,null,null,null,null,null,null,null,null,null,null,null,{"$f":"IF(COUNTIF(W397:AK397,\"<>\"),SUMPRODUCT((Tableau[Hauteur]&Tableau[Largeur]&Tableau[Type]&Tableau[Allège vitrée]&Tableau[Vitrage]&Tableau[Sens Ouv]&Tableau[Petits bois]&Tableau[Allège maç]&Tableau[Mortaise]&Tableau[RAL]&Tableau[Dormant]&Tableau[GHI]&Tableau[Type de pose]&Tableau[OB]&Tableau[OB2]=W397&X397&Y397&Z397&AA397&AB397&AC397&AD397&AE397&AF397&AG397&AH397&AI397&AJ397&AK397)*1),\"\")","v":""},"←"]
[null,null,null,null,null,null,null,null,null,null,null,null,null,null,null,null,null,null,null,null,null,"→",null,null,null,null,null,null,null,null,null,null,null,null,null,null,null,null,{"$f":"IF(COUNTIF(W398:AK398,\"<>\"),SUMPRODUCT((Tableau[Hauteur]&Tableau[Largeur]&Tableau[Type]&Tableau[Allège vitrée]&Tableau[Vitrage]&Tableau[Sens Ouv]&Tableau[Petits bois]&Tableau[Allège maç]&Tableau[Mortaise]&Tableau[RAL]&Tableau[Dormant]&Tableau[GHI]&Tableau[Type de pose]&Tableau[OB]&Tableau[OB2]=W398&X398&Y398&Z398&AA398&AB398&AC398&AD398&AE398&AF398&AG398&AH398&AI398&AJ398&AK398)*1),\"\")","v":""},"←"]
[null,null,null,null,null,null,null,null,null,null,null,null,null,null,null,null,null,null,null,null,null,"→",null,null,null,null,null,null,null,null,null,null,null,null,null,null,null,null,{"$f":"IF(COUNTIF(W399:AK399,\"<>\"),SUMPRODUCT((Tableau[Hauteur]&Tableau[Largeur]&Tableau[Type]&Tableau[Allège vitrée]&Tableau[Vitrage]&Tableau[Sens Ouv]&Tableau[Petits bois]&Tableau[Allège maç]&Tableau[Mortaise]&Tableau[RAL]&Tableau[Dormant]&Tableau[GHI]&Tableau[Type de pose]&Tableau[OB]&Tableau[OB2]=W399&X399&Y399&Z399&AA399&AB399&AC399&AD399&AE399&AF399&AG399&AH399&AI399&AJ399&AK399)*1),\"\")","v":""},"←"]
[null,null,null,null,null,null,null,null,null,null,null,null,null,null,null,null,null,null,null,null,null,"→",null,null,null,null,null,null,null,null,null,null,null,null,null,null,null,null,{"$f":"IF(COUNTIF(W400:AK400,\"<>\"),SUMPRODUCT((Tableau[Hauteur]&Tableau[Largeur]&Tableau[Type]&Tableau[Allège vitrée]&Tableau[Vitrage]&Tableau[Sens Ouv]&Tableau[Petits bois]&Tableau[Allège maç]&Tableau[Mortaise]&Tableau[RAL]&Tableau[Dormant]&Tableau[GHI]&Tableau[Type de pose]&Tableau[OB]&Tableau[OB2]=W400&X400&Y400&Z400&AA400&AB400&AC400&AD400&AE400&AF400&AG400&AH400&AI400&AJ400&AK400)*1),\"\")","v":""},"←"]
[null,null,null,null,null,null,null,null,null,null,null,null,null,null,null,null,null,null,null,null,null,"→",null,null,null,null,null,null,null,null,null,null,null,null,null,null,null,null,{"$f":"IF(COUNTIF(W401:AK401,\"<>\"),SUMPRODUCT((Tableau[Hauteur]&Tableau[Largeur]&Tableau[Type]&Tableau[Allège vitrée]&Tableau[Vitrage]&Tableau[Sens Ouv]&Tableau[Petits bois]&Tableau[Allège maç]&Tableau[Mortaise]&Tableau[RAL]&Tableau[Dormant]&Tableau[GHI]&Tableau[Type de pose]&Tableau[OB]&Tableau[OB2]=W401&X401&Y401&Z401&AA401&AB401&AC401&AD401&AE401&AF401&AG401&AH401&AI401&AJ401&AK401)*1),\"\")","v":""},"←"]
[null,null,null,null,null,null,null,null,null,null,null,null,null,null,null,null,null,null,null,null,null,"→",null,null,null,null,null,null,null,null,null,null,null,null,null,null,null,null,{"$f":"IF(COUNTIF(W402:AK402,\"<>\"),SUMPRODUCT((Tableau[Hauteur]&Tableau[Largeur]&Tableau[Type]&Tableau[Allège vitrée]&Tableau[Vitrage]&Tableau[Sens Ouv]&Tableau[Petits bois]&Tableau[Allège maç]&Tableau[Mortaise]&Tableau[RAL]&Tableau[Dormant]&Tableau[GHI]&Tableau[Type de pose]&Tableau[OB]&Tableau[OB2]=W402&X402&Y402&Z402&AA402&AB402&AC402&AD402&AE402&AF402&AG402&AH402&AI402&AJ402&AK402)*1),\"\")","v":""},"←"]
[null,null,null,null,null,null,null,null,null,null,null,null,null,null,null,null,null,null,null,null,null,"→",null,null,null,null,null,null,null,null,null,null,null,null,null,null,null,null,{"$f":"IF(COUNTIF(W403:AK403,\"<>\"),SUMPRODUCT((Tableau[Hauteur]&Tableau[Largeur]&Tableau[Type]&Tableau[Allège vitrée]&Tableau[Vitrage]&Tableau[Sens Ouv]&Tableau[Petits bois]&Tableau[Allège maç]&Tableau[Mortaise]&Tableau[RAL]&Tableau[Dormant]&Tableau[GHI]&Tableau[Type de pose]&Tableau[OB]&Tableau[OB2]=W403&X403&Y403&Z403&AA403&AB403&AC403&AD403&AE403&AF403&AG403&AH403&AI403&AJ403&AK403)*1),\"\")","v":""},"←"]
[null,null,null,null,null,null,null,null,null,null,null,null,null,null,null,null,null,null,null,null,null,"→",null,null,null,null,null,null,null,null,null,null,null,null,null,null,null,null,{"$f":"IF(COUNTIF(W404:AK404,\"<>\"),SUMPRODUCT((Tableau[Hauteur]&Tableau[Largeur]&Tableau[Type]&Tableau[Allège vitrée]&Tableau[Vitrage]&Tableau[Sens Ouv]&Tableau[Petits bois]&Tableau[Allège maç]&Tableau[Mortaise]&Tableau[RAL]&Tableau[Dormant]&Tableau[GHI]&Tableau[Type de pose]&Tableau[OB]&Tableau[OB2]=W404&X404&Y404&Z404&AA404&AB404&AC404&AD404&AE404&AF404&AG404&AH404&AI404&AJ404&AK404)*1),\"\")","v":""},"←"]
[null,null,null,null,null,null,null,null,null,null,null,null,null,null,null,null,null,null,null,null,null,"→",null,null,null,null,null,null,null,null,null,null,null,null,null,null,null,null,{"$f":"IF(COUNTIF(W405:AK405,\"<>\"),SUMPRODUCT((Tableau[Hauteur]&Tableau[Largeur]&Tableau[Type]&Tableau[Allège vitrée]&Tableau[Vitrage]&Tableau[Sens Ouv]&Tableau[Petits bois]&Tableau[Allège maç]&Tableau[Mortaise]&Tableau[RAL]&Tableau[Dormant]&Tableau[GHI]&Tableau[Type de pose]&Tableau[OB]&Tableau[OB2]=W405&X405&Y405&Z405&AA405&AB405&AC405&AD405&AE405&AF405&AG405&AH405&AI405&AJ405&AK405)*1),\"\")","v":""},"←"]
[null,null,null,null,null,null,null,null,null,null,null,null,null,null,null,null,null,null,null,null,null,"→",null,null,null,null,null,null,null,null,null,null,null,null,null,null,null,null,{"$f":"IF(COUNTIF(W406:AK406,\"<>\"),SUMPRODUCT((Tableau[Hauteur]&Tableau[Largeur]&Tableau[Type]&Tableau[Allège vitrée]&Tableau[Vitrage]&Tableau[Sens Ouv]&Tableau[Petits bois]&Tableau[Allège maç]&Tableau[Mortaise]&Tableau[RAL]&Tableau[Dormant]&Tableau[GHI]&Tableau[Type de pose]&Tableau[OB]&Tableau[OB2]=W406&X406&Y406&Z406&AA406&AB406&AC406&AD406&AE406&AF406&AG406&AH406&AI406&AJ406&AK406)*1),\"\")","v":""},"←"]
[null,null,null,null,null,null,null,null,null,null,null,null,null,null,null,null,null,null,null,null,null,"→",null,null,null,null,null,null,null,null,null,null,null,null,null,null,null,null,{"$f":"IF(COUNTIF(W407:AK407,\"<>\"),SUMPRODUCT((Tableau[Hauteur]&Tableau[Largeur]&Tableau[Type]&Tableau[Allège vitrée]&Tableau[Vitrage]&Tableau[Sens Ouv]&Tableau[Petits bois]&Tableau[Allège maç]&Tableau[Mortaise]&Tableau[RAL]&Tableau[Dormant]&Tableau[GHI]&Tableau[Type de pose]&Tableau[OB]&Tableau[OB2]=W407&X407&Y407&Z407&AA407&AB407&AC407&AD407&AE407&AF407&AG407&AH407&AI407&AJ407&AK407)*1),\"\")","v":""},"←"]
[null,null,null,null,null,null,null,null,null,null,null,null,null,null,null,null,null,null,null,null,null,"→",null,null,null,null,null,null,null,null,null,null,null,null,null,null,null,null,{"$f":"IF(COUNTIF(W408:AK408,\"<>\"),SUMPRODUCT((Tableau[Hauteur]&Tableau[Largeur]&Tableau[Type]&Tableau[Allège vitrée]&Tableau[Vitrage]&Tableau[Sens Ouv]&Tableau[Petits bois]&Tableau[Allège maç]&Tableau[Mortaise]&Tableau[RAL]&Tableau[Dormant]&Tableau[GHI]&Tableau[Type de pose]&Tableau[OB]&Tableau[OB2]=W408&X408&Y408&Z408&AA408&AB408&AC408&AD408&AE408&AF408&AG408&AH408&AI408&AJ408&AK408)*1),\"\")","v":""},"←"]
[null,null,null,null,null,null,null,null,null,null,null,null,null,null,null,null,null,null,null,null,null,"→",null,null,null,null,null,null,null,null,null,null,null,null,null,null,null,null,{"$f":"IF(COUNTIF(W409:AK409,\"<>\"),SUMPRODUCT((Tableau[Hauteur]&Tableau[Largeur]&Tableau[Type]&Tableau[Allège vitrée]&Tableau[Vitrage]&Tableau[Sens Ouv]&Tableau[Petits bois]&Tableau[Allège maç]&Tableau[Mortaise]&Tableau[RAL]&Tableau[Dormant]&Tableau[GHI]&Tableau[Type de pose]&Tableau[OB]&Tableau[OB2]=W409&X409&Y409&Z409&AA409&AB409&AC409&AD409&AE409&AF409&AG409&AH409&AI409&AJ409&AK409)*1),\"\")","v":""},"←"]
[null,null,null,null,null,null,null,null,null,null,null,null,null,null,null,null,null,null,null,null,null,"→",null,null,null,null,null,null,null,null,null,null,null,null,null,null,null,null,{"$f":"IF(COUNTIF(W410:AK410,\"<>\"),SUMPRODUCT((Tableau[Hauteur]&Tableau[Largeur]&Tableau[Type]&Tableau[Allège vitrée]&Tableau[Vitrage]&Tableau[Sens Ouv]&Tableau[Petits bois]&Tableau[Allège maç]&Tableau[Mortaise]&Tableau[RAL]&Tableau[Dormant]&Tableau[GHI]&Tableau[Type de pose]&Tableau[OB]&Tableau[OB2]=W410&X410&Y410&Z410&AA410&AB410&AC410&AD410&AE410&AF410&AG410&AH410&AI410&AJ410&AK410)*1),\"\")","v":""},"←"]
[null,null,null,null,null,null,null,null,null,null,null,null,null,null,null,null,null,null,null,null,null,"→",null,null,null,null,null,null,null,null,null,null,null,null,null,null,null,null,{"$f":"IF(COUNTIF(W411:AK411,\"<>\"),SUMPRODUCT((Tableau[Hauteur]&Tableau[Largeur]&Tableau[Type]&Tableau[Allège vitrée]&Tableau[Vitrage]&Tableau[Sens Ouv]&Tableau[Petits bois]&Tableau[Allège maç]&Tableau[Mortaise]&Tableau[RAL]&Tableau[Dormant]&Tableau[GHI]&Tableau[Type de pose]&Tableau[OB]&Tableau[OB2]=W411&X411&Y411&Z411&AA411&AB411&AC411&AD411&AE411&AF411&AG411&AH411&AI411&AJ411&AK411)*1),\"\")","v":""},"←"]
[null,null,null,null,null,null,null,null,null,null,null,null,null,null,null,null,null,null,null,null,null,"→",null,null,null,null,null,null,null,null,null,null,null,null,null,null,null,null,{"$f":"IF(COUNTIF(W412:AK412,\"<>\"),SUMPRODUCT((Tableau[Hauteur]&Tableau[Largeur]&Tableau[Type]&Tableau[Allège vitrée]&Tableau[Vitrage]&Tableau[Sens Ouv]&Tableau[Petits bois]&Tableau[Allège maç]&Tableau[Mortaise]&Tableau[RAL]&Tableau[Dormant]&Tableau[GHI]&Tableau[Type de pose]&Tableau[OB]&Tableau[OB2]=W412&X412&Y412&Z412&AA412&AB412&AC412&AD412&AE412&AF412&AG412&AH412&AI412&AJ412&AK412)*1),\"\")","v":""},"←"]
[null,null,null,null,null,null,null,null,null,null,null,null,null,null,null,null,null,null,null,null,null,"→",null,null,null,null,null,null,null,null,null,null,null,null,null,null,null,null,{"$f":"IF(COUNTIF(W413:AK413,\"<>\"),SUMPRODUCT((Tableau[Hauteur]&Tableau[Largeur]&Tableau[Type]&Tableau[Allège vitrée]&Tableau[Vitrage]&Tableau[Sens Ouv]&Tableau[Petits bois]&Tableau[Allège maç]&Tableau[Mortaise]&Tableau[RAL]&Tableau[Dormant]&Tableau[GHI]&Tableau[Type de pose]&Tableau[OB]&Tableau[OB2]=W413&X413&Y413&Z413&AA413&AB413&AC413&AD413&AE413&AF413&AG413&AH413&AI413&AJ413&AK413)*1),\"\")","v":""},"←"]
[null,null,null,null,null,null,null,null,null,null,null,null,null,null,null,null,null,null,null,null,null,"→",null,null,null,null,null,null,null,null,null,null,null,null,null,null,null,null,{"$f":"IF(COUNTIF(W414:AK414,\"<>\"),SUMPRODUCT((Tableau[Hauteur]&Tableau[Largeur]&Tableau[Type]&Tableau[Allège vitrée]&Tableau[Vitrage]&Tableau[Sens Ouv]&Tableau[Petits bois]&Tableau[Allège maç]&Tableau[Mortaise]&Tableau[RAL]&Tableau[Dormant]&Tableau[GHI]&Tableau[Type de pose]&Tableau[OB]&Tableau[OB2]=W414&X414&Y414&Z414&AA414&AB414&AC414&AD414&AE414&AF414&AG414&AH414&AI414&AJ414&AK414)*1),\"\")","v":""},"←"]
[null,null,null,null,null,null,null,null,null,null,null,null,null,null,null,null,null,null,null,null,null,"→",null,null,null,null,null,null,null,null,null,null,null,null,null,null,null,null,{"$f":"IF(COUNTIF(W415:AK415,\"<>\"),SUMPRODUCT((Tableau[Hauteur]&Tableau[Largeur]&Tableau[Type]&Tableau[Allège vitrée]&Tableau[Vitrage]&Tableau[Sens Ouv]&Tableau[Petits bois]&Tableau[Allège maç]&Tableau[Mortaise]&Tableau[RAL]&Tableau[Dormant]&Tableau[GHI]&Tableau[Type de pose]&Tableau[OB]&Tableau[OB2]=W415&X415&Y415&Z415&AA415&AB415&AC415&AD415&AE415&AF415&AG415&AH415&AI415&AJ415&AK415)*1),\"\")","v":""},"←"]
[null,null,null,null,null,null,null,null,null,null,null,null,null,null,null,null,null,null,null,null,null,"→",null,null,null,null,null,null,null,null,null,null,null,null,null,null,null,null,{"$f":"IF(COUNTIF(W416:AK416,\"<>\"),SUMPRODUCT((Tableau[Hauteur]&Tableau[Largeur]&Tableau[Type]&Tableau[Allège vitrée]&Tableau[Vitrage]&Tableau[Sens Ouv]&Tableau[Petits bois]&Tableau[Allège maç]&Tableau[Mortaise]&Tableau[RAL]&Tableau[Dormant]&Tableau[GHI]&Tableau[Type de pose]&Tableau[OB]&Tableau[OB2]=W416&X416&Y416&Z416&AA416&AB416&AC416&AD416&AE416&AF416&AG416&AH416&AI416&AJ416&AK416)*1),\"\")","v":""},"←"]
[null,null,null,null,null,null,null,null,null,null,null,null,null,null,null,null,null,null,null,null,null,"→",null,null,null,null,null,null,null,null,null,null,null,null,null,null,null,null,{"$f":"IF(COUNTIF(W417:AK417,\"<>\"),SUMPRODUCT((Tableau[Hauteur]&Tableau[Largeur]&Tableau[Type]&Tableau[Allège vitrée]&Tableau[Vitrage]&Tableau[Sens Ouv]&Tableau[Petits bois]&Tableau[Allège maç]&Tableau[Mortaise]&Tableau[RAL]&Tableau[Dormant]&Tableau[GHI]&Tableau[Type de pose]&Tableau[OB]&Tableau[OB2]=W417&X417&Y417&Z417&AA417&AB417&AC417&AD417&AE417&AF417&AG417&AH417&AI417&AJ417&AK417)*1),\"\")","v":""},"←"]
[null,null,null,null,null,null,null,null,null,null,null,null,null,null,null,null,null,null,null,null,null,"→",null,null,null,null,null,null,null,null,null,null,null,null,null,null,null,null,{"$f":"IF(COUNTIF(W418:AK418,\"<>\"),SUMPRODUCT((Tableau[Hauteur]&Tableau[Largeur]&Tableau[Type]&Tableau[Allège vitrée]&Tableau[Vitrage]&Tableau[Sens Ouv]&Tableau[Petits bois]&Tableau[Allège maç]&Tableau[Mortaise]&Tableau[RAL]&Tableau[Dormant]&Tableau[GHI]&Tableau[Type de pose]&Tableau[OB]&Tableau[OB2]=W418&X418&Y418&Z418&AA418&AB418&AC418&AD418&AE418&AF418&AG418&AH418&AI418&AJ418&AK418)*1),\"\")","v":""},"←"]
[null,null,null,null,null,null,null,null,null,null,null,null,null,null,null,null,null,null,null,null,null,"→",null,null,null,null,null,null,null,null,null,null,null,null,null,null,null,null,{"$f":"IF(COUNTIF(W419:AK419,\"<>\"),SUMPRODUCT((Tableau[Hauteur]&Tableau[Largeur]&Tableau[Type]&Tableau[Allège vitrée]&Tableau[Vitrage]&Tableau[Sens Ouv]&Tableau[Petits bois]&Tableau[Allège maç]&Tableau[Mortaise]&Tableau[RAL]&Tableau[Dormant]&Tableau[GHI]&Tableau[Type de pose]&Tableau[OB]&Tableau[OB2]=W419&X419&Y419&Z419&AA419&AB419&AC419&AD419&AE419&AF419&AG419&AH419&AI419&AJ419&AK419)*1),\"\")","v":""},"←"]
[null,null,null,null,null,null,null,null,null,null,null,null,null,null,null,null,null,null,null,null,null,"→",null,null,null,null,null,null,null,null,null,null,null,null,null,null,null,null,{"$f":"IF(COUNTIF(W420:AK420,\"<>\"),SUMPRODUCT((Tableau[Hauteur]&Tableau[Largeur]&Tableau[Type]&Tableau[Allège vitrée]&Tableau[Vitrage]&Tableau[Sens Ouv]&Tableau[Petits bois]&Tableau[Allège maç]&Tableau[Mortaise]&Tableau[RAL]&Tableau[Dormant]&Tableau[GHI]&Tableau[Type de pose]&Tableau[OB]&Tableau[OB2]=W420&X420&Y420&Z420&AA420&AB420&AC420&AD420&AE420&AF420&AG420&AH420&AI420&AJ420&AK420)*1),\"\")","v":""},"←"]
[null,null,null,null,null,null,null,null,null,null,null,null,null,null,null,null,null,null,null,null,null,"→",null,null,null,null,null,null,null,null,null,null,null,null,null,null,null,null,{"$f":"IF(COUNTIF(W421:AK421,\"<>\"),SUMPRODUCT((Tableau[Hauteur]&Tableau[Largeur]&Tableau[Type]&Tableau[Allège vitrée]&Tableau[Vitrage]&Tableau[Sens Ouv]&Tableau[Petits bois]&Tableau[Allège maç]&Tableau[Mortaise]&Tableau[RAL]&Tableau[Dormant]&Tableau[GHI]&Tableau[Type de pose]&Tableau[OB]&Tableau[OB2]=W421&X421&Y421&Z421&AA421&AB421&AC421&AD421&AE421&AF421&AG421&AH421&AI421&AJ421&AK421)*1),\"\")","v":""},"←"]
[null,null,null,null,null,null,null,null,null,null,null,null,null,null,null,null,null,null,null,null,null,"→",null,null,null,null,null,null,null,null,null,null,null,null,null,null,null,null,{"$f":"IF(COUNTIF(W422:AK422,\"<>\"),SUMPRODUCT((Tableau[Hauteur]&Tableau[Largeur]&Tableau[Type]&Tableau[Allège vitrée]&Tableau[Vitrage]&Tableau[Sens Ouv]&Tableau[Petits bois]&Tableau[Allège maç]&Tableau[Mortaise]&Tableau[RAL]&Tableau[Dormant]&Tableau[GHI]&Tableau[Type de pose]&Tableau[OB]&Tableau[OB2]=W422&X422&Y422&Z422&AA422&AB422&AC422&AD422&AE422&AF422&AG422&AH422&AI422&AJ422&AK422)*1),\"\")","v":""},"←"]
[null,null,null,null,null,null,null,null,null,null,null,null,null,null,null,null,null,null,null,null,null,"→",null,null,null,null,null,null,null,null,null,null,null,null,null,null,null,null,{"$f":"IF(COUNTIF(W423:AK423,\"<>\"),SUMPRODUCT((Tableau[Hauteur]&Tableau[Largeur]&Tableau[Type]&Tableau[Allège vitrée]&Tableau[Vitrage]&Tableau[Sens Ouv]&Tableau[Petits bois]&Tableau[Allège maç]&Tableau[Mortaise]&Tableau[RAL]&Tableau[Dormant]&Tableau[GHI]&Tableau[Type de pose]&Tableau[OB]&Tableau[OB2]=W423&X423&Y423&Z423&AA423&AB423&AC423&AD423&AE423&AF423&AG423&AH423&AI423&AJ423&AK423)*1),\"\")","v":""},"←"]
[null,null,null,null,null,null,null,null,null,null,null,null,null,null,null,null,null,null,null,null,null,"→",null,null,null,null,null,null,null,null,null,null,null,null,null,null,null,null,{"$f":"IF(COUNTIF(W424:AK424,\"<>\"),SUMPRODUCT((Tableau[Hauteur]&Tableau[Largeur]&Tableau[Type]&Tableau[Allège vitrée]&Tableau[Vitrage]&Tableau[Sens Ouv]&Tableau[Petits bois]&Tableau[Allège maç]&Tableau[Mortaise]&Tableau[RAL]&Tableau[Dormant]&Tableau[GHI]&Tableau[Type de pose]&Tableau[OB]&Tableau[OB2]=W424&X424&Y424&Z424&AA424&AB424&AC424&AD424&AE424&AF424&AG424&AH424&AI424&AJ424&AK424)*1),\"\")","v":""},"←"]
[null,null,null,null,null,null,null,null,null,null,null,null,null,null,null,null,null,null,null,null,null,"→",null,null,null,null,null,null,null,null,null,null,null,null,null,null,null,null,{"$f":"IF(COUNTIF(W425:AK425,\"<>\"),SUMPRODUCT((Tableau[Hauteur]&Tableau[Largeur]&Tableau[Type]&Tableau[Allège vitrée]&Tableau[Vitrage]&Tableau[Sens Ouv]&Tableau[Petits bois]&Tableau[Allège maç]&Tableau[Mortaise]&Tableau[RAL]&Tableau[Dormant]&Tableau[GHI]&Tableau[Type de pose]&Tableau[OB]&Tableau[OB2]=W425&X425&Y425&Z425&AA425&AB425&AC425&AD425&AE425&AF425&AG425&AH425&AI425&AJ425&AK425)*1),\"\")","v":""},"←"]
[null,null,null,null,null,null,null,null,null,null,null,null,null,null,null,null,null,null,null,null,null,"→",null,null,null,null,null,null,null,null,null,null,null,null,null,null,null,null,{"$f":"IF(COUNTIF(W426:AK426,\"<>\"),SUMPRODUCT((Tableau[Hauteur]&Tableau[Largeur]&Tableau[Type]&Tableau[Allège vitrée]&Tableau[Vitrage]&Tableau[Sens Ouv]&Tableau[Petits bois]&Tableau[Allège maç]&Tableau[Mortaise]&Tableau[RAL]&Tableau[Dormant]&Tableau[GHI]&Tableau[Type de pose]&Tableau[OB]&Tableau[OB2]=W426&X426&Y426&Z426&AA426&AB426&AC426&AD426&AE426&AF426&AG426&AH426&AI426&AJ426&AK426)*1),\"\")","v":""},"←"]
[null,null,null,null,null,null,null,null,null,null,null,null,null,null,null,null,null,null,null,null,null,"→",null,null,null,null,null,null,null,null,null,null,null,null,null,null,null,null,{"$f":"IF(COUNTIF(W427:AK427,\"<>\"),SUMPRODUCT((Tableau[Hauteur]&Tableau[Largeur]&Tableau[Type]&Tableau[Allège vitrée]&Tableau[Vitrage]&Tableau[Sens Ouv]&Tableau[Petits bois]&Tableau[Allège maç]&Tableau[Mortaise]&Tableau[RAL]&Tableau[Dormant]&Tableau[GHI]&Tableau[Type de pose]&Tableau[OB]&Tableau[OB2]=W427&X427&Y427&Z427&AA427&AB427&AC427&AD427&AE427&AF427&AG427&AH427&AI427&AJ427&AK427)*1),\"\")","v":""},"←"]
[null,null,null,null,null,null,null,null,null,null,null,null,null,null,null,null,null,null,null,null,null,"→",null,null,null,null,null,null,null,null,null,null,null,null,null,null,null,null,{"$f":"IF(COUNTIF(W428:AK428,\"<>\"),SUMPRODUCT((Tableau[Hauteur]&Tableau[Largeur]&Tableau[Type]&Tableau[Allège vitrée]&Tableau[Vitrage]&Tableau[Sens Ouv]&Tableau[Petits bois]&Tableau[Allège maç]&Tableau[Mortaise]&Tableau[RAL]&Tableau[Dormant]&Tableau[GHI]&Tableau[Type de pose]&Tableau[OB]&Tableau[OB2]=W428&X428&Y428&Z428&AA428&AB428&AC428&AD428&AE428&AF428&AG428&AH428&AI428&AJ428&AK428)*1),\"\")","v":""},"←"]
[null,null,null,null,null,null,null,null,null,null,null,null,null,null,null,null,null,null,null,null,null,"→",null,null,null,null,null,null,null,null,null,null,null,null,null,null,null,null,{"$f":"IF(COUNTIF(W429:AK429,\"<>\"),SUMPRODUCT((Tableau[Hauteur]&Tableau[Largeur]&Tableau[Type]&Tableau[Allège vitrée]&Tableau[Vitrage]&Tableau[Sens Ouv]&Tableau[Petits bois]&Tableau[Allège maç]&Tableau[Mortaise]&Tableau[RAL]&Tableau[Dormant]&Tableau[GHI]&Tableau[Type de pose]&Tableau[OB]&Tableau[OB2]=W429&X429&Y429&Z429&AA429&AB429&AC429&AD429&AE429&AF429&AG429&AH429&AI429&AJ429&AK429)*1),\"\")","v":""},"←"]
[null,null,null,null,null,null,null,null,null,null,null,null,null,null,null,null,null,null,null,null,null,"→",null,null,null,null,null,null,null,null,null,null,null,null,null,null,null,null,{"$f":"IF(COUNTIF(W430:AK430,\"<>\"),SUMPRODUCT((Tableau[Hauteur]&Tableau[Largeur]&Tableau[Type]&Tableau[Allège vitrée]&Tableau[Vitrage]&Tableau[Sens Ouv]&Tableau[Petits bois]&Tableau[Allège maç]&Tableau[Mortaise]&Tableau[RAL]&Tableau[Dormant]&Tableau[GHI]&Tableau[Type de pose]&Tableau[OB]&Tableau[OB2]=W430&X430&Y430&Z430&AA430&AB430&AC430&AD430&AE430&AF430&AG430&AH430&AI430&AJ430&AK430)*1),\"\")","v":""},"←"]
[null,null,null,null,null,null,null,null,null,null,null,null,null,null,null,null,null,null,null,null,null,"→",null,null,null,null,null,null,null,null,null,null,null,null,null,null,null,null,{"$f":"IF(COUNTIF(W431:AK431,\"<>\"),SUMPRODUCT((Tableau[Hauteur]&Tableau[Largeur]&Tableau[Type]&Tableau[Allège vitrée]&Tableau[Vitrage]&Tableau[Sens Ouv]&Tableau[Petits bois]&Tableau[Allège maç]&Tableau[Mortaise]&Tableau[RAL]&Tableau[Dormant]&Tableau[GHI]&Tableau[Type de pose]&Tableau[OB]&Tableau[OB2]=W431&X431&Y431&Z431&AA431&AB431&AC431&AD431&AE431&AF431&AG431&AH431&AI431&AJ431&AK431)*1),\"\")","v":""},"←"]
[null,null,null,null,null,null,null,null,null,null,null,null,null,null,null,null,null,null,null,null,null,"→",null,null,null,null,null,null,null,null,null,null,null,null,null,null,null,null,{"$f":"IF(COUNTIF(W432:AK432,\"<>\"),SUMPRODUCT((Tableau[Hauteur]&Tableau[Largeur]&Tableau[Type]&Tableau[Allège vitrée]&Tableau[Vitrage]&Tableau[Sens Ouv]&Tableau[Petits bois]&Tableau[Allège maç]&Tableau[Mortaise]&Tableau[RAL]&Tableau[Dormant]&Tableau[GHI]&Tableau[Type de pose]&Tableau[OB]&Tableau[OB2]=W432&X432&Y432&Z432&AA432&AB432&AC432&AD432&AE432&AF432&AG432&AH432&AI432&AJ432&AK432)*1),\"\")","v":""},"←"]
[null,null,null,null,null,null,null,null,null,null,null,null,null,null,null,null,null,null,null,null,null,"→",null,null,null,null,null,null,null,null,null,null,null,null,null,null,null,null,{"$f":"IF(COUNTIF(W433:AK433,\"<>\"),SUMPRODUCT((Tableau[Hauteur]&Tableau[Largeur]&Tableau[Type]&Tableau[Allège vitrée]&Tableau[Vitrage]&Tableau[Sens Ouv]&Tableau[Petits bois]&Tableau[Allège maç]&Tableau[Mortaise]&Tableau[RAL]&Tableau[Dormant]&Tableau[GHI]&Tableau[Type de pose]&Tableau[OB]&Tableau[OB2]=W433&X433&Y433&Z433&AA433&AB433&AC433&AD433&AE433&AF433&AG433&AH433&AI433&AJ433&AK433)*1),\"\")","v":""},"←"]
[null,null,null,null,null,null,null,null,null,null,null,null,null,null,null,null,null,null,null,null,null,"→",null,null,null,null,null,null,null,null,null,null,null,null,null,null,null,null,{"$f":"IF(COUNTIF(W434:AK434,\"<>\"),SUMPRODUCT((Tableau[Hauteur]&Tableau[Largeur]&Tableau[Type]&Tableau[Allège vitrée]&Tableau[Vitrage]&Tableau[Sens Ouv]&Tableau[Petits bois]&Tableau[Allège maç]&Tableau[Mortaise]&Tableau[RAL]&Tableau[Dormant]&Tableau[GHI]&Tableau[Type de pose]&Tableau[OB]&Tableau[OB2]=W434&X434&Y434&Z434&AA434&AB434&AC434&AD434&AE434&AF434&AG434&AH434&AI434&AJ434&AK434)*1),\"\")","v":""},"←"]
[null,null,null,null,null,null,null,null,null,null,null,null,null,null,null,null,null,null,null,null,null,"→",null,null,null,null,null,null,null,null,null,null,null,null,null,null,null,null,{"$f":"IF(COUNTIF(W435:AK435,\"<>\"),SUMPRODUCT((Tableau[Hauteur]&Tableau[Largeur]&Tableau[Type]&Tableau[Allège vitrée]&Tableau[Vitrage]&Tableau[Sens Ouv]&Tableau[Petits bois]&Tableau[Allège maç]&Tableau[Mortaise]&Tableau[RAL]&Tableau[Dormant]&Tableau[GHI]&Tableau[Type de pose]&Tableau[OB]&Tableau[OB2]=W435&X435&Y435&Z435&AA435&AB435&AC435&AD435&AE435&AF435&AG435&AH435&AI435&AJ435&AK435)*1),\"\")","v":""},"←"]
[null,null,null,null,null,null,null,null,null,null,null,null,null,null,null,null,null,null,null,null,null,"→",null,null,null,null,null,null,null,null,null,null,null,null,null,null,null,null,{"$f":"IF(COUNTIF(W436:AK436,\"<>\"),SUMPRODUCT((Tableau[Hauteur]&Tableau[Largeur]&Tableau[Type]&Tableau[Allège vitrée]&Tableau[Vitrage]&Tableau[Sens Ouv]&Tableau[Petits bois]&Tableau[Allège maç]&Tableau[Mortaise]&Tableau[RAL]&Tableau[Dormant]&Tableau[GHI]&Tableau[Type de pose]&Tableau[OB]&Tableau[OB2]=W436&X436&Y436&Z436&AA436&AB436&AC436&AD436&AE436&AF436&AG436&AH436&AI436&AJ436&AK436)*1),\"\")","v":""},"←"]
[null,null,null,null,null,null,null,null,null,null,null,null,null,null,null,null,null,null,null,null,null,"→",null,null,null,null,null,null,null,null,null,null,null,null,null,null,null,null,{"$f":"IF(COUNTIF(W437:AK437,\"<>\"),SUMPRODUCT((Tableau[Hauteur]&Tableau[Largeur]&Tableau[Type]&Tableau[Allège vitrée]&Tableau[Vitrage]&Tableau[Sens Ouv]&Tableau[Petits bois]&Tableau[Allège maç]&Tableau[Mortaise]&Tableau[RAL]&Tableau[Dormant]&Tableau[GHI]&Tableau[Type de pose]&Tableau[OB]&Tableau[OB2]=W437&X437&Y437&Z437&AA437&AB437&AC437&AD437&AE437&AF437&AG437&AH437&AI437&AJ437&AK437)*1),\"\")","v":""},"←"]
[null,null,null,null,null,null,null,null,null,null,null,null,null,null,null,null,null,null,null,null,null,"→",null,null,null,null,null,null,null,null,null,null,null,null,null,null,null,null,{"$f":"IF(COUNTIF(W438:AK438,\"<>\"),SUMPRODUCT((Tableau[Hauteur]&Tableau[Largeur]&Tableau[Type]&Tableau[Allège vitrée]&Tableau[Vitrage]&Tableau[Sens Ouv]&Tableau[Petits bois]&Tableau[Allège maç]&Tableau[Mortaise]&Tableau[RAL]&Tableau[Dormant]&Tableau[GHI]&Tableau[Type de pose]&Tableau[OB]&Tableau[OB2]=W438&X438&Y438&Z438&AA438&AB438&AC438&AD438&AE438&AF438&AG438&AH438&AI438&AJ438&AK438)*1),\"\")","v":""},"←"]
[null,null,null,null,null,null,null,null,null,null,null,null,null,null,null,null,null,null,null,null,null,"→",null,null,null,null,null,null,null,null,null,null,null,null,null,null,null,null,{"$f":"IF(COUNTIF(W439:AK439,\"<>\"),SUMPRODUCT((Tableau[Hauteur]&Tableau[Largeur]&Tableau[Type]&Tableau[Allège vitrée]&Tableau[Vitrage]&Tableau[Sens Ouv]&Tableau[Petits bois]&Tableau[Allège maç]&Tableau[Mortaise]&Tableau[RAL]&Tableau[Dormant]&Tableau[GHI]&Tableau[Type de pose]&Tableau[OB]&Tableau[OB2]=W439&X439&Y439&Z439&AA439&AB439&AC439&AD439&AE439&AF439&AG439&AH439&AI439&AJ439&AK439)*1),\"\")","v":""},"←"]
[null,null,null,null,null,null,null,null,null,null,null,null,null,null,null,null,null,null,null,null,null,"→",null,null,null,null,null,null,null,null,null,null,null,null,null,null,null,null,{"$f":"IF(COUNTIF(W440:AK440,\"<>\"),SUMPRODUCT((Tableau[Hauteur]&Tableau[Largeur]&Tableau[Type]&Tableau[Allège vitrée]&Tableau[Vitrage]&Tableau[Sens Ouv]&Tableau[Petits bois]&Tableau[Allège maç]&Tableau[Mortaise]&Tableau[RAL]&Tableau[Dormant]&Tableau[GHI]&Tableau[Type de pose]&Tableau[OB]&Tableau[OB2]=W440&X440&Y440&Z440&AA440&AB440&AC440&AD440&AE440&AF440&AG440&AH440&AI440&AJ440&AK440)*1),\"\")","v":""},"←"]
[null,null,null,null,null,null,null,null,null,null,null,null,null,null,null,null,null,null,null,null,null,"→",null,null,null,null,null,null,null,null,null,null,null,null,null,null,null,null,{"$f":"IF(COUNTIF(W441:AK441,\"<>\"),SUMPRODUCT((Tableau[Hauteur]&Tableau[Largeur]&Tableau[Type]&Tableau[Allège vitrée]&Tableau[Vitrage]&Tableau[Sens Ouv]&Tableau[Petits bois]&Tableau[Allège maç]&Tableau[Mortaise]&Tableau[RAL]&Tableau[Dormant]&Tableau[GHI]&Tableau[Type de pose]&Tableau[OB]&Tableau[OB2]=W441&X441&Y441&Z441&AA441&AB441&AC441&AD441&AE441&AF441&AG441&AH441&AI441&AJ441&AK441)*1),\"\")","v":""},"←"]
[null,null,null,null,null,null,null,null,null,null,null,null,null,null,null,null,null,null,null,null,null,"→",null,null,null,null,null,null,null,null,null,null,null,null,null,null,null,null,{"$f":"IF(COUNTIF(W442:AK442,\"<>\"),SUMPRODUCT((Tableau[Hauteur]&Tableau[Largeur]&Tableau[Type]&Tableau[Allège vitrée]&Tableau[Vitrage]&Tableau[Sens Ouv]&Tableau[Petits bois]&Tableau[Allège maç]&Tableau[Mortaise]&Tableau[RAL]&Tableau[Dormant]&Tableau[GHI]&Tableau[Type de pose]&Tableau[OB]&Tableau[OB2]=W442&X442&Y442&Z442&AA442&AB442&AC442&AD442&AE442&AF442&AG442&AH442&AI442&AJ442&AK442)*1),\"\")","v":""},"←"]
[null,null,null,null,null,null,null,null,null,null,null,null,null,null,null,null,null,null,null,null,null,"→",null,null,null,null,null,null,null,null,null,null,null,null,null,null,null,null,{"$f":"IF(COUNTIF(W443:AK443,\"<>\"),SUMPRODUCT((Tableau[Hauteur]&Tableau[Largeur]&Tableau[Type]&Tableau[Allège vitrée]&Tableau[Vitrage]&Tableau[Sens Ouv]&Tableau[Petits bois]&Tableau[Allège maç]&Tableau[Mortaise]&Tableau[RAL]&Tableau[Dormant]&Tableau[GHI]&Tableau[Type de pose]&Tableau[OB]&Tableau[OB2]=W443&X443&Y443&Z443&AA443&AB443&AC443&AD443&AE443&AF443&AG443&AH443&AI443&AJ443&AK443)*1),\"\")","v":""},"←"]
[null,null,null,null,null,null,null,null,null,null,null,null,null,null,null,null,null,null,null,null,null,"→",null,null,null,null,null,null,null,null,null,null,null,null,null,null,null,null,{"$f":"IF(COUNTIF(W444:AK444,\"<>\"),SUMPRODUCT((Tableau[Hauteur]&Tableau[Largeur]&Tableau[Type]&Tableau[Allège vitrée]&Tableau[Vitrage]&Tableau[Sens Ouv]&Tableau[Petits bois]&Tableau[Allège maç]&Tableau[Mortaise]&Tableau[RAL]&Tableau[Dormant]&Tableau[GHI]&Tableau[Type de pose]&Tableau[OB]&Tableau[OB2]=W444&X444&Y444&Z444&AA444&AB444&AC444&AD444&AE444&AF444&AG444&AH444&AI444&AJ444&AK444)*1),\"\")","v":""},"←"]
[null,null,null,null,null,null,null,null,null,null,null,null,null,null,null,null,null,null,null,null,null,"→",null,null,null,null,null,null,null,null,null,null,null,null,null,null,null,null,{"$f":"IF(COUNTIF(W445:AK445,\"<>\"),SUMPRODUCT((Tableau[Hauteur]&Tableau[Largeur]&Tableau[Type]&Tableau[Allège vitrée]&Tableau[Vitrage]&Tableau[Sens Ouv]&Tableau[Petits bois]&Tableau[Allège maç]&Tableau[Mortaise]&Tableau[RAL]&Tableau[Dormant]&Tableau[GHI]&Tableau[Type de pose]&Tableau[OB]&Tableau[OB2]=W445&X445&Y445&Z445&AA445&AB445&AC445&AD445&AE445&AF445&AG445&AH445&AI445&AJ445&AK445)*1),\"\")","v":""},"←"]
[null,null,null,null,null,null,null,null,null,null,null,null,null,null,null,null,null,null,null,null,null,"→",null,null,null,null,null,null,null,null,null,null,null,null,null,null,null,null,{"$f":"IF(COUNTIF(W446:AK446,\"<>\"),SUMPRODUCT((Tableau[Hauteur]&Tableau[Largeur]&Tableau[Type]&Tableau[Allège vitrée]&Tableau[Vitrage]&Tableau[Sens Ouv]&Tableau[Petits bois]&Tableau[Allège maç]&Tableau[Mortaise]&Tableau[RAL]&Tableau[Dormant]&Tableau[GHI]&Tableau[Type de pose]&Tableau[OB]&Tableau[OB2]=W446&X446&Y446&Z446&AA446&AB446&AC446&AD446&AE446&AF446&AG446&AH446&AI446&AJ446&AK446)*1),\"\")","v":""},"←"]
[null,null,null,null,null,null,null,null,null,null,null,null,null,null,null,null,null,null,null,null,null,"→",null,null,null,null,null,null,null,null,null,null,null,null,null,null,null,null,{"$f":"IF(COUNTIF(W447:AK447,\"<>\"),SUMPRODUCT((Tableau[Hauteur]&Tableau[Largeur]&Tableau[Type]&Tableau[Allège vitrée]&Tableau[Vitrage]&Tableau[Sens Ouv]&Tableau[Petits bois]&Tableau[Allège maç]&Tableau[Mortaise]&Tableau[RAL]&Tableau[Dormant]&Tableau[GHI]&Tableau[Type de pose]&Tableau[OB]&Tableau[OB2]=W447&X447&Y447&Z447&AA447&AB447&AC447&AD447&AE447&AF447&AG447&AH447&AI447&AJ447&AK447)*1),\"\")","v":""},"←"]
[null,null,null,null,null,null,null,null,null,null,null,null,null,null,null,null,null,null,null,null,null,"→",null,null,null,null,null,null,null,null,null,null,null,null,null,null,null,null,{"$f":"IF(COUNTIF(W448:AK448,\"<>\"),SUMPRODUCT((Tableau[Hauteur]&Tableau[Largeur]&Tableau[Type]&Tableau[Allège vitrée]&Tableau[Vitrage]&Tableau[Sens Ouv]&Tableau[Petits bois]&Tableau[Allège maç]&Tableau[Mortaise]&Tableau[RAL]&Tableau[Dormant]&Tableau[GHI]&Tableau[Type de pose]&Tableau[OB]&Tableau[OB2]=W448&X448&Y448&Z448&AA448&AB448&AC448&AD448&AE448&AF448&AG448&AH448&AI448&AJ448&AK448)*1),\"\")","v":""},"←"]
[null,null,null,null,null,null,null,null,null,null,null,null,null,null,null,null,null,null,null,null,null,"→",null,null,null,null,null,null,null,null,null,null,null,null,null,null,null,null,{"$f":"IF(COUNTIF(W449:AK449,\"<>\"),SUMPRODUCT((Tableau[Hauteur]&Tableau[Largeur]&Tableau[Type]&Tableau[Allège vitrée]&Tableau[Vitrage]&Tableau[Sens Ouv]&Tableau[Petits bois]&Tableau[Allège maç]&Tableau[Mortaise]&Tableau[RAL]&Tableau[Dormant]&Tableau[GHI]&Tableau[Type de pose]&Tableau[OB]&Tableau[OB2]=W449&X449&Y449&Z449&AA449&AB449&AC449&AD449&AE449&AF449&AG449&AH449&AI449&AJ449&AK449)*1),\"\")","v":""},"←"]
[null,null,null,null,null,null,null,null,null,null,null,null,null,null,null,null,null,null,null,null,null,"→",null,null,null,null,null,null,null,null,null,null,null,null,null,null,null,null,{"$f":"IF(COUNTIF(W450:AK450,\"<>\"),SUMPRODUCT((Tableau[Hauteur]&Tableau[Largeur]&Tableau[Type]&Tableau[Allège vitrée]&Tableau[Vitrage]&Tableau[Sens Ouv]&Tableau[Petits bois]&Tableau[Allège maç]&Tableau[Mortaise]&Tableau[RAL]&Tableau[Dormant]&Tableau[GHI]&Tableau[Type de pose]&Tableau[OB]&Tableau[OB2]=W450&X450&Y450&Z450&AA450&AB450&AC450&AD450&AE450&AF450&AG450&AH450&AI450&AJ450&AK450)*1),\"\")","v":""},"←"]
[null,null,null,null,null,null,null,null,null,null,null,null,null,null,null,null,null,null,null,null,null,"→",null,null,null,null,null,null,null,null,null,null,null,null,null,null,null,null,{"$f":"IF(COUNTIF(W451:AK451,\"<>\"),SUMPRODUCT((Tableau[Hauteur]&Tableau[Largeur]&Tableau[Type]&Tableau[Allège vitrée]&Tableau[Vitrage]&Tableau[Sens Ouv]&Tableau[Petits bois]&Tableau[Allège maç]&Tableau[Mortaise]&Tableau[RAL]&Tableau[Dormant]&Tableau[GHI]&Tableau[Type de pose]&Tableau[OB]&Tableau[OB2]=W451&X451&Y451&Z451&AA451&AB451&AC451&AD451&AE451&AF451&AG451&AH451&AI451&AJ451&AK451)*1),\"\")","v":""},"←"]
[null,null,null,null,null,null,null,null,null,null,null,null,null,null,null,null,null,null,null,null,null,"→",null,null,null,null,null,null,null,null,null,null,null,null,null,null,null,null,{"$f":"IF(COUNTIF(W452:AK452,\"<>\"),SUMPRODUCT((Tableau[Hauteur]&Tableau[Largeur]&Tableau[Type]&Tableau[Allège vitrée]&Tableau[Vitrage]&Tableau[Sens Ouv]&Tableau[Petits bois]&Tableau[Allège maç]&Tableau[Mortaise]&Tableau[RAL]&Tableau[Dormant]&Tableau[GHI]&Tableau[Type de pose]&Tableau[OB]&Tableau[OB2]=W452&X452&Y452&Z452&AA452&AB452&AC452&AD452&AE452&AF452&AG452&AH452&AI452&AJ452&AK452)*1),\"\")","v":""},"←"]
[null,null,null,null,null,null,null,null,null,null,null,null,null,null,null,null,null,null,null,null,null,"→",null,null,null,null,null,null,null,null,null,null,null,null,null,null,null,null,{"$f":"IF(COUNTIF(W453:AK453,\"<>\"),SUMPRODUCT((Tableau[Hauteur]&Tableau[Largeur]&Tableau[Type]&Tableau[Allège vitrée]&Tableau[Vitrage]&Tableau[Sens Ouv]&Tableau[Petits bois]&Tableau[Allège maç]&Tableau[Mortaise]&Tableau[RAL]&Tableau[Dormant]&Tableau[GHI]&Tableau[Type de pose]&Tableau[OB]&Tableau[OB2]=W453&X453&Y453&Z453&AA453&AB453&AC453&AD453&AE453&AF453&AG453&AH453&AI453&AJ453&AK453)*1),\"\")","v":""},"←"]
[null,null,null,null,null,null,null,null,null,null,null,null,null,null,null,null,null,null,null,null,null,"→",null,null,null,null,null,null,null,null,null,null,null,null,null,null,null,null,{"$f":"IF(COUNTIF(W454:AK454,\"<>\"),SUMPRODUCT((Tableau[Hauteur]&Tableau[Largeur]&Tableau[Type]&Tableau[Allège vitrée]&Tableau[Vitrage]&Tableau[Sens Ouv]&Tableau[Petits bois]&Tableau[Allège maç]&Tableau[Mortaise]&Tableau[RAL]&Tableau[Dormant]&Tableau[GHI]&Tableau[Type de pose]&Tableau[OB]&Tableau[OB2]=W454&X454&Y454&Z454&AA454&AB454&AC454&AD454&AE454&AF454&AG454&AH454&AI454&AJ454&AK454)*1),\"\")","v":""},"←"]
[null,null,null,null,null,null,null,null,null,null,null,null,null,null,null,null,null,null,null,null,null,"→",null,null,null,null,null,null,null,null,null,null,null,null,null,null,null,null,{"$f":"IF(COUNTIF(W455:AK455,\"<>\"),SUMPRODUCT((Tableau[Hauteur]&Tableau[Largeur]&Tableau[Type]&Tableau[Allège vitrée]&Tableau[Vitrage]&Tableau[Sens Ouv]&Tableau[Petits bois]&Tableau[Allège maç]&Tableau[Mortaise]&Tableau[RAL]&Tableau[Dormant]&Tableau[GHI]&Tableau[Type de pose]&Tableau[OB]&Tableau[OB2]=W455&X455&Y455&Z455&AA455&AB455&AC455&AD455&AE455&AF455&AG455&AH455&AI455&AJ455&AK455)*1),\"\")","v":""},"←"]
[null,null,null,null,null,null,null,null,null,null,null,null,null,null,null,null,null,null,null,null,null,"→",null,null,null,null,null,null,null,null,null,null,null,null,null,null,null,null,{"$f":"IF(COUNTIF(W456:AK456,\"<>\"),SUMPRODUCT((Tableau[Hauteur]&Tableau[Largeur]&Tableau[Type]&Tableau[Allège vitrée]&Tableau[Vitrage]&Tableau[Sens Ouv]&Tableau[Petits bois]&Tableau[Allège maç]&Tableau[Mortaise]&Tableau[RAL]&Tableau[Dormant]&Tableau[GHI]&Tableau[Type de pose]&Tableau[OB]&Tableau[OB2]=W456&X456&Y456&Z456&AA456&AB456&AC456&AD456&AE456&AF456&AG456&AH456&AI456&AJ456&AK456)*1),\"\")","v":""},"←"]
[null,null,null,null,null,null,null,null,null,null,null,null,null,null,null,null,null,null,null,null,null,"→",null,null,null,null,null,null,null,null,null,null,null,null,null,null,null,null,{"$f":"IF(COUNTIF(W457:AK457,\"<>\"),SUMPRODUCT((Tableau[Hauteur]&Tableau[Largeur]&Tableau[Type]&Tableau[Allège vitrée]&Tableau[Vitrage]&Tableau[Sens Ouv]&Tableau[Petits bois]&Tableau[Allège maç]&Tableau[Mortaise]&Tableau[RAL]&Tableau[Dormant]&Tableau[GHI]&Tableau[Type de pose]&Tableau[OB]&Tableau[OB2]=W457&X457&Y457&Z457&AA457&AB457&AC457&AD457&AE457&AF457&AG457&AH457&AI457&AJ457&AK457)*1),\"\")","v":""},"←"]
[null,null,null,null,null,null,null,null,null,null,null,null,null,null,null,null,null,null,null,null,null,"→",null,null,null,null,null,null,null,null,null,null,null,null,null,null,null,null,{"$f":"IF(COUNTIF(W458:AK458,\"<>\"),SUMPRODUCT((Tableau[Hauteur]&Tableau[Largeur]&Tableau[Type]&Tableau[Allège vitrée]&Tableau[Vitrage]&Tableau[Sens Ouv]&Tableau[Petits bois]&Tableau[Allège maç]&Tableau[Mortaise]&Tableau[RAL]&Tableau[Dormant]&Tableau[GHI]&Tableau[Type de pose]&Tableau[OB]&Tableau[OB2]=W458&X458&Y458&Z458&AA458&AB458&AC458&AD458&AE458&AF458&AG458&AH458&AI458&AJ458&AK458)*1),\"\")","v":""},"←"]
[null,null,null,null,null,null,null,null,null,null,null,null,null,null,null,null,null,null,null,null,null,"→",null,null,null,null,null,null,null,null,null,null,null,null,null,null,null,null,{"$f":"IF(COUNTIF(W459:AK459,\"<>\"),SUMPRODUCT((Tableau[Hauteur]&Tableau[Largeur]&Tableau[Type]&Tableau[Allège vitrée]&Tableau[Vitrage]&Tableau[Sens Ouv]&Tableau[Petits bois]&Tableau[Allège maç]&Tableau[Mortaise]&Tableau[RAL]&Tableau[Dormant]&Tableau[GHI]&Tableau[Type de pose]&Tableau[OB]&Tableau[OB2]=W459&X459&Y459&Z459&AA459&AB459&AC459&AD459&AE459&AF459&AG459&AH459&AI459&AJ459&AK459)*1),\"\")","v":""},"←"]
[null,null,null,null,null,null,null,null,null,null,null,null,null,null,null,null,null,null,null,null,null,"→",null,null,null,null,null,null,null,null,null,null,null,null,null,null,null,null,{"$f":"IF(COUNTIF(W460:AK460,\"<>\"),SUMPRODUCT((Tableau[Hauteur]&Tableau[Largeur]&Tableau[Type]&Tableau[Allège vitrée]&Tableau[Vitrage]&Tableau[Sens Ouv]&Tableau[Petits bois]&Tableau[Allège maç]&Tableau[Mortaise]&Tableau[RAL]&Tableau[Dormant]&Tableau[GHI]&Tableau[Type de pose]&Tableau[OB]&Tableau[OB2]=W460&X460&Y460&Z460&AA460&AB460&AC460&AD460&AE460&AF460&AG460&AH460&AI460&AJ460&AK460)*1),\"\")","v":""},"←"]
[null,null,null,null,null,null,null,null,null,null,null,null,null,null,null,null,null,null,null,null,null,"→",null,null,null,null,null,null,null,null,null,null,null,null,null,null,null,null,{"$f":"IF(COUNTIF(W461:AK461,\"<>\"),SUMPRODUCT((Tableau[Hauteur]&Tableau[Largeur]&Tableau[Type]&Tableau[Allège vitrée]&Tableau[Vitrage]&Tableau[Sens Ouv]&Tableau[Petits bois]&Tableau[Allège maç]&Tableau[Mortaise]&Tableau[RAL]&Tableau[Dormant]&Tableau[GHI]&Tableau[Type de pose]&Tableau[OB]&Tableau[OB2]=W461&X461&Y461&Z461&AA461&AB461&AC461&AD461&AE461&AF461&AG461&AH461&AI461&AJ461&AK461)*1),\"\")","v":""},"←"]
[null,null,null,null,null,null,null,null,null,null,null,null,null,null,null,null,null,null,null,null,null,"→",null,null,null,null,null,null,null,null,null,null,null,null,null,null,null,null,{"$f":"IF(COUNTIF(W462:AK462,\"<>\"),SUMPRODUCT((Tableau[Hauteur]&Tableau[Largeur]&Tableau[Type]&Tableau[Allège vitrée]&Tableau[Vitrage]&Tableau[Sens Ouv]&Tableau[Petits bois]&Tableau[Allège maç]&Tableau[Mortaise]&Tableau[RAL]&Tableau[Dormant]&Tableau[GHI]&Tableau[Type de pose]&Tableau[OB]&Tableau[OB2]=W462&X462&Y462&Z462&AA462&AB462&AC462&AD462&AE462&AF462&AG462&AH462&AI462&AJ462&AK462)*1),\"\")","v":""},"←"]
[null,null,null,null,null,null,null,null,null,null,null,null,null,null,null,null,null,null,null,null,null,"→",null,null,null,null,null,null,null,null,null,null,null,null,null,null,null,null,{"$f":"IF(COUNTIF(W463:AK463,\"<>\"),SUMPRODUCT((Tableau[Hauteur]&Tableau[Largeur]&Tableau[Type]&Tableau[Allège vitrée]&Tableau[Vitrage]&Tableau[Sens Ouv]&Tableau[Petits bois]&Tableau[Allège maç]&Tableau[Mortaise]&Tableau[RAL]&Tableau[Dormant]&Tableau[GHI]&Tableau[Type de pose]&Tableau[OB]&Tableau[OB2]=W463&X463&Y463&Z463&AA463&AB463&AC463&AD463&AE463&AF463&AG463&AH463&AI463&AJ463&AK463)*1),\"\")","v":""},"←"]
[null,null,null,null,null,null,null,null,null,null,null,null,null,null,null,null,null,null,null,null,null,"→",null,null,null,null,null,null,null,null,null,null,null,null,null,null,null,null,{"$f":"IF(COUNTIF(W464:AK464,\"<>\"),SUMPRODUCT((Tableau[Hauteur]&Tableau[Largeur]&Tableau[Type]&Tableau[Allège vitrée]&Tableau[Vitrage]&Tableau[Sens Ouv]&Tableau[Petits bois]&Tableau[Allège maç]&Tableau[Mortaise]&Tableau[RAL]&Tableau[Dormant]&Tableau[GHI]&Tableau[Type de pose]&Tableau[OB]&Tableau[OB2]=W464&X464&Y464&Z464&AA464&AB464&AC464&AD464&AE464&AF464&AG464&AH464&AI464&AJ464&AK464)*1),\"\")","v":""},"←"]
[null,null,null,null,null,null,null,null,null,null,null,null,null,null,null,null,null,null,null,null,null,"→",null,null,null,null,null,null,null,null,null,null,null,null,null,null,null,null,{"$f":"IF(COUNTIF(W465:AK465,\"<>\"),SUMPRODUCT((Tableau[Hauteur]&Tableau[Largeur]&Tableau[Type]&Tableau[Allège vitrée]&Tableau[Vitrage]&Tableau[Sens Ouv]&Tableau[Petits bois]&Tableau[Allège maç]&Tableau[Mortaise]&Tableau[RAL]&Tableau[Dormant]&Tableau[GHI]&Tableau[Type de pose]&Tableau[OB]&Tableau[OB2]=W465&X465&Y465&Z465&AA465&AB465&AC465&AD465&AE465&AF465&AG465&AH465&AI465&AJ465&AK465)*1),\"\")","v":""},"←"]
[null,null,null,null,null,null,null,null,null,null,null,null,null,null,null,null,null,null,null,null,null,"→",null,null,null,null,null,null,null,null,null,null,null,null,null,null,null,null,{"$f":"IF(COUNTIF(W466:AK466,\"<>\"),SUMPRODUCT((Tableau[Hauteur]&Tableau[Largeur]&Tableau[Type]&Tableau[Allège vitrée]&Tableau[Vitrage]&Tableau[Sens Ouv]&Tableau[Petits bois]&Tableau[Allège maç]&Tableau[Mortaise]&Tableau[RAL]&Tableau[Dormant]&Tableau[GHI]&Tableau[Type de pose]&Tableau[OB]&Tableau[OB2]=W466&X466&Y466&Z466&AA466&AB466&AC466&AD466&AE466&AF466&AG466&AH466&AI466&AJ466&AK466)*1),\"\")","v":""},"←"]
[null,null,null,null,null,null,null,null,null,null,null,null,null,null,null,null,null,null,null,null,null,"→",null,null,null,null,null,null,null,null,null,null,null,null,null,null,null,null,{"$f":"IF(COUNTIF(W467:AK467,\"<>\"),SUMPRODUCT((Tableau[Hauteur]&Tableau[Largeur]&Tableau[Type]&Tableau[Allège vitrée]&Tableau[Vitrage]&Tableau[Sens Ouv]&Tableau[Petits bois]&Tableau[Allège maç]&Tableau[Mortaise]&Tableau[RAL]&Tableau[Dormant]&Tableau[GHI]&Tableau[Type de pose]&Tableau[OB]&Tableau[OB2]=W467&X467&Y467&Z467&AA467&AB467&AC467&AD467&AE467&AF467&AG467&AH467&AI467&AJ467&AK467)*1),\"\")","v":""},"←"]
[null,null,null,null,null,null,null,null,null,null,null,null,null,null,null,null,null,null,null,null,null,"→",null,null,null,null,null,null,null,null,null,null,null,null,null,null,null,null,{"$f":"IF(COUNTIF(W468:AK468,\"<>\"),SUMPRODUCT((Tableau[Hauteur]&Tableau[Largeur]&Tableau[Type]&Tableau[Allège vitrée]&Tableau[Vitrage]&Tableau[Sens Ouv]&Tableau[Petits bois]&Tableau[Allège maç]&Tableau[Mortaise]&Tableau[RAL]&Tableau[Dormant]&Tableau[GHI]&Tableau[Type de pose]&Tableau[OB]&Tableau[OB2]=W468&X468&Y468&Z468&AA468&AB468&AC468&AD468&AE468&AF468&AG468&AH468&AI468&AJ468&AK468)*1),\"\")","v":""},"←"]
[null,null,null,null,null,null,null,null,null,null,null,null,null,null,null,null,null,null,null,null,null,"→",null,null,null,null,null,null,null,null,null,null,null,null,null,null,null,null,{"$f":"IF(COUNTIF(W469:AK469,\"<>\"),SUMPRODUCT((Tableau[Hauteur]&Tableau[Largeur]&Tableau[Type]&Tableau[Allège vitrée]&Tableau[Vitrage]&Tableau[Sens Ouv]&Tableau[Petits bois]&Tableau[Allège maç]&Tableau[Mortaise]&Tableau[RAL]&Tableau[Dormant]&Tableau[GHI]&Tableau[Type de pose]&Tableau[OB]&Tableau[OB2]=W469&X469&Y469&Z469&AA469&AB469&AC469&AD469&AE469&AF469&AG469&AH469&AI469&AJ469&AK469)*1),\"\")","v":""},"←"]
[null,null,null,null,null,null,null,null,null,null,null,null,null,null,null,null,null,null,null,null,null,"→",null,null,null,null,null,null,null,null,null,null,null,null,null,null,null,null,{"$f":"IF(COUNTIF(W470:AK470,\"<>\"),SUMPRODUCT((Tableau[Hauteur]&Tableau[Largeur]&Tableau[Type]&Tableau[Allège vitrée]&Tableau[Vitrage]&Tableau[Sens Ouv]&Tableau[Petits bois]&Tableau[Allège maç]&Tableau[Mortaise]&Tableau[RAL]&Tableau[Dormant]&Tableau[GHI]&Tableau[Type de pose]&Tableau[OB]&Tableau[OB2]=W470&X470&Y470&Z470&AA470&AB470&AC470&AD470&AE470&AF470&AG470&AH470&AI470&AJ470&AK470)*1),\"\")","v":""},"←"]
[null,null,null,null,null,null,null,null,null,null,null,null,null,null,null,null,null,null,null,null,null,"→",null,null,null,null,null,null,null,null,null,null,null,null,null,null,null,null,{"$f":"IF(COUNTIF(W471:AK471,\"<>\"),SUMPRODUCT((Tableau[Hauteur]&Tableau[Largeur]&Tableau[Type]&Tableau[Allège vitrée]&Tableau[Vitrage]&Tableau[Sens Ouv]&Tableau[Petits bois]&Tableau[Allège maç]&Tableau[Mortaise]&Tableau[RAL]&Tableau[Dormant]&Tableau[GHI]&Tableau[Type de pose]&Tableau[OB]&Tableau[OB2]=W471&X471&Y471&Z471&AA471&AB471&AC471&AD471&AE471&AF471&AG471&AH471&AI471&AJ471&AK471)*1),\"\")","v":""},"←"]
[null,null,null,null,null,null,null,null,null,null,null,null,null,null,null,null,null,null,null,null,null,"→",null,null,null,null,null,null,null,null,null,null,null,null,null,null,null,null,{"$f":"IF(COUNTIF(W472:AK472,\"<>\"),SUMPRODUCT((Tableau[Hauteur]&Tableau[Largeur]&Tableau[Type]&Tableau[Allège vitrée]&Tableau[Vitrage]&Tableau[Sens Ouv]&Tableau[Petits bois]&Tableau[Allège maç]&Tableau[Mortaise]&Tableau[RAL]&Tableau[Dormant]&Tableau[GHI]&Tableau[Type de pose]&Tableau[OB]&Tableau[OB2]=W472&X472&Y472&Z472&AA472&AB472&AC472&AD472&AE472&AF472&AG472&AH472&AI472&AJ472&AK472)*1),\"\")","v":""},"←"]
[null,null,null,null,null,null,null,null,null,null,null,null,null,null,null,null,null,null,null,null,null,"→",null,null,null,null,null,null,null,null,null,null,null,null,null,null,null,null,{"$f":"IF(COUNTIF(W473:AK473,\"<>\"),SUMPRODUCT((Tableau[Hauteur]&Tableau[Largeur]&Tableau[Type]&Tableau[Allège vitrée]&Tableau[Vitrage]&Tableau[Sens Ouv]&Tableau[Petits bois]&Tableau[Allège maç]&Tableau[Mortaise]&Tableau[RAL]&Tableau[Dormant]&Tableau[GHI]&Tableau[Type de pose]&Tableau[OB]&Tableau[OB2]=W473&X473&Y473&Z473&AA473&AB473&AC473&AD473&AE473&AF473&AG473&AH473&AI473&AJ473&AK473)*1),\"\")","v":""},"←"]
[null,null,null,null,null,null,null,null,null,null,null,null,null,null,null,null,null,null,null,null,null,"→",null,null,null,null,null,null,null,null,null,null,null,null,null,null,null,null,{"$f":"IF(COUNTIF(W474:AK474,\"<>\"),SUMPRODUCT((Tableau[Hauteur]&Tableau[Largeur]&Tableau[Type]&Tableau[Allège vitrée]&Tableau[Vitrage]&Tableau[Sens Ouv]&Tableau[Petits bois]&Tableau[Allège maç]&Tableau[Mortaise]&Tableau[RAL]&Tableau[Dormant]&Tableau[GHI]&Tableau[Type de pose]&Tableau[OB]&Tableau[OB2]=W474&X474&Y474&Z474&AA474&AB474&AC474&AD474&AE474&AF474&AG474&AH474&AI474&AJ474&AK474)*1),\"\")","v":""},"←"]
[null,null,null,null,null,null,null,null,null,null,null,null,null,null,null,null,null,null,null,null,null,"→",null,null,null,null,null,null,null,null,null,null,null,null,null,null,null,null,{"$f":"IF(COUNTIF(W475:AK475,\"<>\"),SUMPRODUCT((Tableau[Hauteur]&Tableau[Largeur]&Tableau[Type]&Tableau[Allège vitrée]&Tableau[Vitrage]&Tableau[Sens Ouv]&Tableau[Petits bois]&Tableau[Allège maç]&Tableau[Mortaise]&Tableau[RAL]&Tableau[Dormant]&Tableau[GHI]&Tableau[Type de pose]&Tableau[OB]&Tableau[OB2]=W475&X475&Y475&Z475&AA475&AB475&AC475&AD475&AE475&AF475&AG475&AH475&AI475&AJ475&AK475)*1),\"\")","v":""},"←"]
[null,null,null,null,null,null,null,null,null,null,null,null,null,null,null,null,null,null,null,null,null,"→",null,null,null,null,null,null,null,null,null,null,null,null,null,null,null,null,{"$f":"IF(COUNTIF(W476:AK476,\"<>\"),SUMPRODUCT((Tableau[Hauteur]&Tableau[Largeur]&Tableau[Type]&Tableau[Allège vitrée]&Tableau[Vitrage]&Tableau[Sens Ouv]&Tableau[Petits bois]&Tableau[Allège maç]&Tableau[Mortaise]&Tableau[RAL]&Tableau[Dormant]&Tableau[GHI]&Tableau[Type de pose]&Tableau[OB]&Tableau[OB2]=W476&X476&Y476&Z476&AA476&AB476&AC476&AD476&AE476&AF476&AG476&AH476&AI476&AJ476&AK476)*1),\"\")","v":""},"←"]
[null,null,null,null,null,null,null,null,null,null,null,null,null,null,null,null,null,null,null,null,null,"→",null,null,null,null,null,null,null,null,null,null,null,null,null,null,null,null,{"$f":"IF(COUNTIF(W477:AK477,\"<>\"),SUMPRODUCT((Tableau[Hauteur]&Tableau[Largeur]&Tableau[Type]&Tableau[Allège vitrée]&Tableau[Vitrage]&Tableau[Sens Ouv]&Tableau[Petits bois]&Tableau[Allège maç]&Tableau[Mortaise]&Tableau[RAL]&Tableau[Dormant]&Tableau[GHI]&Tableau[Type de pose]&Tableau[OB]&Tableau[OB2]=W477&X477&Y477&Z477&AA477&AB477&AC477&AD477&AE477&AF477&AG477&AH477&AI477&AJ477&AK477)*1),\"\")","v":""},"←"]
[null,null,null,null,null,null,null,null,null,null,null,null,null,null,null,null,null,null,null,null,null,"→",null,null,null,null,null,null,null,null,null,null,null,null,null,null,null,null,{"$f":"IF(COUNTIF(W478:AK478,\"<>\"),SUMPRODUCT((Tableau[Hauteur]&Tableau[Largeur]&Tableau[Type]&Tableau[Allège vitrée]&Tableau[Vitrage]&Tableau[Sens Ouv]&Tableau[Petits bois]&Tableau[Allège maç]&Tableau[Mortaise]&Tableau[RAL]&Tableau[Dormant]&Tableau[GHI]&Tableau[Type de pose]&Tableau[OB]&Tableau[OB2]=W478&X478&Y478&Z478&AA478&AB478&AC478&AD478&AE478&AF478&AG478&AH478&AI478&AJ478&AK478)*1),\"\")","v":""},"←"]
[null,null,null,null,null,null,null,null,null,null,null,null,null,null,null,null,null,null,null,null,null,"→",null,null,null,null,null,null,null,null,null,null,null,null,null,null,null,null,{"$f":"IF(COUNTIF(W479:AK479,\"<>\"),SUMPRODUCT((Tableau[Hauteur]&Tableau[Largeur]&Tableau[Type]&Tableau[Allège vitrée]&Tableau[Vitrage]&Tableau[Sens Ouv]&Tableau[Petits bois]&Tableau[Allège maç]&Tableau[Mortaise]&Tableau[RAL]&Tableau[Dormant]&Tableau[GHI]&Tableau[Type de pose]&Tableau[OB]&Tableau[OB2]=W479&X479&Y479&Z479&AA479&AB479&AC479&AD479&AE479&AF479&AG479&AH479&AI479&AJ479&AK479)*1),\"\")","v":""},"←"]
[null,null,null,null,null,null,null,null,null,null,null,null,null,null,null,null,null,null,null,null,null,"→",null,null,null,null,null,null,null,null,null,null,null,null,null,null,null,null,{"$f":"IF(COUNTIF(W480:AK480,\"<>\"),SUMPRODUCT((Tableau[Hauteur]&Tableau[Largeur]&Tableau[Type]&Tableau[Allège vitrée]&Tableau[Vitrage]&Tableau[Sens Ouv]&Tableau[Petits bois]&Tableau[Allège maç]&Tableau[Mortaise]&Tableau[RAL]&Tableau[Dormant]&Tableau[GHI]&Tableau[Type de pose]&Tableau[OB]&Tableau[OB2]=W480&X480&Y480&Z480&AA480&AB480&AC480&AD480&AE480&AF480&AG480&AH480&AI480&AJ480&AK480)*1),\"\")","v":""},"←"]
[null,null,null,null,null,null,null,null,null,null,null,null,null,null,null,null,null,null,null,null,null,"→",null,null,null,null,null,null,null,null,null,null,null,null,null,null,null,null,{"$f":"IF(COUNTIF(W481:AK481,\"<>\"),SUMPRODUCT((Tableau[Hauteur]&Tableau[Largeur]&Tableau[Type]&Tableau[Allège vitrée]&Tableau[Vitrage]&Tableau[Sens Ouv]&Tableau[Petits bois]&Tableau[Allège maç]&Tableau[Mortaise]&Tableau[RAL]&Tableau[Dormant]&Tableau[GHI]&Tableau[Type de pose]&Tableau[OB]&Tableau[OB2]=W481&X481&Y481&Z481&AA481&AB481&AC481&AD481&AE481&AF481&AG481&AH481&AI481&AJ481&AK481)*1),\"\")","v":""},"←"]
[null,null,null,null,null,null,null,null,null,null,null,null,null,null,null,null,null,null,null,null,null,"→",null,null,null,null,null,null,null,null,null,null,null,null,null,null,null,null,{"$f":"IF(COUNTIF(W482:AK482,\"<>\"),SUMPRODUCT((Tableau[Hauteur]&Tableau[Largeur]&Tableau[Type]&Tableau[Allège vitrée]&Tableau[Vitrage]&Tableau[Sens Ouv]&Tableau[Petits bois]&Tableau[Allège maç]&Tableau[Mortaise]&Tableau[RAL]&Tableau[Dormant]&Tableau[GHI]&Tableau[Type de pose]&Tableau[OB]&Tableau[OB2]=W482&X482&Y482&Z482&AA482&AB482&AC482&AD482&AE482&AF482&AG482&AH482&AI482&AJ482&AK482)*1),\"\")","v":""},"←"]
[null,null,null,null,null,null,null,null,null,null,null,null,null,null,null,null,null,null,null,null,null,"→",null,null,null,null,null,null,null,null,null,null,null,null,null,null,null,null,{"$f":"IF(COUNTIF(W483:AK483,\"<>\"),SUMPRODUCT((Tableau[Hauteur]&Tableau[Largeur]&Tableau[Type]&Tableau[Allège vitrée]&Tableau[Vitrage]&Tableau[Sens Ouv]&Tableau[Petits bois]&Tableau[Allège maç]&Tableau[Mortaise]&Tableau[RAL]&Tableau[Dormant]&Tableau[GHI]&Tableau[Type de pose]&Tableau[OB]&Tableau[OB2]=W483&X483&Y483&Z483&AA483&AB483&AC483&AD483&AE483&AF483&AG483&AH483&AI483&AJ483&AK483)*1),\"\")","v":""},"←"]
[null,null,null,null,null,null,null,null,null,null,null,null,null,null,null,null,null,null,null,null,null,"→",null,null,null,null,null,null,null,null,null,null,null,null,null,null,null,null,{"$f":"IF(COUNTIF(W484:AK484,\"<>\"),SUMPRODUCT((Tableau[Hauteur]&Tableau[Largeur]&Tableau[Type]&Tableau[Allège vitrée]&Tableau[Vitrage]&Tableau[Sens Ouv]&Tableau[Petits bois]&Tableau[Allège maç]&Tableau[Mortaise]&Tableau[RAL]&Tableau[Dormant]&Tableau[GHI]&Tableau[Type de pose]&Tableau[OB]&Tableau[OB2]=W484&X484&Y484&Z484&AA484&AB484&AC484&AD484&AE484&AF484&AG484&AH484&AI484&AJ484&AK484)*1),\"\")","v":""},"←"]
[null,null,null,null,null,null,null,null,null,null,null,null,null,null,null,null,null,null,null,null,null,"→",null,null,null,null,null,null,null,null,null,null,null,null,null,null,null,null,{"$f":"IF(COUNTIF(W485:AK485,\"<>\"),SUMPRODUCT((Tableau[Hauteur]&Tableau[Largeur]&Tableau[Type]&Tableau[Allège vitrée]&Tableau[Vitrage]&Tableau[Sens Ouv]&Tableau[Petits bois]&Tableau[Allège maç]&Tableau[Mortaise]&Tableau[RAL]&Tableau[Dormant]&Tableau[GHI]&Tableau[Type de pose]&Tableau[OB]&Tableau[OB2]=W485&X485&Y485&Z485&AA485&AB485&AC485&AD485&AE485&AF485&AG485&AH485&AI485&AJ485&AK485)*1),\"\")","v":""},"←"]
[null,null,null,null,null,null,null,null,null,null,null,null,null,null,null,null,null,null,null,null,null,"→",null,null,null,null,null,null,null,null,null,null,null,null,null,null,null,null,{"$f":"IF(COUNTIF(W486:AK486,\"<>\"),SUMPRODUCT((Tableau[Hauteur]&Tableau[Largeur]&Tableau[Type]&Tableau[Allège vitrée]&Tableau[Vitrage]&Tableau[Sens Ouv]&Tableau[Petits bois]&Tableau[Allège maç]&Tableau[Mortaise]&Tableau[RAL]&Tableau[Dormant]&Tableau[GHI]&Tableau[Type de pose]&Tableau[OB]&Tableau[OB2]=W486&X486&Y486&Z486&AA486&AB486&AC486&AD486&AE486&AF486&AG486&AH486&AI486&AJ486&AK486)*1),\"\")","v":""},"←"]
[null,null,null,null,null,null,null,null,null,null,null,null,null,null,null,null,null,null,null,null,null,"→",null,null,null,null,null,null,null,null,null,null,null,null,null,null,null,null,{"$f":"IF(COUNTIF(W487:AK487,\"<>\"),SUMPRODUCT((Tableau[Hauteur]&Tableau[Largeur]&Tableau[Type]&Tableau[Allège vitrée]&Tableau[Vitrage]&Tableau[Sens Ouv]&Tableau[Petits bois]&Tableau[Allège maç]&Tableau[Mortaise]&Tableau[RAL]&Tableau[Dormant]&Tableau[GHI]&Tableau[Type de pose]&Tableau[OB]&Tableau[OB2]=W487&X487&Y487&Z487&AA487&AB487&AC487&AD487&AE487&AF487&AG487&AH487&AI487&AJ487&AK487)*1),\"\")","v":""},"←"]
[null,null,null,null,null,null,null,null,null,null,null,null,null,null,null,null,null,null,null,null,null,"→",null,null,null,null,null,null,null,null,null,null,null,null,null,null,null,null,{"$f":"IF(COUNTIF(W488:AK488,\"<>\"),SUMPRODUCT((Tableau[Hauteur]&Tableau[Largeur]&Tableau[Type]&Tableau[Allège vitrée]&Tableau[Vitrage]&Tableau[Sens Ouv]&Tableau[Petits bois]&Tableau[Allège maç]&Tableau[Mortaise]&Tableau[RAL]&Tableau[Dormant]&Tableau[GHI]&Tableau[Type de pose]&Tableau[OB]&Tableau[OB2]=W488&X488&Y488&Z488&AA488&AB488&AC488&AD488&AE488&AF488&AG488&AH488&AI488&AJ488&AK488)*1),\"\")","v":""},"←"]
[null,null,null,null,null,null,null,null,null,null,null,null,null,null,null,null,null,null,null,null,null,"→",null,null,null,null,null,null,null,null,null,null,null,null,null,null,null,null,{"$f":"IF(COUNTIF(W489:AK489,\"<>\"),SUMPRODUCT((Tableau[Hauteur]&Tableau[Largeur]&Tableau[Type]&Tableau[Allège vitrée]&Tableau[Vitrage]&Tableau[Sens Ouv]&Tableau[Petits bois]&Tableau[Allège maç]&Tableau[Mortaise]&Tableau[RAL]&Tableau[Dormant]&Tableau[GHI]&Tableau[Type de pose]&Tableau[OB]&Tableau[OB2]=W489&X489&Y489&Z489&AA489&AB489&AC489&AD489&AE489&AF489&AG489&AH489&AI489&AJ489&AK489)*1),\"\")","v":""},"←"]
[null,null,null,null,null,null,null,null,null,null,null,null,null,null,null,null,null,null,null,null,null,"→",null,null,null,null,null,null,null,null,null,null,null,null,null,null,null,null,{"$f":"IF(COUNTIF(W490:AK490,\"<>\"),SUMPRODUCT((Tableau[Hauteur]&Tableau[Largeur]&Tableau[Type]&Tableau[Allège vitrée]&Tableau[Vitrage]&Tableau[Sens Ouv]&Tableau[Petits bois]&Tableau[Allège maç]&Tableau[Mortaise]&Tableau[RAL]&Tableau[Dormant]&Tableau[GHI]&Tableau[Type de pose]&Tableau[OB]&Tableau[OB2]=W490&X490&Y490&Z490&AA490&AB490&AC490&AD490&AE490&AF490&AG490&AH490&AI490&AJ490&AK490)*1),\"\")","v":""},"←"]
[null,null,null,null,null,null,null,null,null,null,null,null,null,null,null,null,null,null,null,null,null,"→",null,null,null,null,null,null,null,null,null,null,null,null,null,null,null,null,{"$f":"IF(COUNTIF(W491:AK491,\"<>\"),SUMPRODUCT((Tableau[Hauteur]&Tableau[Largeur]&Tableau[Type]&Tableau[Allège vitrée]&Tableau[Vitrage]&Tableau[Sens Ouv]&Tableau[Petits bois]&Tableau[Allège maç]&Tableau[Mortaise]&Tableau[RAL]&Tableau[Dormant]&Tableau[GHI]&Tableau[Type de pose]&Tableau[OB]&Tableau[OB2]=W491&X491&Y491&Z491&AA491&AB491&AC491&AD491&AE491&AF491&AG491&AH491&AI491&AJ491&AK491)*1),\"\")","v":""},"←"]
[null,null,null,null,null,null,null,null,null,null,null,null,null,null,null,null,null,null,null,null,null,"→",null,null,null,null,null,null,null,null,null,null,null,null,null,null,null,null,{"$f":"IF(COUNTIF(W492:AK492,\"<>\"),SUMPRODUCT((Tableau[Hauteur]&Tableau[Largeur]&Tableau[Type]&Tableau[Allège vitrée]&Tableau[Vitrage]&Tableau[Sens Ouv]&Tableau[Petits bois]&Tableau[Allège maç]&Tableau[Mortaise]&Tableau[RAL]&Tableau[Dormant]&Tableau[GHI]&Tableau[Type de pose]&Tableau[OB]&Tableau[OB2]=W492&X492&Y492&Z492&AA492&AB492&AC492&AD492&AE492&AF492&AG492&AH492&AI492&AJ492&AK492)*1),\"\")","v":""},"←"]
[null,null,null,null,null,null,null,null,null,null,null,null,null,null,null,null,null,null,null,null,null,"→",null,null,null,null,null,null,null,null,null,null,null,null,null,null,null,null,{"$f":"IF(COUNTIF(W493:AK493,\"<>\"),SUMPRODUCT((Tableau[Hauteur]&Tableau[Largeur]&Tableau[Type]&Tableau[Allège vitrée]&Tableau[Vitrage]&Tableau[Sens Ouv]&Tableau[Petits bois]&Tableau[Allège maç]&Tableau[Mortaise]&Tableau[RAL]&Tableau[Dormant]&Tableau[GHI]&Tableau[Type de pose]&Tableau[OB]&Tableau[OB2]=W493&X493&Y493&Z493&AA493&AB493&AC493&AD493&AE493&AF493&AG493&AH493&AI493&AJ493&AK493)*1),\"\")","v":""},"←"]
[null,null,null,null,null,null,null,null,null,null,null,null,null,null,null,null,null,null,null,null,null,"→",null,null,null,null,null,null,null,null,null,null,null,null,null,null,null,null,{"$f":"IF(COUNTIF(W494:AK494,\"<>\"),SUMPRODUCT((Tableau[Hauteur]&Tableau[Largeur]&Tableau[Type]&Tableau[Allège vitrée]&Tableau[Vitrage]&Tableau[Sens Ouv]&Tableau[Petits bois]&Tableau[Allège maç]&Tableau[Mortaise]&Tableau[RAL]&Tableau[Dormant]&Tableau[GHI]&Tableau[Type de pose]&Tableau[OB]&Tableau[OB2]=W494&X494&Y494&Z494&AA494&AB494&AC494&AD494&AE494&AF494&AG494&AH494&AI494&AJ494&AK494)*1),\"\")","v":""},"←"]
[null,null,null,null,null,null,null,null,null,null,null,null,null,null,null,null,null,null,null,null,null,"→",null,null,null,null,null,null,null,null,null,null,null,null,null,null,null,null,{"$f":"IF(COUNTIF(W495:AK495,\"<>\"),SUMPRODUCT((Tableau[Hauteur]&Tableau[Largeur]&Tableau[Type]&Tableau[Allège vitrée]&Tableau[Vitrage]&Tableau[Sens Ouv]&Tableau[Petits bois]&Tableau[Allège maç]&Tableau[Mortaise]&Tableau[RAL]&Tableau[Dormant]&Tableau[GHI]&Tableau[Type de pose]&Tableau[OB]&Tableau[OB2]=W495&X495&Y495&Z495&AA495&AB495&AC495&AD495&AE495&AF495&AG495&AH495&AI495&AJ495&AK495)*1),\"\")","v":""},"←"]
[null,null,null,null,null,null,null,null,null,null,null,null,null,null,null,null,null,null,null,null,null,"→",null,null,null,null,null,null,null,null,null,null,null,null,null,null,null,null,{"$f":"IF(COUNTIF(W496:AK496,\"<>\"),SUMPRODUCT((Tableau[Hauteur]&Tableau[Largeur]&Tableau[Type]&Tableau[Allège vitrée]&Tableau[Vitrage]&Tableau[Sens Ouv]&Tableau[Petits bois]&Tableau[Allège maç]&Tableau[Mortaise]&Tableau[RAL]&Tableau[Dormant]&Tableau[GHI]&Tableau[Type de pose]&Tableau[OB]&Tableau[OB2]=W496&X496&Y496&Z496&AA496&AB496&AC496&AD496&AE496&AF496&AG496&AH496&AI496&AJ496&AK496)*1),\"\")","v":""},"←"]
[null,null,null,null,null,null,null,null,null,null,null,null,null,null,null,null,null,null,null,null,null,"→",null,null,null,null,null,null,null,null,null,null,null,null,null,null,null,null,{"$f":"IF(COUNTIF(W497:AK497,\"<>\"),SUMPRODUCT((Tableau[Hauteur]&Tableau[Largeur]&Tableau[Type]&Tableau[Allège vitrée]&Tableau[Vitrage]&Tableau[Sens Ouv]&Tableau[Petits bois]&Tableau[Allège maç]&Tableau[Mortaise]&Tableau[RAL]&Tableau[Dormant]&Tableau[GHI]&Tableau[Type de pose]&Tableau[OB]&Tableau[OB2]=W497&X497&Y497&Z497&AA497&AB497&AC497&AD497&AE497&AF497&AG497&AH497&AI497&AJ497&AK497)*1),\"\")","v":""},"←"]
[null,null,null,null,null,null,null,null,null,null,null,null,null,null,null,null,null,null,null,null,null,"→",null,null,null,null,null,null,null,null,null,null,null,null,null,null,null,null,{"$f":"IF(COUNTIF(W498:AK498,\"<>\"),SUMPRODUCT((Tableau[Hauteur]&Tableau[Largeur]&Tableau[Type]&Tableau[Allège vitrée]&Tableau[Vitrage]&Tableau[Sens Ouv]&Tableau[Petits bois]&Tableau[Allège maç]&Tableau[Mortaise]&Tableau[RAL]&Tableau[Dormant]&Tableau[GHI]&Tableau[Type de pose]&Tableau[OB]&Tableau[OB2]=W498&X498&Y498&Z498&AA498&AB498&AC498&AD498&AE498&AF498&AG498&AH498&AI498&AJ498&AK498)*1),\"\")","v":""},"←"]
[null,null,null,null,null,null,null,null,null,null,null,null,null,null,null,null,null,null,null,null,null,"→",null,null,null,null,null,null,null,null,null,null,null,null,null,null,null,null,{"$f":"IF(COUNTIF(W499:AK499,\"<>\"),SUMPRODUCT((Tableau[Hauteur]&Tableau[Largeur]&Tableau[Type]&Tableau[Allège vitrée]&Tableau[Vitrage]&Tableau[Sens Ouv]&Tableau[Petits bois]&Tableau[Allège maç]&Tableau[Mortaise]&Tableau[RAL]&Tableau[Dormant]&Tableau[GHI]&Tableau[Type de pose]&Tableau[OB]&Tableau[OB2]=W499&X499&Y499&Z499&AA499&AB499&AC499&AD499&AE499&AF499&AG499&AH499&AI499&AJ499&AK499)*1),\"\")","v":""},"←"]
[null,null,null,null,null,null,null,null,null,null,null,null,null,null,null,null,null,null,null,null,null,"→",null,null,null,null,null,null,null,null,null,null,null,null,null,null,null,null,{"$f":"IF(COUNTIF(W500:AK500,\"<>\"),SUMPRODUCT((Tableau[Hauteur]&Tableau[Largeur]&Tableau[Type]&Tableau[Allège vitrée]&Tableau[Vitrage]&Tableau[Sens Ouv]&Tableau[Petits bois]&Tableau[Allège maç]&Tableau[Mortaise]&Tableau[RAL]&Tableau[Dormant]&Tableau[GHI]&Tableau[Type de pose]&Tableau[OB]&Tableau[OB2]=W500&X500&Y500&Z500&AA500&AB500&AC500&AD500&AE500&AF500&AG500&AH500&AI500&AJ500&AK500)*1),\"\")","v":""},"←"]
[null,null,null,null,null,null,null,null,null,null,null,null,null,null,null,null,null,null,null,null,null,"→",null,null,null,null,null,null,null,null,null,null,null,null,null,null,null,null,{"$f":"IF(COUNTIF(W501:AK501,\"<>\"),SUMPRODUCT((Tableau[Hauteur]&Tableau[Largeur]&Tableau[Type]&Tableau[Allège vitrée]&Tableau[Vitrage]&Tableau[Sens Ouv]&Tableau[Petits bois]&Tableau[Allège maç]&Tableau[Mortaise]&Tableau[RAL]&Tableau[Dormant]&Tableau[GHI]&Tableau[Type de pose]&Tableau[OB]&Tableau[OB2]=W501&X501&Y501&Z501&AA501&AB501&AC501&AD501&AE501&AF501&AG501&AH501&AI501&AJ501&AK501)*1),\"\")","v":""},"←"]
[null,null,null,null,null,null,null,null,null,null,null,null,null,null,null,null,null,null,null,null,null,"→",null,null,null,null,null,null,null,null,null,null,null,null,null,null,null,null,{"$f":"IF(COUNTIF(W502:AK502,\"<>\"),SUMPRODUCT((Tableau[Hauteur]&Tableau[Largeur]&Tableau[Type]&Tableau[Allège vitrée]&Tableau[Vitrage]&Tableau[Sens Ouv]&Tableau[Petits bois]&Tableau[Allège maç]&Tableau[Mortaise]&Tableau[RAL]&Tableau[Dormant]&Tableau[GHI]&Tableau[Type de pose]&Tableau[OB]&Tableau[OB2]=W502&X502&Y502&Z502&AA502&AB502&AC502&AD502&AE502&AF502&AG502&AH502&AI502&AJ502&AK502)*1),\"\")","v":""},"←"]

{"sheet":"Feuil2","index":1,"n_rows":0,"n_cols":0,"rows_kept":0,"cut":false,"hidden":false,"merged":[]}

{"sheet":"Données","index":2,"n_rows":16,"n_cols":29,"rows_kept":16,"cut":false,"hidden":false,"merged":[]}
["AIDE 1","AIDE 2","AIDE 3","AIDE 4","AIDE 5"]
["Type","Dormant","Vitrage","VR","Allège maç","Fixe latéral","Mortaise","Petits bois","RAL","PA","Type de pose","OB","Faux ouvrant","GHI","Store","Allège vitrée","Sens Ouv","19","20","21","22","23","24","25","26","27","28","29","a"]
[]
["OF1",140,"6-18-4",null,400,null,"Oui","1V 2H",9016,null,null,"ob",null,null,null,1000,"Droite Tir"]
["OF2",null,"44²RA-16-4",null,100,null,null,"1V(AL) 1H(OF)",7016,null,null,null,null,null,null,null,"Gauche Tir"]
["PF1",null,"10/14/4",null,null,null,null,null,null,null,null,null,null,null,null,null,"Droite Pous"]
["PF2",null,null,null,null,null,null,null,null,null,null,null,null,null,null,null,"Gauche Pous"]
["OF3"]
["PF3"]
["OF4"]
["PF4"]
["BC1"]
["PE"]
["PS"]
["PP"]
["PG"]

{"sheet":"Feuil1","index":3,"n_rows":5,"n_cols":5,"rows_kept":5,"cut":false,"hidden":false,"merged":[]}
[null,"Fait","Solution",null,"A faire"]
[]
[4.0999999999999996,"Bloquage de l'apostrophe dans les entêtes de \"Données\"","\"=ESTERREUR(CHERCHE(\"'\";B2:AD2))=VRAI\"",null,"mise en page impression"]
[4.0999999999999996,"Impression des titres"]
[4.2,"Dédoublage de la macro de surbrillance pour gérer les 2 tableaux"]